Workbook

Sheet Instructions
B1: Version date: | C1: 2026-03-20
B3: NHSaves Technical Reference Manual Calculation Tool Overview | M3: Link to NHSaves eTRM
B4: This tool provides energy savings calculations for commercial retrofit energy conservation measures (ECMs) listed in the New Hampshire Technical Reference Manual. The savings calculations do not include food service or lighting measures.
B10: Step 1: Enter General Project Information | M10: Key
B11: General project information must be entered as the first step in the "Project Info" worksheet when starting any new project. | N11: Input Cells
N12: Calculation Cells
N13: Guidance/Information Cells
B16: Step 2: Select ECMs
B17: Select energy efficiency measures to be analyzed in the "Measure Summary" tab by choosing "Yes" for each ECM associated with the project (this highlights all input cells needed for user to fill in and enables the calculation worksheet to become visible for that measure)
B22: Step 3: Enter input data
B23: The tool covers 32 ECMs with automated savings calculations based on the applicable user inputs. There are six sheets to be used to enter the relevant calculation inputs for each measure. - Building Shell, HW & HVAC Inputs - Compressed Air Inputs - Hot Water Inputs - Heat Pump Inputs - Motors and Drives Inputs - Appliances Inputs These are all ORANGE colored tabs, while the sheets containing the calculations (and no inputs) are GREY.
B39: Version Notes:
B40: 2026-03-20 | C40: Updated VFD & Air Sealing calcs | F40: Amir E.

Sheet Project Info
B1: Key
C2: Input Cells
C3: Calculation Cells
C4: Guidance/Information Cells
B6: Project Contact Information | I6: Project Description (include existing and proposed case) | Q6: Building Type | T6: Weather Data Locations | W6: HVAC Type | Y6: Heating Fuel Types | AA6: DHW Fuel
B7: Field | D7: Customer | E7: Electric Utility | F7: Gas Utility | Q7: Community College | T7: Berlin | W7: CV Econ | Y7: Gas | AA7: Gas
B8: Company: | Q8: High School | T8: Concord | W8: CV nonecon | Y8: Propane | AA8: Propane
B9: Contact Name: | Q9: Hospital | T9: Keene | W9: VAV | Y9: Fuel Oil | AA9: Fuel Oil
B10: Contact Email Address: | Q10: Hotel | T10: Laconia | W10: Unknown | Y10: Electric | AA10: Electric Resistance
B11: Contact Phone: | Q11: Large Office | T11: Lebanon | AA11: Electric Heat Pump
B12: Account #: | Q12: Large Retail | T12: Manchester | W12: Cooling Type | Y12: Heating Type
B13: Application #: | Q13: University | T13: Portsmouth | W13: Packaged DX AHU | Y13: Gas-fired
B14: Calculations completed by: | Q14: Assembly | W14: AHU with CHW | Y14: Hot water boiler
Q15: Auto Repair | T15: Electric Utilities | W15: Zone heat pump | Y15: Steam boiler
B16: Site Information | Q16: Big Box Retail | T16: Eversource | W16: FCU/Chilled beam with CHW | Y16: Heat pump
B17: Site Name: | Q17: Dormitory | T17: NH Electric Co-op | W17: Other | Y17: Electric resistance
B18: Street Address: | Q18: Fast Food Restaurant | T18: Liberty
B19: City, Zip code: | Q19: Full Service Restaurant | T19: Unitil
B20: Building Type: | Q20: Grocery | T20: Municipal Electric
B21: Weather Data: | Q21: Light Industrial
B22: HVAC Type: | Q22: Motel | T22: Gas Utilies
B23: Cooling System Type: | Q23: Primary School | T23: Liberty
B24: Space Heating Fuel: | Q24: Religious | T24: Unitil
B25: Space Heating System Type: | Q25: Small Office | T25: Municipal Gas
B26: Space Heating Boiler Type: | Q26: Small Retail | T26: N/A
B27: Domestic Water Heater Fuel Type: | Q27: Warehouse
Q28: Other
B29: Billing Data
B30: (may be entered for Liberty customers when helpful)
B31: Month | C31: Electric (kWh) | D31: =D24 -> 0
B32: Jan
B33: Feb
B34: Mar
B35: Apr
B36: May
B37: Jun
B38: Jul
B39: Aug
B40: Sep
B41: Oct
B42: Nov
B43: Dec
B44: Total | C44: =SUM(C32:C43) -> 0 | D44: =SUM(D32:D43) -> 0

Sheet Measure Summary
A1: Key | D1: Instructions
B2: Input Cells | D2: Please select "Yes" or "No" on the ORANGE cells in this sheet to include the energy savings of the facility's project measures. Then complete the measure specific information on each of the associated ORANGE tabs.
B3: Calculation Cells
B4: Guidance/Information Cells
B6: Summary of TRM Measures | P6: Conversion Table
B7: Energy Conservation Measures (ECM) | E7: Calculate | F7: Annual Savings | I7: Heating | J7: Water | K7: Measure Life | L7: Review | M7: Input | P7: Fuel | Q7: MMBtu | R7: = | S7: Conversion Factor | T7: Unit
B8: Measure Name | C8: Measure TRM Category | D8: # | E8: ECM? | F8: kWh | G8: Summer kW | H8: Winter kW | I8: =IF('Project Info'!D24="Electric","kWh",IF('Project Info'!D24="Gas","therms",IF('Project Info'!D24="Fuel Oil","gallons of oil",IF('Project Info'!D24="Propane","gallons of propane","")))) ->  | J8: gallons | K8: Years | L8: Notes | M8: Sheet | P8: Electric | Q8: 1 | S8: =1000000/3412 -> 293.0832356 | T8: kWh
B9: Air Sealing | C9: Building Shell | D9: 1 | E9: No | F9: =IF(E9="Yes",'BldgShell1-AirSealing'!D7,0) -> 0 | G9: =IF(E9="Yes",('BldgShell1-AirSealing'!D6*'BldgShell1-AirSealing'!D11/100),0) -> 0 | H9: =IF(E9="Yes",('BldgShell1-AirSealing'!D6*'BldgShell1-AirSealing'!D13/100),0) -> 0 | I9: =IF('Project Info'!D24="",0,IF(E9="Yes",'BldgShell1-AirSealing'!D8*VLOOKUP('Project Info'!$D$24,'Measure Summary'!$P$8:$T$11,4,FALSE),0)) -> 0 | J9: 0 | K9: =IF(E9="Yes",'BldgShell1-AirSealing'!D9,"") ->  | L9: =IF(AND(E9="Yes",OR(F9>0,I9>0)),"TRM calculates heating savings only.",IF(AND(E9="Yes",OR(F9=0,I9=0)),"Check Inputs. Measure selected, but no savings are calculated.","")) ->  | M9: Building Shell Inputs | P9: Gas | Q9: 1 | S9: 10 | T9: therms
B10: Insulation | C10: Building Shell | D10: 2 | E10: No | F10: =IF(E10="Yes",'BldgShell2-Insulation'!D7,0) -> 0 | G10: =IF(E10="Yes",('BldgShell2-Insulation'!D6*'BldgShell2-Insulation'!D11/100),0) -> 0 | H10: =IF(E10="Yes",('BldgShell2-Insulation'!D6*'BldgShell1-AirSealing'!D13/100),0) -> 0 | I10: =IF('Project Info'!D24="",0,IF(E10="Yes",'BldgShell2-Insulation'!D8*VLOOKUP('Project Info'!$D$24,'Measure Summary'!$P$8:$T$11,4,FALSE),0)) -> 0 | J10: 0 | K10: =IF(E10="Yes",'BldgShell2-Insulation'!D10,"") ->  | L10: =IF(AND(E10="Yes",OR(F10>0,I10>0)),"TRM calculates heating savings only.",IF(AND(E10="Yes",OR(F10=0,I10=0)),"Check Inputs. Measure selected, but no savings are calculated.","")) ->  | M10: Building Shell Inputs | P10: Fuel Oil | Q10: 1 | S10: 7.1429 | T10: gallons of #2 Fuel Oil
B11: Adding Compressor Storage | C11: Compressed Air | D11: 1 | E11: No | F11: =IF(E11="Yes",'CompAir1-Storage'!D7,0) -> 0 | G11: =IF(E11="Yes",'CompAir1-Storage'!D6*'CompAir1-Storage'!D10/100,0) -> 0 | H11: =IF(E11="Yes",'CompAir1-Storage'!D6*'CompAir1-Storage'!D11/100,0) -> 0 | I11: 0 | J11: 0 | K11: =IF(E11="Yes",'CompAir1-Storage'!D9,"") ->  | L11: =IF(OR(AND(E11="No",F11>0),AND(E11="No",I11>0)),"Check inputs. Measure not selected, but shows savings.",IF(AND(E11="Yes",AND(F11=0,I11=0)),"Check Inputs. Measure selected, but no savings are calculated.","")) ->  | M11: Compressed Air Inputs | P11: Propane | Q11: 1 | S11: 10.917 | T11: gallons of propane
B12: Air Nozzle | C12: Compressed Air | D12: 2 | E12: No | F12: =IF(E12="Yes",'CompAir2-Nozzle'!D7,0) -> 0 | G12: =IF(E12="Yes",'CompAir2-Nozzle'!D6*'CompAir2-Nozzle'!D10/100,0) -> 0 | H12: =IF(E12="Yes",'CompAir2-Nozzle'!D6*'CompAir2-Nozzle'!D11/100,0) -> 0 | I12: 0 | J12: 0 | K12: =IF(E12="Yes",'CompAir2-Nozzle'!D9,"") ->  | M12: Compressed Air Inputs
B13: Low Pressure Drop Filter | C13: Compressed Air | D13: 3 | E13: No | F13: =IF(E13="Yes",'CompAir3-LPFilter'!D7,0) -> 0 | G13: =IF(E13="Yes",'CompAir3-LPFilter'!D6*'CompAir3-LPFilter'!D10/100,0) -> 0 | H13: =IF(E13="Yes",'CompAir3-LPFilter'!D6*'CompAir3-LPFilter'!D11/100,0) -> 0 | I13: 0 | J13: 0 | K13: =IF(E13="Yes",'CompAir3-LPFilter'!D9,"") ->  | M13: Compressed Air Inputs | P13: Header | Q13: ='Project Info'!E8&" / "&'Project Info'!F8&" / "&'Project Info'!D8 -> / /
B14: Zero Loss Condensate Drain | C14: Compressed Air | D14: 4 | E14: No | F14: =IF(E14="Yes",'CompAir4-ZeroLossDrain'!D7,0) -> 0 | G14: =IF(E14="Yes",'CompAir4-ZeroLossDrain'!D6*'CompAir4-ZeroLossDrain'!D10/100,0) -> 0 | H14: =IF(E14="Yes",'CompAir4-ZeroLossDrain'!D6*'CompAir4-ZeroLossDrain'!D11/100,0) -> 0 | I14: 0 | J14: 0 | K14: =IF(E14="Yes",'CompAir4-ZeroLossDrain'!D9,"") ->  | M14: Compressed Air Inputs
B15: Compressed Air Leak Detection & Repair | C15: Compressed Air | D15: 5 | E15: No | F15: =IF(E15="Yes",'CompAir5-LeakRepair'!D7,0) -> 0 | G15: =IF(E15="Yes",'CompAir5-LeakRepair'!D6*'CompAir5-LeakRepair'!D10/100,0) -> 0 | H15: =IF(E15="Yes",'CompAir5-LeakRepair'!D6*'CompAir5-LeakRepair'!D11/100,0) -> 0 | I15: 0 | J15: 0 | K15: =IF(E15="Yes",'CompAir5-LeakRepair'!D9,"") ->  | L15: =IF(OR(AND(E15="No",F15>0),AND(E15="No",I15>0)),"Check inputs. Measure not selected, but shows savings.",IF(AND(E15="Yes",AND(F15=0,I15=0)),"Check Inputs. Measure selected, but no savings are calculated.","")) ->  | M15: Compressed Air Inputs
B16: New Air Compressor | C16: Compressed Air | D16: 6 | E16: No | F16: =IF(E16="Yes",'CompAir6-NewCompressor'!D7,0) -> 0 | G16: =IF(E16="Yes",'CompAir6-NewCompressor'!D6*'CompAir6-NewCompressor'!D10/100,0) -> 0 | H16: =IF(E16="Yes",'CompAir6-NewCompressor'!D6*'CompAir6-NewCompressor'!D11/100,0) -> 0 | I16: 0 | J16: 0 | K16: =IF(E16="Yes",'CompAir6-NewCompressor'!D9,"") ->  | M16: Compressed Air Inputs
B17: New Refrigerated Air Dryer | C17: Compressed Air | D17: 7 | E17: No | F17: =IF(E17="Yes",'CompAir7-NewAirDryer'!D7,0) -> 0 | G17: =IF(E17="Yes",'CompAir7-NewAirDryer'!D6*'CompAir7-NewAirDryer'!D10/100,0) -> 0 | H17: =IF(E17="Yes",'CompAir7-NewAirDryer'!D6*'CompAir7-NewAirDryer'!D11/100,0) -> 0 | I17: 0 | J17: 0 | K17: =IF(E17="Yes",'CompAir7-NewAirDryer'!D9,"") ->  | M17: Compressed Air Inputs
B18: Showerheads (Low-Flow & Thermostatic Shut-Off Valve) | C18: Hot Water | D18: 1 | E18: No | F18: =IF('Project Info'!D27="",0,IF(E18="Yes",'HW1-Showerheads'!D7,0)) -> 0 | G18: =IF('Project Info'!D27="",0,IF(E18="Yes",'HW1-Showerheads'!D6*'HW1-Showerheads'!D11/100,0)) -> 0 | H18: =IF('Project Info'!D27="",0,IF(E18="Yes",'HW1-Showerheads'!D6*'HW1-Showerheads'!D12/100,0)) -> 0 | I18: =IF('Project Info'!D27="",0,IF(E18="Yes",'HW1-Showerheads'!D8*VLOOKUP('Project Info'!$D$24,'Measure Summary'!$P$8:$T$11,4,FALSE),0)) -> 0 | J18: =IF(E18="Yes",'HW1-Showerheads'!D9,0) -> 0 | K18: =IF(E18="Yes",'HW1-Showerheads'!D10,"") ->  | M18: Hot Water Inputs
B19: Steam Traps | C19: Hot Water | D19: 2 | E19: No | F19: =IF(E19="Yes",'HW2-SteamTraps'!D7,0) -> 0 | G19: =IF(E19="Yes",'HW2-SteamTraps'!D6*'HW2-SteamTraps'!D10/100,0) -> 0 | H19: =IF(E19="Yes",'HW2-SteamTraps'!D6*'HW2-SteamTraps'!D11/100,0) -> 0 | I19: =IF(E19="Yes",'HW2-SteamTraps'!D8*VLOOKUP('Project Info'!$D$24,'Measure Summary'!$P$8:$T$11,4,FALSE),0) -> 0 | J19: 0 | K19: =IF(E19="Yes",'HW2-SteamTraps'!D9,"") ->  | L19: =IF(OR(AND(E19="No",F19>0),AND(E19="No",I19>0)),"Check inputs. Measure not selected, but shows savings.",IF(AND(E19="Yes",AND(F19=0,I19=0)),"Check Inputs. Measure selected, but no savings are calculated.","")) ->  | M19: Hot Water Inputs
B20: Water Heaters | C20: Hot Water | D20: 3 | E20: No | F20: ='HW3-WaterHeater'!D7 -> 0 | G20: =IF(E20="Yes",'HW3-WaterHeater'!D6*'HW3-WaterHeater'!D10/100,0) -> 0 | H20: =IF(E20="Yes",'HW3-WaterHeater'!D6*'HW3-WaterHeater'!D11/100,0) -> 0 | I20: =IF('Project Info'!D27="",0,(IF(E20="Yes",('HW3-WaterHeater'!D8*VLOOKUP('Project Info'!$D$24,'Measure Summary'!$P$8:$T$11,4,FALSE)),0))) -> 0 | J20: 0 | K20: =IF(E20="Yes",'HW3-WaterHeater'!D9,"") ->  | M20: Hot Water Inputs
B21: Boiler Reset Controls | C21: HVAC | D21: 1 | E21: No | F21: =IF(E21="Yes",'HVAC1-BoilerReset'!D7,0) -> 0 | G21: =IF(E21="Yes",'HVAC1-BoilerReset'!D6*'HVAC1-BoilerReset'!D10/100,0) -> 0 | H21: =IF(E21="Yes",'HVAC1-BoilerReset'!D6*'HVAC1-BoilerReset'!D11/100,0) -> 0 | I21: =IF(E21="Yes",'HVAC1-BoilerReset'!D8*VLOOKUP('Project Info'!$D$24,'Measure Summary'!$P$8:$T$11,4,FALSE),0) -> 0 | J21: 0 | K21: =IF(E21="Yes",'HVAC1-BoilerReset'!D9,"") ->  | M21: HVAC Inputs
B22: Demand Control Ventilation | C22: HVAC | D22: 2 | E22: No | F22: =IF(E22="Yes",'HVAC2-DCV'!D7,0) -> 0 | G22: =IF(E22="Yes",'HVAC2-DCV'!D6*'HVAC2-DCV'!D10/100,0) -> 0 | H22: =IF(E22="Yes",'HVAC2-DCV'!D6*'HVAC2-DCV'!D11/100,0) -> 0 | I22: =IF('Project Info'!D24="",0,IF(E22="Yes",'HVAC2-DCV'!D8*VLOOKUP('Project Info'!$D$24,'Measure Summary'!$P$8:$T$11,4,FALSE),0)) -> 0 | J22: 0 | K22: =IF(E22="Yes",'HVAC2-DCV'!D9,"") ->  | L22: =IF(AND(E22="Yes",OR(F22>0,I22>0)),"TRM calculates cooling savings only.",IF(AND(E22="Yes",OR(F22=0,I22=0)),"Check Inputs. Measure selected, but no savings are calculated.","")) ->  | M22: HVAC Inputs
B23: Dual Enthalpy Economizer Controls | C23: HVAC | D23: 3 | E23: No | F23: =IF(E23="Yes",'HVAC3-Economizer'!D7,0) -> 0 | G23: =IF(E23="Yes",'HVAC3-Economizer'!D6*'HVAC3-Economizer'!D10/100,0) -> 0 | H23: =IF(E23="Yes",'HVAC3-Economizer'!D6*'HVAC3-Economizer'!D11/100,0) -> 0 | I23: =IF(E23="Yes",IF('HVAC3-Economizer'!D8=0,0,'HVAC3-Economizer'!D8*VLOOKUP('Project Info'!$D$24,'Measure Summary'!$P$8:$T$11,4,FALSE)),0) -> 0 | J23: 0 | K23: =IF(E23="Yes",'HVAC3-Economizer'!D9,"") ->  | M23: HVAC Inputs
B24: Duct Insulation | C24: HVAC | D24: 4 | E24: No | F24: =IF(E24="Yes",'HVAC4-DuctInsulation'!D7,0) -> 0 | G24: =IF(E24="Yes",'HVAC4-DuctInsulation'!D6*'HVAC4-DuctInsulation'!D10/100,0) -> 0 | H24: =IF(E24="Yes",'HVAC4-DuctInsulation'!D6*'HVAC4-DuctInsulation'!D11/100,0) -> 0 | I24: =IF(E24="Yes",IF('HVAC4-DuctInsulation'!D8=0,0,'HVAC4-DuctInsulation'!D8*VLOOKUP('Project Info'!$D$24,'Measure Summary'!$P$8:$T$11,4,FALSE)),0) -> 0 | J24: 0 | K24: =IF(E24="Yes",'HVAC4-DuctInsulation'!D9,"") ->  | M24: HVAC Inputs
B25: Duct Sealing | C25: HVAC | D25: 5 | E25: No | F25: =IF(E25="Yes",'HVAC5-DuctSealing'!D7,0) -> 0 | G25: =IF(E25="Yes",'HVAC5-DuctSealing'!D6*'HVAC5-DuctSealing'!D10/100,0) -> 0 | H25: =IF(E25="Yes",'HVAC5-DuctSealing'!D6*'HVAC5-DuctSealing'!D11/100,0) -> 0 | I25: =IF(E25="Yes",IF('HVAC5-DuctSealing'!D8=0,0,'HVAC5-DuctSealing'!D8*VLOOKUP('Project Info'!$D$24,'Measure Summary'!$P$8:$T$11,4,FALSE)),0) -> 0 | J25: 0 | K25: =IF(E25="Yes",'HVAC5-DuctSealing'!D9,"") ->  | L25: =IF(OR(AND(E25="No",F25>0),AND(E25="No",I25>0)),"Check inputs. Measure not selected, but shows savings.",IF(AND(E25="Yes",AND(F25=0,I25=0)),"Check Inputs. Measure selected, but no savings are calculated.","")) ->  | M25: HVAC Inputs
B26: Hotel Occupancy Sensor | C26: HVAC | D26: 6 | E26: No | F26: =IF(E26="Yes",'HVAC6-HotelOccSensor'!D7,0) -> 0 | G26: =IF(E26="Yes",'HVAC6-HotelOccSensor'!D6*'HVAC6-HotelOccSensor'!D10/100,0) -> 0 | H26: =IF(E26="Yes",'HVAC6-HotelOccSensor'!D6*'HVAC6-HotelOccSensor'!D11/100,0) -> 0 | I26: =IF('Project Info'!D24="",0,IF(E26="Yes",'HVAC6-HotelOccSensor'!D8*VLOOKUP('Project Info'!$D$24,'Measure Summary'!$P$8:$T$11,4,FALSE),0)) -> 0 | J26: 0 | K26: =IF(E26="Yes",'HVAC6-HotelOccSensor'!D9,"") ->  | L26: =IF(AND(E26="Yes",OR(F26>0,I26>0)),"TRM calculates electric savings only.",IF(AND(E26="Yes",OR(F26=0,I26=0)),"Check Inputs. Measure selected, but no savings are calculated.","")) ->  | M26: HVAC Inputs
B27: Domestic Hot Water Pipe Insulation | C27: HVAC | D27: 7 | E27: No | F27: =IF(E27="Yes",'HVAC7-DHW_PipeInsulation'!D7,0) -> 0 | G27: =IF(E27="Yes",'HVAC7-DHW_PipeInsulation'!D6*'HVAC7-DHW_PipeInsulation'!D10/100,0) -> 0 | H27: =IF(E27="Yes",'HVAC7-DHW_PipeInsulation'!D6*'HVAC7-DHW_PipeInsulation'!D11/100,0) -> 0 | I27: =IF(E27="Yes",IF('HVAC7-DHW_PipeInsulation'!D8=0,0,'HVAC7-DHW_PipeInsulation'!D8*VLOOKUP('Project Info'!$D$24,'Measure Summary'!$P$8:$T$11,4,FALSE)),0) -> 0 | J27: 0 | K27: =IF(E27="Yes",'HVAC7-DHW_PipeInsulation'!D9,"") ->  | M27: HVAC Inputs
B28: Space Heating - Steam or Hot Water Pipe Insulation | C28: HVAC | D28: 8 | E28: No | F28: =IF(E28="Yes",'HVAC8-SpaceHtgPipeInsulation'!D7,0) -> 0 | G28: =IF(E28="Yes",'HVAC8-SpaceHtgPipeInsulation'!D6*'HVAC7-DHW_PipeInsulation'!D10/100,0) -> 0 | H28: =IF(E28="Yes",'HVAC8-SpaceHtgPipeInsulation'!D6*'HVAC8-SpaceHtgPipeInsulation'!D11/100,0) -> 0 | I28: =IF(E28="Yes",IF('HVAC8-SpaceHtgPipeInsulation'!D8=0,0,'HVAC8-SpaceHtgPipeInsulation'!D8*VLOOKUP('Project Info'!$D$24,'Measure Summary'!$P$8:$T$11,4,FALSE)),0) -> 0 | J28: 0 | K28: =IF(E28="Yes",'HVAC8-SpaceHtgPipeInsulation'!D9,"") ->  | L28: =IF(OR(AND(E28="No",F28>0),AND(E28="No",I28>0)),"Check inputs. Measure not selected, but shows savings.",IF(AND(E28="Yes",AND(F28=0,I28=0)),"Check Inputs. Measure selected, but no savings are calculated.","")) ->  | M28: HVAC Inputs
B29: Thermostat - WiFi Communicating | C29: HVAC | D29: 9 | E29: No | F29: =IF(E29="Yes",'HVAC9-WifiTstat'!D7,0) -> 0 | G29: =IF(E29="Yes",'HVAC9-WifiTstat'!D6*'HVAC9-WifiTstat'!D10/100,0) -> 0 | H29: =IF(E29="Yes",'HVAC9-WifiTstat'!D6*'HVAC9-WifiTstat'!D11/100,0) -> 0 | I29: =IF('Project Info'!D24="",0,IF(E29="Yes",'HVAC9-WifiTstat'!D8*VLOOKUP('Project Info'!$D$24,'Measure Summary'!$P$8:$T$11,4,FALSE),0)) -> 0 | J29: 0 | K29: =IF(E29="Yes",'HVAC9-WifiTstat'!D9,"") ->  | L29: =IF(AND(E29="Yes",OR(F29>0,I29>0)),"TRM calculates heating savings only.",IF(AND(E29="Yes",OR(F29=0,I29=0)),"Check Inputs. Measure selected, but no savings are calculated.","")) ->  | M29: HVAC Inputs
B30: Heat Pumps | C30: HVAC | D30: 10 | E30: No | F30: =IF(E30="Yes",'HVAC10-HeatPumps'!C6,0) -> 0 | G30: =IF(E30="Yes",'HVAC10-HeatPumps'!C5,0) -> 0 | H30: =IF(E30="Yes",'HVAC10-HeatPumps'!C4,0) -> 0 | I30: 0 | J30: 0 | K30: =IF(E30="Yes",'HVAC10-HeatPumps'!C7,"") ->  | L30: =IF(OR(AND(E30="No",F30>0),AND(E30="No",I30>0)),"Check inputs. Measure not selected, but shows savings.",IF(AND(E30="Yes",AND(F30=0,I30=0)),"Check Inputs. Measure selected, but no savings are calculated.","")) ->  | M30: HVAC Inputs
B31: Unitary-Split | C31: HVAC | D31: 11 | E31: No | F31: =IF(E31="Yes",'HVAC11-Unitary&Split'!D6,0) -> 0 | G31: =IF(E31="Yes",'HVAC11-Unitary&Split'!D5,0) -> 0 | H31: =IF(E31="Yes",'HVAC11-Unitary&Split'!D4,0) -> 0 | I31: 0 | J31: 0 | K31: =IF(E31="Yes",'HVAC11-Unitary&Split'!D7,"") ->  | M31: HVAC Inputs
B32: Chillers | C32: HVAC | D32: 12 | E32: No | F32: =IF(E32="Yes",'HVAC12-Chillers'!D6,0) -> 0 | G32: =IF(E32="Yes",'HVAC12-Chillers'!D5,0) -> 0 | H32: =IF(E32="Yes",'HVAC12-Chillers'!D4,0) -> 0 | I32: 0 | J32: 0 | K32: =IF(E32="Yes",'HVAC12-Chillers'!D7,"") ->  | L32: =IF(OR(AND(E32="No",F32>0),AND(E32="No",I32>0)),"Check inputs. Measure not selected, but shows savings.",IF(AND(E32="Yes",AND(F32=0,I32=0)),"Check Inputs. Measure selected, but no savings are calculated.","")) ->  | M32: HVAC Inputs
B33: Programmable Thermostat | C33: HVAC | D33: 13 | E33: No | F33: 0 | G33: 0 | H33: 0 | I33: =IF(E33="Yes",IF('HVAC13-ProgTstats'!D8=0,0,'HVAC13-ProgTstats'!D8*VLOOKUP('Project Info'!$D$24,'Measure Summary'!$P$8:$T$11,4,FALSE)),0) -> 0 | J33: 0 | K33: =IF(E33="Yes",'HVAC13-ProgTstats'!D9,"") ->  | L33: =IF(OR(AND(E33="No",F33>0),AND(E33="No",I33>0)),"Check inputs. Measure not selected, but shows savings.",IF(AND(E33="Yes",AND(F33=0,I33=0)),"Check Inputs if gas, measure selected,and no savings calculated.","")) ->  | M33: HVAC Inputs
B34: Packaged Terminal Heat Pump (PTHP) | C34: HVAC | D34: 14 | E34: No | F34: =IF(E34="Yes",'HVAC14-PTHP'!D8,0) -> 0 | G34: =IF(E34="Yes",'HVAC14-PTHP'!D6, 0) -> 0 | H34: =IF(E34="Yes",'HVAC14-PTHP'!D7,0) -> 0 | I34: 0 | J34: 0 | K34: =IF(E34="Yes",'HVAC14-PTHP'!D9,"") ->  | L34: =IF(OR(AND(E34="No",F34>0),AND(E34="No",I34>0)),"Check inputs. Measure not selected, but shows savings.",IF(AND(E34="Yes",AND(F34=0,I34=0)),"Check Inputs. Measure selected, no savings are calculated.","")) ->  | M34: HVAC Inputs
B35: Circulator Pumps | C35: HVAC | D35: 15 | E35: No | F35: =IF(E35="Yes",'HVAC15-CircPumps'!D8,0) -> 0 | G35: =IF(E35="Yes",'HVAC15-CircPumps'!D7*'HVAC15-CircPumps'!D10/100,0) -> 0 | H35: =IF(E35="Yes",'HVAC15-CircPumps'!D7*'HVAC15-CircPumps'!D11/100,0) -> 0 | I35: 0 | J35: 0 | K35: =IF(E35="Yes",'HVAC15-CircPumps'!D9,"") ->  | M35: HVAC Inputs
B36: Variable Frequency Drive | C36: Motors and Drives | D36: 1 | E36: No | F36: =IF(E36="Yes",'Motors and Drives Inputs'!E33,0) -> 0 | G36: =IF(E36="Yes",'Motors and Drives Inputs'!K27,0) -> 0 | H36: =IF(E36="Yes",'Motors and Drives Inputs'!J27,0) -> 0 | I36: =IF('Motors and Drives Inputs'!E34=0,0,(IF(E36="Yes",'Motors and Drives Inputs'!E34*VLOOKUP('Project Info'!$D$24,'Measure Summary'!$P$8:$T$11,4,FALSE),0))) -> 0 | J36: 0 | K36: =IF(E36="Yes",'Motors and Drives Inputs'!E35,"") ->  | M36: Motors and Drives
B37: Air Purifiers | C37: Appliances | D37: 1 | E37: No | F37: =IF(E37="Yes",'Appliances Inputs'!D39,0) -> 0 | G37: =IF(E37="Yes",'Appliances Inputs'!D38*'Appliances Inputs'!D42/100,0) -> 0 | H37: =IF(E37="Yes",'Appliances Inputs'!D38*'Appliances Inputs'!D43/100,0) -> 0 | I37: 0 | J37: 0 | K37: =IF(E37="Yes",'Appliances Inputs'!D41,"") ->  | M37: Appliances
B38: Dehumidifiers | C38: Appliances | D38: 2 | E38: No | F38: =IF(E38="Yes",'Appliances Inputs'!P32,0) -> 0 | G38: =IF(E38="Yes",'Appliances Inputs'!P31*'Appliances Inputs'!P35/100,0) -> 0 | H38: =IF(E38="Yes",'Appliances Inputs'!P31*'Appliances Inputs'!P36/100,0) -> 0 | I38: 0 | J38: 0 | K38: =IF(E38="Yes",'Appliances Inputs'!P34,"") ->  | M38: Appliances
B39: Total | E39: =COUNTIF(E9:E38,"Yes") -> 0 | F39: =SUM(F9:F38) -> 0 | G39: =SUM(G9:G38) -> 0 | H39: =SUM(H9:H38) -> 0 | I39: =SUM(I9:I38) -> 0 | J39: =SUM(J9:J38) -> 0
B40: % savings of total annual usage | F40: =IFERROR(F39/'Project Info'!C44,"") ->  | I40: =IFERROR(IF(I8="kWh",I39/'Project Info'!C44,I39/'Project Info'!D44),"") -> 

Sheet Building Shell Inputs
A1: Building Shell Measures: Input Sheet
C4: Instructions | L4: Key
C5: Please fill out all ORANGE cells in this sheet with the facility's building shell information and as applicable to the measure selection on the "Measure Summary" tab. Measures referenced by this sheet include Air Sealing and Insulation. | M5: Input Cells
M6: Calculation Cells
M7: Guidance/Information Cells
B11: Table 1: General ECM Questions
B13: Building Shell ECM1 - Air Sealing | K13: Inputs
B14: Table 2 has been completed?
B15: Pre-install photos of areas to be air sealed submitted to NHSaves? | L15: =IF(K15="No","Please submit this","") -> 
B16: Building Shell ECM2 - Insulation
B17: Table 2 has been completed?
B18: Pre-install photos of areas to be insulated submitted to NHSaves? | L18: =IF(K18="No","Please submit this","") -> 
C21: Table 2: Air Sealing and Insulation Measures
C22: Room | D22: Height | E22: Floor Area | F22: Air | G22: Insulation | H22: R-value | I22: R-value | J22: Insulated Area
C23: Location | D23: (ft) | E23: (sqft) | F23: Sealing | G23: Location? | H23: of existing Insulation | I23: of added Insulation | J23: (sqft)

Sheet BldgShell1-AirSealing (hidden)
B1: Measure: Air Sealing
N2: Table 3: Insulation kW/kWh factors | T2: Table 6: TMY3 Weather Data - HDD60 Calculations
O3: kW/kWh Factor | T3: Date | W3: Berlin | Y3: Concord | AA3: Dillant Hopkins/Keene | AC3: Lebanon | AE3: Pease/Portsmouth
B4: Measure Summary | G4: Measure Description | N4: Electric | O4: 0.00073 | T4: Month | U4: Day | V4: Hour | W4: db | X4: HDD60 | Y4: db | Z4: HDD60 | AA4: db | AB4: HDD60 | AC4: db | AD4: HDD60 | AE4: db | AF4: HDD60
D5: Value | E5: Unit | G5: This measure considers savings associated with air sealing and insulation. Definitions: Air sealing: Air sealing will decrease the infiltration of outside air through cracks and leaks in the building. Insulation: The installation of insulation in an existing structure. | N5: Gas Oil Other FF | O5: 0.00076 | T5: 1 | U5: 1 | V5: 01:00:00 | W5: 20 | X5: =IF(W5<60,(60-W5)/24,0) -> 1.666666667 | Y5: 12.02 | Z5: =IF(Y5<60,(60-Y5)/24,0) -> 1.999166667 | AA5: 19 | AB5: =IF(AA5<60,(60-AA5)/24,0) -> 1.708333333 | AC5: 33 | AD5: =IF(AC5<60,(60-AC5)/24,0) -> 1.125 | AE5: 32 | AF5: =IF(AE5<60,(60-AE5)/24,0) -> 1.166666667
B6: Total Savings | D6: =L36 ->  | E6: kW | N6: Central AC in Electrically Heated Unit | O6: 0.00059 | T6: 1 | U6: 1 | V6: 02:00:00 | W6: 19 | X6: 1.708333333 | Y6: 10.94 | Z6: =IF(Y6<60,(60-Y6)/24,0) -> 2.044166667 | AA6: 21 | AB6: =IF(AA6<60,(60-AA6)/24,0) -> 1.625 | AC6: 31 | AD6: =IF(AC6<60,(60-AC6)/24,0) -> 1.208333333 | AE6: 32.9 | AF6: =IF(AE6<60,(60-AE6)/24,0) -> 1.129166667
D7: =J36 -> 0 | E7: kWh | T7: 1 | U7: 1 | V7: 03:00:00 | W7: 19 | X7: 1.708333333 | Y7: 10.04 | Z7: 2.081666667 | AA7: 21 | AB7: 1.625 | AC7: 31 | AD7: =IF(AC7<60,(60-AC7)/24,0) -> 1.208333333 | AE7: 32.9 | AF7: 1.129166667
D8: =K36 -> 0 | E8: MMBtu | T8: 1 | U8: 1 | V8: 04:00:00 | W8: 18 | X8: 1.75 | Y8: 8.96 | Z8: 2.126666667 | AA8: 23 | AB8: 1.541666667 | AC8: 30 | AD8: =IF(AC8<60,(60-AC8)/24,0) -> 1.25 | AE8: 32.9 | AF8: 1.129166667
B9: Measure Life | D9: 15 | E9: Years | N9: Table 4: Coincidence Factors | T9: 1 | U9: 1 | V9: 05:00:00 | W9: 17 | X9: 1.791666667 | Y9: 6.08 | Z9: 2.246666667 | AA9: 23 | AB9: 1.541666667 | AC9: 29 | AD9: =IF(AC9<60,(60-AC9)/24,0) -> 1.291666667 | AE9: 33.98 | AF9: 1.084166667
N10: Measure Name | O10: Fuel | P10: CFsp | Q10: CFwp | T10: 1 | U10: 1 | V10: 06:00:00 | W10: 16 | X10: 1.833333333 | Y10: 6.08 | Z10: 2.246666667 | AA10: 23 | AB10: 1.541666667 | AC10: 28 | AD10: =IF(AC10<60,(60-AC10)/24,0) -> 1.333333333 | AE10: 32.9 | AF10: 1.129166667
B11: CFsp | D11: =VLOOKUP('Project Info'!D24,$O$11:$Q$14,2,FALSE)*100 ->  | E11: % | N11: Air Sealing | O11: Electric | P11: 0 | Q11: 0.43 | T11: 1 | U11: 1 | V11: 07:00:00 | W11: 16 | X11: 1.833333333 | Y11: 5 | Z11: 2.291666667 | AA11: 23 | AB11: 1.541666667 | AC11: 28 | AD11: =IF(AC11<60,(60-AC11)/24,0) -> 1.333333333 | AE11: 32.9 | AF11: 1.129166667
N12: Air Sealing | O12: Gas | P12: 0 | Q12: 0 | T12: 1 | U12: 1 | V12: 08:00:00 | W12: 14 | X12: 1.916666667 | Y12: 5 | Z12: 2.291666667 | AA12: 23 | AB12: 1.541666667 | AC12: 27 | AD12: =IF(AC12<60,(60-AC12)/24,0) -> 1.375 | AE12: 33.98 | AF12: 1.084166667
B13: CFwp | D13: =VLOOKUP('Project Info'!D24,$O$11:$Q$14,3,FALSE)*100 ->  | E13: % | N13: Air Sealing | O13: Fuel Oil | P13: 0 | Q13: 0 | T13: 1 | U13: 1 | V13: 09:00:00 | W13: 14 | X13: 1.916666667 | Y13: 14 | Z13: 1.916666667 | AA13: 25 | AB13: 1.458333333 | AC13: 27 | AD13: =IF(AC13<60,(60-AC13)/24,0) -> 1.375 | AE13: 33.98 | AF13: 1.084166667
N14: Air Sealing | O14: Propane | P14: 0 | Q14: 0 | T14: 1 | U14: 1 | V14: 10:00:00 | W14: 16 | X14: 1.833333333 | Y14: 17.06 | Z14: 1.789166667 | AA14: 32 | AB14: 1.166666667 | AC14: 29 | AD14: =IF(AC14<60,(60-AC14)/24,0) -> 1.291666667 | AE14: 34.88 | AF14: 1.046666667
N15: Insulation | O15: Electric | P15: 0.34 | Q15: 0.17 | T15: 1 | U15: 1 | V15: 11:00:00 | W15: 17 | X15: 1.791666667 | Y15: 21.92 | Z15: 1.586666667 | AA15: 37 | AB15: 0.9583333333 | AC15: 30 | AD15: =IF(AC15<60,(60-AC15)/24,0) -> 1.25 | AE15: 34.88 | AF15: 1.046666667
B16: Building Envelope - Air Sealing and Insulation | N16: Insulation | O16: Gas | P16: 0 | Q16: 0 | T16: 1 | U16: 1 | V16: 12:00:00 | W16: 17 | X16: 1.791666667 | Y16: 24.98 | Z16: 1.459166667 | AA16: 39 | AB16: 0.875 | AC16: 36 | AD16: =IF(AC16<60,(60-AC16)/24,0) -> 1 | AE16: 34.88 | AF16: 1.046666667
B17: Measure Code | D17: COM-BS-ASI | G17: NOTE: For more information on this measure refer to the NH TRM. | N17: Insulation | O17: Fuel Oil | P17: 0 | Q17: 0 | T17: 1 | U17: 1 | V17: 13:00:00 | W17: 16 | X17: 1.833333333 | Y17: 26.96 | Z17: 1.376666667 | AA17: 43 | AB17: 0.7083333333 | AC17: 39 | AD17: =IF(AC17<60,(60-AC17)/24,0) -> 0.875 | AE17: 34.88 | AF17: 1.046666667
B18: Market | D18: Commercial | N18: Insulation | O18: Propane | P18: 0 | Q18: 0 | T18: 1 | U18: 1 | V18: 14:00:00 | W18: 16 | X18: 1.833333333 | Y18: 28.04 | Z18: 1.331666667 | AA18: 45 | AB18: 0.625 | AC18: 43 | AD18: =IF(AC18<60,(60-AC18)/24,0) -> 0.7083333333 | AE18: 34.88 | AF18: 1.046666667
B19: Program Type | D19: Retrofit | T19: 1 | U19: 1 | V19: 15:00:00 | W19: 18 | X19: 1.75 | Y19: 28.04 | Z19: 1.331666667 | AA19: 45 | AB19: 0.625 | AC19: 43 | AD19: =IF(AC19<60,(60-AC19)/24,0) -> 0.7083333333 | AE19: 34.88 | AF19: 1.046666667
B20: Category | D20: Building Shell | N20: Table 5: Efficiency Values | T20: 1 | U20: 1 | V20: 16:00:00 | W20: 16 | X20: 1.833333333 | Y20: 28.04 | Z20: 1.331666667 | AA20: 45 | AB20: 0.625 | AC20: 39 | AD20: =IF(AC20<60,(60-AC20)/24,0) -> 0.875 | AE20: 34.88 | AF20: 1.046666667
N21: Boiler Type | O21: Efficiency % | T21: 1 | U21: 1 | V21: 17:00:00 | W21: 14 | X21: 1.916666667 | Y21: 26.96 | Z21: 1.376666667 | AA21: 36 | AB21: 1 | AC21: 34 | AD21: =IF(AC21<60,(60-AC21)/24,0) -> 1.083333333 | AE21: 33.98 | AF21: 1.084166667
N22: Gas-fired | O22: 0.8 | T22: 1 | U22: 1 | V22: 18:00:00 | W22: 14 | X22: 1.916666667 | Y22: 26.96 | Z22: 1.376666667 | AA22: 34 | AB22: 1.083333333 | AC22: 36 | AD22: =IF(AC22<60,(60-AC22)/24,0) -> 1 | AE22: 33.98 | AF22: 1.084166667
B23: Table 1: Calculating Primary Energy Impact (Air Sealing) | N23: Condensing | O23: 0.9 | T23: 1 | U23: 1 | V23: 19:00:00 | W23: 12 | X23: 2 | Y23: 26.06 | Z23: 1.414166667 | AA23: 30 | AB23: 1.25 | AC23: 33 | AD23: =IF(AC23<60,(60-AC23)/24,0) -> 1.125 | AE23: 33.98 | AF23: 1.084166667
C24: Height | D24: Area | E24: Delta | F24: Weather | G24: Heating | J24: Savings | N24: Non-Condensing | O24: 0.8 | T24: 1 | U24: 1 | V24: 20:00:00 | W24: 12 | X24: 2 | Y24: 26.06 | Z24: 1.414166667 | AA24: 28 | AB24: 1.333333333 | AC24: 30 | AD24: =IF(AC24<60,(60-AC24)/24,0) -> 1.25 | AE24: 32.9 | AF24: 1.129166667
C25: ft | D25: ft2 | E25: ACH | F25: HDD60 | G25: System | J25: kWh | K25: MMBtu | L25: kW | N25: Electric Resistance | O25: 1 | T25: 1 | U25: 1 | V25: 21:00:00 | W25: 12 | X25: 2 | Y25: 24.08 | Z25: 1.496666667 | AA25: 28 | AB25: 1.333333333 | AC25: 25 | AD25: =IF(AC25<60,(60-AC25)/24,0) -> 1.458333333 | AE25: 32.9 | AF25: 1.129166667
B26: 1 | C26: =IF('Building Shell Inputs'!F24="Yes",'Building Shell Inputs'!D24,"") ->  | D26: =IF('Building Shell Inputs'!F24="Yes",'Building Shell Inputs'!E24,"") ->  | E26: =$O$42 -> 0.1 | F26: =IF(OR(ISBLANK(D26)),"",IFERROR(VLOOKUP('Project Info'!$D$21,$N$30:$O$36,2,FALSE),"")) ->  | G26: =IF('Project Info'!$D$25=$N$22,$O$22,IF('Project Info'!$D$25=$N$25,$O$25,IF('Project Info'!$D$25=$N$26,$O$26,IF(OR('Project Info'!$D$25='Project Info'!$Y$14,'Project Info'!$D$25='Project Info'!$Y$15),IF('Project Info'!$D$26=$N$23,$O$23,$O$24))))) -> FALSE | J26: =IF('Project Info'!$D$24="Electric",IFERROR(((C26*D26*E26*0.018*F26*24)/G26/3413),0),0) -> 0 | K26: =IF('Project Info'!$D$24="Electric",0,IFERROR(((C26*D26*E26*0.018*F26*24/G26)/1000000),0)) -> 0 | L26: =+J26/F26/24 ->  | N26: Heat Pump | O26: 3 | T26: 1 | U26: 1 | V26: 22:00:00 | W26: 7 | X26: 2.208333333 | Y26: 24.98 | Z26: 1.459166667 | AA26: 27 | AB26: 1.375 | AC26: 23 | AD26: =IF(AC26<60,(60-AC26)/24,0) -> 1.541666667 | AE26: 33.98 | AF26: 1.084166667
B27: 2 | C27: =IF('Building Shell Inputs'!F25="Yes",'Building Shell Inputs'!D25,"") ->  | D27: =IF('Building Shell Inputs'!F25="Yes",'Building Shell Inputs'!E25,"") ->  | E27: 0.1 | F27: =IF(OR(ISBLANK(D27)),"",IFERROR(VLOOKUP('Project Info'!$D$21,$N$30:$O$36,2,FALSE),"")) ->  | G27: =IF('Project Info'!$D$25=$N$22,$O$22,IF('Project Info'!$D$25=$N$25,$O$25,IF('Project Info'!$D$25=$N$26,$O$26,IF(OR('Project Info'!$D$25='Project Info'!$Y$14,'Project Info'!$D$25='Project Info'!$Y$15),IF('Project Info'!$D$26=$N$23,$O$23,$O$24))))) -> FALSE | J27: =IF('Project Info'!$D$24="Electric",IFERROR(((C27*D27*E27*0.018*F27*24)/G27/3413),0),0) -> 0 | K27: =IF('Project Info'!$D$24="Electric",0,IFERROR(((C27*D27*E27*0.018*F27*24/G27)/1000000),0)) -> 0 | L27: =+J27/F27/24 ->  | T27: 1 | U27: 1 | V27: 23:00:00 | W27: 7 | X27: 2.208333333 | Y27: 24.08 | Z27: 1.496666667 | AA27: 27 | AB27: 1.375 | AC27: 21 | AD27: =IF(AC27<60,(60-AC27)/24,0) -> 1.625 | AE27: 33.98 | AF27: 1.084166667
B28: 3 | C28: =IF('Building Shell Inputs'!F26="Yes",'Building Shell Inputs'!D26,"") ->  | D28: =IF('Building Shell Inputs'!F26="Yes",'Building Shell Inputs'!E26,"") ->  | E28: 0.1 | F28: =IF(OR(ISBLANK(D28)),"",IFERROR(VLOOKUP('Project Info'!$D$21,$N$30:$O$36,2,FALSE),"")) ->  | G28: =IF('Project Info'!$D$25=$N$22,$O$22,IF('Project Info'!$D$25=$N$25,$O$25,IF('Project Info'!$D$25=$N$26,$O$26,IF(OR('Project Info'!$D$25='Project Info'!$Y$14,'Project Info'!$D$25='Project Info'!$Y$15),IF('Project Info'!$D$26=$N$23,$O$23,$O$24))))) -> FALSE | J28: =IF('Project Info'!$D$24="Electric",IFERROR(((C28*D28*E28*0.018*F28*24)/G28/3413),0),0) -> 0 | K28: =IF('Project Info'!$D$24="Electric",0,IFERROR(((C28*D28*E28*0.018*F28*24/G28)/1000000),0)) -> 0 | N28: Table 7: HDD60 Summary Table | T28: 1 | U28: 1 | V28: 1 | W28: 9 | X28: 2.125 | Y28: 24.98 | Z28: 1.459166667 | AA28: 27 | AB28: 1.375 | AC28: 23 | AD28: =IF(AC28<60,(60-AC28)/24,0) -> 1.541666667 | AE28: 32.9 | AF28: 1.129166667
B29: 4 | C29: =IF('Building Shell Inputs'!F27="Yes",'Building Shell Inputs'!D27,"") ->  | D29: =IF('Building Shell Inputs'!F27="Yes",'Building Shell Inputs'!E27,"") ->  | E29: 0.1 | F29: =IF(OR(ISBLANK(D29)),"",IFERROR(VLOOKUP('Project Info'!$D$21,$N$30:$O$36,2,FALSE),"")) ->  | G29: =IF('Project Info'!$D$25=$N$22,$O$22,IF('Project Info'!$D$25=$N$25,$O$25,IF('Project Info'!$D$25=$N$26,$O$26,IF(OR('Project Info'!$D$25='Project Info'!$Y$14,'Project Info'!$D$25='Project Info'!$Y$15),IF('Project Info'!$D$26=$N$23,$O$23,$O$24))))) -> FALSE | J29: =IF('Project Info'!$D$24="Electric",IFERROR(((C29*D29*E29*0.018*F29*24)/G29/3413),0),0) -> 0 | K29: =IF('Project Info'!$D$24="Electric",0,IFERROR(((C29*D29*E29*0.018*F29*24/G29)/1000000),0)) -> 0 | N29: City | O29: HDD60 | T29: 1 | U29: 2 | V29: 01:00:00 | W29: 10 | X29: 2.083333333 | Y29: 24.08 | Z29: 1.496666667 | AA29: 27 | AB29: 1.375 | AC29: 25.307 | AD29: =IF(AC29<60,(60-AC29)/24,0) -> 1.445541667 | AE29: 32.9 | AF29: 1.129166667
B30: 5 | C30: =IF('Building Shell Inputs'!F28="Yes",'Building Shell Inputs'!D28,"") ->  | D30: =IF('Building Shell Inputs'!F28="Yes",'Building Shell Inputs'!E28,"") ->  | E30: 0.1 | F30: =IF(OR(ISBLANK(D30)),"",IFERROR(VLOOKUP('Project Info'!$D$21,$N$30:$O$36,2,FALSE),"")) ->  | G30: =IF('Project Info'!$D$25=$N$22,$O$22,IF('Project Info'!$D$25=$N$25,$O$25,IF('Project Info'!$D$25=$N$26,$O$26,IF(OR('Project Info'!$D$25='Project Info'!$Y$14,'Project Info'!$D$25='Project Info'!$Y$15),IF('Project Info'!$D$26=$N$23,$O$23,$O$24))))) -> FALSE | J30: =IF('Project Info'!$D$24="Electric",IFERROR(((C30*D30*E30*0.018*F30*24)/G30/3413),0),0) -> 0 | K30: =IF('Project Info'!$D$24="Electric",0,IFERROR(((C30*D30*E30*0.018*F30*24/G30)/1000000),0)) -> 0 | N30: Berlin | O30: =SUM(X5:X8764) -> 7420.033595 | T30: 1 | U30: 2 | V30: 02:00:00 | W30: 10 | X30: 2.083333333 | Y30: 24.08 | Z30: 1.496666667 | AA30: 28 | AB30: 1.333333333 | AC30: 25 | AD30: =IF(AC30<60,(60-AC30)/24,0) -> 1.458333333 | AE30: 32 | AF30: 1.166666667
B31: 6 | C31: =IF('Building Shell Inputs'!F29="Yes",'Building Shell Inputs'!D29,"") ->  | D31: =IF('Building Shell Inputs'!F29="Yes",'Building Shell Inputs'!E29,"") ->  | E31: 0.1 | F31: =IF(OR(ISBLANK(D31)),"",IFERROR(VLOOKUP('Project Info'!$D$21,$N$30:$O$36,2,FALSE),"")) ->  | G31: =IF('Project Info'!$D$25=$N$22,$O$22,IF('Project Info'!$D$25=$N$25,$O$25,IF('Project Info'!$D$25=$N$26,$O$26,IF(OR('Project Info'!$D$25='Project Info'!$Y$14,'Project Info'!$D$25='Project Info'!$Y$15),IF('Project Info'!$D$26=$N$23,$O$23,$O$24))))) -> FALSE | J31: =IF('Project Info'!$D$24="Electric",IFERROR(((C31*D31*E31*0.018*F31*24)/G31/3413),0),0) -> 0 | K31: =IF('Project Info'!$D$24="Electric",0,IFERROR(((C31*D31*E31*0.018*F31*24/G31)/1000000),0)) -> 0 | N31: Concord | O31: =SUM(Z5:Z8764) -> 6153.5525 | T31: 1 | U31: 2 | V31: 03:00:00 | W31: 10 | X31: 2.083333333 | Y31: 23 | Z31: 1.541666667 | AA31: 30 | AB31: 1.25 | AC31: 25 | AD31: =IF(AC31<60,(60-AC31)/24,0) -> 1.458333333 | AE31: 32 | AF31: 1.166666667
B32: 7 | C32: =IF('Building Shell Inputs'!F30="Yes",'Building Shell Inputs'!D30,"") ->  | D32: =IF('Building Shell Inputs'!F30="Yes",'Building Shell Inputs'!E30,"") ->  | E32: 0.1 | F32: =IF(OR(ISBLANK(D32)),"",IFERROR(VLOOKUP('Project Info'!$D$21,$N$30:$O$36,2,FALSE),"")) ->  | G32: =IF('Project Info'!$D$25=$N$22,$O$22,IF('Project Info'!$D$25=$N$25,$O$25,IF('Project Info'!$D$25=$N$26,$O$26,IF(OR('Project Info'!$D$25='Project Info'!$Y$14,'Project Info'!$D$25='Project Info'!$Y$15),IF('Project Info'!$D$26=$N$23,$O$23,$O$24))))) -> FALSE | J32: =IF('Project Info'!$D$24="Electric",IFERROR(((C32*D32*E32*0.018*F32*24)/G32/3413),0),0) -> 0 | K32: =IF('Project Info'!$D$24="Electric",0,IFERROR(((C32*D32*E32*0.018*F32*24/G32)/1000000),0)) -> 0 | N32: Keene | O32: =SUM(AB5:AB8764) -> 5991.452912 | T32: 1 | U32: 2 | V32: 04:00:00 | W32: 10 | X32: 2.083333333 | Y32: 24.08 | Z32: 1.496666667 | AA32: 28 | AB32: 1.333333333 | AC32: 25 | AD32: =IF(AC32<60,(60-AC32)/24,0) -> 1.458333333 | AE32: 32.9 | AF32: 1.129166667
B33: 8 | C33: =IF('Building Shell Inputs'!F31="Yes",'Building Shell Inputs'!D31,"") ->  | D33: =IF('Building Shell Inputs'!F31="Yes",'Building Shell Inputs'!E31,"") ->  | E33: 0.1 | F33: =IF(OR(ISBLANK(D33)),"",IFERROR(VLOOKUP('Project Info'!$D$21,$N$30:$O$36,2,FALSE),"")) ->  | G33: =IF('Project Info'!$D$25=$N$22,$O$22,IF('Project Info'!$D$25=$N$25,$O$25,IF('Project Info'!$D$25=$N$26,$O$26,IF(OR('Project Info'!$D$25='Project Info'!$Y$14,'Project Info'!$D$25='Project Info'!$Y$15),IF('Project Info'!$D$26=$N$23,$O$23,$O$24))))) -> FALSE | J33: =IF('Project Info'!$D$24="Electric",IFERROR(((C33*D33*E33*0.018*F33*24)/G33/3413),0),0) -> 0 | K33: =IF('Project Info'!$D$24="Electric",0,IFERROR(((C33*D33*E33*0.018*F33*24/G33)/1000000),0)) -> 0 | N33: Lebanon | O33: =SUM(AD5:AD8764) -> 6183.309961 | T33: 1 | U33: 2 | V33: 05:00:00 | W33: 10 | X33: 2.083333333 | Y33: 19.04 | Z33: 1.706666667 | AA33: 30 | AB33: 1.25 | AC33: 25 | AD33: =IF(AC33<60,(60-AC33)/24,0) -> 1.458333333 | AE33: 33.98 | AF33: 1.084166667
B34: 9 | C34: =IF('Building Shell Inputs'!F32="Yes",'Building Shell Inputs'!D32,"") ->  | D34: =IF('Building Shell Inputs'!F32="Yes",'Building Shell Inputs'!E32,"") ->  | E34: 0.1 | F34: =IF(OR(ISBLANK(D34)),"",IFERROR(VLOOKUP('Project Info'!$D$21,$N$30:$O$36,2,FALSE),"")) ->  | G34: =IF('Project Info'!$D$25=$N$22,$O$22,IF('Project Info'!$D$25=$N$25,$O$25,IF('Project Info'!$D$25=$N$26,$O$26,IF(OR('Project Info'!$D$25='Project Info'!$Y$14,'Project Info'!$D$25='Project Info'!$Y$15),IF('Project Info'!$D$26=$N$23,$O$23,$O$24))))) -> FALSE | J34: =IF('Project Info'!$D$24="Electric",IFERROR(((C34*D34*E34*0.018*F34*24)/G34/3413),0),0) -> 0 | K34: =IF('Project Info'!$D$24="Electric",0,IFERROR(((C34*D34*E34*0.018*F34*24/G34)/1000000),0)) -> 0 | N34: Portsmouth | O34: =SUM(AF5:AF8764) -> 5516.5875 | T34: 1 | U34: 2 | V34: 06:00:00 | W34: 10 | X34: 2.083333333 | Y34: 19.94 | Z34: 1.669166667 | AA34: 30 | AB34: 1.25 | AC34: 23 | AD34: =IF(AC34<60,(60-AC34)/24,0) -> 1.541666667 | AE34: 33.98 | AF34: 1.084166667
B35: 10 | C35: =IF('Building Shell Inputs'!F33="Yes",'Building Shell Inputs'!D33,"") ->  | D35: =IF('Building Shell Inputs'!F33="Yes",'Building Shell Inputs'!E33,"") ->  | E35: 0.1 | F35: =IF(OR(ISBLANK(D35)),"",IFERROR(VLOOKUP('Project Info'!$D$21,$N$30:$O$36,2,FALSE),"")) ->  | G35: =IF('Project Info'!$D$25=$N$22,$O$22,IF('Project Info'!$D$25=$N$25,$O$25,IF('Project Info'!$D$25=$N$26,$O$26,IF(OR('Project Info'!$D$25='Project Info'!$Y$14,'Project Info'!$D$25='Project Info'!$Y$15),IF('Project Info'!$D$26=$N$23,$O$23,$O$24))))) -> FALSE | J35: =IF('Project Info'!$D$24="Electric",IFERROR(((C35*D35*E35*0.018*F35*24)/G35/3413),0),0) -> 0 | K35: =IF('Project Info'!$D$24="Electric",0,IFERROR(((C35*D35*E35*0.018*F35*24/G35)/1000000),0)) -> 0 | N35: Manchester | O35: =+O34 -> 5516.5875 | P35: same zone as Portsmouth | T35: 1 | U35: 2 | V35: 07:00:00 | W35: 10 | X35: 2.083333333 | Y35: 24.98 | Z35: 1.459166667 | AA35: 30 | AB35: 1.25 | AC35: 23 | AD35: =IF(AC35<60,(60-AC35)/24,0) -> 1.541666667 | AE35: 33.98 | AF35: 1.084166667
I36: Totals | J36: =SUM(J26:J35) -> 0 | K36: =SUM(K26:K35) -> 0 | L36: =SUM(L26:L35) ->  | N36: Laconia | O36: =+O32 -> 5991.452912 | P36: same zone as Keene | T36: 1 | U36: 2 | V36: 08:00:00 | W36: 10 | X36: 2.083333333 | Y36: 24.08 | Z36: 1.496666667 | AA36: 30 | AB36: 1.25 | AC36: 25 | AD36: =IF(AC36<60,(60-AC36)/24,0) -> 1.458333333 | AE36: 33.98 | AF36: 1.084166667
T37: 1 | U37: 2 | V37: 09:00:00 | W37: 12 | X37: 2 | Y37: 28.94 | Z37: 1.294166667 | AA37: 30 | AB37: 1.25 | AC37: 27 | AD37: =IF(AC37<60,(60-AC37)/24,0) -> 1.375 | AE37: 32.9 | AF37: 1.129166667
N38: Table 8: ACH determination (TRM) | T38: 1 | U38: 2 | V38: 10:00:00 | W38: 12 | X38: 2 | Y38: 33.08 | Z38: 1.121666667 | AA38: 31 | AB38: 1.208333333 | AC38: 28 | AD38: =IF(AC38<60,(60-AC38)/24,0) -> 1.333333333 | AE38: 32.9 | AF38: 1.129166667
N39: Case | O39: ACH default value | T39: 1 | U39: 2 | V39: 11:00:00 | W39: 14 | X39: 1.916666667 | Y39: 37.94 | Z39: 0.9191666667 | AA39: 32 | AB39: 1.166666667 | AC39: 30 | AD39: =IF(AC39<60,(60-AC39)/24,0) -> 1.25 | AE39: 33.98 | AF39: 1.084166667
N40: Baseline | O40: 0.5 | T40: 1 | U40: 2 | V40: 12:00:00 | W40: 14 | X40: 1.916666667 | Y40: 42.08 | Z40: 0.7466666667 | AA40: 34 | AB40: 1.083333333 | AC40: 32 | AD40: =IF(AC40<60,(60-AC40)/24,0) -> 1.166666667 | AE40: 32.9 | AF40: 1.129166667
N41: Proposed | O41: 0.4 | T41: 1 | U41: 2 | V41: 13:00:00 | W41: 14 | X41: 1.916666667 | Y41: 44.96 | Z41: 0.6266666667 | AA41: 34 | AB41: 1.083333333 | AC41: 36 | AD41: =IF(AC41<60,(60-AC41)/24,0) -> 1 | AE41: 32.9 | AF41: 1.129166667
N42: Savings | O42: =O40-O41 -> 0.1 | T42: 1 | U42: 2 | V42: 14:00:00 | W42: 14 | X42: 1.916666667 | Y42: 44.96 | Z42: 0.6266666667 | AA42: 37 | AB42: 0.9583333333 | AC42: 36 | AD42: =IF(AC42<60,(60-AC42)/24,0) -> 1 | AE42: 35.96 | AF42: 1.001666667
T43: 1 | U43: 2 | V43: 15:00:00 | W43: 14 | X43: 1.916666667 | Y43: 44.96 | Z43: 0.6266666667 | AA43: 39 | AB43: 0.875 | AC43: 37 | AD43: =IF(AC43<60,(60-AC43)/24,0) -> 0.9583333333 | AE43: 35.96 | AF43: 1.001666667
T44: 1 | U44: 2 | V44: 16:00:00 | W44: 14 | X44: 1.916666667 | Y44: 41 | Z44: 0.7916666667 | AA44: 39 | AB44: 0.875 | AC44: 36 | AD44: =IF(AC44<60,(60-AC44)/24,0) -> 1 | AE44: 32.9 | AF44: 1.129166667
T45: 1 | U45: 2 | V45: 17:00:00 | W45: 12 | X45: 2 | Y45: 37.94 | Z45: 0.9191666667 | AA45: 37 | AB45: 0.9583333333 | AC45: 36 | AD45: =IF(AC45<60,(60-AC45)/24,0) -> 1 | AE45: 32.9 | AF45: 1.129166667
T46: 1 | U46: 2 | V46: 18:00:00 | W46: 12 | X46: 2 | Y46: 37.04 | Z46: 0.9566666667 | AA46: 36 | AB46: 1 | AC46: 39 | AD46: =IF(AC46<60,(60-AC46)/24,0) -> 0.875 | AE46: 32.9 | AF46: 1.129166667
T47: 1 | U47: 2 | V47: 19:00:00 | W47: 10 | X47: 2.083333333 | Y47: 33.98 | Z47: 1.084166667 | AA47: 37 | AB47: 0.9583333333 | AC47: 39 | AD47: =IF(AC47<60,(60-AC47)/24,0) -> 0.875 | AE47: 30.92 | AF47: 1.211666667
T48: 1 | U48: 2 | V48: 20:00:00 | W48: 11 | X48: 2.041666667 | Y48: 33.98 | Z48: 1.084166667 | AA48: 36 | AB48: 1 | AC48: 36 | AD48: =IF(AC48<60,(60-AC48)/24,0) -> 1 | AE48: 29.84 | AF48: 1.256666667
T49: 1 | U49: 2 | V49: 21:00:00 | W49: 12 | X49: 2 | Y49: 32 | Z49: 1.166666667 | AA49: 41 | AB49: 0.7916666667 | AC49: 43 | AD49: =IF(AC49<60,(60-AC49)/24,0) -> 0.7083333333 | AE49: 28.94 | AF49: 1.294166667
T50: 1 | U50: 2 | V50: 22:00:00 | W50: 13 | X50: 1.958333333 | Y50: 30.02 | Z50: 1.249166667 | AA50: 39 | AB50: 0.875 | AC50: 46 | AD50: =IF(AC50<60,(60-AC50)/24,0) -> 0.5833333333 | AE50: 26.96 | AF50: 1.376666667
T51: 1 | U51: 2 | V51: 23:00:00 | W51: 14 | X51: 1.916666667 | Y51: 28.04 | Z51: 1.331666667 | AA51: 39 | AB51: 0.875 | AC51: 48 | AD51: =IF(AC51<60,(60-AC51)/24,0) -> 0.5 | AE51: 26.96 | AF51: 1.376666667
T52: 1 | U52: 2 | V52: 1 | W52: 14 | X52: 1.916666667 | Y52: 28.04 | Z52: 1.331666667 | AA52: 37.1338 | AB52: 0.9527583333 | AC52: 46 | AD52: =IF(AC52<60,(60-AC52)/24,0) -> 0.5833333333 | AE52: 26.96 | AF52: 1.376666667
T53: 1 | U53: 3 | V53: 01:00:00 | W53: 16 | X53: 1.833333333 | Y53: 26.96 | Z53: 1.376666667 | AA53: 39 | AB53: 0.875 | AC53: 48 | AD53: =IF(AC53<60,(60-AC53)/24,0) -> 0.5 | AE53: 25.88 | AF53: 1.421666667
T54: 1 | U54: 3 | V54: 02:00:00 | W54: 16 | X54: 1.833333333 | Y54: 26.96 | Z54: 1.376666667 | AA54: 41 | AB54: 0.7916666667 | AC54: 48 | AD54: =IF(AC54<60,(60-AC54)/24,0) -> 0.5 | AE54: 26.06 | AF54: 1.414166667
T55: 1 | U55: 3 | V55: 03:00:00 | W55: 16 | X55: 1.833333333 | Y55: 28.94 | Z55: 1.294166667 | AA55: 43 | AB55: 0.7083333333 | AC55: 46 | AD55: =IF(AC55<60,(60-AC55)/24,0) -> 0.5833333333 | AE55: 24.98 | AF55: 1.459166667
T56: 1 | U56: 3 | V56: 04:00:00 | W56: 16 | X56: 1.833333333 | Y56: 28.94 | Z56: 1.294166667 | AA56: 45 | AB56: 0.625 | AC56: 50 | AD56: =IF(AC56<60,(60-AC56)/24,0) -> 0.4166666667 | AE56: 24.98 | AF56: 1.459166667
T57: 1 | U57: 3 | V57: 05:00:00 | W57: 16 | X57: 1.833333333 | Y57: 30.02 | Z57: 1.249166667 | AA57: 43 | AB57: 0.7083333333 | AC57: 48 | AD57: =IF(AC57<60,(60-AC57)/24,0) -> 0.5 | AE57: 24.98 | AF57: 1.459166667
T58: 1 | U58: 3 | V58: 06:00:00 | W58: 16 | X58: 1.833333333 | Y58: 30.92 | Z58: 1.211666667 | AA58: 43 | AB58: 0.7083333333 | AC58: 50 | AD58: =IF(AC58<60,(60-AC58)/24,0) -> 0.4166666667 | AE58: 23.9 | AF58: 1.504166667
T59: 1 | U59: 3 | V59: 07:00:00 | W59: 9 | X59: 2.125 | Y59: 30.02 | Z59: 1.249166667 | AA59: 45 | AB59: 0.625 | AC59: 50 | AD59: =IF(AC59<60,(60-AC59)/24,0) -> 0.4166666667 | AE59: 23 | AF59: 1.541666667
T60: 1 | U60: 3 | V60: 08:00:00 | W60: 9 | X60: 2.125 | Y60: 28.94 | Z60: 1.294166667 | AA60: 46 | AB60: 0.5833333333 | AC60: 54 | AD60: =IF(AC60<60,(60-AC60)/24,0) -> 0.25 | AE60: 23.9 | AF60: 1.504166667
T61: 1 | U61: 3 | V61: 09:00:00 | W61: 16 | X61: 1.833333333 | Y61: 28.04 | Z61: 1.331666667 | AA61: 47 | AB61: 0.5416666667 | AC61: 48 | AD61: =IF(AC61<60,(60-AC61)/24,0) -> 0.5 | AE61: 24.98 | AF61: 1.459166667
T62: 1 | U62: 3 | V62: 10:00:00 | W62: 18 | X62: 1.75 | Y62: 28.94 | Z62: 1.294166667 | AA62: 48 | AB62: 0.5 | AC62: 55 | AD62: =IF(AC62<60,(60-AC62)/24,0) -> 0.2083333333 | AE62: 28.04 | AF62: 1.331666667
T63: 1 | U63: 3 | V63: 11:00:00 | W63: 19 | X63: 1.708333333 | Y63: 28.94 | Z63: 1.294166667 | AA63: 50 | AB63: 0.4166666667 | AC63: 54 | AD63: =IF(AC63<60,(60-AC63)/24,0) -> 0.25 | AE63: 28.94 | AF63: 1.294166667
T64: 1 | U64: 3 | V64: 12:00:00 | W64: 21 | X64: 1.625 | Y64: 30.02 | Z64: 1.249166667 | AA64: 57 | AB64: 0.125 | AC64: 50 | AD64: =IF(AC64<60,(60-AC64)/24,0) -> 0.4166666667 | AE64: 30.92 | AF64: 1.211666667
T65: 1 | U65: 3 | V65: 13:00:00 | W65: 23 | X65: 1.541666667 | Y65: 30.02 | Z65: 1.249166667 | AA65: 57 | AB65: 0.125 | AC65: 50 | AD65: =IF(AC65<60,(60-AC65)/24,0) -> 0.4166666667 | AE65: 32 | AF65: 1.166666667
T66: 1 | U66: 3 | V66: 14:00:00 | W66: 22 | X66: 1.583333333 | Y66: 32 | Z66: 1.166666667 | AA66: 59 | AB66: 0.04166666667 | AC66: 48 | AD66: =IF(AC66<60,(60-AC66)/24,0) -> 0.5 | AE66: 32.9 | AF66: 1.129166667
T67: 1 | U67: 3 | V67: 15:00:00 | W67: 21 | X67: 1.625 | Y67: 30.92 | Z67: 1.211666667 | AA67: 55 | AB67: 0.2083333333 | AC67: 46 | AD67: =IF(AC67<60,(60-AC67)/24,0) -> 0.5833333333 | AE67: 32.9 | AF67: 1.129166667
T68: 1 | U68: 3 | V68: 16:00:00 | W68: 21 | X68: 1.625 | Y68: 30.02 | Z68: 1.249166667 | AA68: 52 | AB68: 0.3333333333 | AC68: 43 | AD68: =IF(AC68<60,(60-AC68)/24,0) -> 0.7083333333 | AE68: 30.92 | AF68: 1.211666667
T69: 1 | U69: 3 | V69: 17:00:00 | W69: 16 | X69: =IF(W69<60,(60-W69)/24,0) -> 1.833333333 | Y69: 26.06 | Z69: 1.414166667 | AA69: 46 | AB69: 0.5833333333 | AC69: 39 | AD69: =IF(AC69<60,(60-AC69)/24,0) -> 0.875 | AE69: 29.84 | AF69: 1.256666667
T70: 1 | U70: 3 | V70: 18:00:00 | W70: 12 | X70: 2 | Y70: 26.06 | Z70: =IF(Y70<60,(60-Y70)/24,0) -> 1.414166667 | AA70: 45 | AB70: =IF(AA70<60,(60-AA70)/24,0) -> 0.625 | AC70: 39 | AD70: =IF(AC70<60,(60-AC70)/24,0) -> 0.875 | AE70: 29.84 | AF70: =IF(AE70<60,(60-AE70)/24,0) -> 1.256666667
T71: 1 | U71: 3 | V71: 19:00:00 | W71: 10 | X71: 2.083333333 | Y71: 24.08 | Z71: 1.496666667 | AA71: 45 | AB71: 0.625 | AC71: 37 | AD71: =IF(AC71<60,(60-AC71)/24,0) -> 0.9583333333 | AE71: 29.84 | AF71: 1.256666667
T72: 1 | U72: 3 | V72: 20:00:00 | W72: 10 | X72: 2.083333333 | Y72: 21.92 | Z72: 1.586666667 | AA72: 43 | AB72: 0.7083333333 | AC72: 36 | AD72: =IF(AC72<60,(60-AC72)/24,0) -> 1 | AE72: 29.84 | AF72: 1.256666667
T73: 1 | U73: 3 | V73: 21:00:00 | W73: 10 | X73: 2.083333333 | Y73: 19.94 | Z73: 1.669166667 | AA73: 45 | AB73: 0.625 | AC73: 34.297 | AD73: =IF(AC73<60,(60-AC73)/24,0) -> 1.070958333 | AE73: 28.94 | AF73: 1.294166667
T74: 1 | U74: 3 | V74: 22:00:00 | W74: 5 | X74: 2.291666667 | Y74: 19.94 | Z74: 1.669166667 | AA74: 43 | AB74: 0.7083333333 | AC74: 32.5084 | AD74: =IF(AC74<60,(60-AC74)/24,0) -> 1.145483333 | AE74: 28.94 | AF74: 1.294166667
T75: 1 | U75: 3 | V75: 23:00:00 | W75: 1 | X75: 2.458333333 | Y75: 17.06 | Z75: 1.789166667 | AA75: 39 | AB75: 0.875 | AC75: 34.297 | AD75: =IF(AC75<60,(60-AC75)/24,0) -> 1.070958333 | AE75: 27.86 | AF75: 1.339166667
T76: 1 | U76: 3 | V76: 1 | W76: 1 | X76: 2.458333333 | Y76: 14 | Z76: 1.916666667 | AA76: 39 | AB76: 0.875 | AC76: 36 | AD76: =IF(AC76<60,(60-AC76)/24,0) -> 1 | AE76: 27.86 | AF76: 1.339166667
T77: 1 | U77: 4 | V77: 01:00:00 | W77: 1 | X77: 2.458333333 | Y77: 12.02 | Z77: 1.999166667 | AA77: 39 | AB77: 0.875 | AC77: 35 | AD77: =IF(AC77<60,(60-AC77)/24,0) -> 1.041666667 | AE77: 27.86 | AF77: 1.339166667
T78: 1 | U78: 4 | V78: 02:00:00 | W78: 3 | X78: 2.375 | Y78: 12.92 | Z78: 1.961666667 | AA78: 39 | AB78: 0.875 | AC78: 36 | AD78: =IF(AC78<60,(60-AC78)/24,0) -> 1 | AE78: 27.86 | AF78: 1.339166667
T79: 1 | U79: 4 | V79: 03:00:00 | W79: 5 | X79: 2.291666667 | Y79: 14 | Z79: 1.916666667 | AA79: 39 | AB79: 0.875 | AC79: 36 | AD79: =IF(AC79<60,(60-AC79)/24,0) -> 1 | AE79: 27.86 | AF79: 1.339166667
T80: 1 | U80: 4 | V80: 04:00:00 | W80: 7 | X80: 2.208333333 | Y80: 12.92 | Z80: 1.961666667 | AA80: 39 | AB80: 0.875 | AC80: 34 | AD80: =IF(AC80<60,(60-AC80)/24,0) -> 1.083333333 | AE80: 26.96 | AF80: 1.376666667
T81: 1 | U81: 4 | V81: 05:00:00 | W81: 7 | X81: 2.208333333 | Y81: 10.94 | Z81: 2.044166667 | AA81: 37 | AB81: 0.9583333333 | AC81: 36 | AD81: =IF(AC81<60,(60-AC81)/24,0) -> 1 | AE81: 26.96 | AF81: 1.376666667
T82: 1 | U82: 4 | V82: 06:00:00 | W82: 7 | X82: 2.208333333 | Y82: 8.96 | Z82: 2.126666667 | AA82: 37.1338 | AB82: 0.9527583333 | AC82: 36 | AD82: =IF(AC82<60,(60-AC82)/24,0) -> 1 | AE82: 25.88 | AF82: 1.421666667
T83: 1 | U83: 4 | V83: 07:00:00 | W83: 7 | X83: 2.208333333 | Y83: 8.06 | Z83: 2.164166667 | AA83: 37 | AB83: 0.9583333333 | AC83: 34 | AD83: =IF(AC83<60,(60-AC83)/24,0) -> 1.083333333 | AE83: 24.98 | AF83: 1.459166667
T84: 1 | U84: 4 | V84: 08:00:00 | W84: 9 | X84: 2.125 | Y84: 8.96 | Z84: 2.126666667 | AA84: 36 | AB84: 1 | AC84: 34 | AD84: =IF(AC84<60,(60-AC84)/24,0) -> 1.083333333 | AE84: 24.98 | AF84: 1.459166667
T85: 1 | U85: 4 | V85: 09:00:00 | W85: 9 | X85: 2.125 | Y85: 19.04 | Z85: 1.706666667 | AA85: 36 | AB85: 1 | AC85: 34.2135 | AD85: =IF(AC85<60,(60-AC85)/24,0) -> 1.0744375 | AE85: 26.96 | AF85: 1.376666667
T86: 1 | U86: 4 | V86: 10:00:00 | W86: 10 | X86: 2.083333333 | Y86: 26.06 | Z86: 1.414166667 | AA86: 36 | AB86: 1 | AC86: 34.2135 | AD86: =IF(AC86<60,(60-AC86)/24,0) -> 1.0744375 | AE86: 28.94 | AF86: 1.294166667
T87: 1 | U87: 4 | V87: 11:00:00 | W87: 16 | X87: 1.833333333 | Y87: 26.96 | Z87: 1.376666667 | AA87: 36 | AB87: 1 | AC87: 34.2135 | AD87: =IF(AC87<60,(60-AC87)/24,0) -> 1.0744375 | AE87: 29.84 | AF87: 1.256666667
T88: 1 | U88: 4 | V88: 12:00:00 | W88: 18 | X88: 1.75 | Y88: 28.04 | Z88: 1.331666667 | AA88: 37 | AB88: 0.9583333333 | AC88: 34.1298 | AD88: =IF(AC88<60,(60-AC88)/24,0) -> 1.077925 | AE88: 29.84 | AF88: 1.256666667
T89: 1 | U89: 4 | V89: 13:00:00 | W89: 21 | X89: 1.625 | Y89: 30.02 | Z89: 1.249166667 | AA89: 37.1338 | AB89: 0.9527583333 | AC89: 34.1298 | AD89: =IF(AC89<60,(60-AC89)/24,0) -> 1.077925 | AE89: 28.94 | AF89: 1.294166667
T90: 1 | U90: 4 | V90: 14:00:00 | W90: 21 | X90: 1.625 | Y90: 30.92 | Z90: 1.211666667 | AA90: 37.1338 | AB90: 0.9527583333 | AC90: 36.3498 | AD90: =IF(AC90<60,(60-AC90)/24,0) -> 0.985425 | AE90: 28.94 | AF90: 1.294166667
T91: 1 | U91: 4 | V91: 15:00:00 | W91: 21 | X91: 1.625 | Y91: 32 | Z91: 1.166666667 | AA91: 37.1338 | AB91: 0.9527583333 | AC91: 36.3498 | AD91: =IF(AC91<60,(60-AC91)/24,0) -> 0.985425 | AE91: 28.94 | AF91: 1.294166667
T92: 1 | U92: 4 | V92: 16:00:00 | W92: 21 | X92: 1.625 | Y92: 30.02 | Z92: 1.249166667 | AA92: 37.1338 | AB92: 0.9527583333 | AC92: 43 | AD92: =IF(AC92<60,(60-AC92)/24,0) -> 0.7083333333 | AE92: 26.96 | AF92: 1.376666667
T93: 1 | U93: 4 | V93: 17:00:00 | W93: 21 | X93: 1.625 | Y93: 26.96 | Z93: 1.376666667 | AA93: 39 | AB93: 0.875 | AC93: 43.001 | AD93: =IF(AC93<60,(60-AC93)/24,0) -> 0.7082916667 | AE93: 24.98 | AF93: 1.459166667
T94: 1 | U94: 4 | V94: 18:00:00 | W94: 19 | X94: 1.708333333 | Y94: 26.06 | Z94: 1.414166667 | AA94: 55 | AB94: 0.2083333333 | AC94: 45.0529 | AD94: =IF(AC94<60,(60-AC94)/24,0) -> 0.6227958333 | AE94: 23 | AF94: 1.541666667
T95: 1 | U95: 4 | V95: 19:00:00 | W95: 19 | X95: 1.708333333 | Y95: 26.06 | Z95: 1.414166667 | AA95: 52 | AB95: 0.3333333333 | AC95: 45.1423 | AD95: =IF(AC95<60,(60-AC95)/24,0) -> 0.6190708333 | AE95: 21.92 | AF95: 1.586666667
T96: 1 | U96: 4 | V96: 20:00:00 | W96: 17 | X96: 1.791666667 | Y96: 24.08 | Z96: 1.496666667 | AA96: 50 | AB96: 0.4166666667 | AC96: 45.1423 | AD96: =IF(AC96<60,(60-AC96)/24,0) -> 0.6190708333 | AE96: 20.84 | AF96: 1.631666667
T97: 1 | U97: 4 | V97: 21:00:00 | W97: 18 | X97: 1.75 | Y97: 23 | Z97: 1.541666667 | AA97: 46 | AB97: 0.5833333333 | AC97: 45 | AD97: =IF(AC97<60,(60-AC97)/24,0) -> 0.625 | AE97: 18.86 | AF97: 1.714166667
T98: 1 | U98: 4 | V98: 22:00:00 | W98: 14 | X98: 1.916666667 | Y98: 19.94 | Z98: 1.669166667 | AA98: 46 | AB98: 0.5833333333 | AC98: 45 | AD98: =IF(AC98<60,(60-AC98)/24,0) -> 0.625 | AE98: 17.96 | AF98: 1.751666667
T99: 1 | U99: 4 | V99: 23:00:00 | W99: 14 | X99: 1.916666667 | Y99: 19.94 | Z99: 1.669166667 | AA99: 43 | AB99: 0.7083333333 | AC99: 43 | AD99: =IF(AC99<60,(60-AC99)/24,0) -> 0.7083333333 | AE99: 16.88 | AF99: 1.796666667
T100: 1 | U100: 4 | V100: 1 | W100: 11 | X100: 2.041666667 | Y100: 21.92 | Z100: 1.586666667 | AA100: 43 | AB100: 0.7083333333 | AC100: 39 | AD100: =IF(AC100<60,(60-AC100)/24,0) -> 0.875 | AE100: 15.98 | AF100: 1.834166667
T101: 1 | U101: 5 | V101: 01:00:00 | W101: 8 | X101: 2.166666667 | Y101: 21.92 | Z101: 1.586666667 | AA101: 39 | AB101: 0.875 | AC101: 39 | AD101: =IF(AC101<60,(60-AC101)/24,0) -> 0.875 | AE101: 14.9 | AF101: 1.879166667
T102: 1 | U102: 5 | V102: 02:00:00 | W102: 5 | X102: 2.291666667 | Y102: 19.94 | Z102: 1.669166667 | AA102: 39 | AB102: 0.875 | AC102: 37 | AD102: =IF(AC102<60,(60-AC102)/24,0) -> 0.9583333333 | AE102: 14 | AF102: 1.916666667
T103: 1 | U103: 5 | V103: 03:00:00 | W103: 2 | X103: 2.416666667 | Y103: 12.02 | Z103: 1.999166667 | AA103: 37 | AB103: 0.9583333333 | AC103: 36 | AD103: =IF(AC103<60,(60-AC103)/24,0) -> 1 | AE103: 14 | AF103: 1.916666667
T104: 1 | U104: 5 | V104: 04:00:00 | W104: 0 | X104: 2.5 | Y104: 10.04 | Z104: 2.081666667 | AA104: 37 | AB104: 0.9583333333 | AC104: 32 | AD104: =IF(AC104<60,(60-AC104)/24,0) -> 1.166666667 | AE104: 12.92 | AF104: 1.961666667
T105: 1 | U105: 5 | V105: 05:00:00 | W105: -6 | X105: 2.75 | Y105: 8.96 | Z105: 2.126666667 | AA105: 36 | AB105: 1 | AC105: 28 | AD105: =IF(AC105<60,(60-AC105)/24,0) -> 1.333333333 | AE105: 12.92 | AF105: 1.961666667
T106: 1 | U106: 5 | V106: 06:00:00 | W106: -8 | X106: 2.833333333 | Y106: 8.06 | Z106: 2.164166667 | AA106: 34 | AB106: 1.083333333 | AC106: 27 | AD106: =IF(AC106<60,(60-AC106)/24,0) -> 1.375 | AE106: 12.92 | AF106: 1.961666667
T107: 1 | U107: 5 | V107: 07:00:00 | W107: -6 | X107: 2.75 | Y107: 6.98 | Z107: 2.209166667 | AA107: 30 | AB107: 1.25 | AC107: 23 | AD107: =IF(AC107<60,(60-AC107)/24,0) -> 1.541666667 | AE107: 11.84 | AF107: 2.006666667
T108: 1 | U108: 5 | V108: 08:00:00 | W108: -6 | X108: 2.75 | Y108: 10.04 | Z108: 2.081666667 | AA108: 28 | AB108: 1.333333333 | AC108: 21 | AD108: =IF(AC108<60,(60-AC108)/24,0) -> 1.625 | AE108: 11.84 | AF108: 2.006666667
T109: 1 | U109: 5 | V109: 09:00:00 | W109: -2 | X109: 2.583333333 | Y109: 17.96 | Z109: 1.751666667 | AA109: 27 | AB109: 1.375 | AC109: 21 | AD109: =IF(AC109<60,(60-AC109)/24,0) -> 1.625 | AE109: 12.92 | AF109: 1.961666667
T110: 1 | U110: 5 | V110: 10:00:00 | W110: 3 | X110: 2.375 | Y110: 26.96 | Z110: 1.376666667 | AA110: 28 | AB110: 1.333333333 | AC110: 21 | AD110: =IF(AC110<60,(60-AC110)/24,0) -> 1.625 | AE110: 14 | AF110: 1.916666667
T111: 1 | U111: 5 | V111: 11:00:00 | W111: 10 | X111: 2.083333333 | Y111: 30.02 | Z111: 1.249166667 | AA111: 28 | AB111: 1.333333333 | AC111: 23 | AD111: =IF(AC111<60,(60-AC111)/24,0) -> 1.541666667 | AE111: 15.98 | AF111: 1.834166667
T112: 1 | U112: 5 | V112: 12:00:00 | W112: 18 | X112: 1.75 | Y112: 32 | Z112: 1.166666667 | AA112: 28 | AB112: 1.333333333 | AC112: 25 | AD112: =IF(AC112<60,(60-AC112)/24,0) -> 1.458333333 | AE112: 19.94 | AF112: 1.669166667
T113: 1 | U113: 5 | V113: 13:00:00 | W113: 19 | X113: 1.708333333 | Y113: 32 | Z113: 1.166666667 | AA113: 30 | AB113: 1.25 | AC113: 27 | AD113: =IF(AC113<60,(60-AC113)/24,0) -> 1.375 | AE113: 21.92 | AF113: 1.586666667
T114: 1 | U114: 5 | V114: 14:00:00 | W114: 21 | X114: 1.625 | Y114: 33.98 | Z114: 1.084166667 | AA114: 30 | AB114: 1.25 | AC114: 27 | AD114: =IF(AC114<60,(60-AC114)/24,0) -> 1.375 | AE114: 23.9 | AF114: 1.504166667
T115: 1 | U115: 5 | V115: 15:00:00 | W115: 21 | X115: 1.625 | Y115: 33.08 | Z115: 1.121666667 | AA115: 30 | AB115: 1.25 | AC115: 25 | AD115: =IF(AC115<60,(60-AC115)/24,0) -> 1.458333333 | AE115: 24.08 | AF115: 1.496666667
T116: 1 | U116: 5 | V116: 16:00:00 | W116: 19 | X116: 1.708333333 | Y116: 32 | Z116: 1.166666667 | AA116: 28 | AB116: 1.333333333 | AC116: 25 | AD116: =IF(AC116<60,(60-AC116)/24,0) -> 1.458333333 | AE116: 23 | AF116: 1.541666667
T117: 1 | U117: 5 | V117: 17:00:00 | W117: 19 | X117: 1.708333333 | Y117: 30.92 | Z117: 1.211666667 | AA117: 28 | AB117: 1.333333333 | AC117: 21 | AD117: =IF(AC117<60,(60-AC117)/24,0) -> 1.625 | AE117: 21.92 | AF117: 1.586666667
T118: 1 | U118: 5 | V118: 18:00:00 | W118: 19 | X118: 1.708333333 | Y118: 30.92 | Z118: 1.211666667 | AA118: 25 | AB118: 1.458333333 | AC118: 19 | AD118: =IF(AC118<60,(60-AC118)/24,0) -> 1.708333333 | AE118: 21.92 | AF118: 1.586666667
T119: 1 | U119: 5 | V119: 19:00:00 | W119: 19 | X119: 1.708333333 | Y119: 30.92 | Z119: 1.211666667 | AA119: 23 | AB119: 1.541666667 | AC119: 17 | AD119: =IF(AC119<60,(60-AC119)/24,0) -> 1.791666667 | AE119: 20.84 | AF119: 1.631666667
T120: 1 | U120: 5 | V120: 20:00:00 | W120: 19 | X120: 1.708333333 | Y120: 32 | Z120: 1.166666667 | AA120: 21 | AB120: 1.625 | AC120: 16 | AD120: =IF(AC120<60,(60-AC120)/24,0) -> 1.833333333 | AE120: 20.84 | AF120: 1.631666667
T121: 1 | U121: 5 | V121: 21:00:00 | W121: 20 | X121: 1.666666667 | Y121: 32 | Z121: 1.166666667 | AA121: 21 | AB121: 1.625 | AC121: 16 | AD121: =IF(AC121<60,(60-AC121)/24,0) -> 1.833333333 | AE121: 20.84 | AF121: 1.631666667
T122: 1 | U122: 5 | V122: 22:00:00 | W122: 19 | X122: 1.708333333 | Y122: 32 | Z122: 1.166666667 | AA122: 19 | AB122: 1.708333333 | AC122: 12 | AD122: =IF(AC122<60,(60-AC122)/24,0) -> 2 | AE122: 20.84 | AF122: 1.631666667
T123: 1 | U123: 5 | V123: 23:00:00 | W123: 19 | X123: 1.708333333 | Y123: 32 | Z123: 1.166666667 | AA123: 18 | AB123: 1.75 | AC123: 10 | AD123: =IF(AC123<60,(60-AC123)/24,0) -> 2.083333333 | AE123: 19.94 | AF123: 1.669166667
T124: 1 | U124: 5 | V124: 1 | W124: 19 | X124: 1.708333333 | Y124: 30.92 | Z124: 1.211666667 | AA124: 16 | AB124: 1.833333333 | AC124: 10 | AD124: =IF(AC124<60,(60-AC124)/24,0) -> 2.083333333 | AE124: 19.94 | AF124: 1.669166667
T125: 1 | U125: 6 | V125: 01:00:00 | W125: 18 | X125: 1.75 | Y125: 32 | Z125: 1.166666667 | AA125: 16 | AB125: 1.833333333 | AC125: 10 | AD125: =IF(AC125<60,(60-AC125)/24,0) -> 2.083333333 | AE125: 19.94 | AF125: 1.669166667
T126: 1 | U126: 6 | V126: 02:00:00 | W126: 18 | X126: 1.75 | Y126: 30.92 | Z126: 1.211666667 | AA126: 16 | AB126: 1.833333333 | AC126: 10 | AD126: =IF(AC126<60,(60-AC126)/24,0) -> 2.083333333 | AE126: 19.94 | AF126: 1.669166667
T127: 1 | U127: 6 | V127: 03:00:00 | W127: 19 | X127: 1.708333333 | Y127: 30.92 | Z127: 1.211666667 | AA127: 12 | AB127: 2 | AC127: 10 | AD127: =IF(AC127<60,(60-AC127)/24,0) -> 2.083333333 | AE127: 19.94 | AF127: 1.669166667
T128: 1 | U128: 6 | V128: 04:00:00 | W128: 19 | X128: 1.708333333 | Y128: 30.92 | Z128: 1.211666667 | AA128: 12 | AB128: 2 | AC128: 12 | AD128: =IF(AC128<60,(60-AC128)/24,0) -> 2 | AE128: 18.86 | AF128: 1.714166667
T129: 1 | U129: 6 | V129: 05:00:00 | W129: 19 | X129: 1.708333333 | Y129: 30.92 | Z129: 1.211666667 | AA129: 12 | AB129: 2 | AC129: 10 | AD129: =IF(AC129<60,(60-AC129)/24,0) -> 2.083333333 | AE129: 18.86 | AF129: 1.714166667
T130: 1 | U130: 6 | V130: 06:00:00 | W130: 18 | X130: 1.75 | Y130: 30.92 | Z130: 1.211666667 | AA130: 12 | AB130: 2 | AC130: 10 | AD130: =IF(AC130<60,(60-AC130)/24,0) -> 2.083333333 | AE130: 19.94 | AF130: 1.669166667
T131: 1 | U131: 6 | V131: 07:00:00 | W131: 16.3741 | X131: 1.817745833 | Y131: 30.92 | Z131: 1.211666667 | AA131: 10 | AB131: 2.083333333 | AC131: 12 | AD131: =IF(AC131<60,(60-AC131)/24,0) -> 2 | AE131: 19.94 | AF131: 1.669166667
T132: 1 | U132: 6 | V132: 08:00:00 | W132: 15.2718 | X132: 1.863675 | Y132: 30.92 | Z132: 1.211666667 | AA132: 12 | AB132: 2 | AC132: 10 | AD132: =IF(AC132<60,(60-AC132)/24,0) -> 2.083333333 | AE132: 18.86 | AF132: 1.714166667
T133: 1 | U133: 6 | V133: 09:00:00 | W133: 16.3741 | X133: =IF(W133<60,(60-W133)/24,0) -> 1.817745833 | Y133: 32 | Z133: 1.166666667 | AA133: 16 | AB133: 1.833333333 | AC133: 12 | AD133: =IF(AC133<60,(60-AC133)/24,0) -> 2 | AE133: 20.84 | AF133: 1.631666667
T134: 1 | U134: 6 | V134: 10:00:00 | W134: 19.3882 | X134: 1.692158333 | Y134: 33.08 | Z134: =IF(Y134<60,(60-Y134)/24,0) -> 1.121666667 | AA134: 19 | AB134: =IF(AA134<60,(60-AA134)/24,0) -> 1.708333333 | AC134: 18 | AD134: =IF(AC134<60,(60-AC134)/24,0) -> 1.75 | AE134: 23 | AF134: =IF(AE134<60,(60-AE134)/24,0) -> 1.541666667
T135: 1 | U135: 6 | V135: 11:00:00 | W135: 22.0462 | X135: 1.581408333 | Y135: 35.06 | Z135: 1.039166667 | AA135: 27 | AB135: 1.375 | AC135: 23 | AD135: =IF(AC135<60,(60-AC135)/24,0) -> 1.541666667 | AE135: 24.98 | AF135: 1.459166667
T136: 1 | U136: 6 | V136: 12:00:00 | W136: 25 | X136: 1.458333333 | Y136: 35.06 | Z136: 1.039166667 | AA136: 28 | AB136: 1.333333333 | AC136: 25 | AD136: =IF(AC136<60,(60-AC136)/24,0) -> 1.458333333 | AE136: 26.96 | AF136: 1.376666667
T137: 1 | U137: 6 | V137: 13:00:00 | W137: 25 | X137: 1.458333333 | Y137: 35.96 | Z137: 1.001666667 | AA137: 28 | AB137: 1.333333333 | AC137: 27 | AD137: =IF(AC137<60,(60-AC137)/24,0) -> 1.375 | AE137: 29.84 | AF137: 1.256666667
T138: 1 | U138: 6 | V138: 14:00:00 | W138: 25 | X138: 1.458333333 | Y138: 37.04 | Z138: 0.9566666667 | AA138: 31 | AB138: 1.208333333 | AC138: 28 | AD138: =IF(AC138<60,(60-AC138)/24,0) -> 1.333333333 | AE138: 30.92 | AF138: 1.211666667
T139: 1 | U139: 6 | V139: 15:00:00 | W139: 27 | X139: 1.375 | Y139: 37.04 | Z139: 0.9566666667 | AA139: 34 | AB139: 1.083333333 | AC139: 28 | AD139: =IF(AC139<60,(60-AC139)/24,0) -> 1.333333333 | AE139: 32.9 | AF139: 1.129166667
T140: 1 | U140: 6 | V140: 16:00:00 | W140: 27 | X140: 1.375 | Y140: 35.96 | Z140: 1.001666667 | AA140: 34 | AB140: 1.083333333 | AC140: 30 | AD140: =IF(AC140<60,(60-AC140)/24,0) -> 1.25 | AE140: 32.9 | AF140: 1.129166667
T141: 1 | U141: 6 | V141: 17:00:00 | W141: 26 | X141: 1.416666667 | Y141: 35.06 | Z141: 1.039166667 | AA141: 30 | AB141: 1.25 | AC141: 30 | AD141: =IF(AC141<60,(60-AC141)/24,0) -> 1.25 | AE141: 33.98 | AF141: 1.084166667
T142: 1 | U142: 6 | V142: 18:00:00 | W142: 25 | X142: 1.458333333 | Y142: 33.98 | Z142: 1.084166667 | AA142: 28 | AB142: 1.333333333 | AC142: 28 | AD142: =IF(AC142<60,(60-AC142)/24,0) -> 1.333333333 | AE142: 36.86 | AF142: 0.9641666667
T143: 1 | U143: 6 | V143: 19:00:00 | W143: 25 | X143: 1.458333333 | Y143: 33.98 | Z143: 1.084166667 | AA143: 28 | AB143: 1.333333333 | AC143: 27 | AD143: =IF(AC143<60,(60-AC143)/24,0) -> 1.375 | AE143: 35.96 | AF143: 1.001666667
T144: 1 | U144: 6 | V144: 20:00:00 | W144: 24 | X144: 1.5 | Y144: 32 | Z144: 1.166666667 | AA144: 28 | AB144: 1.333333333 | AC144: 23 | AD144: =IF(AC144<60,(60-AC144)/24,0) -> 1.541666667 | AE144: 35.96 | AF144: 1.001666667
T145: 1 | U145: 6 | V145: 21:00:00 | W145: 25 | X145: 1.458333333 | Y145: 32 | Z145: 1.166666667 | AA145: 28 | AB145: 1.333333333 | AC145: 23 | AD145: =IF(AC145<60,(60-AC145)/24,0) -> 1.541666667 | AE145: 35.96 | AF145: 1.001666667
T146: 1 | U146: 6 | V146: 22:00:00 | W146: 21 | X146: 1.625 | Y146: 32 | Z146: 1.166666667 | AA146: 30 | AB146: 1.25 | AC146: 21 | AD146: =IF(AC146<60,(60-AC146)/24,0) -> 1.625 | AE146: 36.86 | AF146: 0.9641666667
T147: 1 | U147: 6 | V147: 23:00:00 | W147: 21 | X147: 1.625 | Y147: 30.92 | Z147: 1.211666667 | AA147: 30 | AB147: 1.25 | AC147: 23 | AD147: =IF(AC147<60,(60-AC147)/24,0) -> 1.541666667 | AE147: 36.86 | AF147: 0.9641666667
T148: 1 | U148: 6 | V148: 1 | W148: 21 | X148: 1.625 | Y148: 30.92 | Z148: 1.211666667 | AA148: 27 | AB148: 1.375 | AC148: 21 | AD148: =IF(AC148<60,(60-AC148)/24,0) -> 1.625 | AE148: 36.86 | AF148: 0.9641666667
T149: 1 | U149: 7 | V149: 01:00:00 | W149: 25 | X149: 1.458333333 | Y149: 30.02 | Z149: 1.249166667 | AA149: 26 | AB149: 1.416666667 | AC149: 21 | AD149: =IF(AC149<60,(60-AC149)/24,0) -> 1.625 | AE149: 34.88 | AF149: 1.046666667
T150: 1 | U150: 7 | V150: 02:00:00 | W150: 25 | X150: 1.458333333 | Y150: 30.02 | Z150: 1.249166667 | AA150: 25 | AB150: 1.458333333 | AC150: 21 | AD150: =IF(AC150<60,(60-AC150)/24,0) -> 1.625 | AE150: 33.98 | AF150: 1.084166667
T151: 1 | U151: 7 | V151: 03:00:00 | W151: 25 | X151: 1.458333333 | Y151: 28.94 | Z151: 1.294166667 | AA151: 25 | AB151: 1.458333333 | AC151: 23 | AD151: =IF(AC151<60,(60-AC151)/24,0) -> 1.541666667 | AE151: 34.88 | AF151: 1.046666667
T152: 1 | U152: 7 | V152: 04:00:00 | W152: 23 | X152: 1.541666667 | Y152: 28.04 | Z152: 1.331666667 | AA152: 23 | AB152: 1.541666667 | AC152: 25 | AD152: =IF(AC152<60,(60-AC152)/24,0) -> 1.458333333 | AE152: 34.88 | AF152: 1.046666667
T153: 1 | U153: 7 | V153: 05:00:00 | W153: 23 | X153: 1.541666667 | Y153: 26.96 | Z153: 1.376666667 | AA153: 21 | AB153: 1.625 | AC153: 25 | AD153: =IF(AC153<60,(60-AC153)/24,0) -> 1.458333333 | AE153: 36.86 | AF153: 0.9641666667
T154: 1 | U154: 7 | V154: 06:00:00 | W154: 23 | X154: 1.541666667 | Y154: 26.06 | Z154: 1.414166667 | AA154: 21 | AB154: 1.625 | AC154: 25 | AD154: =IF(AC154<60,(60-AC154)/24,0) -> 1.458333333 | AE154: 35.96 | AF154: 1.001666667
T155: 1 | U155: 7 | V155: 07:00:00 | W155: 21 | X155: 1.625 | Y155: 24.98 | Z155: 1.459166667 | AA155: 25 | AB155: 1.458333333 | AC155: 25 | AD155: =IF(AC155<60,(60-AC155)/24,0) -> 1.458333333 | AE155: 34.88 | AF155: 1.046666667
T156: 1 | U156: 7 | V156: 08:00:00 | W156: 21 | X156: 1.625 | Y156: 26.06 | Z156: 1.414166667 | AA156: 25 | AB156: 1.458333333 | AC156: 27 | AD156: =IF(AC156<60,(60-AC156)/24,0) -> 1.375 | AE156: 34.88 | AF156: 1.046666667
T157: 1 | U157: 7 | V157: 09:00:00 | W157: 22 | X157: 1.583333333 | Y157: 28.04 | Z157: 1.331666667 | AA157: 27 | AB157: 1.375 | AC157: 27 | AD157: =IF(AC157<60,(60-AC157)/24,0) -> 1.375 | AE157: 34.88 | AF157: 1.046666667
T158: 1 | U158: 7 | V158: 10:00:00 | W158: 23 | X158: 1.541666667 | Y158: 28.04 | Z158: 1.331666667 | AA158: 27 | AB158: 1.375 | AC158: 28 | AD158: =IF(AC158<60,(60-AC158)/24,0) -> 1.333333333 | AE158: 34.88 | AF158: 1.046666667
T159: 1 | U159: 7 | V159: 11:00:00 | W159: 25 | X159: 1.458333333 | Y159: 28.04 | Z159: 1.331666667 | AA159: 30 | AB159: 1.25 | AC159: 30 | AD159: =IF(AC159<60,(60-AC159)/24,0) -> 1.25 | AE159: 34.88 | AF159: 1.046666667
T160: 1 | U160: 7 | V160: 12:00:00 | W160: 27 | X160: 1.375 | Y160: 26.96 | Z160: 1.376666667 | AA160: 34 | AB160: 1.083333333 | AC160: 32 | AD160: =IF(AC160<60,(60-AC160)/24,0) -> 1.166666667 | AE160: 36.86 | AF160: 0.9641666667
T161: 1 | U161: 7 | V161: 13:00:00 | W161: 27 | X161: 1.375 | Y161: 26.06 | Z161: 1.414166667 | AA161: 36 | AB161: 1 | AC161: 34 | AD161: =IF(AC161<60,(60-AC161)/24,0) -> 1.083333333 | AE161: 38.84 | AF161: 0.8816666667
T162: 1 | U162: 7 | V162: 14:00:00 | W162: 27 | X162: 1.375 | Y162: 24.98 | Z162: 1.459166667 | AA162: 37 | AB162: 0.9583333333 | AC162: 34 | AD162: =IF(AC162<60,(60-AC162)/24,0) -> 1.083333333 | AE162: 41 | AF162: 0.7916666667
T163: 1 | U163: 7 | V163: 15:00:00 | W163: 27 | X163: 1.375 | Y163: 24.08 | Z163: 1.496666667 | AA163: 37 | AB163: 0.9583333333 | AC163: 34 | AD163: =IF(AC163<60,(60-AC163)/24,0) -> 1.083333333 | AE163: 41 | AF163: 0.7916666667
T164: 1 | U164: 7 | V164: 16:00:00 | W164: 27 | X164: 1.375 | Y164: 21.02 | Z164: 1.624166667 | AA164: 37 | AB164: 0.9583333333 | AC164: 36 | AD164: =IF(AC164<60,(60-AC164)/24,0) -> 1 | AE164: 36.86 | AF164: 0.9641666667
T165: 1 | U165: 7 | V165: 17:00:00 | W165: 25 | X165: 1.458333333 | Y165: 19.04 | Z165: 1.706666667 | AA165: 37 | AB165: 0.9583333333 | AC165: 34 | AD165: =IF(AC165<60,(60-AC165)/24,0) -> 1.083333333 | AE165: 34.88 | AF165: 1.046666667
T166: 1 | U166: 7 | V166: 18:00:00 | W166: 21 | X166: 1.625 | Y166: 17.06 | Z166: 1.789166667 | AA166: 37 | AB166: 0.9583333333 | AC166: 34 | AD166: =IF(AC166<60,(60-AC166)/24,0) -> 1.083333333 | AE166: 34.88 | AF166: 1.046666667
T167: 1 | U167: 7 | V167: 19:00:00 | W167: 21 | X167: 1.625 | Y167: 15.08 | Z167: 1.871666667 | AA167: 36 | AB167: 1 | AC167: 34 | AD167: =IF(AC167<60,(60-AC167)/24,0) -> 1.083333333 | AE167: 34.88 | AF167: 1.046666667
T168: 1 | U168: 7 | V168: 20:00:00 | W168: 19 | X168: 1.708333333 | Y168: 14 | Z168: 1.916666667 | AA168: 36 | AB168: 1 | AC168: 32 | AD168: =IF(AC168<60,(60-AC168)/24,0) -> 1.166666667 | AE168: 34.88 | AF168: 1.046666667
T169: 1 | U169: 7 | V169: 21:00:00 | W169: 13 | X169: 1.958333333 | Y169: 12.92 | Z169: 1.961666667 | AA169: 34 | AB169: 1.083333333 | AC169: 30 | AD169: =IF(AC169<60,(60-AC169)/24,0) -> 1.25 | AE169: 33.98 | AF169: 1.084166667
T170: 1 | U170: 7 | V170: 22:00:00 | W170: 7 | X170: 2.208333333 | Y170: 10.94 | Z170: 2.044166667 | AA170: 34 | AB170: 1.083333333 | AC170: 30 | AD170: =IF(AC170<60,(60-AC170)/24,0) -> 1.25 | AE170: 32.9 | AF170: 1.129166667
T171: 1 | U171: 7 | V171: 23:00:00 | W171: 3 | X171: 2.375 | Y171: 10.04 | Z171: 2.081666667 | AA171: 32 | AB171: 1.166666667 | AC171: 30 | AD171: =IF(AC171<60,(60-AC171)/24,0) -> 1.25 | AE171: 32.9 | AF171: 1.129166667
T172: 1 | U172: 7 | V172: 1 | W172: 1 | X172: 2.458333333 | Y172: 8.06 | Z172: 2.164166667 | AA172: 32 | AB172: 1.166666667 | AC172: 28 | AD172: =IF(AC172<60,(60-AC172)/24,0) -> 1.333333333 | AE172: 32.9 | AF172: 1.129166667
T173: 1 | U173: 8 | V173: 01:00:00 | W173: 0 | X173: 2.5 | Y173: 6.98 | Z173: 2.209166667 | AA173: 30 | AB173: 1.25 | AC173: 28 | AD173: =IF(AC173<60,(60-AC173)/24,0) -> 1.333333333 | AE173: 32 | AF173: 1.166666667
T174: 1 | U174: 8 | V174: 02:00:00 | W174: 3 | X174: 2.375 | Y174: 6.08 | Z174: 2.246666667 | AA174: 28 | AB174: 1.333333333 | AC174: 27 | AD174: =IF(AC174<60,(60-AC174)/24,0) -> 1.375 | AE174: 32 | AF174: 1.166666667
T175: 1 | U175: 8 | V175: 03:00:00 | W175: 5 | X175: 2.291666667 | Y175: 3.02 | Z175: 2.374166667 | AA175: 28 | AB175: 1.333333333 | AC175: 27 | AD175: =IF(AC175<60,(60-AC175)/24,0) -> 1.375 | AE175: 30.92 | AF175: 1.211666667
T176: 1 | U176: 8 | V176: 04:00:00 | W176: 9 | X176: 2.125 | Y176: -0.04 | Z176: 2.501666667 | AA176: 28 | AB176: 1.333333333 | AC176: 27 | AD176: =IF(AC176<60,(60-AC176)/24,0) -> 1.375 | AE176: 29.84 | AF176: 1.256666667
T177: 1 | U177: 8 | V177: 05:00:00 | W177: 9 | X177: 2.125 | Y177: -0.04 | Z177: 2.501666667 | AA177: 28 | AB177: 1.333333333 | AC177: 27 | AD177: =IF(AC177<60,(60-AC177)/24,0) -> 1.375 | AE177: 29.84 | AF177: 1.256666667
T178: 1 | U178: 8 | V178: 06:00:00 | W178: 9 | X178: 2.125 | Y178: -0.94 | Z178: 2.539166667 | AA178: 27 | AB178: 1.375 | AC178: 25 | AD178: =IF(AC178<60,(60-AC178)/24,0) -> 1.458333333 | AE178: 27.86 | AF178: 1.339166667
T179: 1 | U179: 8 | V179: 07:00:00 | W179: 10 | X179: 2.083333333 | Y179: -2.02 | Z179: 2.584166667 | AA179: 28 | AB179: 1.333333333 | AC179: 25 | AD179: =IF(AC179<60,(60-AC179)/24,0) -> 1.458333333 | AE179: 28.94 | AF179: 1.294166667
T180: 1 | U180: 8 | V180: 08:00:00 | W180: 10 | X180: 2.083333333 | Y180: -0.04 | Z180: 2.501666667 | AA180: 27 | AB180: 1.375 | AC180: 25 | AD180: =IF(AC180<60,(60-AC180)/24,0) -> 1.458333333 | AE180: 28.94 | AF180: 1.294166667
T181: 1 | U181: 8 | V181: 09:00:00 | W181: 10 | X181: 2.083333333 | Y181: 5 | Z181: 2.291666667 | AA181: 28 | AB181: 1.333333333 | AC181: 25 | AD181: =IF(AC181<60,(60-AC181)/24,0) -> 1.458333333 | AE181: 29.84 | AF181: 1.256666667
T182: 1 | U182: 8 | V182: 10:00:00 | W182: 14 | X182: 1.916666667 | Y182: 8.96 | Z182: 2.126666667 | AA182: 30 | AB182: 1.25 | AC182: 27 | AD182: =IF(AC182<60,(60-AC182)/24,0) -> 1.375 | AE182: 30.92 | AF182: 1.211666667
T183: 1 | U183: 8 | V183: 11:00:00 | W183: 19 | X183: 1.708333333 | Y183: 10.94 | Z183: 2.044166667 | AA183: 30 | AB183: 1.25 | AC183: 28 | AD183: =IF(AC183<60,(60-AC183)/24,0) -> 1.333333333 | AE183: 32 | AF183: 1.166666667
T184: 1 | U184: 8 | V184: 12:00:00 | W184: 25 | X184: 1.458333333 | Y184: 14 | Z184: 1.916666667 | AA184: 34 | AB184: 1.083333333 | AC184: 30 | AD184: =IF(AC184<60,(60-AC184)/24,0) -> 1.25 | AE184: 33.98 | AF184: 1.084166667
T185: 1 | U185: 8 | V185: 13:00:00 | W185: 28 | X185: 1.333333333 | Y185: 15.98 | Z185: 1.834166667 | AA185: 34 | AB185: 1.083333333 | AC185: 30 | AD185: =IF(AC185<60,(60-AC185)/24,0) -> 1.25 | AE185: 32 | AF185: 1.166666667
T186: 1 | U186: 8 | V186: 14:00:00 | W186: 28 | X186: 1.333333333 | Y186: 17.06 | Z186: 1.789166667 | AA186: 36 | AB186: 1 | AC186: 32 | AD186: =IF(AC186<60,(60-AC186)/24,0) -> 1.166666667 | AE186: 28.94 | AF186: 1.294166667
T187: 1 | U187: 8 | V187: 15:00:00 | W187: 30 | X187: 1.25 | Y187: 17.96 | Z187: 1.751666667 | AA187: 36 | AB187: 1 | AC187: 34 | AD187: =IF(AC187<60,(60-AC187)/24,0) -> 1.083333333 | AE187: 29.84 | AF187: 1.256666667
T188: 1 | U188: 8 | V188: 16:00:00 | W188: 29 | X188: 1.291666667 | Y188: 17.96 | Z188: 1.751666667 | AA188: 36 | AB188: 1 | AC188: 32 | AD188: =IF(AC188<60,(60-AC188)/24,0) -> 1.166666667 | AE188: 29.84 | AF188: 1.256666667
T189: 1 | U189: 8 | V189: 17:00:00 | W189: 28 | X189: 1.333333333 | Y189: 14 | Z189: 1.916666667 | AA189: 30 | AB189: 1.25 | AC189: 30 | AD189: =IF(AC189<60,(60-AC189)/24,0) -> 1.25 | AE189: 27.86 | AF189: 1.339166667
T190: 1 | U190: 8 | V190: 18:00:00 | W190: 27 | X190: 1.375 | Y190: 12.02 | Z190: 1.999166667 | AA190: 30 | AB190: 1.25 | AC190: 28 | AD190: =IF(AC190<60,(60-AC190)/24,0) -> 1.333333333 | AE190: 27.86 | AF190: 1.339166667
T191: 1 | U191: 8 | V191: 19:00:00 | W191: 27 | X191: 1.375 | Y191: 10.94 | Z191: 2.044166667 | AA191: 30 | AB191: 1.25 | AC191: 30 | AD191: =IF(AC191<60,(60-AC191)/24,0) -> 1.25 | AE191: 25.88 | AF191: 1.421666667
T192: 1 | U192: 8 | V192: 20:00:00 | W192: 25 | X192: 1.458333333 | Y192: 8.96 | Z192: 2.126666667 | AA192: 28 | AB192: 1.333333333 | AC192: 30 | AD192: =IF(AC192<60,(60-AC192)/24,0) -> 1.25 | AE192: 24.98 | AF192: 1.459166667
T193: 1 | U193: 8 | V193: 21:00:00 | W193: 25 | X193: 1.458333333 | Y193: 5 | Z193: 2.291666667 | AA193: 28 | AB193: 1.333333333 | AC193: 30 | AD193: =IF(AC193<60,(60-AC193)/24,0) -> 1.25 | AE193: 23.9 | AF193: 1.504166667
T194: 1 | U194: 8 | V194: 22:00:00 | W194: 25 | X194: 1.458333333 | Y194: 5 | Z194: 2.291666667 | AA194: 27 | AB194: 1.375 | AC194: 28 | AD194: =IF(AC194<60,(60-AC194)/24,0) -> 1.333333333 | AE194: 24.98 | AF194: 1.459166667
T195: 1 | U195: 8 | V195: 23:00:00 | W195: 25 | X195: 1.458333333 | Y195: 8.96 | Z195: 2.126666667 | AA195: 25 | AB195: 1.458333333 | AC195: 25 | AD195: =IF(AC195<60,(60-AC195)/24,0) -> 1.458333333 | AE195: 25.88 | AF195: 1.421666667
T196: 1 | U196: 8 | V196: 1 | W196: 25 | X196: 1.458333333 | Y196: 8.96 | Z196: 2.126666667 | AA196: 27 | AB196: 1.375 | AC196: 23 | AD196: =IF(AC196<60,(60-AC196)/24,0) -> 1.541666667 | AE196: 24.98 | AF196: 1.459166667
T197: 1 | U197: 9 | V197: 01:00:00 | W197: 25 | X197: =IF(W197<60,(60-W197)/24,0) -> 1.458333333 | Y197: 10.04 | Z197: 2.081666667 | AA197: 27 | AB197: 1.375 | AC197: 22 | AD197: =IF(AC197<60,(60-AC197)/24,0) -> 1.583333333 | AE197: 23.9 | AF197: 1.504166667
T198: 1 | U198: 9 | V198: 02:00:00 | W198: 25 | X198: 1.458333333 | Y198: 10.04 | Z198: =IF(Y198<60,(60-Y198)/24,0) -> 2.081666667 | AA198: 27 | AB198: =IF(AA198<60,(60-AA198)/24,0) -> 1.375 | AC198: 21 | AD198: =IF(AC198<60,(60-AC198)/24,0) -> 1.625 | AE198: 24.98 | AF198: =IF(AE198<60,(60-AE198)/24,0) -> 1.459166667
T199: 1 | U199: 9 | V199: 03:00:00 | W199: 25 | X199: 1.458333333 | Y199: 10.94 | Z199: 2.044166667 | AA199: 27 | AB199: 1.375 | AC199: 21 | AD199: =IF(AC199<60,(60-AC199)/24,0) -> 1.625 | AE199: 24.98 | AF199: 1.459166667
T200: 1 | U200: 9 | V200: 04:00:00 | W200: 25 | X200: 1.458333333 | Y200: 10.94 | Z200: 2.044166667 | AA200: 25 | AB200: 1.458333333 | AC200: 21 | AD200: =IF(AC200<60,(60-AC200)/24,0) -> 1.625 | AE200: 24.98 | AF200: 1.459166667
... 2050 more rows

Sheet BldgShell2-Insulation (hidden)
B1: Measure: Insulation | N1: Table 3: Insulation kW/kWh factors
O2: kW/kWh Factor | T2: Table 6: TMY3 Weather Data - HDD60 Calculations
N3: Electric | O3: 0.00073 | T3: Date | W3: Berlin | Y3: Concord | AA3: Dillant Hopkins/Keene | AC3: Lebanon | AE3: Pease/Portsmouth
B4: Measure Summary | G4: Measure Description | N4: Fuel Oil | O4: =O6 -> 0.00076 | T4: Month | U4: Day | V4: Hour | W4: db | X4: HDD60 | Y4: db | Z4: HDD60 | AA4: db | AB4: HDD60 | AC4: db | AD4: HDD60 | AE4: db | AF4: HDD60
D5: Value | E5: Unit | G5: This measure considers savings associated with insulation. Definition: Insulation: The installation of insulation in an existing structure. | N5: Gas | O5: =O6 -> 0.00076 | T5: 1 | U5: 1 | V5: 01:00:00 | W5: 20 | X5: =IF(W5<60,(60-W5)/24,0) -> 1.666666667 | Y5: 12.02 | Z5: =IF(Y5<60,(60-Y5)/24,0) -> 1.999166667 | AA5: 19 | AB5: =IF(AA5<60,(60-AA5)/24,0) -> 1.708333333 | AC5: 33 | AD5: =IF(AC5<60,(60-AC5)/24,0) -> 1.125 | AE5: 32 | AF5: =IF(AE5<60,(60-AE5)/24,0) -> 1.166666667
B6: Total Savings | D6: =L36 -> 0 | E6: kW | N6: Propane | O6: 0.00076 | T6: 1 | U6: 1 | V6: 02:00:00 | W6: 19 | X6: 1.708333333 | Y6: 10.94 | Z6: =IF(Y6<60,(60-Y6)/24,0) -> 2.044166667 | AA6: 21 | AB6: =IF(AA6<60,(60-AA6)/24,0) -> 1.625 | AC6: 31 | AD6: =IF(AC6<60,(60-AC6)/24,0) -> 1.208333333 | AE6: 32.9 | AF6: =IF(AE6<60,(60-AE6)/24,0) -> 1.129166667
D7: =J36 -> 0 | E7: kWh | N7: Central AC in Electrically Heated Unit | O7: 0.00059 | T7: 1 | U7: 1 | V7: 03:00:00 | W7: 19 | X7: 1.708333333 | Y7: 10.04 | Z7: 2.081666667 | AA7: 21 | AB7: 1.625 | AC7: 31 | AD7: 1.208333333 | AE7: 32.9 | AF7: 1.129166667
D8: =K36 -> 0 | E8: MMBtu | T8: 1 | U8: 1 | V8: 04:00:00 | W8: 18 | X8: 1.75 | Y8: 8.96 | Z8: 2.126666667 | AA8: 23 | AB8: 1.541666667 | AC8: 30 | AD8: 1.25 | AE8: 32.9 | AF8: 1.129166667
B9: Measure Life | N9: Table 4: Coincidence Factors | T9: 1 | U9: 1 | V9: 05:00:00 | W9: 17 | X9: 1.791666667 | Y9: 6.08 | Z9: 2.246666667 | AA9: 23 | AB9: 1.541666667 | AC9: 29 | AD9: 1.291666667 | AE9: 33.98 | AF9: 1.084166667
D10: 25 | E10: Years | N10: Measure Name | O10: Fuel | P10: CFsp | Q10: CFwp | T10: 1 | U10: 1 | V10: 06:00:00 | W10: 16 | X10: 1.833333333 | Y10: 6.08 | Z10: 2.246666667 | AA10: 23 | AB10: 1.541666667 | AC10: 28 | AD10: 1.333333333 | AE10: 32.9 | AF10: 1.129166667
B11: CFsp | N11: Air Sealing | O11: Electric | P11: 0 | Q11: 0.43 | T11: 1 | U11: 1 | V11: 07:00:00 | W11: 16 | X11: 1.833333333 | Y11: 5 | Z11: 2.291666667 | AA11: 23 | AB11: 1.541666667 | AC11: 28 | AD11: 1.333333333 | AE11: 32.9 | AF11: 1.129166667
D12: =VLOOKUP('Project Info'!D24,$O$15:$Q$18,2,FALSE)*100 ->  | E12: % | N12: Air Sealing | O12: Gas | P12: 0 | Q12: 0 | T12: 1 | U12: 1 | V12: 08:00:00 | W12: 14 | X12: 1.916666667 | Y12: 5 | Z12: 2.291666667 | AA12: 23 | AB12: 1.541666667 | AC12: 27 | AD12: 1.375 | AE12: 33.98 | AF12: 1.084166667
B13: CFwp | N13: Air Sealing | O13: Fuel Oil | P13: 0 | Q13: 0 | T13: 1 | U13: 1 | V13: 09:00:00 | W13: 14 | X13: 1.916666667 | Y13: 14 | Z13: 1.916666667 | AA13: 25 | AB13: 1.458333333 | AC13: 27 | AD13: 1.375 | AE13: 33.98 | AF13: 1.084166667
D14: =VLOOKUP('Project Info'!D24,$O$15:$Q$18,3,FALSE)*100 ->  | E14: % | N14: Air Sealing | O14: Propane | P14: 0 | Q14: 0 | T14: 1 | U14: 1 | V14: 10:00:00 | W14: 16 | X14: 1.833333333 | Y14: 17.06 | Z14: 1.789166667 | AA14: 32 | AB14: 1.166666667 | AC14: 29 | AD14: 1.291666667 | AE14: 34.88 | AF14: 1.046666667
N15: Insulation | O15: Electric | P15: 0.34 | Q15: 0.17 | T15: 1 | U15: 1 | V15: 11:00:00 | W15: 17 | X15: 1.791666667 | Y15: 21.92 | Z15: 1.586666667 | AA15: 37 | AB15: 0.9583333333 | AC15: 30 | AD15: 1.25 | AE15: 34.88 | AF15: 1.046666667
B16: Building Envelope - Air Sealing and Insulation | N16: Insulation | O16: Gas | P16: 0 | Q16: 0 | T16: 1 | U16: 1 | V16: 12:00:00 | W16: 17 | X16: 1.791666667 | Y16: 24.98 | Z16: 1.459166667 | AA16: 39 | AB16: 0.875 | AC16: 36 | AD16: 1 | AE16: 34.88 | AF16: 1.046666667
B17: Measure Code | D17: COM-BS-ASI | G17: NOTE: For more information on this measure refer to the NH TRM. | N17: Insulation | O17: Fuel Oil | P17: 0 | Q17: 0 | T17: 1 | U17: 1 | V17: 13:00:00 | W17: 16 | X17: 1.833333333 | Y17: 26.96 | Z17: 1.376666667 | AA17: 43 | AB17: 0.7083333333 | AC17: 39 | AD17: 0.875 | AE17: 34.88 | AF17: 1.046666667
B18: Market | D18: Commercial | N18: Insulation | O18: Propane | P18: 0 | Q18: 0 | T18: 1 | U18: 1 | V18: 14:00:00 | W18: 16 | X18: 1.833333333 | Y18: 28.04 | Z18: 1.331666667 | AA18: 45 | AB18: 0.625 | AC18: 43 | AD18: 0.7083333333 | AE18: 34.88 | AF18: 1.046666667
B19: Program Type | D19: Retrofit | T19: 1 | U19: 1 | V19: 15:00:00 | W19: 18 | X19: 1.75 | Y19: 28.04 | Z19: 1.331666667 | AA19: 45 | AB19: 0.625 | AC19: 43 | AD19: 0.7083333333 | AE19: 34.88 | AF19: 1.046666667
B20: Category | D20: Building Shell | N20: Table 5: Efficiency Values | T20: 1 | U20: 1 | V20: 16:00:00 | W20: 16 | X20: 1.833333333 | Y20: 28.04 | Z20: 1.331666667 | AA20: 45 | AB20: 0.625 | AC20: 39 | AD20: 0.875 | AE20: 34.88 | AF20: 1.046666667
N21: Boiler Type | O21: Efficiency % | T21: 1 | U21: 1 | V21: 17:00:00 | W21: 14 | X21: 1.916666667 | Y21: 26.96 | Z21: 1.376666667 | AA21: 36 | AB21: 1 | AC21: 34 | AD21: 1.083333333 | AE21: 33.98 | AF21: 1.084166667
N22: Gas-fired | O22: 0.8 | T22: 1 | U22: 1 | V22: 18:00:00 | W22: 14 | X22: 1.916666667 | Y22: 26.96 | Z22: 1.376666667 | AA22: 34 | AB22: 1.083333333 | AC22: 36 | AD22: 1 | AE22: 33.98 | AF22: 1.084166667
D23: Table 1: Calculating Primary Energy Impact (Insulation) | N23: Condensing | O23: 0.9 | T23: 1 | U23: 1 | V23: 19:00:00 | W23: 12 | X23: 2 | Y23: 26.06 | Z23: 1.414166667 | AA23: 30 | AB23: 1.25 | AC23: 33 | AD23: 1.125 | AE23: 33.98 | AF23: 1.084166667
D24: Inputs | J24: Savings | N24: Non-Condensing | O24: 0.8 | T24: 1 | U24: 1 | V24: 20:00:00 | W24: 12 | X24: 2 | Y24: 26.06 | Z24: 1.414166667 | AA24: 28 | AB24: 1.333333333 | AC24: 30 | AD24: 1.25 | AE24: 32.9 | AF24: 1.129166667
C25: Rexisting | D25: Rnew | E25: Area | F25: HDD60 | G25: Heating System | I25: kW/kWh Factor | J25: kWh | K25: MMBtu | L25: kW | N25: Electric Resistance | O25: 1 | T25: 1 | U25: 1 | V25: 21:00:00 | W25: 12 | X25: 2 | Y25: 24.08 | Z25: 1.496666667 | AA25: 28 | AB25: 1.333333333 | AC25: 25 | AD25: 1.458333333 | AE25: 32.9 | AF25: 1.129166667
B26: 1 | C26: =IF('Building Shell Inputs'!H24="","",'Building Shell Inputs'!H24+VLOOKUP('Building Shell Inputs'!G24,'BldgShell2-Insulation'!$N$40:$O$43,2,FALSE)) ->  | D26: =IF('Building Shell Inputs'!I24="","",'Building Shell Inputs'!I24+C26) ->  | E26: =IF('Building Shell Inputs'!J24="","",'Building Shell Inputs'!J24) ->  | F26: =IF(OR(ISBLANK('Project Info'!$D$21)),"",IFERROR(VLOOKUP('Project Info'!$D$21,$N$30:$O$36,2,FALSE),"")) ->  | G26: =IF('Project Info'!$D$25=$N$22,$O$22,IF('Project Info'!$D$25=$N$25,$O$25,IF('Project Info'!$D$25=$N$26,$O$26,IF(OR('Project Info'!$D$25='Project Info'!$Y$14,'Project Info'!$D$25='Project Info'!$Y$15),IF('Project Info'!$D$26=$N$23,$O$23,$O$24))))) -> FALSE | I26: =VLOOKUP('Project Info'!$D$24,'BldgShell2-Insulation'!$N$3:$O$7,2,FALSE) ->  | J26: =IF('Project Info'!$D$24="Electric",IFERROR((((1/C26-1/D26)*F26*24*E26)/(1000000*G26)*293.1),0)) -> FALSE | K26: =IF('Project Info'!$D$24='Project Info'!$Y$10,0,IFERROR((((1/C26-1/D26)*F26*24*E26)/(1000000*G26)),0)) -> 0 | L26: =IFERROR(J26*VLOOKUP(I26,N2:O7,2,FALSE),0) -> 0 | N26: Heat Pump | O26: 3 | T26: 1 | U26: 1 | V26: 22:00:00 | W26: 7 | X26: 2.208333333 | Y26: 24.98 | Z26: 1.459166667 | AA26: 27 | AB26: 1.375 | AC26: 23 | AD26: 1.541666667 | AE26: 33.98 | AF26: 1.084166667
B27: 2 | C27: =IF('Building Shell Inputs'!H25="","",'Building Shell Inputs'!H25+VLOOKUP('Building Shell Inputs'!G25,'BldgShell2-Insulation'!$N$40:$O$43,2,FALSE)) ->  | D27: =IF('Building Shell Inputs'!I25="","",'Building Shell Inputs'!I25+C27) ->  | E27: =IF('Building Shell Inputs'!J25="","",'Building Shell Inputs'!J25) ->  | F27: =IF(OR(ISBLANK('Project Info'!$D$21)),"",IFERROR(VLOOKUP('Project Info'!$D$21,$N$30:$O$36,2,FALSE),"")) ->  | G27: =IF('Project Info'!$D$25=$N$22,$O$22,IF('Project Info'!$D$25=$N$25,$O$25,IF('Project Info'!$D$25=$N$26,$O$26,IF(OR('Project Info'!$D$25='Project Info'!$Y$14,'Project Info'!$D$25='Project Info'!$Y$15),IF('Project Info'!$D$26=$N$23,$O$23,$O$24))))) -> FALSE | I27: =VLOOKUP('Project Info'!$D$24,'BldgShell2-Insulation'!$N$3:$O$7,2,FALSE) ->  | J27: =IF('Project Info'!$D$24="Electric",IFERROR((((1/C27-1/D27)*F27*24*E27)/(1000000*G27)*293.1),0)) -> FALSE | K27: =IF('Project Info'!$D$24='Project Info'!$Y$10,0,IFERROR((((1/C27-1/D27)*F27*24*E27)/(1000000*G27)),0)) -> 0 | L27: =IFERROR(J27*VLOOKUP(I27,N3:O7,2,FALSE),0) -> 0 | T27: 1 | U27: 1 | V27: 23:00:00 | W27: 7 | X27: 2.208333333 | Y27: 24.08 | Z27: 1.496666667 | AA27: 27 | AB27: 1.375 | AC27: 21 | AD27: 1.625 | AE27: 33.98 | AF27: 1.084166667
B28: 3 | C28: =IF('Building Shell Inputs'!H26="","",'Building Shell Inputs'!H26+VLOOKUP('Building Shell Inputs'!G26,'BldgShell2-Insulation'!$N$40:$O$43,2,FALSE)) ->  | D28: =IF('Building Shell Inputs'!I26="","",'Building Shell Inputs'!I26+C28) ->  | E28: =IF('Building Shell Inputs'!J26="","",'Building Shell Inputs'!J26) ->  | F28: =IF(OR(ISBLANK('Project Info'!$D$21)),"",IFERROR(VLOOKUP('Project Info'!$D$21,$N$30:$O$36,2,FALSE),"")) ->  | G28: =IF('Project Info'!$D$25=$N$22,$O$22,IF('Project Info'!$D$25=$N$25,$O$25,IF('Project Info'!$D$25=$N$26,$O$26,IF(OR('Project Info'!$D$25='Project Info'!$Y$14,'Project Info'!$D$25='Project Info'!$Y$15),IF('Project Info'!$D$26=$N$23,$O$23,$O$24))))) -> FALSE | I28: =VLOOKUP('Project Info'!$D$24,'BldgShell2-Insulation'!$N$3:$O$7,2,FALSE) ->  | J28: =IF('Project Info'!$D$24="Electric",IFERROR((((1/C28-1/D28)*F28*24*E28)/(1000000*G28)*293.1),0)) -> FALSE | K28: =IF('Project Info'!$D$24='Project Info'!$Y$10,0,IFERROR((((1/C28-1/D28)*F28*24*E28)/(1000000*G28)),0)) -> 0 | L28: =IFERROR(J28*VLOOKUP(I28,N6:O8,2,FALSE),0) -> 0 | N28: Table 7: HDD60 | T28: 1 | U28: 1 | V28: 1 | W28: 9 | X28: 2.125 | Y28: 24.98 | Z28: 1.459166667 | AA28: 27 | AB28: 1.375 | AC28: 23 | AD28: 1.541666667 | AE28: 32.9 | AF28: 1.129166667
B29: 4 | C29: =IF('Building Shell Inputs'!H27="","",'Building Shell Inputs'!H27+VLOOKUP('Building Shell Inputs'!G27,'BldgShell2-Insulation'!$N$40:$O$43,2,FALSE)) ->  | D29: =IF('Building Shell Inputs'!I27="","",'Building Shell Inputs'!I27+C29) ->  | E29: =IF('Building Shell Inputs'!J27="","",'Building Shell Inputs'!J27) ->  | F29: =IF(OR(ISBLANK('Project Info'!$D$21)),"",IFERROR(VLOOKUP('Project Info'!$D$21,$N$30:$O$36,2,FALSE),"")) ->  | G29: =IF('Project Info'!$D$25=$N$22,$O$22,IF('Project Info'!$D$25=$N$25,$O$25,IF('Project Info'!$D$25=$N$26,$O$26,IF(OR('Project Info'!$D$25='Project Info'!$Y$14,'Project Info'!$D$25='Project Info'!$Y$15),IF('Project Info'!$D$26=$N$23,$O$23,$O$24))))) -> FALSE | I29: =VLOOKUP('Project Info'!$D$24,'BldgShell2-Insulation'!$N$3:$O$7,2,FALSE) ->  | J29: =IF('Project Info'!$D$24="Electric",IFERROR((((1/C29-1/D29)*F29*24*E29)/(1000000*G29)*293.1),0)) -> FALSE | K29: =IF('Project Info'!$D$24='Project Info'!$Y$10,0,IFERROR((((1/C29-1/D29)*F29*24*E29)/(1000000*G29)),0)) -> 0 | L29: =IFERROR(J29*VLOOKUP(I29,N7:O9,2,FALSE),0) -> 0 | N29: City | O29: HDD60 | T29: 1 | U29: 2 | V29: 01:00:00 | W29: 10 | X29: 2.083333333 | Y29: 24.08 | Z29: 1.496666667 | AA29: 27 | AB29: 1.375 | AC29: 25.307 | AD29: 1.445541667 | AE29: 32.9 | AF29: 1.129166667
B30: 5 | C30: =IF('Building Shell Inputs'!H28="","",'Building Shell Inputs'!H28+VLOOKUP('Building Shell Inputs'!G28,'BldgShell2-Insulation'!$N$40:$O$43,2,FALSE)) ->  | D30: =IF('Building Shell Inputs'!I28="","",'Building Shell Inputs'!I28+C30) ->  | E30: =IF('Building Shell Inputs'!J28="","",'Building Shell Inputs'!J28) ->  | F30: =IF(OR(ISBLANK('Project Info'!$D$21)),"",IFERROR(VLOOKUP('Project Info'!$D$21,$N$30:$O$36,2,FALSE),"")) ->  | G30: =IF('Project Info'!$D$25=$N$22,$O$22,IF('Project Info'!$D$25=$N$25,$O$25,IF('Project Info'!$D$25=$N$26,$O$26,IF(OR('Project Info'!$D$25='Project Info'!$Y$14,'Project Info'!$D$25='Project Info'!$Y$15),IF('Project Info'!$D$26=$N$23,$O$23,$O$24))))) -> FALSE | I30: =VLOOKUP('Project Info'!$D$24,'BldgShell2-Insulation'!$N$3:$O$7,2,FALSE) ->  | J30: =IF('Project Info'!$D$24="Electric",IFERROR((((1/C30-1/D30)*F30*24*E30)/(1000000*G30)*293.1),0)) -> FALSE | K30: =IF('Project Info'!$D$24='Project Info'!$Y$10,0,IFERROR((((1/C30-1/D30)*F30*24*E30)/(1000000*G30)),0)) -> 0 | L30: =IFERROR(J30*VLOOKUP(I30,N8:O10,2,FALSE),0) -> 0 | N30: Berlin | O30: =SUM(X5:X8764) -> 7420.033595 | T30: 1 | U30: 2 | V30: 02:00:00 | W30: 10 | X30: 2.083333333 | Y30: 24.08 | Z30: 1.496666667 | AA30: 28 | AB30: 1.333333333 | AC30: 25 | AD30: 1.458333333 | AE30: 32 | AF30: 1.166666667
B31: 6 | C31: =IF('Building Shell Inputs'!H29="","",'Building Shell Inputs'!H29+VLOOKUP('Building Shell Inputs'!G29,'BldgShell2-Insulation'!$N$40:$O$43,2,FALSE)) ->  | D31: =IF('Building Shell Inputs'!I29="","",'Building Shell Inputs'!I29+C31) ->  | E31: =IF('Building Shell Inputs'!J29="","",'Building Shell Inputs'!J29) ->  | F31: =IF(OR(ISBLANK('Project Info'!$D$21)),"",IFERROR(VLOOKUP('Project Info'!$D$21,$N$30:$O$36,2,FALSE),"")) ->  | G31: =IF('Project Info'!$D$25=$N$22,$O$22,IF('Project Info'!$D$25=$N$25,$O$25,IF('Project Info'!$D$25=$N$26,$O$26,IF(OR('Project Info'!$D$25='Project Info'!$Y$14,'Project Info'!$D$25='Project Info'!$Y$15),IF('Project Info'!$D$26=$N$23,$O$23,$O$24))))) -> FALSE | I31: =VLOOKUP('Project Info'!$D$24,'BldgShell2-Insulation'!$N$3:$O$7,2,FALSE) ->  | J31: =IF('Project Info'!$D$24="Electric",IFERROR((((1/C31-1/D31)*F31*24*E31)/(1000000*G31)*293.1),0)) -> FALSE | K31: =IF('Project Info'!$D$24='Project Info'!$Y$10,0,IFERROR((((1/C31-1/D31)*F31*24*E31)/(1000000*G31)),0)) -> 0 | L31: =IFERROR(J31*VLOOKUP(I31,N8:O11,2,FALSE),0) -> 0 | N31: Concord | O31: =SUM(Z5:Z8764) -> 6153.5525 | T31: 1 | U31: 2 | V31: 03:00:00 | W31: 10 | X31: 2.083333333 | Y31: 23 | Z31: 1.541666667 | AA31: 30 | AB31: 1.25 | AC31: 25 | AD31: 1.458333333 | AE31: 32 | AF31: 1.166666667
B32: 7 | C32: =IF('Building Shell Inputs'!H30="","",'Building Shell Inputs'!H30+VLOOKUP('Building Shell Inputs'!G30,'BldgShell2-Insulation'!$N$40:$O$43,2,FALSE)) ->  | D32: =IF('Building Shell Inputs'!I30="","",'Building Shell Inputs'!I30+C32) ->  | E32: =IF('Building Shell Inputs'!J30="","",'Building Shell Inputs'!J30) ->  | F32: =IF(OR(ISBLANK('Project Info'!$D$21)),"",IFERROR(VLOOKUP('Project Info'!$D$21,$N$30:$O$36,2,FALSE),"")) ->  | G32: =IF('Project Info'!$D$25=$N$22,$O$22,IF('Project Info'!$D$25=$N$25,$O$25,IF('Project Info'!$D$25=$N$26,$O$26,IF(OR('Project Info'!$D$25='Project Info'!$Y$14,'Project Info'!$D$25='Project Info'!$Y$15),IF('Project Info'!$D$26=$N$23,$O$23,$O$24))))) -> FALSE | I32: =VLOOKUP('Project Info'!$D$24,'BldgShell2-Insulation'!$N$3:$O$7,2,FALSE) ->  | J32: =IF('Project Info'!$D$24="Electric",IFERROR((((1/C32-1/D32)*F32*24*E32)/(1000000*G32)*293.1),0)) -> FALSE | K32: =IF('Project Info'!$D$24='Project Info'!$Y$10,0,IFERROR((((1/C32-1/D32)*F32*24*E32)/(1000000*G32)),0)) -> 0 | L32: =IFERROR(J32*VLOOKUP(I32,N9:O12,2,FALSE),0) -> 0 | N32: Keene | O32: =SUM(AB5:AB8764) -> 5991.452912 | T32: 1 | U32: 2 | V32: 04:00:00 | W32: 10 | X32: 2.083333333 | Y32: 24.08 | Z32: 1.496666667 | AA32: 28 | AB32: 1.333333333 | AC32: 25 | AD32: 1.458333333 | AE32: 32.9 | AF32: 1.129166667
B33: 8 | C33: =IF('Building Shell Inputs'!H31="","",'Building Shell Inputs'!H31+VLOOKUP('Building Shell Inputs'!G31,'BldgShell2-Insulation'!$N$40:$O$43,2,FALSE)) ->  | D33: =IF('Building Shell Inputs'!I31="","",'Building Shell Inputs'!I31+C33) ->  | E33: =IF('Building Shell Inputs'!J31="","",'Building Shell Inputs'!J31) ->  | F33: =IF(OR(ISBLANK('Project Info'!$D$21)),"",IFERROR(VLOOKUP('Project Info'!$D$21,$N$30:$O$36,2,FALSE),"")) ->  | G33: =IF('Project Info'!$D$25=$N$22,$O$22,IF('Project Info'!$D$25=$N$25,$O$25,IF('Project Info'!$D$25=$N$26,$O$26,IF(OR('Project Info'!$D$25='Project Info'!$Y$14,'Project Info'!$D$25='Project Info'!$Y$15),IF('Project Info'!$D$26=$N$23,$O$23,$O$24))))) -> FALSE | I33: =VLOOKUP('Project Info'!$D$24,'BldgShell2-Insulation'!$N$3:$O$7,2,FALSE) ->  | J33: =IF('Project Info'!$D$24="Electric",IFERROR((((1/C33-1/D33)*F33*24*E33)/(1000000*G33)*293.1),0)) -> FALSE | K33: =IF('Project Info'!$D$24='Project Info'!$Y$10,0,IFERROR((((1/C33-1/D33)*F33*24*E33)/(1000000*G33)),0)) -> 0 | L33: =IFERROR(J33*VLOOKUP(I33,N10:O13,2,FALSE),0) -> 0 | N33: Lebanon | O33: =SUM(AD5:AD8764) -> 6183.309961 | T33: 1 | U33: 2 | V33: 05:00:00 | W33: 10 | X33: 2.083333333 | Y33: 19.04 | Z33: 1.706666667 | AA33: 30 | AB33: 1.25 | AC33: 25 | AD33: 1.458333333 | AE33: 33.98 | AF33: 1.084166667
B34: 9 | C34: =IF('Building Shell Inputs'!H32="","",'Building Shell Inputs'!H32+VLOOKUP('Building Shell Inputs'!G32,'BldgShell2-Insulation'!$N$40:$O$43,2,FALSE)) ->  | D34: =IF('Building Shell Inputs'!I32="","",'Building Shell Inputs'!I32+C34) ->  | E34: =IF('Building Shell Inputs'!J32="","",'Building Shell Inputs'!J32) ->  | F34: =IF(OR(ISBLANK('Project Info'!$D$21)),"",IFERROR(VLOOKUP('Project Info'!$D$21,$N$30:$O$36,2,FALSE),"")) ->  | G34: =IF('Project Info'!$D$25=$N$22,$O$22,IF('Project Info'!$D$25=$N$25,$O$25,IF('Project Info'!$D$25=$N$26,$O$26,IF(OR('Project Info'!$D$25='Project Info'!$Y$14,'Project Info'!$D$25='Project Info'!$Y$15),IF('Project Info'!$D$26=$N$23,$O$23,$O$24))))) -> FALSE | I34: =VLOOKUP('Project Info'!$D$24,'BldgShell2-Insulation'!$N$3:$O$7,2,FALSE) ->  | J34: =IF('Project Info'!$D$24="Electric",IFERROR((((1/C34-1/D34)*F34*24*E34)/(1000000*G34)*293.1),0)) -> FALSE | K34: =IF('Project Info'!$D$24='Project Info'!$Y$10,0,IFERROR((((1/C34-1/D34)*F34*24*E34)/(1000000*G34)),0)) -> 0 | L34: =IFERROR(J34*VLOOKUP(I34,N11:O14,2,FALSE),0) -> 0 | N34: Portsmouth | O34: =SUM(AF5:AF8764) -> 5516.5875 | T34: 1 | U34: 2 | V34: 06:00:00 | W34: 10 | X34: 2.083333333 | Y34: 19.94 | Z34: 1.669166667 | AA34: 30 | AB34: 1.25 | AC34: 23 | AD34: 1.541666667 | AE34: 33.98 | AF34: 1.084166667
B35: 10 | C35: =IF('Building Shell Inputs'!H33="","",'Building Shell Inputs'!H33+VLOOKUP('Building Shell Inputs'!G33,'BldgShell2-Insulation'!$N$40:$O$43,2,FALSE)) ->  | D35: =IF('Building Shell Inputs'!I33="","",'Building Shell Inputs'!I33+C35) ->  | E35: =IF('Building Shell Inputs'!J33="","",'Building Shell Inputs'!J33) ->  | F35: =IF(OR(ISBLANK('Project Info'!$D$21)),"",IFERROR(VLOOKUP('Project Info'!$D$21,$N$30:$O$36,2,FALSE),"")) ->  | G35: =IF('Project Info'!$D$25=$N$22,$O$22,IF('Project Info'!$D$25=$N$25,$O$25,IF('Project Info'!$D$25=$N$26,$O$26,IF(OR('Project Info'!$D$25='Project Info'!$Y$14,'Project Info'!$D$25='Project Info'!$Y$15),IF('Project Info'!$D$26=$N$23,$O$23,$O$24))))) -> FALSE | I35: =VLOOKUP('Project Info'!$D$24,'BldgShell2-Insulation'!$N$3:$O$7,2,FALSE) ->  | J35: =IF('Project Info'!$D$24="Electric",IFERROR((((1/C35-1/D35)*F35*24*E35)/(1000000*G35)*293.1),0)) -> FALSE | K35: =IF('Project Info'!$D$24='Project Info'!$Y$10,0,IFERROR((((1/C35-1/D35)*F35*24*E35)/(1000000*G35)),0)) -> 0 | L35: =IFERROR(J35*VLOOKUP(I35,N6:O8,2,FALSE),0) -> 0 | N35: Manchester | O35: =+O34 -> 5516.5875 | P35: same zone as Portsmouth | T35: 1 | U35: 2 | V35: 07:00:00 | W35: 10 | X35: 2.083333333 | Y35: 24.98 | Z35: 1.459166667 | AA35: 30 | AB35: 1.25 | AC35: 23 | AD35: 1.541666667 | AE35: 33.98 | AF35: 1.084166667
I36: Totals | J36: =SUM(J26:J35) -> 0 | K36: =SUM(K26:K35) -> 0 | L36: =SUM(L26:L35) -> 0 | N36: Laconia | O36: =+O32 -> 5991.452912 | P36: same zone as Keene | T36: 1 | U36: 2 | V36: 08:00:00 | W36: 10 | X36: 2.083333333 | Y36: 24.08 | Z36: 1.496666667 | AA36: 30 | AB36: 1.25 | AC36: 25 | AD36: 1.458333333 | AE36: 33.98 | AF36: 1.084166667
T37: 1 | U37: 2 | V37: 09:00:00 | W37: 12 | X37: 2 | Y37: 28.94 | Z37: 1.294166667 | AA37: 30 | AB37: 1.25 | AC37: 27 | AD37: 1.375 | AE37: 32.9 | AF37: 1.129166667
N38: Table 8: R values | T38: 1 | U38: 2 | V38: 10:00:00 | W38: 12 | X38: 2 | Y38: 33.08 | Z38: 1.121666667 | AA38: 31 | AB38: 1.208333333 | AC38: 28 | AD38: 1.333333333 | AE38: 32.9 | AF38: 1.129166667
N39: Location | O39: R value | T39: 1 | U39: 2 | V39: 11:00:00 | W39: 14 | X39: 1.916666667 | Y39: 37.94 | Z39: 0.9191666667 | AA39: 32 | AB39: 1.166666667 | AC39: 30 | AD39: 1.25 | AE39: 33.98 | AF39: 1.084166667
N40: Ceiling | O40: 3.36 | T40: 1 | U40: 2 | V40: 12:00:00 | W40: 14 | X40: 1.916666667 | Y40: 42.08 | Z40: 0.7466666667 | AA40: 34 | AB40: 1.083333333 | AC40: 32 | AD40: 1.166666667 | AE40: 32.9 | AF40: 1.129166667
N41: Floor | O41: 6.16 | T41: 1 | U41: 2 | V41: 13:00:00 | W41: 14 | X41: 1.916666667 | Y41: 44.96 | Z41: 0.6266666667 | AA41: 34 | AB41: 1.083333333 | AC41: 36 | AD41: 1 | AE41: 32.9 | AF41: 1.129166667
N42: Wall | O42: 6.65 | T42: 1 | U42: 2 | V42: 14:00:00 | W42: 14 | X42: 1.916666667 | Y42: 44.96 | Z42: 0.6266666667 | AA42: 37 | AB42: 0.9583333333 | AC42: 36 | AD42: 1 | AE42: 35.96 | AF42: 1.001666667
N43: n/a - no insulation | O43: 0 | T43: 1 | U43: 2 | V43: 15:00:00 | W43: 14 | X43: 1.916666667 | Y43: 44.96 | Z43: 0.6266666667 | AA43: 39 | AB43: 0.875 | AC43: 37 | AD43: 0.9583333333 | AE43: 35.96 | AF43: 1.001666667
T44: 1 | U44: 2 | V44: 16:00:00 | W44: 14 | X44: 1.916666667 | Y44: 41 | Z44: 0.7916666667 | AA44: 39 | AB44: 0.875 | AC44: 36 | AD44: 1 | AE44: 32.9 | AF44: 1.129166667
J45: =IF('Project Info'!$D$25="Gas-Fired",$O$23,IF('Project Info'!$D$25="Electric Resistance",IF('Project Info'!$D$25="Heat Pump",$O$26,IF('Project Info'!$D$26="Condensing",$O$24,$O$25)))) -> FALSE | T45: 1 | U45: 2 | V45: 17:00:00 | W45: 12 | X45: 2 | Y45: 37.94 | Z45: 0.9191666667 | AA45: 37 | AB45: 0.9583333333 | AC45: 36 | AD45: 1 | AE45: 32.9 | AF45: 1.129166667
T46: 1 | U46: 2 | V46: 18:00:00 | W46: 12 | X46: 2 | Y46: 37.04 | Z46: 0.9566666667 | AA46: 36 | AB46: 1 | AC46: 39 | AD46: 0.875 | AE46: 32.9 | AF46: 1.129166667
T47: 1 | U47: 2 | V47: 19:00:00 | W47: 10 | X47: 2.083333333 | Y47: 33.98 | Z47: 1.084166667 | AA47: 37 | AB47: 0.9583333333 | AC47: 39 | AD47: 0.875 | AE47: 30.92 | AF47: 1.211666667
T48: 1 | U48: 2 | V48: 20:00:00 | W48: 11 | X48: 2.041666667 | Y48: 33.98 | Z48: 1.084166667 | AA48: 36 | AB48: 1 | AC48: 36 | AD48: 1 | AE48: 29.84 | AF48: 1.256666667
T49: 1 | U49: 2 | V49: 21:00:00 | W49: 12 | X49: 2 | Y49: 32 | Z49: 1.166666667 | AA49: 41 | AB49: 0.7916666667 | AC49: 43 | AD49: 0.7083333333 | AE49: 28.94 | AF49: 1.294166667
T50: 1 | U50: 2 | V50: 22:00:00 | W50: 13 | X50: 1.958333333 | Y50: 30.02 | Z50: 1.249166667 | AA50: 39 | AB50: 0.875 | AC50: 46 | AD50: 0.5833333333 | AE50: 26.96 | AF50: 1.376666667
T51: 1 | U51: 2 | V51: 23:00:00 | W51: 14 | X51: 1.916666667 | Y51: 28.04 | Z51: 1.331666667 | AA51: 39 | AB51: 0.875 | AC51: 48 | AD51: 0.5 | AE51: 26.96 | AF51: 1.376666667
T52: 1 | U52: 2 | V52: 1 | W52: 14 | X52: 1.916666667 | Y52: 28.04 | Z52: 1.331666667 | AA52: 37.1338 | AB52: 0.9527583333 | AC52: 46 | AD52: 0.5833333333 | AE52: 26.96 | AF52: 1.376666667
T53: 1 | U53: 3 | V53: 01:00:00 | W53: 16 | X53: 1.833333333 | Y53: 26.96 | Z53: 1.376666667 | AA53: 39 | AB53: 0.875 | AC53: 48 | AD53: 0.5 | AE53: 25.88 | AF53: 1.421666667
T54: 1 | U54: 3 | V54: 02:00:00 | W54: 16 | X54: 1.833333333 | Y54: 26.96 | Z54: 1.376666667 | AA54: 41 | AB54: 0.7916666667 | AC54: 48 | AD54: 0.5 | AE54: 26.06 | AF54: 1.414166667
T55: 1 | U55: 3 | V55: 03:00:00 | W55: 16 | X55: 1.833333333 | Y55: 28.94 | Z55: 1.294166667 | AA55: 43 | AB55: 0.7083333333 | AC55: 46 | AD55: 0.5833333333 | AE55: 24.98 | AF55: 1.459166667
T56: 1 | U56: 3 | V56: 04:00:00 | W56: 16 | X56: 1.833333333 | Y56: 28.94 | Z56: 1.294166667 | AA56: 45 | AB56: 0.625 | AC56: 50 | AD56: 0.4166666667 | AE56: 24.98 | AF56: 1.459166667
T57: 1 | U57: 3 | V57: 05:00:00 | W57: 16 | X57: 1.833333333 | Y57: 30.02 | Z57: 1.249166667 | AA57: 43 | AB57: 0.7083333333 | AC57: 48 | AD57: 0.5 | AE57: 24.98 | AF57: 1.459166667
T58: 1 | U58: 3 | V58: 06:00:00 | W58: 16 | X58: 1.833333333 | Y58: 30.92 | Z58: 1.211666667 | AA58: 43 | AB58: 0.7083333333 | AC58: 50 | AD58: 0.4166666667 | AE58: 23.9 | AF58: 1.504166667
T59: 1 | U59: 3 | V59: 07:00:00 | W59: 9 | X59: 2.125 | Y59: 30.02 | Z59: 1.249166667 | AA59: 45 | AB59: 0.625 | AC59: 50 | AD59: 0.4166666667 | AE59: 23 | AF59: 1.541666667
T60: 1 | U60: 3 | V60: 08:00:00 | W60: 9 | X60: 2.125 | Y60: 28.94 | Z60: 1.294166667 | AA60: 46 | AB60: 0.5833333333 | AC60: 54 | AD60: 0.25 | AE60: 23.9 | AF60: 1.504166667
T61: 1 | U61: 3 | V61: 09:00:00 | W61: 16 | X61: 1.833333333 | Y61: 28.04 | Z61: 1.331666667 | AA61: 47 | AB61: 0.5416666667 | AC61: 48 | AD61: 0.5 | AE61: 24.98 | AF61: 1.459166667
T62: 1 | U62: 3 | V62: 10:00:00 | W62: 18 | X62: 1.75 | Y62: 28.94 | Z62: 1.294166667 | AA62: 48 | AB62: 0.5 | AC62: 55 | AD62: 0.2083333333 | AE62: 28.04 | AF62: 1.331666667
T63: 1 | U63: 3 | V63: 11:00:00 | W63: 19 | X63: 1.708333333 | Y63: 28.94 | Z63: 1.294166667 | AA63: 50 | AB63: 0.4166666667 | AC63: 54 | AD63: 0.25 | AE63: 28.94 | AF63: 1.294166667
T64: 1 | U64: 3 | V64: 12:00:00 | W64: 21 | X64: 1.625 | Y64: 30.02 | Z64: 1.249166667 | AA64: 57 | AB64: 0.125 | AC64: 50 | AD64: 0.4166666667 | AE64: 30.92 | AF64: 1.211666667
T65: 1 | U65: 3 | V65: 13:00:00 | W65: 23 | X65: 1.541666667 | Y65: 30.02 | Z65: 1.249166667 | AA65: 57 | AB65: 0.125 | AC65: 50 | AD65: 0.4166666667 | AE65: 32 | AF65: 1.166666667
T66: 1 | U66: 3 | V66: 14:00:00 | W66: 22 | X66: 1.583333333 | Y66: 32 | Z66: 1.166666667 | AA66: 59 | AB66: 0.04166666667 | AC66: 48 | AD66: 0.5 | AE66: 32.9 | AF66: 1.129166667
T67: 1 | U67: 3 | V67: 15:00:00 | W67: 21 | X67: 1.625 | Y67: 30.92 | Z67: 1.211666667 | AA67: 55 | AB67: 0.2083333333 | AC67: 46 | AD67: 0.5833333333 | AE67: 32.9 | AF67: 1.129166667
T68: 1 | U68: 3 | V68: 16:00:00 | W68: 21 | X68: 1.625 | Y68: 30.02 | Z68: 1.249166667 | AA68: 52 | AB68: 0.3333333333 | AC68: 43 | AD68: 0.7083333333 | AE68: 30.92 | AF68: 1.211666667
T69: 1 | U69: 3 | V69: 17:00:00 | W69: 16 | X69: =IF(W69<60,(60-W69)/24,0) -> 1.833333333 | Y69: 26.06 | Z69: 1.414166667 | AA69: 46 | AB69: 0.5833333333 | AC69: 39 | AD69: 0.875 | AE69: 29.84 | AF69: 1.256666667
T70: 1 | U70: 3 | V70: 18:00:00 | W70: 12 | X70: 2 | Y70: 26.06 | Z70: =IF(Y70<60,(60-Y70)/24,0) -> 1.414166667 | AA70: 45 | AB70: =IF(AA70<60,(60-AA70)/24,0) -> 0.625 | AC70: 39 | AD70: =IF(AC70<60,(60-AC70)/24,0) -> 0.875 | AE70: 29.84 | AF70: =IF(AE70<60,(60-AE70)/24,0) -> 1.256666667
T71: 1 | U71: 3 | V71: 19:00:00 | W71: 10 | X71: 2.083333333 | Y71: 24.08 | Z71: 1.496666667 | AA71: 45 | AB71: 0.625 | AC71: 37 | AD71: 0.9583333333 | AE71: 29.84 | AF71: 1.256666667
T72: 1 | U72: 3 | V72: 20:00:00 | W72: 10 | X72: 2.083333333 | Y72: 21.92 | Z72: 1.586666667 | AA72: 43 | AB72: 0.7083333333 | AC72: 36 | AD72: 1 | AE72: 29.84 | AF72: 1.256666667
T73: 1 | U73: 3 | V73: 21:00:00 | W73: 10 | X73: 2.083333333 | Y73: 19.94 | Z73: 1.669166667 | AA73: 45 | AB73: 0.625 | AC73: 34.297 | AD73: 1.070958333 | AE73: 28.94 | AF73: 1.294166667
T74: 1 | U74: 3 | V74: 22:00:00 | W74: 5 | X74: 2.291666667 | Y74: 19.94 | Z74: 1.669166667 | AA74: 43 | AB74: 0.7083333333 | AC74: 32.5084 | AD74: 1.145483333 | AE74: 28.94 | AF74: 1.294166667
T75: 1 | U75: 3 | V75: 23:00:00 | W75: 1 | X75: 2.458333333 | Y75: 17.06 | Z75: 1.789166667 | AA75: 39 | AB75: 0.875 | AC75: 34.297 | AD75: 1.070958333 | AE75: 27.86 | AF75: 1.339166667
T76: 1 | U76: 3 | V76: 1 | W76: 1 | X76: 2.458333333 | Y76: 14 | Z76: 1.916666667 | AA76: 39 | AB76: 0.875 | AC76: 36 | AD76: 1 | AE76: 27.86 | AF76: 1.339166667
T77: 1 | U77: 4 | V77: 01:00:00 | W77: 1 | X77: 2.458333333 | Y77: 12.02 | Z77: 1.999166667 | AA77: 39 | AB77: 0.875 | AC77: 35 | AD77: 1.041666667 | AE77: 27.86 | AF77: 1.339166667
T78: 1 | U78: 4 | V78: 02:00:00 | W78: 3 | X78: 2.375 | Y78: 12.92 | Z78: 1.961666667 | AA78: 39 | AB78: 0.875 | AC78: 36 | AD78: 1 | AE78: 27.86 | AF78: 1.339166667
T79: 1 | U79: 4 | V79: 03:00:00 | W79: 5 | X79: 2.291666667 | Y79: 14 | Z79: 1.916666667 | AA79: 39 | AB79: 0.875 | AC79: 36 | AD79: 1 | AE79: 27.86 | AF79: 1.339166667
T80: 1 | U80: 4 | V80: 04:00:00 | W80: 7 | X80: 2.208333333 | Y80: 12.92 | Z80: 1.961666667 | AA80: 39 | AB80: 0.875 | AC80: 34 | AD80: 1.083333333 | AE80: 26.96 | AF80: 1.376666667
T81: 1 | U81: 4 | V81: 05:00:00 | W81: 7 | X81: 2.208333333 | Y81: 10.94 | Z81: 2.044166667 | AA81: 37 | AB81: 0.9583333333 | AC81: 36 | AD81: 1 | AE81: 26.96 | AF81: 1.376666667
T82: 1 | U82: 4 | V82: 06:00:00 | W82: 7 | X82: 2.208333333 | Y82: 8.96 | Z82: 2.126666667 | AA82: 37.1338 | AB82: 0.9527583333 | AC82: 36 | AD82: 1 | AE82: 25.88 | AF82: 1.421666667
T83: 1 | U83: 4 | V83: 07:00:00 | W83: 7 | X83: 2.208333333 | Y83: 8.06 | Z83: 2.164166667 | AA83: 37 | AB83: 0.9583333333 | AC83: 34 | AD83: 1.083333333 | AE83: 24.98 | AF83: 1.459166667
T84: 1 | U84: 4 | V84: 08:00:00 | W84: 9 | X84: 2.125 | Y84: 8.96 | Z84: 2.126666667 | AA84: 36 | AB84: 1 | AC84: 34 | AD84: 1.083333333 | AE84: 24.98 | AF84: 1.459166667
T85: 1 | U85: 4 | V85: 09:00:00 | W85: 9 | X85: 2.125 | Y85: 19.04 | Z85: 1.706666667 | AA85: 36 | AB85: 1 | AC85: 34.2135 | AD85: 1.0744375 | AE85: 26.96 | AF85: 1.376666667
T86: 1 | U86: 4 | V86: 10:00:00 | W86: 10 | X86: 2.083333333 | Y86: 26.06 | Z86: 1.414166667 | AA86: 36 | AB86: 1 | AC86: 34.2135 | AD86: 1.0744375 | AE86: 28.94 | AF86: 1.294166667
T87: 1 | U87: 4 | V87: 11:00:00 | W87: 16 | X87: 1.833333333 | Y87: 26.96 | Z87: 1.376666667 | AA87: 36 | AB87: 1 | AC87: 34.2135 | AD87: 1.0744375 | AE87: 29.84 | AF87: 1.256666667
T88: 1 | U88: 4 | V88: 12:00:00 | W88: 18 | X88: 1.75 | Y88: 28.04 | Z88: 1.331666667 | AA88: 37 | AB88: 0.9583333333 | AC88: 34.1298 | AD88: 1.077925 | AE88: 29.84 | AF88: 1.256666667
T89: 1 | U89: 4 | V89: 13:00:00 | W89: 21 | X89: 1.625 | Y89: 30.02 | Z89: 1.249166667 | AA89: 37.1338 | AB89: 0.9527583333 | AC89: 34.1298 | AD89: 1.077925 | AE89: 28.94 | AF89: 1.294166667
T90: 1 | U90: 4 | V90: 14:00:00 | W90: 21 | X90: 1.625 | Y90: 30.92 | Z90: 1.211666667 | AA90: 37.1338 | AB90: 0.9527583333 | AC90: 36.3498 | AD90: 0.985425 | AE90: 28.94 | AF90: 1.294166667
T91: 1 | U91: 4 | V91: 15:00:00 | W91: 21 | X91: 1.625 | Y91: 32 | Z91: 1.166666667 | AA91: 37.1338 | AB91: 0.9527583333 | AC91: 36.3498 | AD91: 0.985425 | AE91: 28.94 | AF91: 1.294166667
T92: 1 | U92: 4 | V92: 16:00:00 | W92: 21 | X92: 1.625 | Y92: 30.02 | Z92: 1.249166667 | AA92: 37.1338 | AB92: 0.9527583333 | AC92: 43 | AD92: 0.7083333333 | AE92: 26.96 | AF92: 1.376666667
T93: 1 | U93: 4 | V93: 17:00:00 | W93: 21 | X93: 1.625 | Y93: 26.96 | Z93: 1.376666667 | AA93: 39 | AB93: 0.875 | AC93: 43.001 | AD93: 0.7082916667 | AE93: 24.98 | AF93: 1.459166667
T94: 1 | U94: 4 | V94: 18:00:00 | W94: 19 | X94: 1.708333333 | Y94: 26.06 | Z94: 1.414166667 | AA94: 55 | AB94: 0.2083333333 | AC94: 45.0529 | AD94: 0.6227958333 | AE94: 23 | AF94: 1.541666667
T95: 1 | U95: 4 | V95: 19:00:00 | W95: 19 | X95: 1.708333333 | Y95: 26.06 | Z95: 1.414166667 | AA95: 52 | AB95: 0.3333333333 | AC95: 45.1423 | AD95: 0.6190708333 | AE95: 21.92 | AF95: 1.586666667
T96: 1 | U96: 4 | V96: 20:00:00 | W96: 17 | X96: 1.791666667 | Y96: 24.08 | Z96: 1.496666667 | AA96: 50 | AB96: 0.4166666667 | AC96: 45.1423 | AD96: 0.6190708333 | AE96: 20.84 | AF96: 1.631666667
T97: 1 | U97: 4 | V97: 21:00:00 | W97: 18 | X97: 1.75 | Y97: 23 | Z97: 1.541666667 | AA97: 46 | AB97: 0.5833333333 | AC97: 45 | AD97: 0.625 | AE97: 18.86 | AF97: 1.714166667
T98: 1 | U98: 4 | V98: 22:00:00 | W98: 14 | X98: 1.916666667 | Y98: 19.94 | Z98: 1.669166667 | AA98: 46 | AB98: 0.5833333333 | AC98: 45 | AD98: 0.625 | AE98: 17.96 | AF98: 1.751666667
T99: 1 | U99: 4 | V99: 23:00:00 | W99: 14 | X99: 1.916666667 | Y99: 19.94 | Z99: 1.669166667 | AA99: 43 | AB99: 0.7083333333 | AC99: 43 | AD99: 0.7083333333 | AE99: 16.88 | AF99: 1.796666667
T100: 1 | U100: 4 | V100: 1 | W100: 11 | X100: 2.041666667 | Y100: 21.92 | Z100: 1.586666667 | AA100: 43 | AB100: 0.7083333333 | AC100: 39 | AD100: 0.875 | AE100: 15.98 | AF100: 1.834166667
T101: 1 | U101: 5 | V101: 01:00:00 | W101: 8 | X101: 2.166666667 | Y101: 21.92 | Z101: 1.586666667 | AA101: 39 | AB101: 0.875 | AC101: 39 | AD101: 0.875 | AE101: 14.9 | AF101: 1.879166667
T102: 1 | U102: 5 | V102: 02:00:00 | W102: 5 | X102: 2.291666667 | Y102: 19.94 | Z102: 1.669166667 | AA102: 39 | AB102: 0.875 | AC102: 37 | AD102: 0.9583333333 | AE102: 14 | AF102: 1.916666667
T103: 1 | U103: 5 | V103: 03:00:00 | W103: 2 | X103: 2.416666667 | Y103: 12.02 | Z103: 1.999166667 | AA103: 37 | AB103: 0.9583333333 | AC103: 36 | AD103: 1 | AE103: 14 | AF103: 1.916666667
T104: 1 | U104: 5 | V104: 04:00:00 | W104: 0 | X104: 2.5 | Y104: 10.04 | Z104: 2.081666667 | AA104: 37 | AB104: 0.9583333333 | AC104: 32 | AD104: 1.166666667 | AE104: 12.92 | AF104: 1.961666667
T105: 1 | U105: 5 | V105: 05:00:00 | W105: -6 | X105: 2.75 | Y105: 8.96 | Z105: 2.126666667 | AA105: 36 | AB105: 1 | AC105: 28 | AD105: 1.333333333 | AE105: 12.92 | AF105: 1.961666667
T106: 1 | U106: 5 | V106: 06:00:00 | W106: -8 | X106: 2.833333333 | Y106: 8.06 | Z106: 2.164166667 | AA106: 34 | AB106: 1.083333333 | AC106: 27 | AD106: 1.375 | AE106: 12.92 | AF106: 1.961666667
T107: 1 | U107: 5 | V107: 07:00:00 | W107: -6 | X107: 2.75 | Y107: 6.98 | Z107: 2.209166667 | AA107: 30 | AB107: 1.25 | AC107: 23 | AD107: 1.541666667 | AE107: 11.84 | AF107: 2.006666667
T108: 1 | U108: 5 | V108: 08:00:00 | W108: -6 | X108: 2.75 | Y108: 10.04 | Z108: 2.081666667 | AA108: 28 | AB108: 1.333333333 | AC108: 21 | AD108: 1.625 | AE108: 11.84 | AF108: 2.006666667
T109: 1 | U109: 5 | V109: 09:00:00 | W109: -2 | X109: 2.583333333 | Y109: 17.96 | Z109: 1.751666667 | AA109: 27 | AB109: 1.375 | AC109: 21 | AD109: 1.625 | AE109: 12.92 | AF109: 1.961666667
T110: 1 | U110: 5 | V110: 10:00:00 | W110: 3 | X110: 2.375 | Y110: 26.96 | Z110: 1.376666667 | AA110: 28 | AB110: 1.333333333 | AC110: 21 | AD110: 1.625 | AE110: 14 | AF110: 1.916666667
T111: 1 | U111: 5 | V111: 11:00:00 | W111: 10 | X111: 2.083333333 | Y111: 30.02 | Z111: 1.249166667 | AA111: 28 | AB111: 1.333333333 | AC111: 23 | AD111: 1.541666667 | AE111: 15.98 | AF111: 1.834166667
T112: 1 | U112: 5 | V112: 12:00:00 | W112: 18 | X112: 1.75 | Y112: 32 | Z112: 1.166666667 | AA112: 28 | AB112: 1.333333333 | AC112: 25 | AD112: 1.458333333 | AE112: 19.94 | AF112: 1.669166667
T113: 1 | U113: 5 | V113: 13:00:00 | W113: 19 | X113: 1.708333333 | Y113: 32 | Z113: 1.166666667 | AA113: 30 | AB113: 1.25 | AC113: 27 | AD113: 1.375 | AE113: 21.92 | AF113: 1.586666667
T114: 1 | U114: 5 | V114: 14:00:00 | W114: 21 | X114: 1.625 | Y114: 33.98 | Z114: 1.084166667 | AA114: 30 | AB114: 1.25 | AC114: 27 | AD114: 1.375 | AE114: 23.9 | AF114: 1.504166667
T115: 1 | U115: 5 | V115: 15:00:00 | W115: 21 | X115: 1.625 | Y115: 33.08 | Z115: 1.121666667 | AA115: 30 | AB115: 1.25 | AC115: 25 | AD115: 1.458333333 | AE115: 24.08 | AF115: 1.496666667
T116: 1 | U116: 5 | V116: 16:00:00 | W116: 19 | X116: 1.708333333 | Y116: 32 | Z116: 1.166666667 | AA116: 28 | AB116: 1.333333333 | AC116: 25 | AD116: 1.458333333 | AE116: 23 | AF116: 1.541666667
T117: 1 | U117: 5 | V117: 17:00:00 | W117: 19 | X117: 1.708333333 | Y117: 30.92 | Z117: 1.211666667 | AA117: 28 | AB117: 1.333333333 | AC117: 21 | AD117: 1.625 | AE117: 21.92 | AF117: 1.586666667
T118: 1 | U118: 5 | V118: 18:00:00 | W118: 19 | X118: 1.708333333 | Y118: 30.92 | Z118: 1.211666667 | AA118: 25 | AB118: 1.458333333 | AC118: 19 | AD118: 1.708333333 | AE118: 21.92 | AF118: 1.586666667
T119: 1 | U119: 5 | V119: 19:00:00 | W119: 19 | X119: 1.708333333 | Y119: 30.92 | Z119: 1.211666667 | AA119: 23 | AB119: 1.541666667 | AC119: 17 | AD119: 1.791666667 | AE119: 20.84 | AF119: 1.631666667
T120: 1 | U120: 5 | V120: 20:00:00 | W120: 19 | X120: 1.708333333 | Y120: 32 | Z120: 1.166666667 | AA120: 21 | AB120: 1.625 | AC120: 16 | AD120: 1.833333333 | AE120: 20.84 | AF120: 1.631666667
T121: 1 | U121: 5 | V121: 21:00:00 | W121: 20 | X121: 1.666666667 | Y121: 32 | Z121: 1.166666667 | AA121: 21 | AB121: 1.625 | AC121: 16 | AD121: 1.833333333 | AE121: 20.84 | AF121: 1.631666667
T122: 1 | U122: 5 | V122: 22:00:00 | W122: 19 | X122: 1.708333333 | Y122: 32 | Z122: 1.166666667 | AA122: 19 | AB122: 1.708333333 | AC122: 12 | AD122: 2 | AE122: 20.84 | AF122: 1.631666667
T123: 1 | U123: 5 | V123: 23:00:00 | W123: 19 | X123: 1.708333333 | Y123: 32 | Z123: 1.166666667 | AA123: 18 | AB123: 1.75 | AC123: 10 | AD123: 2.083333333 | AE123: 19.94 | AF123: 1.669166667
T124: 1 | U124: 5 | V124: 1 | W124: 19 | X124: 1.708333333 | Y124: 30.92 | Z124: 1.211666667 | AA124: 16 | AB124: 1.833333333 | AC124: 10 | AD124: 2.083333333 | AE124: 19.94 | AF124: 1.669166667
T125: 1 | U125: 6 | V125: 01:00:00 | W125: 18 | X125: 1.75 | Y125: 32 | Z125: 1.166666667 | AA125: 16 | AB125: 1.833333333 | AC125: 10 | AD125: 2.083333333 | AE125: 19.94 | AF125: 1.669166667
T126: 1 | U126: 6 | V126: 02:00:00 | W126: 18 | X126: 1.75 | Y126: 30.92 | Z126: 1.211666667 | AA126: 16 | AB126: 1.833333333 | AC126: 10 | AD126: 2.083333333 | AE126: 19.94 | AF126: 1.669166667
T127: 1 | U127: 6 | V127: 03:00:00 | W127: 19 | X127: 1.708333333 | Y127: 30.92 | Z127: 1.211666667 | AA127: 12 | AB127: 2 | AC127: 10 | AD127: 2.083333333 | AE127: 19.94 | AF127: 1.669166667
T128: 1 | U128: 6 | V128: 04:00:00 | W128: 19 | X128: 1.708333333 | Y128: 30.92 | Z128: 1.211666667 | AA128: 12 | AB128: 2 | AC128: 12 | AD128: 2 | AE128: 18.86 | AF128: 1.714166667
T129: 1 | U129: 6 | V129: 05:00:00 | W129: 19 | X129: 1.708333333 | Y129: 30.92 | Z129: 1.211666667 | AA129: 12 | AB129: 2 | AC129: 10 | AD129: 2.083333333 | AE129: 18.86 | AF129: 1.714166667
T130: 1 | U130: 6 | V130: 06:00:00 | W130: 18 | X130: 1.75 | Y130: 30.92 | Z130: 1.211666667 | AA130: 12 | AB130: 2 | AC130: 10 | AD130: 2.083333333 | AE130: 19.94 | AF130: 1.669166667
T131: 1 | U131: 6 | V131: 07:00:00 | W131: 16.3741 | X131: 1.817745833 | Y131: 30.92 | Z131: 1.211666667 | AA131: 10 | AB131: 2.083333333 | AC131: 12 | AD131: 2 | AE131: 19.94 | AF131: 1.669166667
T132: 1 | U132: 6 | V132: 08:00:00 | W132: 15.2718 | X132: 1.863675 | Y132: 30.92 | Z132: 1.211666667 | AA132: 12 | AB132: 2 | AC132: 10 | AD132: 2.083333333 | AE132: 18.86 | AF132: 1.714166667
T133: 1 | U133: 6 | V133: 09:00:00 | W133: 16.3741 | X133: =IF(W133<60,(60-W133)/24,0) -> 1.817745833 | Y133: 32 | Z133: 1.166666667 | AA133: 16 | AB133: 1.833333333 | AC133: 12 | AD133: 2 | AE133: 20.84 | AF133: 1.631666667
T134: 1 | U134: 6 | V134: 10:00:00 | W134: 19.3882 | X134: 1.692158333 | Y134: 33.08 | Z134: =IF(Y134<60,(60-Y134)/24,0) -> 1.121666667 | AA134: 19 | AB134: =IF(AA134<60,(60-AA134)/24,0) -> 1.708333333 | AC134: 18 | AD134: =IF(AC134<60,(60-AC134)/24,0) -> 1.75 | AE134: 23 | AF134: =IF(AE134<60,(60-AE134)/24,0) -> 1.541666667
T135: 1 | U135: 6 | V135: 11:00:00 | W135: 22.0462 | X135: 1.581408333 | Y135: 35.06 | Z135: 1.039166667 | AA135: 27 | AB135: 1.375 | AC135: 23 | AD135: 1.541666667 | AE135: 24.98 | AF135: 1.459166667
T136: 1 | U136: 6 | V136: 12:00:00 | W136: 25 | X136: 1.458333333 | Y136: 35.06 | Z136: 1.039166667 | AA136: 28 | AB136: 1.333333333 | AC136: 25 | AD136: 1.458333333 | AE136: 26.96 | AF136: 1.376666667
T137: 1 | U137: 6 | V137: 13:00:00 | W137: 25 | X137: 1.458333333 | Y137: 35.96 | Z137: 1.001666667 | AA137: 28 | AB137: 1.333333333 | AC137: 27 | AD137: 1.375 | AE137: 29.84 | AF137: 1.256666667
T138: 1 | U138: 6 | V138: 14:00:00 | W138: 25 | X138: 1.458333333 | Y138: 37.04 | Z138: 0.9566666667 | AA138: 31 | AB138: 1.208333333 | AC138: 28 | AD138: 1.333333333 | AE138: 30.92 | AF138: 1.211666667
T139: 1 | U139: 6 | V139: 15:00:00 | W139: 27 | X139: 1.375 | Y139: 37.04 | Z139: 0.9566666667 | AA139: 34 | AB139: 1.083333333 | AC139: 28 | AD139: 1.333333333 | AE139: 32.9 | AF139: 1.129166667
T140: 1 | U140: 6 | V140: 16:00:00 | W140: 27 | X140: 1.375 | Y140: 35.96 | Z140: 1.001666667 | AA140: 34 | AB140: 1.083333333 | AC140: 30 | AD140: 1.25 | AE140: 32.9 | AF140: 1.129166667
T141: 1 | U141: 6 | V141: 17:00:00 | W141: 26 | X141: 1.416666667 | Y141: 35.06 | Z141: 1.039166667 | AA141: 30 | AB141: 1.25 | AC141: 30 | AD141: 1.25 | AE141: 33.98 | AF141: 1.084166667
T142: 1 | U142: 6 | V142: 18:00:00 | W142: 25 | X142: 1.458333333 | Y142: 33.98 | Z142: 1.084166667 | AA142: 28 | AB142: 1.333333333 | AC142: 28 | AD142: 1.333333333 | AE142: 36.86 | AF142: 0.9641666667
T143: 1 | U143: 6 | V143: 19:00:00 | W143: 25 | X143: 1.458333333 | Y143: 33.98 | Z143: 1.084166667 | AA143: 28 | AB143: 1.333333333 | AC143: 27 | AD143: 1.375 | AE143: 35.96 | AF143: 1.001666667
T144: 1 | U144: 6 | V144: 20:00:00 | W144: 24 | X144: 1.5 | Y144: 32 | Z144: 1.166666667 | AA144: 28 | AB144: 1.333333333 | AC144: 23 | AD144: 1.541666667 | AE144: 35.96 | AF144: 1.001666667
T145: 1 | U145: 6 | V145: 21:00:00 | W145: 25 | X145: 1.458333333 | Y145: 32 | Z145: 1.166666667 | AA145: 28 | AB145: 1.333333333 | AC145: 23 | AD145: 1.541666667 | AE145: 35.96 | AF145: 1.001666667
T146: 1 | U146: 6 | V146: 22:00:00 | W146: 21 | X146: 1.625 | Y146: 32 | Z146: 1.166666667 | AA146: 30 | AB146: 1.25 | AC146: 21 | AD146: 1.625 | AE146: 36.86 | AF146: 0.9641666667
T147: 1 | U147: 6 | V147: 23:00:00 | W147: 21 | X147: 1.625 | Y147: 30.92 | Z147: 1.211666667 | AA147: 30 | AB147: 1.25 | AC147: 23 | AD147: 1.541666667 | AE147: 36.86 | AF147: 0.9641666667
T148: 1 | U148: 6 | V148: 1 | W148: 21 | X148: 1.625 | Y148: 30.92 | Z148: 1.211666667 | AA148: 27 | AB148: 1.375 | AC148: 21 | AD148: 1.625 | AE148: 36.86 | AF148: 0.9641666667
T149: 1 | U149: 7 | V149: 01:00:00 | W149: 25 | X149: 1.458333333 | Y149: 30.02 | Z149: 1.249166667 | AA149: 26 | AB149: 1.416666667 | AC149: 21 | AD149: 1.625 | AE149: 34.88 | AF149: 1.046666667
T150: 1 | U150: 7 | V150: 02:00:00 | W150: 25 | X150: 1.458333333 | Y150: 30.02 | Z150: 1.249166667 | AA150: 25 | AB150: 1.458333333 | AC150: 21 | AD150: 1.625 | AE150: 33.98 | AF150: 1.084166667
T151: 1 | U151: 7 | V151: 03:00:00 | W151: 25 | X151: 1.458333333 | Y151: 28.94 | Z151: 1.294166667 | AA151: 25 | AB151: 1.458333333 | AC151: 23 | AD151: 1.541666667 | AE151: 34.88 | AF151: 1.046666667
T152: 1 | U152: 7 | V152: 04:00:00 | W152: 23 | X152: 1.541666667 | Y152: 28.04 | Z152: 1.331666667 | AA152: 23 | AB152: 1.541666667 | AC152: 25 | AD152: 1.458333333 | AE152: 34.88 | AF152: 1.046666667
T153: 1 | U153: 7 | V153: 05:00:00 | W153: 23 | X153: 1.541666667 | Y153: 26.96 | Z153: 1.376666667 | AA153: 21 | AB153: 1.625 | AC153: 25 | AD153: 1.458333333 | AE153: 36.86 | AF153: 0.9641666667
T154: 1 | U154: 7 | V154: 06:00:00 | W154: 23 | X154: 1.541666667 | Y154: 26.06 | Z154: 1.414166667 | AA154: 21 | AB154: 1.625 | AC154: 25 | AD154: 1.458333333 | AE154: 35.96 | AF154: 1.001666667
T155: 1 | U155: 7 | V155: 07:00:00 | W155: 21 | X155: 1.625 | Y155: 24.98 | Z155: 1.459166667 | AA155: 25 | AB155: 1.458333333 | AC155: 25 | AD155: 1.458333333 | AE155: 34.88 | AF155: 1.046666667
T156: 1 | U156: 7 | V156: 08:00:00 | W156: 21 | X156: 1.625 | Y156: 26.06 | Z156: 1.414166667 | AA156: 25 | AB156: 1.458333333 | AC156: 27 | AD156: 1.375 | AE156: 34.88 | AF156: 1.046666667
T157: 1 | U157: 7 | V157: 09:00:00 | W157: 22 | X157: 1.583333333 | Y157: 28.04 | Z157: 1.331666667 | AA157: 27 | AB157: 1.375 | AC157: 27 | AD157: 1.375 | AE157: 34.88 | AF157: 1.046666667
T158: 1 | U158: 7 | V158: 10:00:00 | W158: 23 | X158: 1.541666667 | Y158: 28.04 | Z158: 1.331666667 | AA158: 27 | AB158: 1.375 | AC158: 28 | AD158: 1.333333333 | AE158: 34.88 | AF158: 1.046666667
T159: 1 | U159: 7 | V159: 11:00:00 | W159: 25 | X159: 1.458333333 | Y159: 28.04 | Z159: 1.331666667 | AA159: 30 | AB159: 1.25 | AC159: 30 | AD159: 1.25 | AE159: 34.88 | AF159: 1.046666667
T160: 1 | U160: 7 | V160: 12:00:00 | W160: 27 | X160: 1.375 | Y160: 26.96 | Z160: 1.376666667 | AA160: 34 | AB160: 1.083333333 | AC160: 32 | AD160: 1.166666667 | AE160: 36.86 | AF160: 0.9641666667
T161: 1 | U161: 7 | V161: 13:00:00 | W161: 27 | X161: 1.375 | Y161: 26.06 | Z161: 1.414166667 | AA161: 36 | AB161: 1 | AC161: 34 | AD161: 1.083333333 | AE161: 38.84 | AF161: 0.8816666667
T162: 1 | U162: 7 | V162: 14:00:00 | W162: 27 | X162: 1.375 | Y162: 24.98 | Z162: 1.459166667 | AA162: 37 | AB162: 0.9583333333 | AC162: 34 | AD162: 1.083333333 | AE162: 41 | AF162: 0.7916666667
T163: 1 | U163: 7 | V163: 15:00:00 | W163: 27 | X163: 1.375 | Y163: 24.08 | Z163: 1.496666667 | AA163: 37 | AB163: 0.9583333333 | AC163: 34 | AD163: 1.083333333 | AE163: 41 | AF163: 0.7916666667
T164: 1 | U164: 7 | V164: 16:00:00 | W164: 27 | X164: 1.375 | Y164: 21.02 | Z164: 1.624166667 | AA164: 37 | AB164: 0.9583333333 | AC164: 36 | AD164: 1 | AE164: 36.86 | AF164: 0.9641666667
T165: 1 | U165: 7 | V165: 17:00:00 | W165: 25 | X165: 1.458333333 | Y165: 19.04 | Z165: 1.706666667 | AA165: 37 | AB165: 0.9583333333 | AC165: 34 | AD165: 1.083333333 | AE165: 34.88 | AF165: 1.046666667
T166: 1 | U166: 7 | V166: 18:00:00 | W166: 21 | X166: 1.625 | Y166: 17.06 | Z166: 1.789166667 | AA166: 37 | AB166: 0.9583333333 | AC166: 34 | AD166: 1.083333333 | AE166: 34.88 | AF166: 1.046666667
T167: 1 | U167: 7 | V167: 19:00:00 | W167: 21 | X167: 1.625 | Y167: 15.08 | Z167: 1.871666667 | AA167: 36 | AB167: 1 | AC167: 34 | AD167: 1.083333333 | AE167: 34.88 | AF167: 1.046666667
T168: 1 | U168: 7 | V168: 20:00:00 | W168: 19 | X168: 1.708333333 | Y168: 14 | Z168: 1.916666667 | AA168: 36 | AB168: 1 | AC168: 32 | AD168: 1.166666667 | AE168: 34.88 | AF168: 1.046666667
T169: 1 | U169: 7 | V169: 21:00:00 | W169: 13 | X169: 1.958333333 | Y169: 12.92 | Z169: 1.961666667 | AA169: 34 | AB169: 1.083333333 | AC169: 30 | AD169: 1.25 | AE169: 33.98 | AF169: 1.084166667
T170: 1 | U170: 7 | V170: 22:00:00 | W170: 7 | X170: 2.208333333 | Y170: 10.94 | Z170: 2.044166667 | AA170: 34 | AB170: 1.083333333 | AC170: 30 | AD170: 1.25 | AE170: 32.9 | AF170: 1.129166667
T171: 1 | U171: 7 | V171: 23:00:00 | W171: 3 | X171: 2.375 | Y171: 10.04 | Z171: 2.081666667 | AA171: 32 | AB171: 1.166666667 | AC171: 30 | AD171: 1.25 | AE171: 32.9 | AF171: 1.129166667
T172: 1 | U172: 7 | V172: 1 | W172: 1 | X172: 2.458333333 | Y172: 8.06 | Z172: 2.164166667 | AA172: 32 | AB172: 1.166666667 | AC172: 28 | AD172: 1.333333333 | AE172: 32.9 | AF172: 1.129166667
T173: 1 | U173: 8 | V173: 01:00:00 | W173: 0 | X173: 2.5 | Y173: 6.98 | Z173: 2.209166667 | AA173: 30 | AB173: 1.25 | AC173: 28 | AD173: 1.333333333 | AE173: 32 | AF173: 1.166666667
T174: 1 | U174: 8 | V174: 02:00:00 | W174: 3 | X174: 2.375 | Y174: 6.08 | Z174: 2.246666667 | AA174: 28 | AB174: 1.333333333 | AC174: 27 | AD174: 1.375 | AE174: 32 | AF174: 1.166666667
T175: 1 | U175: 8 | V175: 03:00:00 | W175: 5 | X175: 2.291666667 | Y175: 3.02 | Z175: 2.374166667 | AA175: 28 | AB175: 1.333333333 | AC175: 27 | AD175: 1.375 | AE175: 30.92 | AF175: 1.211666667
T176: 1 | U176: 8 | V176: 04:00:00 | W176: 9 | X176: 2.125 | Y176: -0.04 | Z176: 2.501666667 | AA176: 28 | AB176: 1.333333333 | AC176: 27 | AD176: 1.375 | AE176: 29.84 | AF176: 1.256666667
T177: 1 | U177: 8 | V177: 05:00:00 | W177: 9 | X177: 2.125 | Y177: -0.04 | Z177: 2.501666667 | AA177: 28 | AB177: 1.333333333 | AC177: 27 | AD177: 1.375 | AE177: 29.84 | AF177: 1.256666667
T178: 1 | U178: 8 | V178: 06:00:00 | W178: 9 | X178: 2.125 | Y178: -0.94 | Z178: 2.539166667 | AA178: 27 | AB178: 1.375 | AC178: 25 | AD178: 1.458333333 | AE178: 27.86 | AF178: 1.339166667
T179: 1 | U179: 8 | V179: 07:00:00 | W179: 10 | X179: 2.083333333 | Y179: -2.02 | Z179: 2.584166667 | AA179: 28 | AB179: 1.333333333 | AC179: 25 | AD179: 1.458333333 | AE179: 28.94 | AF179: 1.294166667
T180: 1 | U180: 8 | V180: 08:00:00 | W180: 10 | X180: 2.083333333 | Y180: -0.04 | Z180: 2.501666667 | AA180: 27 | AB180: 1.375 | AC180: 25 | AD180: 1.458333333 | AE180: 28.94 | AF180: 1.294166667
T181: 1 | U181: 8 | V181: 09:00:00 | W181: 10 | X181: 2.083333333 | Y181: 5 | Z181: 2.291666667 | AA181: 28 | AB181: 1.333333333 | AC181: 25 | AD181: 1.458333333 | AE181: 29.84 | AF181: 1.256666667
T182: 1 | U182: 8 | V182: 10:00:00 | W182: 14 | X182: 1.916666667 | Y182: 8.96 | Z182: 2.126666667 | AA182: 30 | AB182: 1.25 | AC182: 27 | AD182: 1.375 | AE182: 30.92 | AF182: 1.211666667
T183: 1 | U183: 8 | V183: 11:00:00 | W183: 19 | X183: 1.708333333 | Y183: 10.94 | Z183: 2.044166667 | AA183: 30 | AB183: 1.25 | AC183: 28 | AD183: 1.333333333 | AE183: 32 | AF183: 1.166666667
T184: 1 | U184: 8 | V184: 12:00:00 | W184: 25 | X184: 1.458333333 | Y184: 14 | Z184: 1.916666667 | AA184: 34 | AB184: 1.083333333 | AC184: 30 | AD184: 1.25 | AE184: 33.98 | AF184: 1.084166667
T185: 1 | U185: 8 | V185: 13:00:00 | W185: 28 | X185: 1.333333333 | Y185: 15.98 | Z185: 1.834166667 | AA185: 34 | AB185: 1.083333333 | AC185: 30 | AD185: 1.25 | AE185: 32 | AF185: 1.166666667
T186: 1 | U186: 8 | V186: 14:00:00 | W186: 28 | X186: 1.333333333 | Y186: 17.06 | Z186: 1.789166667 | AA186: 36 | AB186: 1 | AC186: 32 | AD186: 1.166666667 | AE186: 28.94 | AF186: 1.294166667
T187: 1 | U187: 8 | V187: 15:00:00 | W187: 30 | X187: 1.25 | Y187: 17.96 | Z187: 1.751666667 | AA187: 36 | AB187: 1 | AC187: 34 | AD187: 1.083333333 | AE187: 29.84 | AF187: 1.256666667
T188: 1 | U188: 8 | V188: 16:00:00 | W188: 29 | X188: 1.291666667 | Y188: 17.96 | Z188: 1.751666667 | AA188: 36 | AB188: 1 | AC188: 32 | AD188: 1.166666667 | AE188: 29.84 | AF188: 1.256666667
T189: 1 | U189: 8 | V189: 17:00:00 | W189: 28 | X189: 1.333333333 | Y189: 14 | Z189: 1.916666667 | AA189: 30 | AB189: 1.25 | AC189: 30 | AD189: 1.25 | AE189: 27.86 | AF189: 1.339166667
T190: 1 | U190: 8 | V190: 18:00:00 | W190: 27 | X190: 1.375 | Y190: 12.02 | Z190: 1.999166667 | AA190: 30 | AB190: 1.25 | AC190: 28 | AD190: 1.333333333 | AE190: 27.86 | AF190: 1.339166667
T191: 1 | U191: 8 | V191: 19:00:00 | W191: 27 | X191: 1.375 | Y191: 10.94 | Z191: 2.044166667 | AA191: 30 | AB191: 1.25 | AC191: 30 | AD191: 1.25 | AE191: 25.88 | AF191: 1.421666667
T192: 1 | U192: 8 | V192: 20:00:00 | W192: 25 | X192: 1.458333333 | Y192: 8.96 | Z192: 2.126666667 | AA192: 28 | AB192: 1.333333333 | AC192: 30 | AD192: 1.25 | AE192: 24.98 | AF192: 1.459166667
T193: 1 | U193: 8 | V193: 21:00:00 | W193: 25 | X193: 1.458333333 | Y193: 5 | Z193: 2.291666667 | AA193: 28 | AB193: 1.333333333 | AC193: 30 | AD193: 1.25 | AE193: 23.9 | AF193: 1.504166667
T194: 1 | U194: 8 | V194: 22:00:00 | W194: 25 | X194: 1.458333333 | Y194: 5 | Z194: 2.291666667 | AA194: 27 | AB194: 1.375 | AC194: 28 | AD194: 1.333333333 | AE194: 24.98 | AF194: 1.459166667
T195: 1 | U195: 8 | V195: 23:00:00 | W195: 25 | X195: 1.458333333 | Y195: 8.96 | Z195: 2.126666667 | AA195: 25 | AB195: 1.458333333 | AC195: 25 | AD195: 1.458333333 | AE195: 25.88 | AF195: 1.421666667
T196: 1 | U196: 8 | V196: 1 | W196: 25 | X196: 1.458333333 | Y196: 8.96 | Z196: 2.126666667 | AA196: 27 | AB196: 1.375 | AC196: 23 | AD196: 1.541666667 | AE196: 24.98 | AF196: 1.459166667
T197: 1 | U197: 9 | V197: 01:00:00 | W197: 25 | X197: =IF(W197<60,(60-W197)/24,0) -> 1.458333333 | Y197: 10.04 | Z197: 2.081666667 | AA197: 27 | AB197: 1.375 | AC197: 22 | AD197: 1.583333333 | AE197: 23.9 | AF197: 1.504166667
T198: 1 | U198: 9 | V198: 02:00:00 | W198: 25 | X198: 1.458333333 | Y198: 10.04 | Z198: =IF(Y198<60,(60-Y198)/24,0) -> 2.081666667 | AA198: 27 | AB198: =IF(AA198<60,(60-AA198)/24,0) -> 1.375 | AC198: 21 | AD198: =IF(AC198<60,(60-AC198)/24,0) -> 1.625 | AE198: 24.98 | AF198: =IF(AE198<60,(60-AE198)/24,0) -> 1.459166667
T199: 1 | U199: 9 | V199: 03:00:00 | W199: 25 | X199: 1.458333333 | Y199: 10.94 | Z199: 2.044166667 | AA199: 27 | AB199: 1.375 | AC199: 21 | AD199: 1.625 | AE199: 24.98 | AF199: 1.459166667
T200: 1 | U200: 9 | V200: 04:00:00 | W200: 25 | X200: 1.458333333 | Y200: 10.94 | Z200: 2.044166667 | AA200: 25 | AB200: 1.458333333 | AC200: 21 | AD200: 1.625 | AE200: 24.98 | AF200: 1.459166667
... 2050 more rows

Sheet Compressed Air Inputs
B1: Compressed Air Systems: Input Sheet
B4: Input Tables for Compressed Air Measures | E4: Key | H4: Instructions
B5: 1 | C5: Compressor System & Storage | F5: Input Cells | H5: Please fill out this Input Sheet with the facility's compressed air systems information (fill in all ORANGE cells) and as applicable to the measure selection on the "Measure Summary" tab. Include copy of the CAGI data sheet for reference, photos of compressor nameplate and setpoints and documentation of run hours or load profile if available. All compressed air measures will refer back to this sheet.
B6: 2 | C6: Air Nozzle | F6: Calculation Cells
B7: 3 | C7: Zero Loss Condensate Drain | F7: Guidance/ Information Cells
B8: 4 | C8: Low Pressure Drop Filter & Added Storage
B9: 5 | C9: Compressed Air Leak Detection
B10: 6 | C10: New Air Compressor
B11: 7 | C11: New Refrigerate Air Dryer
B13: Table 1: Existing Compressed Air System Inputs | K13: Existing Case Operating Inputs | V13: Compressor Type Options
C14: Compressor | E14: CAGI | H14: Air Compressor | I14: Baseload | J14: Control | K14: Annual Run | L14: Load Profile - % time at each load | P14: Pressure | Q14: Storage | V14: Load / No Load
B15: No. | C15: Manufacturer | D15: Model | E15: hp | F15: cfm | G15: kW | H15: Type | I15: or Trim | J15: Type | K15: Hours | L15: 0.25 | M15: 0.5 | N15: 0.75 | O15: 1 | P15: (psi) | Q15: (gallons) | V15: Modulating
B16: 1 | V16: Turn Valve
B17: 2 | V17: Variable Speed
B18: 3
Q20: Annual Run Hour Estimation | V20: Pipe Diameter Options
B21: Table 2: Air Nozzle ECM Inputs | L21: Table 3: Zero Loss Condensate Drain ECM Inputs | Q21: Shift: | R21: Hours: | S21: Notes: | V21: 0.5
B22: Nozzle | F22: Existing | G22: Proposed | I22: End Use | L22: Drain | N22: Pipe | O22: Drain | Q22: Single shift (8/5) | R22: 1976 | S22: 7 AM – 3 PM, weekdays, minus some holidays and scheduled down time | V22: 0.75
B23: ID | C23: Manufacturer | D23: Model | E23: Qty | F23: cfm | G23: cfm | H23: hrs/yr | I23: Description | L23: Location | N23: Diameter | O23: Hours | V23: 1
B24: 1 | Q24: 2-shift (16/5) | R24: 3952 | S24: 7AM – 11 PM, weekdays, minus some holidays and scheduled down time | V24: 1.25
B25: 2 | V25: 1.5
B26: 3 | Q26: 3-shift (24/5) | R26: 5928 | S26: 24 hours per day, weekdays, minus some holidays and scheduled down time | V26: 1.75
B27: 4 | V27: 2
B28: 5 | Q28: 4-shift (24/7) | R28: 8320 | S28: 24 hours per day, 7 days a week minus some holidays and scheduled down time | V28: 2.5
B29: 6 | V29: 3
B30: 7 | V30: 3.5
B31: 8 | V31: 4
B32: 9
B33: 10
B36: Table 4: Additional Storage and Low Pressure Drop Filter ECM Inputs | H36: Table 5: Compressed Air Leak Detection ECM Inputs | N36: Table 6: New Air Compressor Inputs
B37: Total Storage (if new storage added) | E37: gallons | H37: ID | I37: # Of Leaks | J37: Leakage CFM known? | K37: CFM Leak | L37: dB reading | N37: Compressor | Q37: Is it an oil flooded, rotary screw compressor with Variable Speed Drive or Variable Displacement capacity control?
B38: Pressure (if pressure reduced w/new storage) | E38: psi | H38: 1 | N38: No. | O38: Manufacturer | P38: Model | R38: CAGI hp | S38: Annual Run Hours
B39: # of Low Pressure Drop Filters Installed | H39: 2 | N39: 1
B40: Baseline System Pressure drop | H40: 3 | N40: 2
B41: System Pressure drop w/low pressure drop filters | E41: psi | H41: 4 | N41: 3
H42: 5
H43: 6 | N43: Table 7: New Refrigerated Air Dryer Inputs
H44: 7 | N44: Compressor | Q44: CAGI | R44: Annual | S44: VFD-Equipped?
H45: 8 | N45: No. | O45: Manufacturer | P45: Model | Q45: CFM | R45: Run Hours
H46: 9 | N46: 1
H47: 10 | N47: 2
N48: 3
P63: `

Sheet CompAir1-Storage (hidden)
B1: Measure: Adding Compressor Storage
V2: Table 4: kW base calculations for Comp 1
Q3: Table 2: % kW values | V3: gal/cfm | W3: =+'Compressed Air Inputs'!Q16/'Compressed Air Inputs'!F16 ->  | Y3: =+'Compressed Air Inputs'!D37/'Compressed Air Inputs'!F16 -> 
B4: Measure Summary | G4: Measure Description | Q4: Helper | R4: % | S4: Tank plus Distribution Storage | T4: % | V4: % | W4: Baseline | Y4: Proposed
D5: Value | E5: Unit | G5: Adding storage capacity to compressed air systems with previously insufficient storage results in less system pressure fluctuations and allows lower average system pressures, leading to air compressor energy savings when operated at lower system pressures. It also reduces cycling losses in compressor systems that use a compressor with load-unload controls for part-load modulation. Results: kWpr: Average kW savings from the system pressure reduction kWhpr: Gross annual kWh savings from system pressure reduction kWcl: Average kW savings from the reduction in cycling losses for load/unload compressors kWhcl: Gross annual kWh savings from the reduction in cycling losses for load/unload compressors | Q5: Column | R5: Load | S5: gal/cfm | T5: kW | V5: Load | W5: % kW | X5: kW | Y5: % kW | Z5: kW
B6: Total Savings | D6: =SUM(K29,M29) -> 0 | E6: kW | Q6: =R6&S6 -> 0.251 | R6: 0.25 | S6: 1 | T6: 0.7 | V6: 0.25 | W6: =MIN($T$6,IF(W$3<$S$7,TREND($T$6:$T$7,$S$6:$S$7,W$3),IF(W$3<$S$8,TREND($T$7:$T$8,$S$7:$S$8,W$3),IF(W$3<$S$9,TREND($T$8:$T$9,$S$8:$S$9,W$3),$T$9)))) ->  | X6: =+W6*'Compressed Air Inputs'!$G$16 ->  | Y6: =MIN($T$6,IF(Y$3<$S$7,TREND($T$6:$T$7,$S$6:$S$7,Y$3),IF(Y$3<$S$8,TREND($T$7:$T$8,$S$7:$S$8,Y$3),IF(Y$3<$S$9,TREND($T$8:$T$9,$S$8:$S$9,Y$3),$T$9)))) ->  | Z6: =+Y6*'Compressed Air Inputs'!$G$16 -> 
D7: =SUM(L29,N29) -> 0 | E7: kWh | Q7: =R7&S7 -> 0.253 | R7: 0.25 | S7: 3 | T7: 0.55 | V7: 0.5 | W7: =MIN($T$10,IF($W$3<$S$11,TREND($T$10:$T$11,$S$10:$S$11,$W$3),IF($W$3<$S$12,TREND($T$11:$T$12,$S$11:$S$12,$W$3),IF($W$3<$S$13,TREND($T$12:$T$13,$S$12:$S$13,$W$3),$T$13)))) ->  | X7: =+W7*'Compressed Air Inputs'!$G$16 ->  | Y7: =MIN($T$10,IF($Y$3<$S$11,TREND($T$10:$T$11,$S$10:$S$11,$Y$3),IF($Y$3<$S$12,TREND($T$11:$T$12,$S$11:$S$12,$Y$3),IF($Y$3<$S$13,TREND($T$12:$T$13,$S$12:$S$13,$Y$3),$T$13)))) ->  | Z7: =+Y7*'Compressed Air Inputs'!$G$16 -> 
D8: 0 | E8: MMBtu | Q8: 0.255 | R8: 0.25 | S8: 5 | T8: 0.5 | V8: 0.75 | W8: =MIN($T$14,IF($W$3<$S$15,TREND($T$14:$T$15,$S$14:$S$15,$W$3),IF($W$3<$S$16,TREND($T$15:$T$16,$S$15:$S$16,$W$3),IF($W$3<$S$17,TREND($T$16:$T$17,$S$16:$S$17,$W$3),$T$17)))) ->  | X8: =+W8*'Compressed Air Inputs'!$G$16 ->  | Y8: =MIN($T$14,IF($Y$3<$S$15,TREND($T$14:$T$15,$S$14:$S$15,$Y$3),IF($Y$3<$S$16,TREND($T$15:$T$16,$S$15:$S$16,$Y$3),IF($Y$3<$S$17,TREND($T$16:$T$17,$S$16:$S$17,$Y$3),$T$17)))) ->  | Z8: =+Y8*'Compressed Air Inputs'!$G$16 -> 
B9: Measure Life | D9: 17 | E9: Years | Q9: 0.2510 | R9: 0.25 | S9: 10 | T9: 0.48 | V9: 1 | W9: 1 | X9: =+W9*'Compressed Air Inputs'!$G$16 -> 0 | Y9: 1 | Z9: =+Y9*'Compressed Air Inputs'!$G$16 -> 0
B10: CFsp | D10: =S21*100 -> 117 | E10: % | Q10: 0.51 | R10: 0.5 | S10: 1 | T10: 0.88 | V10: Avg kW | X10: =(X6*'Compressed Air Inputs'!L16+'CompAir1-Storage'!X7*'Compressed Air Inputs'!M16+'CompAir1-Storage'!X8*'Compressed Air Inputs'!N16+'CompAir1-Storage'!X9*'Compressed Air Inputs'!O16) ->  | Z10: =(Z6*'Compressed Air Inputs'!L16+'CompAir1-Storage'!Z7*'Compressed Air Inputs'!M16+'CompAir1-Storage'!Z8*'Compressed Air Inputs'!N16+'CompAir1-Storage'!Z9*'Compressed Air Inputs'!O16) ->  | AB10: Table 7: Summary Table kW base
B11: CFwp | D11: =T21*100 -> 98 | E11: % | Q11: 0.53 | R11: 0.5 | S11: 3 | T11: 0.76 | AB11: Comp | AC11: kW base | AD11: kW proposed
Q12: 0.55 | R12: 0.5 | S12: 5 | T12: 0.71 | V12: Table 5: kW base calculations for Comp 2 | AB12: 1 | AC12: =X10 ->  | AD12: =Z10 -> 
Q13: 0.510 | R13: 0.5 | S13: 10 | T13: 0.68 | V13: gal/cfm | W13: =IFERROR('Compressed Air Inputs'!Q17/'Compressed Air Inputs'!F17,"-") -> - | Y13: =IFERROR('Compressed Air Inputs'!S17/'Compressed Air Inputs'!F17,"-") -> - | AB13: 2 | AC13: =X20 -> 0 | AD13: =Z20 -> 0
B14: Compressed Air - Adding Compressor Storage | Q14: 0.751 | R14: 0.75 | S14: 1 | T14: 0.96 | V14: % | W14: Baseline | Y14: Proposed | AB14: 3 | AC14: =X30 -> 0 | AD14: =Z30 -> 0
B15: Measure Code | D15: COM-CA-CS | G15: NOTE: For more information on this measure refer to the NH TRM. | Q15: 0.753 | R15: 0.75 | S15: 3 | T15: 0.92 | V15: Load | W15: % kW | X15: kW | Y15: % kW | Z15: kW
B16: Market | D16: Commercial | Q16: 0.755 | R16: 0.75 | S16: 5 | T16: 0.89 | V16: 0.25 | W16: =MIN($T$6,IF(W$13<$S$7,TREND($T$6:$T$7,$S$6:$S$7,W$13),IF(W$13<$S$8,TREND($T$7:$T$8,$S$7:$S$8,W$13),IF(W$13<$S$9,TREND($T$8:$T$9,$S$8:$S$9,W$13),$T$9)))) -> 0.48 | X16: =+W16*'Compressed Air Inputs'!$G$17 -> 0 | Y16: =MIN($T$6,IF(Y$13<$S$7,TREND($T$6:$T$7,$S$6:$S$7,Y$13),IF(Y$13<$S$8,TREND($T$7:$T$8,$S$7:$S$8,Y$13),IF(Y$13<$S$9,TREND($T$8:$T$9,$S$8:$S$9,Y$13),$T$9)))) -> 0.48 | Z16: =+Y16*'Compressed Air Inputs'!$G$17 -> 0
B17: Program Type | D17: Retrofit | Q17: 0.7510 | R17: 0.75 | S17: 10 | T17: 0.86 | V17: 0.5 | W17: =MIN($T$10,IF($W$13<$S$11,TREND($T$10:$T$11,$S$10:$S$11,$W$13),IF($W$13<$S$12,TREND($T$11:$T$12,$S$11:$S$12,$W$13),IF($W$13<$S$13,TREND($T$12:$T$13,$S$12:$S$13,$W$13),$T$13)))) -> 0.68 | X17: =+W17*'Compressed Air Inputs'!$G$17 -> 0 | Y17: =MIN($T$10,IF($Y$13<$S$11,TREND($T$10:$T$11,$S$10:$S$11,$Y$13),IF($Y$13<$S$12,TREND($T$11:$T$12,$S$11:$S$12,$Y$13),IF($Y$13<$S$13,TREND($T$12:$T$13,$S$12:$S$13,$Y$13),$T$13)))) -> 0.68 | Z17: =+Y17*'Compressed Air Inputs'!$G$17 -> 0
B18: Category | D18: Compressed Air | V18: 0.75 | W18: =MIN($T$14,IF($W$13<$S$15,TREND($T$14:$T$15,$S$14:$S$15,$W$13),IF($W$13<$S$16,TREND($T$15:$T$16,$S$15:$S$16,$W$13),IF($W$13<$S$17,TREND($T$16:$T$17,$S$16:$S$17,$W$13),$T$17)))) -> 0.86 | X18: =+W18*'Compressed Air Inputs'!$G$17 -> 0 | Y18: =MIN($T$14,IF($Y$13<$S$15,TREND($T$14:$T$15,$S$14:$S$15,$Y$13),IF($Y$13<$S$16,TREND($T$15:$T$16,$S$15:$S$16,$Y$13),IF($Y$13<$S$17,TREND($T$16:$T$17,$S$16:$S$17,$Y$13),$T$17)))) -> 0.86 | Z18: =+Y18*'Compressed Air Inputs'!$G$17 -> 0
R19: Table 3: Coincidence Factors | V19: 1 | W19: 1 | X19: =+W19*'Compressed Air Inputs'!$G$17 -> 0 | Y19: 1 | Z19: =+Y19*'Compressed Air Inputs'!$G$17 -> 0
R20: Program | S20: CFsp | T20: CFwp | V20: Avg kW | X20: =(X16*'Compressed Air Inputs'!L17+'CompAir1-Storage'!X17*'Compressed Air Inputs'!M17+'CompAir1-Storage'!X18*'Compressed Air Inputs'!N17+'CompAir1-Storage'!X19*'Compressed Air Inputs'!O17) -> 0 | Z20: =(Z16*'Compressed Air Inputs'!L17+'CompAir1-Storage'!Z17*'Compressed Air Inputs'!M17+'CompAir1-Storage'!Z18*'Compressed Air Inputs'!N17+'CompAir1-Storage'!Z19*'Compressed Air Inputs'!O17) -> 0
R21: LBES, SBES, Muni | S21: 1.17 | T21: 0.98
B22: Table 1: Calculating Primary Energy Impact | V22: Table 6: kW base calculations for Comp 3
C23: Inputs | K23: Savings | V23: gal/cfm | W23: =IFERROR(+'Compressed Air Inputs'!Q18/'Compressed Air Inputs'!F18,"-") -> - | Y23: =IFERROR('Compressed Air Inputs'!S18/'Compressed Air Inputs'!F18,"-") -> -
C24: Model | D24: Base case | F24: Proposed | I24: Annual | K24: Pressure Reduction | M24: Cycling Savings | V24: % | W24: Baseline | Y24: Proposed
C25: No. | D25: kWbase | E25: psibase | F25: psiEE | G25: kWpsi, ee | H25: kWcycling | I25: Hours | K25: kW | L25: kWh | M25: kW | N25: kWh | V25: Load | W25: % kW | X25: kW | Y25: % kW | Z25: kW
B26: 1 | C26: ='Compressed Air Inputs'!D16 -> 0 | D26: =IFERROR(AC12,"") ->  | E26: ='Compressed Air Inputs'!$P$16 -> 0 | F26: ='Compressed Air Inputs'!$D$38 -> 0 | G26: =IF(F26>0,D26-(D26*(E26-F26)*0.004),D26) ->  | H26: =IF(F26>0,IFERROR(AD12-AD12*(E26-F26)*0.004,""),AD12) ->  | I26: ='Compressed Air Inputs'!K16 -> 0 | K26: =IFERROR((D26*(E26-F26)*0.004),"") ->  | L26: =IFERROR(K26*I26,"") ->  | M26: =IFERROR(IF('Compressed Air Inputs'!I16="Baseload",0,(G26-H26)),"") ->  | N26: =IFERROR(M26*I26,"") ->  | V26: 0.25 | W26: =MIN($T$6,IF(W$23<$S$7,TREND($T$6:$T$7,$S$6:$S$7,W$23),IF(W$23<$S$8,TREND($T$7:$T$8,$S$7:$S$8,W$23),IF(W$23<$S$9,TREND($T$8:$T$9,$S$8:$S$9,W$23),$T$9)))) -> 0.48 | X26: =+W26*'Compressed Air Inputs'!$G$18 -> 0 | Y26: =MIN($T$6,IF(Y$23<$S$7,TREND($T$6:$T$7,$S$6:$S$7,Y$23),IF(Y$23<$S$8,TREND($T$7:$T$8,$S$7:$S$8,Y$23),IF(Y$23<$S$9,TREND($T$8:$T$9,$S$8:$S$9,Y$23),$T$9)))) -> 0.48 | Z26: =+Y26*'Compressed Air Inputs'!$G$18 -> 0
B27: 2 | C27: ='Compressed Air Inputs'!D17 -> 0 | D27: 0 | E27: ='Compressed Air Inputs'!$P$16 -> 0 | F27: ='Compressed Air Inputs'!$D$38 -> 0 | G27: =IF(F27>0,D27-(D27*(E27-F27)*0.004),D27) -> 0 | H27: =IF(F27>0,IFERROR(AD13-AD13*(E27-F27)*0.004,""),AD13) -> 0 | I27: ='Compressed Air Inputs'!K17 -> 0 | K27: =IFERROR((D27*(E27-F27)*0.004),"") -> 0 | L27: =IFERROR(K27*I27,"") -> 0 | M27: =IFERROR(IF('Compressed Air Inputs'!I17="Baseload",0,(G27-H27)),"") -> 0 | N27: =IFERROR(M27*I27,"") -> 0 | V27: 0.5 | W27: =MIN($T$10,IF($W$23<$S$11,TREND($T$10:$T$11,$S$10:$S$11,$W$23),IF($W$23<$S$12,TREND($T$11:$T$12,$S$11:$S$12,$W$23),IF($W$23<$S$13,TREND($T$12:$T$13,$S$12:$S$13,$W$23),$T$13)))) -> 0.68 | X27: =+W27*'Compressed Air Inputs'!$G$18 -> 0 | Y27: =MIN($T$10,IF($Y$23<$S$11,TREND($T$10:$T$11,$S$10:$S$11,$Y$23),IF($Y$23<$S$12,TREND($T$11:$T$12,$S$11:$S$12,$Y$23),IF($Y$23<$S$13,TREND($T$12:$T$13,$S$12:$S$13,$Y$23),$T$13)))) -> 0.68 | Z27: =+Y27*'Compressed Air Inputs'!$G$18 -> 0
B28: 3 | C28: ='Compressed Air Inputs'!D18 -> 0 | D28: 0 | E28: ='Compressed Air Inputs'!$P$16 -> 0 | F28: ='Compressed Air Inputs'!$D$38 -> 0 | G28: 0 | H28: 0 | I28: ='Compressed Air Inputs'!K18 -> 0 | K28: =IFERROR((D28*(E28-F28)*0.004),"") -> 0 | L28: =IFERROR(K28*I28,"") -> 0 | M28: =IFERROR(IF('Compressed Air Inputs'!I18="Baseload",0,(G28-H28)),"") -> 0 | N28: =IFERROR(M28*I28,"") -> 0 | V28: 0.75 | W28: =MIN($T$14,IF($W$23<$S$15,TREND($T$14:$T$15,$S$14:$S$15,$W$23),IF($W$23<$S$16,TREND($T$15:$T$16,$S$15:$S$16,$W$23),IF($W$23<$S$17,TREND($T$16:$T$17,$S$16:$S$17,$W$23),$T$17)))) -> 0.86 | X28: =+W28*'Compressed Air Inputs'!$G$18 -> 0 | Y28: =MIN($T$14,IF($Y$23<$S$15,TREND($T$14:$T$15,$S$14:$S$15,$Y$23),IF($Y$23<$S$16,TREND($T$15:$T$16,$S$15:$S$16,$Y$23),IF($Y$23<$S$17,TREND($T$16:$T$17,$S$16:$S$17,$Y$23),$T$17)))) -> 0.86 | Z28: =+Y28*'Compressed Air Inputs'!$G$18 -> 0
C29: Totals | K29: =SUM(K26:K28) -> 0 | L29: =SUM(L26:L28) -> 0 | M29: 0 | N29: 0 | V29: 1 | W29: 1 | X29: =+W29*'Compressed Air Inputs'!$G$18 -> 0 | Y29: 1 | Z29: =+Y29*'Compressed Air Inputs'!$G$18 -> 0
V30: Avg kW | X30: =(X26*'Compressed Air Inputs'!L18+'CompAir1-Storage'!X27*'Compressed Air Inputs'!M18+'CompAir1-Storage'!X28*'Compressed Air Inputs'!N18+'CompAir1-Storage'!X29*'Compressed Air Inputs'!O18) -> 0 | Z30: =(Z26*'Compressed Air Inputs'!L18+'CompAir1-Storage'!Z27*'Compressed Air Inputs'!M18+'CompAir1-Storage'!Z28*'Compressed Air Inputs'!N18+'CompAir1-Storage'!Z29*'Compressed Air Inputs'!O18) -> 0

Sheet CompAir2-Nozzle (hidden)
B1: Measure: Air Nozzles
O3: Table 2: Coincidence Factors
B4: Measure Summary | G4: Measure Description | O4: Program | P4: CFsp | Q4: CFwp
D5: Value | E5: Unit | G5: This measure covers the installation of engineered air nozzles which provide effective air nozzle action while reducing compressed air system air flow. | O5: LBES, SBES, Muni | P5: 0.8 | Q5: 0.54
B6: Total Savings | D6: =SUM(K34) -> 0 | E6: kW
D7: =L34 -> 0 | E7: kWh | O7: Table 3: kW/cfm
D8: 0 | E8: MMBtu | O8: No. | P8: Compressor Type | Q8: kW/cfm
B9: Measure Life | D9: 13 | E9: Years | O9: 1 | P9: ='Compressed Air Inputs'!I16 -> 0 | Q9: ='Compressed Air Inputs'!G16/'Compressed Air Inputs'!F16 -> 
B10: CFsp | D10: =P5*100 -> 80 | E10: % | O10: 2 | P10: ='Compressed Air Inputs'!I17 -> 0 | Q10: ='Compressed Air Inputs'!G17/'Compressed Air Inputs'!F17 -> 
B11: CFwp | D11: =Q5*100 -> 54 | E11: % | O11: 3 | P11: ='Compressed Air Inputs'!I18 -> 0 | Q11: ='Compressed Air Inputs'!G18/'Compressed Air Inputs'!F18 -> 
B13: Compressed Air - Air Nozzles
B14: Measure Code | D14: COM-CA-AN | G14: NOTE: For more information on this measure refer to the NH TRM. | O14: Table 4: kW/CFM Default Values
B15: Market | D15: Commercial | O15: Air Compressor Type | P15: SAVE ( kW/CFM)
B16: Program Type | D16: Retrofit | O16: Single-acting Reciprocating | P16: 0.23
B17: Category | D17: Compressed Air | O17: Double-acting Reciprocating | P17: 0.155
O18: Lubricant-injected Rotary Screw (Single Stage) | P18: 0.185
O19: Lubricant-injected Rotary Screw (Double Stage) | P19: 0.165
O20: Lubricant-free Rotary Screw | P20: 0.2
B21: Table 1: Calculating Primary Energy Impact | O21: Centrifugal | P21: 0.18
C22: Inputs | K22: Savings | O22: Other | P22: 0.19
C23: Quantity | D23: Air Nozzle Model No. | E23: FLOWbase (CFM) | F23: FLOWEE (CFM) | G23: kW/cfm | H23: hours/year | K23: kW | L23: kWh
B24: 1 | C24: =+'Compressed Air Inputs'!E24 -> 0 | D24: =IF('Compressed Air Inputs'!I24="","",'Compressed Air Inputs'!I24) ->  | E24: =IFERROR(IF(OR(ISBLANK(D24)),"",'Compressed Air Inputs'!F24),"Error: fill in Input Sheet") -> 0 | F24: =IFERROR(IF(OR(ISBLANK(D24)),"",'Compressed Air Inputs'!G24),"Error: fill in Input Sheet") -> 0 | G24: =IFERROR(IFERROR(VLOOKUP("Trim",$P$9:$Q$11,2,FALSE),VLOOKUP("Trim",$P$26:$Q$28,2,FALSE)),IFERROR(Q9,Q26)) ->  | H24: =IFERROR(IF(OR(ISBLANK(D24)),"",'Compressed Air Inputs'!H24),"Error: fill in Input Sheet") -> 0 | K24: =IFERROR((E24-F24)*G24*C24,"") ->  | L24: =IFERROR(K24*H24,"") ->  | O24: Table 5: kW/cfm Backup
B25: 2 | C25: =+'Compressed Air Inputs'!E25 -> 0 | D25: =IF('Compressed Air Inputs'!I25="","",'Compressed Air Inputs'!I25) ->  | E25: =IFERROR(IF(OR(ISBLANK(D25)),"",'Compressed Air Inputs'!F25),"Error: fill in Input Sheet") -> 0 | F25: =IFERROR(IF(OR(ISBLANK(D25)),"",'Compressed Air Inputs'!G25),"Error: fill in Input Sheet") -> 0 | G25: =IFERROR(IFERROR(VLOOKUP("Trim",$P$9:$Q$11,2,FALSE),VLOOKUP("Trim",$P$26:$Q$28,2,FALSE)),IFERROR(Q10,Q27)) ->  | H25: =IFERROR(IF(OR(ISBLANK(D25)),"",'Compressed Air Inputs'!H25),"Error: fill in Input Sheet") -> 0 | O25: No. | P25: Compressor Type | Q25: kW/cfm
B26: 3 | C26: =+'Compressed Air Inputs'!E26 -> 0 | D26: =IF('Compressed Air Inputs'!I26="","",'Compressed Air Inputs'!I26) ->  | E26: =IFERROR(IF(OR(ISBLANK(D26)),"",'Compressed Air Inputs'!F26),"Error: fill in Input Sheet") -> 0 | F26: =IFERROR(IF(OR(ISBLANK(D26)),"",'Compressed Air Inputs'!G26),"Error: fill in Input Sheet") -> 0 | H26: =IFERROR(IF(OR(ISBLANK(D26)),"",'Compressed Air Inputs'!H26),"Error: fill in Input Sheet") -> 0 | O26: 1 | P26: ='Compressed Air Inputs'!I16 -> 0 | Q26: =IFERROR(VLOOKUP('Compressed Air Inputs'!H16,$O$16:$P$22,2,FALSE),"") -> 
B27: 4 | C27: =+'Compressed Air Inputs'!E27 -> 0 | D27: =IF('Compressed Air Inputs'!I27="","",'Compressed Air Inputs'!I27) ->  | E27: =IFERROR(IF(OR(ISBLANK(D27)),"",'Compressed Air Inputs'!F27),"Error: fill in Input Sheet") -> 0 | F27: =IFERROR(IF(OR(ISBLANK(D27)),"",'Compressed Air Inputs'!G27),"Error: fill in Input Sheet") -> 0 | G27: 0 | H27: =IFERROR(IF(OR(ISBLANK(D27)),"",'Compressed Air Inputs'!H27),"Error: fill in Input Sheet") -> 0 | K27: 0 | L27: 0 | O27: 2 | P27: ='Compressed Air Inputs'!I17 -> 0 | Q27: =IFERROR(VLOOKUP('Compressed Air Inputs'!H17,$O$16:$P$22,2,FALSE),"") -> 
B28: 5 | C28: =+'Compressed Air Inputs'!E28 -> 0 | D28: =IF('Compressed Air Inputs'!I28="","",'Compressed Air Inputs'!I28) ->  | E28: =IFERROR(IF(OR(ISBLANK(D28)),"",'Compressed Air Inputs'!F28),"Error: fill in Input Sheet") -> 0 | F28: =IFERROR(IF(OR(ISBLANK(D28)),"",'Compressed Air Inputs'!G28),"Error: fill in Input Sheet") -> 0 | G28: 0 | H28: =IFERROR(IF(OR(ISBLANK(D28)),"",'Compressed Air Inputs'!H28),"Error: fill in Input Sheet") -> 0 | K28: 0 | L28: 0 | O28: 3 | P28: ='Compressed Air Inputs'!I18 -> 0 | Q28: =IFERROR(VLOOKUP('Compressed Air Inputs'!H18,$O$16:$P$22,2,FALSE),"") -> 
B29: 6 | C29: =+'Compressed Air Inputs'!E29 -> 0 | D29: =IF('Compressed Air Inputs'!I29="","",'Compressed Air Inputs'!I29) ->  | E29: =IFERROR(IF(OR(ISBLANK(D29)),"",'Compressed Air Inputs'!F29),"Error: fill in Input Sheet") -> 0 | F29: =IFERROR(IF(OR(ISBLANK(D29)),"",'Compressed Air Inputs'!G29),"Error: fill in Input Sheet") -> 0 | G29: 0 | H29: =IFERROR(IF(OR(ISBLANK(D29)),"",'Compressed Air Inputs'!H29),"Error: fill in Input Sheet") -> 0 | K29: 0 | L29: 0
B30: 7 | C30: =+'Compressed Air Inputs'!E30 -> 0 | D30: =IF('Compressed Air Inputs'!I30="","",'Compressed Air Inputs'!I30) ->  | E30: =IFERROR(IF(OR(ISBLANK(D30)),"",'Compressed Air Inputs'!F30),"Error: fill in Input Sheet") -> 0 | F30: =IFERROR(IF(OR(ISBLANK(D30)),"",'Compressed Air Inputs'!G30),"Error: fill in Input Sheet") -> 0 | G30: 0 | H30: =IFERROR(IF(OR(ISBLANK(D30)),"",'Compressed Air Inputs'!H30),"Error: fill in Input Sheet") -> 0 | K30: 0 | L30: 0
B31: 8 | C31: =+'Compressed Air Inputs'!E31 -> 0 | D31: =IF('Compressed Air Inputs'!I31="","",'Compressed Air Inputs'!I31) ->  | E31: =IFERROR(IF(OR(ISBLANK(D31)),"",'Compressed Air Inputs'!F31),"Error: fill in Input Sheet") -> 0 | F31: =IFERROR(IF(OR(ISBLANK(D31)),"",'Compressed Air Inputs'!G31),"Error: fill in Input Sheet") -> 0 | G31: 0 | H31: =IFERROR(IF(OR(ISBLANK(D31)),"",'Compressed Air Inputs'!H31),"Error: fill in Input Sheet") -> 0 | K31: 0 | L31: 0
B32: 9 | C32: =+'Compressed Air Inputs'!E32 -> 0 | D32: =IF('Compressed Air Inputs'!I32="","",'Compressed Air Inputs'!I32) ->  | E32: =IFERROR(IF(OR(ISBLANK(D32)),"",'Compressed Air Inputs'!F32),"Error: fill in Input Sheet") -> 0 | F32: =IFERROR(IF(OR(ISBLANK(D32)),"",'Compressed Air Inputs'!G32),"Error: fill in Input Sheet") -> 0 | G32: 0 | H32: =IFERROR(IF(OR(ISBLANK(D32)),"",'Compressed Air Inputs'!H32),"Error: fill in Input Sheet") -> 0 | K32: 0 | L32: 0
B33: 10 | C33: =+'Compressed Air Inputs'!E33 -> 0 | D33: =IF('Compressed Air Inputs'!I33="","",'Compressed Air Inputs'!I33) ->  | E33: =IFERROR(IF(OR(ISBLANK(D33)),"",'Compressed Air Inputs'!F33),"Error: fill in Input Sheet") -> 0 | F33: =IFERROR(IF(OR(ISBLANK(D33)),"",'Compressed Air Inputs'!G33),"Error: fill in Input Sheet") -> 0 | G33: 0 | H33: =IFERROR(IF(OR(ISBLANK(D33)),"",'Compressed Air Inputs'!H33),"Error: fill in Input Sheet") -> 0 | K33: 0 | L33: 0
B34: Totals | C34: =SUM(C24:C33) -> 0 | E34: =SUMPRODUCT(E24:E33,$H$24:$H$33)/SUM($H$24:$H$33) ->  | F34: =SUMPRODUCT(F24:F33,$H$24:$H$33)/SUM($H$24:$H$33) ->  | K34: =SUM(K24:K33) -> 0 | L34: =SUM(L24:L33) -> 0

Sheet CompAir3-LPFilter (hidden)
B1: Measure: Low Pressure Drop Filter
N2: Table 2: Coincidence Factors
N3: Program | O3: CFsp | P3: CFwp
B4: Measure Summary | G4: Measure Description | N4: LBES, SBES, Muni | O4: 0.8 | P4: 0.54
D5: Value | E5: Unit | G5: Filters remove solids and aerosols from compressed air systems. Low pressure drop filters have longer lives and lower pressure drops than traditional coalescing filters, resulting in low air compressor energy use.
B6: Total Savings | D6: =IF(O26="No - No savings result", 0, J26) -> 0 | E6: kW
D7: =IF(O26="No - No savings result", 0, K26) -> 0 | E7: kWh
D8: 0 | E8: MMBtu
B9: Measure Life | D9: 5 | E9: Years
B10: CFsp | D10: =O4*100 -> 80 | E10: %
B11: CFwp | D11: =P4*100 -> 54 | E11: %
B13: Compressed Air - Low Pressue Drop Filter
B14: Measure Code | D14: COM-CA-LPDF | G14: NOTE: For more information on this measure refer to the NH TRM.
B15: Market | D15: Commercial
B16: Program Type | D16: Retrofit
B17: Category | D17: Compressed Air
B21: Table 1: Calculating Primary Energy Impact
C22: Inputs | J22: Savings
C23: Base case | E23: Proposed | F23: Annual | J23: Demand | K23: Energy
C24: kW | D24: psi drop | E24: psi drop | F24: Hours | J24: kW | K24: kWh | N24: Savings Check
B25: 1 | C25: =IFERROR('CompAir1-Storage'!AC12,"") ->  | D25: ='Compressed Air Inputs'!D40 -> 0 | E25: 0.5 | F25: ='Compressed Air Inputs'!K16 -> 0 | J25: =IFERROR(IF(O26="No - No savings result","",C25*(D25-E25)*0.004),"") ->  | K25: =IFERROR(IF(O26="No - No savings result","",J25*F25),"") ->  | N25: Current compressor HP | O25: ='Compressed Air Inputs'!E16 -> 0
C26: Totals | J26: =SUM(J25:J25) -> 0 | K26: =SUM(K25:K25) -> 0 | N26: Compresser 15 - 75 HP? | O26: =IF(AND(O25<=75, O25>=15),"Yes - Savings result", "No - No savings result") -> No - No savings result

Sheet CompAir4-ZeroLossDrain (hidden)
B1: Measure: Zero Loss Condensate Drain
N2: Table 2: Coincidence Factors
N3: Program | O3: CFsp | P3: CFwp
B4: Measure Summary | G4: Measure Description | N4: LBES, SBES, Muni | O4: 0.8 | P4: 0.54
D5: Value | E5: Unit | G5: Drains remove water from a compressed air system. Zero loss condensate drains remove water from a compressed air system without venting any air, resulting in less air demand and consequently less air compressor energy use. Savings result only if compressor is rated ≤ 75 HP.
B6: Total Savings | D6: =IF(O23="Yes - Savings result", J31, 0) -> 0 | E6: kW | N6: Table 3: CFM calculations based on pipe size
D7: =IF(O23="Yes - Savings result", K31, 0) -> 0 | E7: kWh | N7: Size (inches) | O7: psi/1000 ft | P7: cfm
D8: 0 | E8: MMBtu | N8: 0.5 | O8: 2 | P8: 5.533199471
B9: Measure Life | D9: 15 | E9: Years | N9: 0.75 | O9: 2 | P9: 14.03885212
B10: CFsp | D10: =O4*100 -> 80 | E10: % | N10: 1 | O10: 2 | P10: 26.68766595
B11: CFwp | D11: =P4*100 -> 54 | E11: % | N11: 1.25 | O11: 2 | P11: 55.3715148
N12: 1.5 | O12: 2 | P12: 83.22536437
B13: Compressed Air - Zero Loss Condensate Drain | N13: 1.75 | O13: 2 | P13: 115.2302885
B14: Measure Code | D14: COM-CA-ZLCD | G14: NOTE: For more information on this measure refer to the NH TRM. | N14: 2 | O14: 2 | P14: 161.0460325
B15: Market | D15: Commercial | N15: 2.5 | O15: 2 | P15: 258.6633399
B16: Program Type | D16: Retrofit | N16: 3 | O16: 2 | P16: 459.0990009
B17: Category | D17: Compressed Air | N17: 3.5 | O17: 2 | P17: 672.6424805
N18: 4 | O18: 2 | P18: 943.8185941
B21: Table 1: Calculating Primary Energy Impact | M21: Savings Check
C22: Inputs | J22: Savings | M22: Current compressor HP: | O22: =IF('Compressed Air Inputs'!I16="trim",'Compressed Air Inputs'!E16,IF('Compressed Air Inputs'!I17="trim",'Compressed Air Inputs'!E17,IF('Compressed Air Inputs'!I18="trim",'Compressed Air Inputs'!E18,""))) -> 
C23: Pipe Size | D23: CFMpipe | E23: kW/cfm | F23: CFMsaved | G23: Hours | J23: kW | K23: kWh | M23: Compresser ≤ 75 HP? | O23: =IF(O22<=75,"Yes - Savings result", "No - No savings result") -> No - No savings result
B24: 1 | C24: =IF(ISBLANK('Compressed Air Inputs'!N24),"",'Compressed Air Inputs'!N24) ->  | D24: =IF(C24="","",VLOOKUP(C24,$N$8:$P$18,3,FALSE)) ->  | E24: =IF(C24="","",LOOKUP("trim",'Compressed Air Inputs'!$I$16:$I$18,'Compressed Air Inputs'!$G$16:$G$18)/LOOKUP("trim",'Compressed Air Inputs'!$I$16:$I$18,'Compressed Air Inputs'!$F$16:$F$18)) ->  | F24: =IF(G24="","",0.049) ->  | G24: =IF(ISBLANK('Compressed Air Inputs'!O24),"",'Compressed Air Inputs'!O24) ->  | J24: =IFERROR(IF(O23="No - No savings result","",D24*F24*E24),"") ->  | K24: =IFERROR(J24*G24,"") -> 
B25: 2 | C25: =IF(ISBLANK('Compressed Air Inputs'!N25),"",'Compressed Air Inputs'!N25) ->  | D25: =IF(C25="","",VLOOKUP(C25,$N$8:$P$18,3,FALSE)) ->  | E25: =IF(C25="","",LOOKUP("trim",'Compressed Air Inputs'!$I$16:$I$18,'Compressed Air Inputs'!$G$16:$G$18)/LOOKUP("trim",'Compressed Air Inputs'!$I$16:$I$18,'Compressed Air Inputs'!$F$16:$F$18)) ->  | G25: =IF(ISBLANK('Compressed Air Inputs'!O25),"",'Compressed Air Inputs'!O25) ->  | J25: =IFERROR(D25*F25*E25,"") ->  | K25: =IFERROR(J25*G25,"") -> 
B26: 3 | C26: =IF(ISBLANK('Compressed Air Inputs'!N26),"",'Compressed Air Inputs'!N26) ->  | E26: =IF(C26="","",LOOKUP("trim",'Compressed Air Inputs'!$I$16:$I$18,'Compressed Air Inputs'!$G$16:$G$18)/LOOKUP("trim",'Compressed Air Inputs'!$I$16:$I$18,'Compressed Air Inputs'!$F$16:$F$18)) ->  | G26: =IF(ISBLANK('Compressed Air Inputs'!O26),"",'Compressed Air Inputs'!O26) -> 
B27: 4 | C27: =IF(ISBLANK('Compressed Air Inputs'!N27),"",'Compressed Air Inputs'!N27) ->  | E27: =IF(C27="","",LOOKUP("trim",'Compressed Air Inputs'!$I$16:$I$18,'Compressed Air Inputs'!$G$16:$G$18)/LOOKUP("trim",'Compressed Air Inputs'!$I$16:$I$18,'Compressed Air Inputs'!$F$16:$F$18)) ->  | G27: =IF(ISBLANK('Compressed Air Inputs'!O27),"",'Compressed Air Inputs'!O27) -> 
B28: 5 | C28: =IF(ISBLANK('Compressed Air Inputs'!N28),"",'Compressed Air Inputs'!N28) ->  | E28: =IF(C28="","",LOOKUP("trim",'Compressed Air Inputs'!$I$16:$I$18,'Compressed Air Inputs'!$G$16:$G$18)/LOOKUP("trim",'Compressed Air Inputs'!$I$16:$I$18,'Compressed Air Inputs'!$F$16:$F$18)) ->  | G28: =IF(ISBLANK('Compressed Air Inputs'!O28),"",'Compressed Air Inputs'!O28) -> 
B29: 6 | C29: =IF(ISBLANK('Compressed Air Inputs'!N29),"",'Compressed Air Inputs'!N29) ->  | E29: =IF(C29="","",LOOKUP("trim",'Compressed Air Inputs'!$I$16:$I$18,'Compressed Air Inputs'!$G$16:$G$18)/LOOKUP("trim",'Compressed Air Inputs'!$I$16:$I$18,'Compressed Air Inputs'!$F$16:$F$18)) ->  | G29: =IF(ISBLANK('Compressed Air Inputs'!O29),"",'Compressed Air Inputs'!O29) -> 
B30: 7 | C30: =IF(ISBLANK('Compressed Air Inputs'!N30),"",'Compressed Air Inputs'!N30) ->  | E30: =IF(C30="","",LOOKUP("trim",'Compressed Air Inputs'!$I$16:$I$18,'Compressed Air Inputs'!$G$16:$G$18)/LOOKUP("trim",'Compressed Air Inputs'!$I$16:$I$18,'Compressed Air Inputs'!$F$16:$F$18)) ->  | G30: =IF(ISBLANK('Compressed Air Inputs'!O30),"",'Compressed Air Inputs'!O30) -> 
I31: Totals: | J31: =SUM(J24:J30) -> 0 | K31: =SUM(K24:K30) -> 0

Sheet CompAir5-LeakRepair (hidden)
B1: Measure: Compressed Air Leak Detection & Repair
N2: Table 2: Coincidence Factors | S2: Table 5: FLOW RATE CHART - CFM
N3: Program | O3: CFsp | P3: CFwp | S3: PSI: | T3: 150 | U3: 140 | V3: 130 | W3: 120 | X3: 110 | Y3: 100 | Z3: 90 | AA3: 80 | AB3: 70 | AC3: 60 | AD3: 50 | AE3: 40 | AF3: 30 | AG3: 20 | AH3: 10
B4: Measure Summary | G4: Measure Description | N4: LBES, SBES, Muni | O4: 0.8 | P4: 0.54 | S4: dB Reading | T4: Leak Rate | U4: Leak Rate | V4: Leak Rate | W4: Leak Rate | X4: Leak Rate | Y4: Leak Rate | Z4: Leak Rate | AA4: Leak Rate | AB4: Leak Rate | AC4: Leak Rate | AD4: Leak Rate | AE4: Leak Rate | AF4: Leak Rate | AG4: Leak Rate | AH4: Leak Rate
D5: Value | E5: Unit | G5: This measure covers the repair of compressed air losses identified through ultrasonic leak detection. Air leaks are common in compressed air systems, often wasting 20%-30% of the compressor’s output. Air leak loss rate depend on the supply pressure in an uncontrolled system, as well as leak size quantity and time. This measure is applicable for general plant compressed air systems in manufacturing environments (70 to 125 psig). | S5: 1 | T5: 0.0297 | U5: 0.02582 | V5: 0.02194 | W5: 0.0188 | X5: 0.0164 | Y5: 0.014 | Z5: 0.01168 | AA5: 0.00936 | AB5: 0.00718 | AC5: 0.00514 | AD5: 0.0031 | AE5: 0.00226 | AF5: 0.00142 | AG5: 0.0008 | AH5: 0.0004
B6: Total Savings | D6: =J34 -> 0 | E6: kW | N6: Table 3: kW/CFM Efficiencies | S6: 2 | T6: 0.07168458574 | U6: 0.06326145322 | V6: 0.05483832071 | W6: 0.04789269688 | X6: 0.04242458174 | Y6: 0.03695646659 | Z6: 0.03143698462 | AA6: 0.02591750265 | AB6: 0.0205218336 | AC6: 0.01524997748 | AD6: 0.009978121354 | AE6: 0.007498992048 | AF6: 0.005019862742 | AG6: 0.003082614672 | AH6: 0.001687247838
D7: =K34 -> 0 | E7: kWh | N7: Air Compressor Type | O7: SAVE ( kW/CFM) | S7: 3 | T7: 0.120025352 | U7: 0.1068798168 | V7: 0.09373428152 | W7: 0.08277044359 | X7: 0.07398830296 | Y7: 0.06520616233 | Z7: 0.05612593414 | AA7: 0.04704570595 | AB7: 0.03795865576 | AC7: 0.02886478358 | AD7: 0.0197709114 | AE7: 0.01515422313 | AF7: 0.01053753485 | AG7: 0.006791482433 | AH7: 0.003916065876
D8: 0 | E8: MMBtu | N8: Single-acting Reciprocating | O8: 0.23 | S8: 4 | T8: 0.173019523 | U8: 0.1550730791 | V8: 0.1371266353 | W8: 0.1220338796 | X8: 0.109794812 | Y8: 0.09755574448 | Z8: 0.0846935406 | AA8: 0.07183133672 | AB8: 0.0587436011 | AC8: 0.04543033373 | AD8: 0.03211706637 | AE8: 0.02498650128 | AF8: 0.01785593618 | AG8: 0.01189944015 | AH8: 0.007117013167
B9: Measure Life | D9: 5 | E9: Years | N9: Double-acting Reciprocating | O9: 0.155 | S9: 5 | T9: 0.229766717 | U9: 0.2069857865 | V9: 0.184204856 | W9: 0.1649198306 | X9: 0.1491307103 | Y9: 0.1333415901 | Z9: 0.1165468533 | AA9: 0.09975211657 | AB9: 0.08244226315 | AC9: 0.06461729307 | AD9: 0.04679232299 | AE9: 0.0368460875 | AF9: 0.02689985201 | AG9: 0.01838850432 | AH9: 0.01131204443
B10: CFsp | D10: =O4*100 -> 80 | E10: % | N10: Lubricant-injected Rotary Screw (Single Stage) | O10: 0.185 | S10: 6 | T10: 0.28969588 | U10: 0.2620716193 | V10: 0.2344473585 | W10: 0.2109337448 | X10: 0.1915307781 | Y10: 0.1721278114 | Z10: 0.1512929973 | AA10: 0.1304581833 | AB10: 0.1087601406 | AC10: 0.0861988692 | AD10: 0.06363759782 | AE10: 0.05062607626 | AF10: 0.03761455469 | AG10: 0.02624534068 | AH10: 0.01651843421
B11: CFwp | D11: =P4*100 -> 54 | E11: % | N11: Lubricant-injected Rotary Screw (Double Stage) | O11: 0.165 | S11: 7 | T11: 0.3524074474 | U11: 0.3199462454 | V11: 0.2874850434 | W11: 0.2597237588 | X11: 0.2366623915 | Y11: 0.2136010243 | Z11: 0.1886475648 | AA11: 0.1636941054 | AB11: 0.1374801929 | AC11: 0.1100058274 | AD11: 0.08253146197 | AE11: 0.06624443385 | AF11: 0.04995740573 | AG11: 0.03545942141 | AH11: 0.0227504809
N12: Lubricant-free Rotary Screw | O12: 0.2 | S12: 8 | T12: 0.4176037989 | U12: 0.3803221072 | V12: 0.3430404154 | W12: 0.3110241644 | X12: 0.284273354 | Y12: 0.2575225437 | Z12: 0.2283926994 | AA12: 0.199262855 | AB12: 0.1684337002 | AC12: 0.1359052349 | AD12: 0.1033767696 | AE12: 0.08363523402 | AF12: 0.06389369843 | AG12: 0.04602209132 | AH12: 0.0300204127
B13: Compressed Air - Zero Loss Condensate Drain | N13: Centrifugal | O13: 0.18 | S13: 9 | T13: 0.4850533712 | U13: 0.4429746128 | V13: 0.4008958545 | W13: 0.3646258032 | X13: 0.3341644589 | Y13: 0.3037031147 | Z13: 0.2703548121 | AA13: 0.2370065096 | AB13: 0.2014845278 | AC13: 0.1637888668 | AD13: 0.1260932057 | AE13: 0.1027437553 | AF13: 0.07939430494 | AG13: 0.05792602979 | AH13: 0.03833892986
B14: COM-CA-AN | D14: COM-CA-AN | G14: NOTE: For more information on this measure refer to the NH TRM. | N14: Other | O14: 0.19 | S14: 10 | T14: 0.5545700983 | U14: 0.5077226935 | V14: 0.4608752887 | W14: 0.4203588978 | X14: 0.386173521 | Y14: 0.3519881442 | Z14: 0.3143914956 | AA14: 0.2767948469 | AB14: 0.236519765 | AC14: 0.1935662498 | AD14: 0.1506127346 | AE14: 0.1235234774 | AF14: 0.09643422022 | AG14: 0.07116491318 | AH14: 0.04771555628
B15: Market | D15: Commercial | S15: 11 | T15: 0.6260007171 | U15: 0.5744167571 | V15: 0.5228327971 | W15: 0.4780823386 | X15: 0.4401653816 | Y15: 0.4022484247 | Z15: 0.3603832685 | AA15: 0.3185181124 | AB15: 0.2734437536 | AC15: 0.2251601923 | AD15: 0.1768766309 | AE15: 0.145934116 | AF15: 0.114991601 | AG15: 0.08573318933 | AH15: 0.05815888092
B16: Program Type | D16: Retrofit | N16: Table 4: Marginal Efficiency Factors | S16: 12 | T16: 0.6992164696 | U16: 0.6429307922 | V16: 0.5866451147 | W16: 0.5376766166 | X16: 0.496025298 | Y16: 0.4543739793 | Z16: 0.4082280796 | AA16: 0.3620821799 | AB16: 0.3121740727 | AC16: 0.2585037579 | AD16: 0.2048334431 | AE16: 0.1699402715 | AF16: 0.1350471 | AG16: 0.1016259198 | AH16: 0.06967673101
B17: Category | D17: Compressed Air | N17: Control Type | O17: % kW/ % Load | S17: 13 | T17: 0.7741074351 | U17: 0.7131569591 | V17: 0.6522064831 | W17: 0.5990389562 | X17: 0.5536543783 | Y17: 0.5082698004 | Z17: 0.4578374881 | AA17: 0.4074051757 | AB17: 0.3526387239 | AC17: 0.2935381324 | AD17: 0.234437541 | AE17: 0.1955104636 | AF17: 0.1565833862 | AG17: 0.1188386652 | AH17: 0.0822763007
N18: Inlet Valve Modulated | O18: 0.31 | S18: 14 | T18: 0.8505785145 | U18: 0.7850017497 | V18: 0.719424985 | W18: 0.6620798409 | X18: 0.6129663175 | Y18: 0.5638527941 | Z18: 0.5091339176 | AA18: 0.4544150412 | AB18: 0.3947740916 | AC18: 0.3302110689 | AD18: 0.2656480461 | AE18: 0.2226164176 | AF18: 0.179584789 | AG18: 0.1373673996 | AH18: 0.09596424928
N19: Variable Displacement | O19: 0.69 | S19: 15 | T19: 0.9285465011 | U19: 0.858383179 | V19: 0.7882198569 | W19: 0.726720462 | X19: 0.6738849941 | Y19: 0.6210495263 | Z19: 0.5620486251 | AA19: 0.5030477238 | AB19: 0.4385234232 | AC19: 0.3684757232 | AD19: 0.2984280233 | AE19: 0.2512325251 | AF19: 0.204037027 | AG19: 0.1572084446 | AH19: 0.110746778
N20: Variable Speed Drive | O20: 0.85 | S20: 16 | T20: 1.00793789 | U20: 0.933228681 | V20: 0.8585194721 | W20: 0.7928907981 | X20: 0.7363426591 | Y20: 0.6797945201 | Z20: 0.6165201613 | AA20: 0.5532458025 | AB20: 0.4838356696 | AC20: 0.4082897626 | AD20: 0.3327438556 | AE20: 0.2813354259 | AF20: 0.2299269962 | AG20: 0.1783584179 | AH20: 0.1266296911
B21: Table 1: Calculating Primary Energy Impact | S21: 17 | T21: 1.088687203 | U21: 1.009473498 | V21: 0.930259792 | W21: 0.8605281398 | X21: 0.800278541 | Y21: 0.7400289423 | Z21: 0.6724931819 | AA21: 0.6049574216 | AB21: 0.5306645837 | AC21: 0.4496146683 | AD21: 0.3685647528 | AE21: 0.312903678 | AF21: 0.2572426032 | AG21: 0.2008141923 | AH21: 0.1436184454
C22: Inputs | I22: Savings | N22: Table 5: kW/cfm | S22: 18 | T22: 1.170735689 | U22: 1.087059424 | V22: 1.003383158 | W22: 0.9295759345 | X22: 0.8656377534 | Y22: 0.8016995722 | Z22: 0.7299175112 | AA22: 0.6581354502 | AB22: 0.5789680072 | AC22: 0.4924151824 | AD22: 0.4058623575 | AE22: 0.3459174937 | AF22: 0.2859726298 | AG22: 0.2245728624 | AH22: 0.1617181913
C23: # Leaks | D23: CFMleak | E23: kW/cfm | F23: MEF | G23: Hours | H23: psi | J23: kW | K23: kWh | N23: No. | O23: Compressor Type | P23: kW/cfm | S23: 19 | T23: 1.254030291 | U23: 1.165933811 | V23: 1.077837332 | W23: 0.99998287 | X23: 0.932370425 | Y23: 0.8647579801 | Z23: 0.7887473944 | AA23: 0.7127368086 | AB23: 0.6287072976 | AC23: 0.5366588614 | AD23: 0.4446104252 | AE23: 0.3803585242 | AF23: 0.3161066231 | AG23: 0.2496317171 | AH23: 0.1809338061
B24: 1 | C24: =IF(ISBLANK('Compressed Air Inputs'!I38),"",'Compressed Air Inputs'!I38) ->  | D24: =IFERROR(IF('Compressed Air Inputs'!J38="Yes",'Compressed Air Inputs'!K38,INDEX($T$5:$AH$124,MATCH(ROUND('Compressed Air Inputs'!L38,0),$S$5:$S$124,0),MATCH(MROUND(H24,10),$T$3:$AH$3,0))),"") ->  | E24: =IFERROR(IFERROR(VLOOKUP("Trim",$O$24:$P$26,2,FALSE),VLOOKUP("Trim",$O$30:$P$32,2,FALSE)),IFERROR($P$24,$P$30)) ->  | F24: =VLOOKUP(IFERROR(VLOOKUP("Trim",'Compressed Air Inputs'!$I$16:$J$18,2,FALSE),'Compressed Air Inputs'!$J$16),$N$18:$O$20,2,FALSE) ->  | G24: =8760 -> 8760 | H24: =IFERROR(VLOOKUP("Trim",'Compressed Air Inputs'!$I$16:$P$18,8,FALSE),'Compressed Air Inputs'!$P$16) -> 0 | J24: =IFERROR(K24/G24,"") ->  | K24: =IFERROR(C24*D24*E24*F24*G24,"") ->  | N24: 1 | O24: ='Compressed Air Inputs'!I16 -> 0 | P24: ='Compressed Air Inputs'!G16/'Compressed Air Inputs'!F16 ->  | S24: 20 | T24: 1.33852282 | U24: 1.246048773 | V24: 1.153574726 | W24: 1.071702134 | X24: 1.000430999 | Y24: 0.9291598637 | Z24: 0.8489408929 | AA24: 0.768721922 | AB24: 0.6798468617 | AC24: 0.582315712 | AD24: 0.4847845623 | AE24: 0.4162096833 | AF24: 0.3476348043 | AG24: 0.2759882175 | AH24: 0.2012699229
B25: 2 | C25: =IF(ISBLANK('Compressed Air Inputs'!I39),"",'Compressed Air Inputs'!I39) ->  | D25: =IFERROR(IF('Compressed Air Inputs'!J39="Yes",'Compressed Air Inputs'!K39,INDEX($T$5:$AH$124,MATCH(ROUND('Compressed Air Inputs'!L39,0),$S$5:$S$124,0),MATCH(MROUND(H25,10),$T$3:$AH$3,0))),"") ->  | E25: =IFERROR(IFERROR(VLOOKUP("Trim",$O$24:$P$26,2,FALSE),VLOOKUP("Trim",$O$30:$P$32,2,FALSE)),IFERROR($P$24,$P$30)) ->  | F25: =VLOOKUP(IFERROR(VLOOKUP("Trim",'Compressed Air Inputs'!$I$16:$J$18,2,FALSE),'Compressed Air Inputs'!$J$16),$N$18:$O$20,2,FALSE) ->  | G25: =8760 -> 8760 | H25: =IFERROR(VLOOKUP("Trim",'Compressed Air Inputs'!$I$16:$P$18,8,FALSE),'Compressed Air Inputs'!$P$16) -> 0 | J25: =IFERROR(K25/G25,"") ->  | K25: =IFERROR(C25*D25*E25*F25*G25,"") ->  | N25: 2 | O25: ='Compressed Air Inputs'!I17 -> 0 | P25: ='Compressed Air Inputs'!G17/'Compressed Air Inputs'!F17 ->  | S25: 21 | T25: 1.42416929 | U25: 1.327360531 | V25: 1.230551772 | W25: 1.144690815 | X25: 1.06977766 | Y25: 0.9948645044 | Z25: 0.910459388 | AA25: 0.8260542717 | AB25: 0.7323537722 | AC25: 0.6293578897 | AD25: 0.5263620072 | AE25: 0.4534549999 | AF25: 0.3805479926 | AG25: 0.3036399775 | AH25: 0.2227309548
B26: 3 | C26: =IF(ISBLANK('Compressed Air Inputs'!I40),"",'Compressed Air Inputs'!I40) ->  | D26: =IFERROR(IF('Compressed Air Inputs'!J40="Yes",'Compressed Air Inputs'!K40,INDEX($T$5:$AH$124,MATCH(ROUND('Compressed Air Inputs'!L40,0),$S$5:$S$124,0),MATCH(MROUND(H26,10),$T$3:$AH$3,0))),"") ->  | F26: =VLOOKUP(IFERROR(VLOOKUP("Trim",'Compressed Air Inputs'!$I$16:$J$18,2,FALSE),'Compressed Air Inputs'!$J$16),$N$18:$O$20,2,FALSE) ->  | G26: =8760 -> 8760 | H26: =IFERROR(VLOOKUP("Trim",'Compressed Air Inputs'!$I$16:$P$18,8,FALSE),'Compressed Air Inputs'!$P$16) -> 0 | N26: 3 | O26: ='Compressed Air Inputs'!I18 -> 0 | P26: ='Compressed Air Inputs'!G18/'Compressed Air Inputs'!F18 ->  | S26: 22 | T26: 1.510929363 | U26: 1.409828886 | V26: 1.308728409 | W26: 1.2189094 | X26: 1.140371859 | Y26: 1.061834319 | Z26: 0.9732671709 | AA26: 0.8847000226 | AB26: 0.7861974483 | AC26: 0.677759448 | AD26: 0.5693214477 | AE26: 0.4920794944 | AF26: 0.4148375411 | AG26: 0.332584748 | AH26: 0.2453211152
B27: 4 | C27: =IF(ISBLANK('Compressed Air Inputs'!I41),"",'Compressed Air Inputs'!I41) ->  | D27: =IFERROR(IF('Compressed Air Inputs'!J41="Yes",'Compressed Air Inputs'!K41,INDEX($T$5:$AH$124,MATCH(ROUND('Compressed Air Inputs'!L41,0),$S$5:$S$124,0),MATCH(MROUND(H27,10),$T$3:$AH$3,0))),"") ->  | F27: =VLOOKUP(IFERROR(VLOOKUP("Trim",'Compressed Air Inputs'!$I$16:$J$18,2,FALSE),'Compressed Air Inputs'!$J$16),$N$18:$O$20,2,FALSE) ->  | G27: =8760 -> 8760 | H27: =IFERROR(VLOOKUP("Trim",'Compressed Air Inputs'!$I$16:$P$18,8,FALSE),'Compressed Air Inputs'!$P$16) -> 0 | S27: 23 | T27: 1.598765892 | U27: 1.493416769 | V27: 1.388067647 | W27: 1.294321365 | X27: 1.212177926 | Y27: 1.130034486 | Z27: 1.037331099 | AA27: 0.9446277116 | AB27: 0.8413493876 | AC27: 0.7274961265 | AD27: 0.6136428655 | AE27: 0.5320690738 | AF27: 0.450495282 | AG27: 0.3628204029 | AH27: 0.2690444364
B28: 5 | C28: =IF(ISBLANK('Compressed Air Inputs'!I42),"",'Compressed Air Inputs'!I42) ->  | D28: =IFERROR(IF('Compressed Air Inputs'!J42="Yes",'Compressed Air Inputs'!K42,INDEX($T$5:$AH$124,MATCH(ROUND('Compressed Air Inputs'!L42,0),$S$5:$S$124,0),MATCH(MROUND(H28,10),$T$3:$AH$3,0))),"") ->  | F28: =VLOOKUP(IFERROR(VLOOKUP("Trim",'Compressed Air Inputs'!$I$16:$J$18,2,FALSE),'Compressed Air Inputs'!$J$16),$N$18:$O$20,2,FALSE) ->  | G28: =8760 -> 8760 | H28: =IFERROR(VLOOKUP("Trim",'Compressed Air Inputs'!$I$16:$P$18,8,FALSE),'Compressed Air Inputs'!$P$16) -> 0 | N28: Table 5: kW/cfm Backup | S28: 24 | T28: 1.687644544 | U28: 1.578089878 | V28: 1.468535212 | W28: 1.370892829 | X28: 1.285162728 | Y28: 1.199432628 | Z28: 1.102620306 | AA28: 1.005807984 | AB28: 0.8977829395 | AC28: 0.7785451718 | AD28: 0.6593074041 | AE28: 0.5734104421 | AF28: 0.48751348 | AG28: 0.3943449274 | AH28: 0.2939047844
B29: 6 | C29: =IF(ISBLANK('Compressed Air Inputs'!I43),"",'Compressed Air Inputs'!I43) ->  | D29: =IFERROR(IF('Compressed Air Inputs'!J43="Yes",'Compressed Air Inputs'!K43,INDEX($T$5:$AH$124,MATCH(ROUND('Compressed Air Inputs'!L43,0),$S$5:$S$124,0),MATCH(MROUND(H29,10),$T$3:$AH$3,0))),"") ->  | F29: =VLOOKUP(IFERROR(VLOOKUP("Trim",'Compressed Air Inputs'!$I$16:$J$18,2,FALSE),'Compressed Air Inputs'!$J$16),$N$18:$O$20,2,FALSE) ->  | G29: =8760 -> 8760 | H29: =IFERROR(VLOOKUP("Trim",'Compressed Air Inputs'!$I$16:$P$18,8,FALSE),'Compressed Air Inputs'!$P$16) -> 0 | N29: No. | O29: Compressor Type | P29: kW/cfm | S29: 25 | T29: 1.777533475 | U29: 1.663816358 | V29: 1.55009924 | W29: 1.448592255 | X29: 1.3592954 | Y29: 1.269998546 | Z29: 1.169105958 | AA29: 1.06821337 | AB29: 0.9554731113 | AC29: 0.8308851832 | AD29: 0.7062972551 | AE29: 0.6160910233 | AF29: 0.5258847914 | AG29: 0.4271564081 | AH29: 0.3199058731
B30: 7 | C30: =IF(ISBLANK('Compressed Air Inputs'!I44),"",'Compressed Air Inputs'!I44) ->  | D30: =IFERROR(IF('Compressed Air Inputs'!J44="Yes",'Compressed Air Inputs'!K44,INDEX($T$5:$AH$124,MATCH(ROUND('Compressed Air Inputs'!L44,0),$S$5:$S$124,0),MATCH(MROUND(H30,10),$T$3:$AH$3,0))),"") ->  | F30: =VLOOKUP(IFERROR(VLOOKUP("Trim",'Compressed Air Inputs'!$I$16:$J$18,2,FALSE),'Compressed Air Inputs'!$J$16),$N$18:$O$20,2,FALSE) ->  | G30: =8760 -> 8760 | H30: =IFERROR(VLOOKUP("Trim",'Compressed Air Inputs'!$I$16:$P$18,8,FALSE),'Compressed Air Inputs'!$P$16) -> 0 | N30: 1 | O30: ='Compressed Air Inputs'!I16 -> 0 | P30: =IFERROR(VLOOKUP('Compressed Air Inputs'!H16,$N$8:$O$14,2,FALSE),"") ->  | S30: 26 | T30: 1.868403057 | U30: 1.750566536 | V30: 1.632730015 | W30: 1.527390202 | X30: 1.434547097 | Y30: 1.341703993 | Z30: 1.236761041 | AA30: 1.131818089 | AB30: 1.014396402 | AC30: 0.8844959808 | AD30: 0.7545955594 | AE30: 0.6600988945 | AF30: 0.5656022296 | AG30: 0.4612530235 | AH30: 0.3470512762
B31: 8 | C31: =IF(ISBLANK('Compressed Air Inputs'!I45),"",'Compressed Air Inputs'!I45) ->  | D31: =IFERROR(IF('Compressed Air Inputs'!J45="Yes",'Compressed Air Inputs'!K45,INDEX($T$5:$AH$124,MATCH(ROUND('Compressed Air Inputs'!L45,0),$S$5:$S$124,0),MATCH(MROUND(H31,10),$T$3:$AH$3,0))),"") ->  | F31: =VLOOKUP(IFERROR(VLOOKUP("Trim",'Compressed Air Inputs'!$I$16:$J$18,2,FALSE),'Compressed Air Inputs'!$J$16),$N$18:$O$20,2,FALSE) ->  | G31: =8760 -> 8760 | H31: =IFERROR(VLOOKUP("Trim",'Compressed Air Inputs'!$I$16:$P$18,8,FALSE),'Compressed Air Inputs'!$P$16) -> 0 | N31: 2 | O31: ='Compressed Air Inputs'!I17 -> 0 | P31: =IFERROR(VLOOKUP('Compressed Air Inputs'!H17,$N$8:$O$14,2,FALSE),"") ->  | S31: 27 | T31: 1.960225644 | U31: 1.838312695 | V31: 1.716399747 | W31: 1.607259112 | X31: 1.510890792 | Y31: 1.414522471 | Z31: 1.30556018 | AA31: 1.196597889 | AB31: 1.074530659 | AC31: 0.9393584905 | AD31: 0.8041863219 | AE31: 0.7054227278 | AF31: 0.6066591337 | AG31: 0.4966330369 | AH31: 0.3753444374
B32: 9 | C32: =IF(ISBLANK('Compressed Air Inputs'!I46),"",'Compressed Air Inputs'!I46) ->  | D32: =IFERROR(IF('Compressed Air Inputs'!J46="Yes",'Compressed Air Inputs'!K46,INDEX($T$5:$AH$124,MATCH(ROUND('Compressed Air Inputs'!L46,0),$S$5:$S$124,0),MATCH(MROUND(H32,10),$T$3:$AH$3,0))),"") ->  | F32: =VLOOKUP(IFERROR(VLOOKUP("Trim",'Compressed Air Inputs'!$I$16:$J$18,2,FALSE),'Compressed Air Inputs'!$J$16),$N$18:$O$20,2,FALSE) ->  | G32: =8760 -> 8760 | H32: =IFERROR(VLOOKUP("Trim",'Compressed Air Inputs'!$I$16:$P$18,8,FALSE),'Compressed Air Inputs'!$P$16) -> 0 | N32: 3 | O32: ='Compressed Air Inputs'!I18 -> 0 | P32: =IFERROR(VLOOKUP('Compressed Air Inputs'!H18,$N$8:$O$14,2,FALSE),"") ->  | S32: 28 | T32: 2.052975369 | U32: 1.927028875 | V32: 1.801082381 | W32: 1.688173121 | X32: 1.588301094 | Y32: 1.488429068 | Z32: 1.375479483 | AA32: 1.262529898 | AB32: 1.135854952 | AC32: 0.9954546441 | AD32: 0.8550543361 | AE32: 0.7520517389 | AF32: 0.6490491417 | AG32: 0.5332947889 | AH32: 0.4047886803
B33: 10 | C33: =IF(ISBLANK('Compressed Air Inputs'!I47),"",'Compressed Air Inputs'!I47) ->  | D33: =IFERROR(IF('Compressed Air Inputs'!J47="Yes",'Compressed Air Inputs'!K47,INDEX($T$5:$AH$124,MATCH(ROUND('Compressed Air Inputs'!L47,0),$S$5:$S$124,0),MATCH(MROUND(H33,10),$T$3:$AH$3,0))),"") ->  | F33: =VLOOKUP(IFERROR(VLOOKUP("Trim",'Compressed Air Inputs'!$I$16:$J$18,2,FALSE),'Compressed Air Inputs'!$J$16),$N$18:$O$20,2,FALSE) ->  | G33: =8760 -> 8760 | H33: =IFERROR(VLOOKUP("Trim",'Compressed Air Inputs'!$I$16:$P$18,8,FALSE),'Compressed Air Inputs'!$P$16) -> 0 | S33: 29 | T33: 2.146627972 | U33: 2.016690701 | V33: 1.88675343 | W33: 1.770107897 | X33: 1.6667541 | Y33: 1.563400304 | Z33: 1.446496403 | AA33: 1.329592502 | AB33: 1.198349465 | AC33: 1.052767292 | AD33: 0.9071851182 | AE33: 0.7999756425 | AF33: 0.6927661667 | AG33: 0.5712366915 | AH33: 0.4353872168
I34: Totals: | J34: =SUM(J24:J33) -> 0 | K34: =SUM(K24:K33) -> 0 | S34: 30 | T34: 2.241160649 | U34: 2.107275239 | V34: 1.97338983 | W34: 1.853040502 | X34: 1.746227253 | Y34: 1.639414005 | Z34: 1.518589617 | AA34: 1.397765229 | AB34: 1.261995398 | AC34: 1.111280123 | AD34: 0.9605648489 | AE34: 0.8491846123 | AF34: 0.7378043757 | AG34: 0.6104572231 | AH34: 0.4671431543
S35: 31 | T35: 2.336551913 | U35: 2.198760862 | V35: 2.06096981 | W35: 1.936949265 | X35: 1.826699227 | Y35: 1.716449189 | Z35: 1.591738924 | AA35: 1.467028659 | AB35: 1.326774885 | AC35: 1.170977603 | AD35: 1.015180321 | AE35: 0.8996692457 | AF35: 0.7841581705 | AG35: 0.6509549228 | AH35: 0.5000595028
S36: 32 | T36: 2.432781484 | U36: 2.291127133 | V36: 2.149472782 | W36: 2.021813677 | X36: 1.90814982 | Y36: 1.794485962 | Z36: 1.665925147 | AA36: 1.537364331 | AB36: 1.392670918 | AC36: 1.231844906 | AD36: 1.071018894 | AE36: 0.9514205323 | AF36: 0.8318221709 | AG36: 0.6927283871 | AH36: 0.5341391812
S37: 33 | T37: 2.529830183 | U37: 2.384354711 | V37: 2.23887924 | W37: 2.10761429 | X37: 1.990559862 | Y37: 1.873505434 | Z37: 1.741130054 | AA37: 1.608754673 | AB37: 1.459667277 | AC37: 1.293867864 | AD37: 1.128068451 | AE37: 1.004429825 | AF37: 0.8807911995 | AG37: 0.7357762651 | AH37: 0.5693850224
S38: 34 | T38: 2.627679837 | U38: 2.478425256 | V38: 2.329170674 | W38: 2.194332633 | X38: 2.073911134 | Y38: 1.953489634 | Z38: 1.817336281 | AA38: 1.681182928 | AB38: 1.527748474 | AC38: 1.357032919 | AD38: 1.186317365 | AE38: 1.058688816 | AF38: 0.931060268 | AG38: 0.7800972555 | AH38: 0.6057997789
S39: 35 | T39: 2.726313206 | U39: 2.573321348 | V39: 2.420329489 | W39: 2.281951136 | X39: 2.15818629 | Y39: 2.034421444 | Z39: 1.89452727 | AA39: 1.754633096 | AB39: 1.596899699 | AC39: 1.42132708 | AD39: 1.24575446 | AE39: 1.114189512 | AF39: 0.982624565 | AG39: 0.8256901032 | AH39: 0.643386127
S40: 36 | T40: 2.825713902 | U40: 2.669026419 | V40: 2.512338936 | W40: 2.370453062 | X40: 2.243368797 | Y40: 2.116284532 | Z40: 1.972687206 | AA40: 1.829089879 | AB40: 1.66710677 | AC40: 1.486737878 | AD40: 1.306368986 | AE40: 1.170924215 | AF40: 1.035479444 | AG40: 0.8725535964 | AH40: 0.6821466716
S41: 37 | T41: 2.925866328 | U41: 2.765524688 | V41: 2.605183048 | W41: 2.459822442 | X41: 2.329442869 | Y41: 2.199063297 | Z41: 2.051800963 | AA41: 1.904538629 | AB41: 1.738356087 | AC41: 1.553253338 | AD41: 1.368150588 | AE41: 1.228885501 | AF41: 1.089620415 | AG41: 0.9206865641 | AH41: 0.7220839494
S42: 38 | T42: 3.026755619 | U42: 2.862801102 | V42: 2.698846586 | W42: 2.550044025 | X42: 2.416393419 | Y42: 2.282742814 | Z42: 2.131854061 | AA42: 1.980965307 | AB42: 1.810634601 | AC42: 1.620861942 | AD42: 1.431089283 | AE42: 1.288066207 | AF42: 1.145043132 | AG42: 0.9700878734 | AH42: 0.7632004329
S43: 39 | T43: 3.128367589 | U43: 2.960841285 | V43: 2.79331498 | W43: 2.641103221 | X43: 2.504206008 | Y43: 2.367308794 | Z43: 2.212832617 | AA43: 2.058356439 | AB43: 1.883929768 | AC43: 1.689552602 | AD43: 1.495175436 | AE43: 1.348459412 | AF43: 1.201743387 | AG43: 1.020756428 | AH43: 0.8054985339
S44: 40 | T44: 3.230688682 | U44: 3.059631489 | V44: 2.888574295 | W44: 2.732986065 | X44: 2.592866799 | Y44: 2.452747533 | Z44: 2.294723308 | AA44: 2.136699082 | AB44: 1.958229524 | AC44: 1.759314632 | AD44: 1.56039974 | AE44: 1.410058422 | AF44: 1.259717103 | AG44: 1.072691165 | AH44: 0.8489806059
S45: 41 | T45: 3.333705933 | U45: 3.159158554 | V45: 2.984611175 | W45: 2.825679164 | X45: 2.682362522 | Y45: 2.53904588 | Z45: 2.377513334 | AA45: 2.215980788 | AB45: 2.03352225 | AC45: 1.830137722 | AD45: 1.626753194 | AE45: 1.472856759 | AF45: 1.318960324 | AG45: 1.125891053 | AH45: 0.8936489475
S46: 42 | T46: 3.437406923 | U46: 3.259409869 | V46: 3.081412816 | W46: 2.919169671 | X46: 2.772680436 | Y46: 2.626191201 | Z46: 2.461190387 | AA46: 2.296189573 | AB46: 2.109796751 | AC46: 1.902011921 | AD46: 1.694227092 | AE46: 1.536848151 | AF46: 1.379469209 | AG46: 1.180355094 | AH46: 0.9395058048
S47: 43 | T47: 3.541779746 | U47: 3.360373335 | V47: 3.178966924 | W47: 3.013445244 | X47: 2.863808294 | Y47: 2.714171344 | Z47: 2.545742618 | AA47: 2.377313892 | AB47: 2.187042223 | AC47: 1.974927611 | AD47: 1.762812998 | AE47: 1.602026514 | AF47: 1.441240029 | AG47: 1.236082316 | AH47: 0.986553374
S48: 44 | T48: 3.646812978 | U48: 3.462037332 | V48: 3.277261687 | W48: 3.108494013 | X48: 2.955734312 | Y48: 2.80297461 | Z48: 2.63115861 | AA48: 2.459342611 | AB48: 2.265248237 | AC48: 2.048875488 | AD48: 1.83250274 | AE48: 1.668385948 | AF48: 1.504269155 | AG48: 1.293071774 | AH48: 1.034793803
S49: 45 | T49: 3.752495644 | U49: 3.564390693 | V49: 3.376285742 | W49: 3.204304559 | X49: 3.048447145 | Y49: 2.89258973 | Z49: 2.717427356 | AA49: 2.542264982 | AB49: 2.344404714 | AC49: 2.123846552 | AD49: 1.90328839 | AE49: 1.735920726 | AF49: 1.568553062 | AG49: 1.351322552 | AH49: 1.084229195
S50: 46 | T50: 3.858817194 | U50: 3.667422673 | V50: 3.476028152 | W50: 3.300865881 | X50: 3.141935859 | Y50: 2.983005837 | Z50: 2.804538231 | AA50: 2.626070624 | AB50: 2.424501907 | AC50: 2.199832079 | AD50: 1.975162252 | AE50: 1.804625283 | AF50: 1.634088313 | AG50: 1.410833756 | AH50: 1.134861609
S51: 47 | T51: 3.965767472 | U51: 3.771122926 | V51: 3.576478379 | W51: 3.398167373 | X51: 3.236189908 | Y51: 3.074212442 | Z51: 2.892480972 | AA51: 2.710749502 | AB51: 2.505530384 | AC51: 2.276823619 | AD51: 2.048116853 | AE51: 1.874494209 | AF51: 1.700871566 | AG51: 1.471604516 | AH51: 1.186693062
S52: 48 | T52: 4.073336701 | U52: 3.875481481 | V52: 3.677626261 | W52: 3.496198804 | X52: 3.33119911 | Y52: 3.166199416 | Z52: 2.981245661 | AA52: 2.796291907 | AB52: 2.58748101 | AC52: 2.354812971 | AD52: 2.122144932 | AE52: 1.945522245 | AF52: 1.768899559 | AG52: 1.533633987 | AH52: 1.23972553
S53: 49 | T53: 4.181515455 | U53: 3.980488723 | V53: 3.779461992 | W53: 3.594950295 | X53: 3.426953632 | Y53: 3.258956969 | Z53: 3.070822704 | AA53: 2.882688438 | AB53: 2.670344929 | AC53: 2.433792177 | AD53: 2.197239424 | AE53: 2.017704269 | AF53: 1.838169114 | AG53: 1.596921342 | AH53: 1.293960953
S54: 50 | T54: 4.29029464 | U54: 4.086135371 | V54: 3.881976102 | W54: 3.6944123 | X54: 3.523443966 | Y54: 3.352475632 | Z54: 3.161202811 | AA54: 2.96992999 | AB54: 2.754113556 | AC54: 2.513753508 | AD54: 2.273393459 | AE54: 2.091035295 | AF54: 1.908677131 | AG54: 1.661465777 | AH54: 1.349401232
S55: 51 | T55: 4.399665482 | U55: 4.19241246 | V55: 3.985159438 | W55: 3.794575589 | X55: 3.620660914 | Y55: 3.446746238 | Z55: 3.252376988 | AA55: 3.058007737 | AB55: 2.838778559 | AC55: 2.594689453 | AD55: 2.350600346 | AE55: 2.165510464 | AF55: 1.980420582 | AG55: 1.727266505 | AH55: 1.406048233
S56: 52 | T56: 4.5096195 | U56: 4.299311325 | V56: 4.08900315 | W56: 3.895431233 | X56: 3.718595573 | Y56: 3.541759913 | Z56: 3.344336514 | AA56: 3.146913115 | AB56: 2.924331847 | AC56: 2.676592708 | AD56: 2.428853569 | AE56: 2.24112504 | AF56: 2.053396511 | AG56: 1.794322761 | AH56: 1.463903789
S57: 53 | T57: 4.6201485 | U57: 4.406823586 | V57: 4.193498673 | W57: 3.996970584 | X57: 3.817239318 | Y57: 3.637508053 | Z57: 3.437072934 | AA57: 3.236637815 | AB57: 3.010765559 | AC57: 2.759456168 | AD57: 2.508146777 | AE57: 2.317874404 | AF57: 2.12760203 | AG57: 1.862633795 | AH57: 1.522969697
S58: 54 | T58: 4.731244553 | U58: 4.514941133 | V58: 4.298637714 | W58: 4.099185266 | X58: 3.916583792 | Y58: 3.733982317 | Z58: 3.530578041 | AA58: 3.327173764 | AB58: 3.098072057 | AC58: 2.843272917 | AD58: 2.588473778 | AE58: 2.395754047 | AF58: 2.203034316 | AG58: 1.932198876 | AH58: 1.583247726
S59: 55 | T59: 4.842899986 | U59: 4.62365611 | V59: 4.404412235 | W59: 4.20206716 | X59: 4.016620886 | Y59: 3.831174611 | Z59: 3.624843867 | AA59: 3.418513122 | AB59: 3.186243906 | AC59: 2.928036218 | AD59: 2.66982853 | AE59: 2.474759569 | AF59: 2.279690607 | AG59: 2.003017289 | AH59: 1.644739613
S60: 56 | T60: 4.955107368 | U60: 4.732960908 | V60: 4.510814448 | W60: 4.30560839 | X60: 4.117342734 | Y60: 3.929077079 | Z60: 3.719862672 | AA60: 3.510648265 | AB60: 3.275273877 | AC60: 3.013739508 | AD60: 2.752205139 | AE60: 2.554886671 | AF60: 2.357568203 | AG60: 2.075088334 | AH60: 1.707447064
S61: 57 | T61: 5.067859497 | U61: 4.842848145 | V61: 4.617836793 | W61: 4.409801311 | X61: 4.2187417 | Y61: 4.027682088 | Z61: 3.815626931 | AA61: 3.603571775 | AB61: 3.365154927 | AC61: 3.100376387 | AD61: 2.835597847 | AE61: 2.636131153 | AF61: 2.43666446 | AG61: 2.148411328 | AH61: 1.77137176
S62: 58 | T62: 5.181149391 | U62: 4.953310665 | V62: 4.725471938 | W62: 4.514638504 | X62: 4.320810362 | Y62: 4.12698222 | Z62: 3.912129329 | AA62: 3.697276437 | AB62: 3.4558802 | AC62: 3.187940616 | AD62: 2.920001032 | AE62: 2.71848891 | AF62: 2.516976789 | AG62: 2.222985602 | AH62: 1.836515351
S63: 59 | T63: 5.294970276 | U63: 5.064341518 | V63: 4.833712759 | W63: 4.620112757 | X63: 4.423541511 | Y63: 4.226970265 | Z63: 4.009362744 | AA63: 3.791755224 | AB63: 3.54744301 | AC63: 3.276426105 | AD63: 3.0054092 | AE63: 2.801955927 | AF63: 2.598502655 | AG63: 2.2988105 | AH63: 1.902879462
S64: 60 | T64: 5.409315578 | U64: 5.175933957 | V64: 4.942552337 | W64: 4.726217062 | X64: 4.526928135 | Y64: 4.327639207 | Z64: 4.107320249 | AA64: 3.88700129 | AB64: 3.639836844 | AC64: 3.365826911 | AD64: 3.091816977 | AE64: 2.886528276 | AF64: 2.681239574 | AG64: 2.37588538 | AH64: 1.970465693
S65: 61 | T65: 5.524178911 | U65: 5.288081428 | V65: 5.051983944 | W65: 4.832944606 | X65: 4.630963412 | Y65: 4.428982218 | Z65: 4.205995092 | AA65: 3.983007966 | AB65: 3.733055345 | AC65: 3.456137228 | AD65: 3.179219112 | AE65: 2.972202112 | AF65: 2.765185112 | AG65: 2.454209614 | AH65: 2.039275618
S66: 62 | T66: 5.639554072 | U66: 5.400777556 | V66: 5.162001041 | W66: 4.940288756 | X66: 4.735640703 | Y66: 4.53099265 | Z66: 4.305380699 | AA66: 4.079768748 | AB66: 3.827092311 | AC66: 3.547351388 | AD66: 3.267610464 | AE66: 3.058973672 | AF66: 2.85033688 | AG66: 2.533782585 | AH66: 2.109310787
S67: 63 | T67: 5.75543503 | U67: 5.514016146 | V67: 5.272597262 | W67: 5.048243061 | X67: 4.840953544 | Y67: 4.633664026 | Z67: 4.40547066 | AA67: 4.177277294 | AB67: 3.921941689 | AC67: 3.639463846 | AD67: 3.356986003 | AE67: 3.146839271 | AF67: 2.936692538 | AG67: 2.614603691 | AH67: 2.180572729
S68: 64 | T68: 5.871815922 | U68: 5.627791167 | V68: 5.383766413 | W68: 5.156801236 | X68: 4.946895636 | Y68: 4.736990036 | Z68: 4.506258725 | AA68: 4.275527413 | AB68: 4.017597567 | AC68: 3.732469186 | AD68: 3.447340805 | AE68: 3.235795296 | AF68: 3.024249788 | AG68: 2.696672338 | AH68: 2.253062947
S69: 65 | T69: 5.988691042 | U69: 5.742096751 | V69: 5.495502461 | W69: 5.265957158 | X69: 5.053460843 | Y69: 4.840964527 | Z69: 4.607738797 | AA69: 4.374513066 | AB69: 4.11405417 | AC69: 3.826362108 | AD69: 3.538670045 | AE69: 3.32583821 | AF69: 3.113006375 | AG69: 2.779987946 | AH69: 2.326782923
S70: 66 | T70: 6.106054836 | U70: 5.856927182 | V70: 5.607799529 | W70: 5.375704862 | X70: 5.16064318 | Y70: 4.945581498 | Z70: 4.709904925 | AA70: 4.474228352 | AB70: 4.211305853 | AC70: 3.921137427 | AD70: 3.630969 | AE70: 3.416964543 | AF70: 3.202960086 | AG70: 2.864549945 | AH70: 2.40173412
S71: 67 | T71: 6.223901896 | U71: 5.972276894 | V71: 5.720651891 | W71: 5.486038531 | X71: 5.268436812 | Y71: 5.050835094 | Z71: 4.812751302 | AA71: 4.57466751 | AB71: 4.309347099 | AC71: 4.016790069 | AD71: 3.724233039 | AE71: 3.509170893 | AF71: 3.294108747 | AG71: 2.950357775 | AH71: 2.477917978
S72: 68 | T72: 6.342226956 | U72: 6.088140459 | V72: 5.834053962 | W72: 5.596952491 | X72: 5.376836045 | Y72: 5.1567196 | Z72: 4.916272253 | AA72: 4.675824907 | AB72: 4.408172511 | AC72: 4.113315067 | AD72: 3.818457622 | AE72: 3.602453923 | AF72: 3.386450223 | AG72: 3.037410888 | AH72: 2.555335918
S73: 69 | T73: 6.461024881 | U73: 6.204512588 | V73: 5.948000295 | W73: 5.708441206 | X73: 5.485835321 | Y73: 5.263229437 | Z73: 5.020462237 | AA73: 4.777695038 | AB73: 4.50777681 | AC73: 4.210707555 | AD73: 3.913638299 | AE73: 3.696810357 | AF73: 3.479982416 | AG73: 3.125708744 | AH73: 2.633989341
S74: 70 | T74: 6.580290666 | U74: 6.321388122 | V74: 6.062485578 | W74: 5.820499275 | X74: 5.595429214 | Y74: 5.370359153 | Z74: 5.125315837 | AA74: 4.880272521 | AB74: 4.608154831 | AC74: 4.308962767 | AD74: 4.009770702 | AE74: 3.792236983 | AF74: 3.574703264 | AG74: 3.215250813 | AH74: 2.71387963
S75: 71 | T75: 6.700019431 | U75: 6.438762027 | V75: 6.177504622 | W75: 5.933121421 | X75: 5.705612422 | Y75: 5.478103423 | Z75: 5.230827757 | AA75: 4.98355209 | AB75: 4.709301515 | AC75: 4.408076033 | AD75: 4.10685055 | AE75: 3.888730646 | AF75: 3.670610742 | AG75: 3.306036576 | AH75: 2.795008148
S76: 72 | T76: 6.820206414 | U76: 6.556629389 | V76: 6.293052365 | W76: 6.046302491 | X76: 5.816379768 | Y76: 5.586457044 | Z76: 5.336992818 | AA76: 5.087528593 | AB76: 4.811211911 | AC76: 4.508042774 | AD76: 4.204873637 | AE76: 3.986288246 | AF76: 3.767702855 | AG76: 3.39806552 | AH76: 2.877376242
S77: 73 | T77: 6.940846967 | U77: 6.674985414 | V77: 6.40912386 | W77: 6.160037452 | X77: 5.927726188 | Y77: 5.695414925 | Z77: 5.443805956 | AA77: 5.192196986 | AB77: 4.913881169 | AC77: 4.608858503 | AD77: 4.303835836 | AE77: 4.08490674 | AF77: 3.865977644 | AG77: 3.491337144 | AH77: 2.960985241
S78: 74 | T78: 7.061936554 | U78: 6.793825414 | V78: 6.525714275 | W78: 6.274321382 | X78: 6.039646736 | Y78: 5.80497209 | Z78: 5.551262211 | AA78: 5.297552333 | AB78: 5.017304535 | AC78: 4.710518815 | AD78: 4.403733096 | AE78: 4.184583138 | AF78: 3.96543318 | AG78: 3.585850952 | AH78: 3.045836456
S79: 75 | T79: 7.183470744 | U79: 6.913144815 | V79: 6.642818886 | W79: 6.389149471 | X79: 6.15213657 | Y79: 5.915123669 | Z79: 5.659356733 | AA79: 5.403589797 | AB79: 5.121477351 | AC79: 4.813019394 | AD79: 4.504561437 | AE79: 4.285314501 | AF79: 4.066067566 | AG79: 3.68160646 | AH79: 3.131931183
S80: 76 | T80: 7.305445208 | U80: 7.032939142 | V80: 6.760433077 | W80: 6.504517014 | X80: 6.265190955 | Y80: 6.025864897 | Z80: 5.768084769 | AA80: 5.510304642 | AB80: 5.226395052 | AC80: 4.916356 | AD80: 4.606316947 | AE80: 4.387097941 | AF80: 4.167878935 | AG80: 3.778603188 | AH80: 3.219270701
S81: 77 | T81: 7.427855717 | U81: 7.153204024 | V81: 6.878552331 | W81: 6.620419409 | X81: 6.378805259 | Y81: 6.137191109 | Z81: 5.877441667 | AA81: 5.617692225 | AB81: 5.33205316 | AC81: 5.020524473 | AD81: 4.708995786 | AE81: 4.489930617 | AF81: 4.270865448 | AG81: 3.876840667 | AH81: 3.307856274
S82: 78 | T82: 7.550698136 | U82: 7.273935184 | V82: 6.997172231 | W82: 6.736852152 | X82: 6.492974945 | Y82: 6.249097739 | Z82: 5.987422867 | AA82: 5.725747996 | AB82: 5.438447283 | AC82: 5.12552073 | AD82: 4.812594177 | AE82: 4.593809737 | AF82: 4.375025296 | AG82: 3.976318434 | AH82: 3.39768915
S83: 79 | T83: 7.673968422 | U83: 7.395128439 | V83: 7.116288456 | W83: 6.853810834 | X83: 6.607695573 | Y83: 6.361580312 | Z83: 6.098023903 | AA83: 5.834467494 | AB83: 5.545573113 | AC83: 5.23134076 | AD83: 4.917108408 | AE83: 4.698732552 | AF83: 4.480356696 | AG83: 4.077036033 | AH83: 3.488770562
S84: 80 | T84: 7.797662621 | U84: 7.516779698 | V84: 7.235896775 | W84: 6.97129114 | X84: 6.722962793 | Y84: 6.474634446 | Z84: 6.209240395 | AA84: 5.943846345 | AB84: 5.653426421 | AC84: 5.337980624 | AD84: 5.022534827 | AE84: 4.80469636 | AF84: 4.586857892 | AG84: 4.178993015 | AH84: 3.581101729
S85: 81 | T85: 7.921776865 | U85: 7.638884955 | V85: 7.355993045 | W85: 7.089288842 | X85: 6.838772344 | Y85: 6.588255847 | Z85: 6.321068052 | AA85: 6.053880256 | AB85: 5.762003056 | AC85: 5.445436451 | AD85: 5.128869845 | AE85: 4.9116985 | AF85: 4.694527155 | AG85: 4.282188941 | AH85: 3.674683857
S86: 82 | T86: 8.046307366 | U86: 7.761440289 | V86: 7.476573211 | W86: 7.207799799 | X86: 6.955120051 | Y86: 6.702440304 | Z86: 6.433502661 | AA86: 6.164565019 | AB86: 5.871298945 | AC86: 5.553704438 | AD86: 5.236109931 | AE86: 5.019736355 | AF86: 4.80336278 | AG86: 4.386623373 | AH86: 3.769518136
S87: 83 | T87: 8.171250421 | U87: 7.88444186 | V87: 7.5976333 | W87: 7.326819953 | X87: 7.072001821 | Y87: 6.817183689 | Z87: 6.546540095 | AA87: 6.2758965 | AB87: 5.981310084 | AC87: 5.662780846 | AD87: 5.344251609 | AE87: 5.128807348 | AF87: 4.913363087 | AG87: 4.492295885 | AH87: 3.865605744
S88: 84 | T88: 8.296602399 | U88: 8.007885909 | V88: 7.719169418 | W88: 7.446345329 | X88: 7.189413643 | Y88: 6.932481956 | Z88: 6.6601763 | AA88: 6.387870644 | AB88: 6.092032545 | AC88: 5.772662002 | AD88: 5.453291459 | AE88: 5.238908939 | AF88: 5.02452642 | AG88: 4.599206055 | AH88: 3.962947845
S89: 85 | T89: 8.422359748 | U89: 8.131768749 | V89: 7.84117775 | W89: 7.566372027 | X89: 7.307351581 | Y89: 7.048331134 | Z89: 6.774407301 | AA89: 6.500483468 | AB89: 6.203462465 | AC89: 5.88334429 | AD89: 5.563226115 | AE89: 5.350038631 | AF89: 5.136851146 | AG89: 4.707353466 | AH89: 4.06154559
S90: 86 | T90: 8.548518985 | U90: 8.256086771 | V90: 7.963654556 | W90: 7.686896225 | X90: 7.425811776 | Y90: 7.164727327 | Z90: 6.889229194 | AA90: 6.613731062 | AB90: 6.315596049 | AC90: 5.994824157 | AD90: 5.674052265 | AE90: 5.462193961 | AF90: 5.250335657 | AG90: 4.816737709 | AH90: 4.161400118
S91: 87 | T91: 8.6750767 | U91: 8.380836435 | V91: 8.086596169 | W91: 7.807914172 | X91: 7.544790442 | Y91: 7.281666712 | Z91: 7.004638148 | AA91: 6.727609583 | AB91: 6.428429569 | AC91: 6.107098107 | AD91: 5.785766644 | AE91: 5.575372504 | AF91: 5.364978363 | AG91: 4.927358381 | AH91: 4.262512556
S92: 88 | T92: 8.802029548 | U92: 8.506014271 | V92: 8.209998993 | W92: 7.929422191 | X92: 7.664283864 | Y92: 7.399145537 | Z92: 7.120630398 | AA92: 6.842115258 | AB92: 6.541959358 | AC92: 6.220162699 | AD92: 5.89836604 | AE92: 5.68957187 | AF92: 5.4807777 | AG92: 5.039215083 | AH92: 4.364884018
S93: 89 | T93: 8.929374253 | U93: 8.631616876 | V93: 8.333859499 | W93: 8.051416672 | X93: 7.784288395 | Y93: 7.517160118 | Z93: 7.237202248 | AA93: 6.957244377 | AB93: 6.656181811 | AC93: 6.334014549 | AD93: 6.011847286 | AE93: 5.804789703 | AF93: 5.597732121 | AG93: 5.152307422 | AH93: 4.468515607
S94: 90 | T94: 9.057107601 | U94: 8.757640914 | V94: 8.458174226 | W94: 8.173894074 | X94: 7.904800456 | Y94: 7.635706837 | Z94: 7.354350067 | AA94: 7.072993297 | AB94: 6.771093382 | AC94: 6.448650324 | AD94: 6.126207265 | AE94: 5.921023684 | AF94: 5.715840102 | AG94: 5.266635012 | AH94: 4.573408414
S95: 91 | T95: 9.185226439 | U95: 8.884083108 | V95: 8.582939777 | W95: 8.296850918 | X95: 8.025816529 | Y95: 7.754782141 | Z95: 7.472070287 | AA95: 7.189358433 | AB95: 6.886690585 | AC95: 6.564066745 | AD95: 6.241442904 | AE95: 6.038271521 | AF95: 5.835100138 | AG95: 5.382197471 | AH95: 4.679563519
S96: 92 | T96: 9.313727676 | U96: 9.010940247 | V96: 8.708152817 | W96: 8.42028379 | X96: 8.147333165 | Y96: 7.874382539 | Z96: 7.590359401 | AA96: 7.306336262 | AB96: 7.002969989 | AC96: 6.680260582 | AD96: 6.357551174 | AE96: 6.15653096 | AF96: 5.955510746 | AG96: 5.498994422 | AH96: 4.786981991
S97: 93 | T97: 9.442608277 | U97: 9.138209175 | V97: 8.833810073 | W97: 8.544189338 | X97: 8.26934697 | Y97: 7.994504602 | Z97: 7.709213961 | AA97: 7.42392332 | AB97: 7.119928218 | AC97: 6.797228654 | AD97: 6.474529091 | AE97: 6.275799774 | AF97: 6.077070457 | AG97: 5.617025495 | AH97: 4.895664887
S98: 94 | T98: 9.571865265 | U98: 9.265886797 | V98: 8.959908329 | W98: 8.668564267 | X98: 8.391854613 | Y98: 8.115144958 | Z98: 7.828630578 | AA98: 7.542116198 | AB98: 7.237561949 | AC98: 6.914967831 | AD98: 6.592373712 | AE98: 6.396075769 | AF98: 6.199777826 | AG98: 5.736290322 | AH98: 5.005613256
S99: 95 | T99: 9.701495719 | U99: 9.393970074 | V99: 9.086444428 | W99: 8.793405344 | X99: 8.514852819 | Y99: 8.236300294 | Z99: 7.948605919 | AA99: 7.660911543 | AB99: 7.355867912 | AC99: 7.033475024 | AD99: 6.711082137 | AE99: 6.517356779 | AF99: 6.323631422 | AG99: 5.856788541 | AH99: 5.116828135
S100: 96 | T100: 9.831496767 | U100: 9.522456018 | V100: 9.213415269 | W100: 8.918709386 | X100: 8.63833837 | Y100: 8.357967353 | Z100: 8.069136706 | AA100: 7.780306058 | AB100: 7.474842888 | AC100: 7.152747195 | AD100: 6.830651503 | AE100: 6.639640669 | AF100: 6.448629836 | AG100: 5.978519796 | AH100: 5.229310551
S101: 97 | T101: 9.961865594 | U101: 9.651341699 | V101: 9.340817804 | W101: 9.044473272 | X101: 8.762308102 | Y101: 8.480142933 | Z101: 8.190219714 | AA101: 7.900296495 | AB101: 7.594483706 | AC101: 7.272781348 | AD101: 6.951078989 | AE101: 6.76292533 | AF101: 6.574771671 | AG101: 6.101483735 | AH101: 5.34306152
S102: 98 | T102: 10.09259943 | U102: 9.780624234 | V102: 9.468649037 | W102: 9.170693927 | X102: 8.886758905 | Y102: 8.602823882 | Z102: 8.311851771 | AA102: 8.020879659 | AB102: 7.714787245 | AC102: 7.393574529 | AD102: 7.072361812 | AE102: 6.887208682 | AF102: 6.702055552 | AG102: 6.225680008 | AH102: 5.458082051
S103: 99 | T103: 10.22369556 | U103: 9.910300793 | V103: 9.596906025 | W103: 9.297368334 | X103: 9.011687719 | Y103: 8.726007103 | Z103: 8.434029754 | AA103: 8.142052405 | AB103: 7.835750429 | AC103: 7.515123828 | AD103: 7.194497227 | AE103: 7.012488672 | AF103: 6.830480118 | AG103: 6.351108274 | AH103: 5.574373141
S104: 100 | T104: 10.35515131 | U104: 10.04036859 | V104: 9.725585875 | W104: 9.424493522 | X104: 9.137091535 | Y104: 8.849689548 | Z104: 8.556750591 | AA104: 8.263811634 | AB104: 7.957370229 | AC104: 7.637426376 | AD104: 7.317482523 | AE104: 7.138763274 | AF104: 6.960044025 | AG104: 6.477768193 | AH104: 5.691935778
S105: 101 | T105: 10.48696406 | U105: 10.1708249 | V105: 9.85468574 | W105: 9.552066571 | X105: 9.262967394 | Y105: 8.973868217 | Z105: 8.680011257 | AA105: 8.386154298 | AB105: 8.07964366 | AC105: 7.760479343 | AD105: 7.441315027 | AE105: 7.266030485 | AF105: 7.090745943 | AG105: 6.605659429 | AH105: 5.810770943
S106: 102 | T106: 10.61913123 | U106: 10.30166702 | V106: 9.984202822 | W106: 9.680084608 | X106: 9.389312382 | Y106: 9.098540157 | Z106: 8.803808775 | AA106: 8.509077392 | AB106: 8.202567781 | AC106: 7.88427994 | AD106: 7.5659921 | AE106: 7.394288331 | AF106: 7.222584561 | AG106: 6.734781652 | AH106: 5.930879604
S107: 103 | T107: 10.75165027 | U107: 10.43289232 | V107: 10.11413437 | W107: 9.808544807 | X107: 9.516123636 | Y107: 9.223702464 | Z107: 8.928140211 | AA107: 8.632577957 | AB107: 8.326139692 | AC107: 8.008825415 | AD107: 7.691511138 | AE107: 7.52353486 | AF107: 7.355558581 | AG107: 6.865134536 | AH107: 6.052262724
S108: 104 | T108: 10.88451871 | U108: 10.56449819 | V108: 10.24447767 | W108: 9.937444387 | X108: 9.643398332 | Y108: 9.349352278 | Z108: 9.053002678 | AA108: 8.756653079 | AB108: 8.450356537 | AC108: 8.134113053 | AD108: 7.81786957 | AE108: 7.653768144 | AF108: 7.489666719 | AG108: 6.996717756 | AH108: 6.174921256
S109: 105 | T109: 11.01773408 | U109: 10.69648208 | V109: 10.37523007 | W109: 10.06678061 | X109: 9.771133696 | Y109: 9.475486781 | Z109: 9.178393333 | AA109: 8.881299884 | AB109: 8.575215499 | AC109: 8.260140177 | AD109: 7.945064856 | AE109: 7.784986282 | AF109: 7.624907708 | AG109: 7.129530995 | AH109: 6.298856143
S110: 106 | T110: 11.15129398 | U110: 10.82884146 | V110: 10.50638894 | W110: 10.19655079 | X110: 9.899326994 | Y110: 9.602103202 | Z110: 9.304309372 | AA110: 9.006515542 | AB110: 8.700713799 | AC110: 8.386904144 | AD110: 8.073094489 | AE110: 7.917187391 | AF110: 7.761280293 | AG110: 7.263573936 | AH110: 6.424068322
S111: 107 | T111: 11.28519603 | U111: 10.96157387 | V111: 10.6379517 | W111: 10.32675226 | X111: 10.02797553 | Y111: 9.729198809 | Z111: 9.430748035 | AA111: 9.132297262 | AB111: 8.8268487 | AC111: 8.514402348 | AD111: 8.201955995 | AE111: 8.050369614 | AF111: 7.898783234 | AG111: 7.398846269 | AH111: 6.55055872
S112: 108 | T112: 11.4194379 | U112: 11.09467686 | V112: 10.76991582 | W112: 10.45738242 | X112: 10.15707667 | Y112: 9.85677091 | Z112: 9.557706603 | AA112: 9.258642296 | AB112: 8.953617499 | AC112: 8.642632214 | AD112: 8.331646928 | AE112: 8.184531116 | AF112: 8.037415304 | AG112: 7.535347685 | AH112: 6.678328258
S113: 109 | T113: 11.5540173 | U113: 11.22814804 | V113: 10.90227879 | W113: 10.5884387 | X113: 10.28662778 | Y113: 9.984816857 | Z113: 9.685182394 | AA113: 9.38554793 | AB113: 9.081017533 | AC113: 8.771591203 | AD113: 8.462164872 | AE113: 8.319670082 | AF113: 8.177175291 | AG113: 7.67307788 | AH113: 6.807377846
S114: 110 | T114: 11.68893196 | U114: 11.36198505 | V114: 11.03503815 | W114: 10.71991856 | X114: 10.4166263 | Y114: 10.11333404 | Z114: 9.813172765 | AA114: 9.513011493 | AB114: 9.209046173 | AC114: 8.901276807 | AD114: 8.593507441 | AE114: 8.455784718 | AF114: 8.318061995 | AG114: 7.812036552 | AH114: 6.93770839
S115: 111 | T115: 11.82417966 | U115: 11.49618557 | V115: 11.16819147 | W115: 10.85181951 | X115: 10.5470697 | Y115: 10.24231988 | Z115: 9.941675112 | AA115: 9.641030346 | AB115: 9.337700826 | AC115: 9.031686552 | AD115: 8.725672278 | AE115: 8.592873253 | AF115: 8.460074229 | AG115: 7.952223406 | AH115: 7.069320784
S116: 112 | T116: 11.95975821 | U116: 11.63074729 | V116: 11.30173637 | W116: 10.9841391 | X116: 10.67795547 | Y116: 10.37177184 | Z116: 10.07068687 | AA116: 9.769601891 | AB116: 9.466978933 | AC116: 9.162817993 | AD116: 8.858657053 | AE116: 8.730933935 | AF116: 8.603210817 | AG116: 8.093638145 | AH116: 7.20221592
S117: 113 | T117: 12.09566546 | U117: 11.76566798 | V117: 11.4356705 | W117: 11.1168749 | X117: 10.80928117 | Y117: 10.50168743 | Z117: 10.2002055 | AA117: 9.898723561 | AB117: 9.596877968 | AC117: 9.294668716 | AD117: 8.992459464 | AE117: 8.869965031 | AF117: 8.747470598 | AG117: 8.23628048 | AH117: 7.336394677
S118: 114 | T118: 12.23189928 | U118: 11.90094541 | V118: 11.56999155 | W118: 11.25002453 | X118: 10.94104435 | Y118: 10.63206418 | Z118: 10.3302285 | AA118: 10.02839283 | AB118: 9.727395439 | AC118: 9.427236337 | AD118: 9.127077235 | AE118: 9.009964828 | AF118: 8.892852422 | AG118: 8.380150122 | AH118: 7.47185793
S119: 115 | T119: 12.36845758 | U119: 12.0365774 | V119: 11.70469721 | W119: 11.38358563 | X119: 11.07324264 | Y119: 10.76289966 | Z119: 10.46075342 | AA119: 10.15860719 | AB119: 9.858528886 | AC119: 9.560518502 | AD119: 9.262508117 | AE119: 9.150931634 | AF119: 9.03935515 | AG119: 8.525246788 | AH119: 7.608606547
S120: 116 | T120: 12.50533831 | U120: 12.17256178 | V120: 11.83978526 | W120: 11.51755589 | X120: 11.20587368 | Y120: 10.89419147 | Z120: 10.59177783 | AA120: 10.2893642 | AB120: 9.99027588 | AC120: 9.694512884 | AD120: 9.398749888 | AE120: 9.292863772 | AF120: 9.186977657 | AG120: 8.671570195 | AH120: 7.746641387
S121: 117 | T121: 12.64253943 | U121: 12.30889644 | V121: 11.97525346 | W121: 11.65193302 | X121: 11.33893514 | Y121: 11.02593725 | Z121: 10.72329933 | AA121: 10.4206614 | AB121: 10.12263402 | AC121: 9.829217186 | AD121: 9.535800349 | AE121: 9.435759587 | AF121: 9.335718826 | AG121: 8.819120065 | AH121: 7.885963304
S122: 118 | T122: 12.78005895 | U122: 12.44557929 | V122: 12.11109964 | W122: 11.78671478 | X122: 11.47242473 | Y122: 11.15813467 | Z122: 10.85531554 | AA122: 10.55249642 | AB122: 10.25560095 | AC122: 9.964629137 | AD122: 9.673657327 | AE122: 9.57961744 | AF122: 9.485577554 | AG122: 8.967896122 | AH122: 8.026573145
S123: 119 | T123: 12.9178949 | U123: 12.58260827 | V123: 12.24732163 | W123: 11.92189894 | X123: 11.60634019 | Y123: 11.29078143 | Z123: 10.98782415 | AA123: 10.68486687 | AB123: 10.38917432 | AC123: 10.10074649 | AD123: 9.812318672 | AE123: 9.72443571 | AF123: 9.636552749 | AG123: 9.117898095 | AH123: 8.168471749
S124: 120 | T124: 13.05604533 | U124: 12.71998133 | V124: 12.38391733 | W124: 12.05748332 | X124: 11.74067929 | Y124: 11.42387527 | Z124: 11.12082284 | AA124: 10.81777042 | AB124: 10.52335182 | AC124: 10.23756704 | AD124: 9.95178226 | AE124: 9.870212794 | AF124: 9.788643327 | AG124: 9.269125713 | AH124: 8.31165995

Sheet CompAir6-NewCompressor (hidden)
B1: Measure: Air Compressor
N2: Table 2: Coincidence Factors
N3: Program | O3: CFsp | P3: CFwp
B4: Measure Summary | G4: Measure Description | N4: LBES new, SBES new, Muni new | O4: 1.17 | P4: 0.98
D5: Value | E5: Unit | G5: Covers the installation of oil flooded, rotary screw compressors with Variable Speed Drive or Variable Displacement capacity control with properly sized air receiver. Efficient air compressors use various control schemes to improve compression efficiencies at partial loads.
B6: Total Savings | D6: =I27 -> 0 | E6: kW
D7: =J27 -> 0 | E7: kWh | N7: Lookup Table (2026 TRM)
D8: 0 | E8: MMBtu | N8: Horsepower | P8: Savings
B9: Measure Life | D9: 15 | E9: Years | N9: Min | O9: Max | P9: (kW/HP)
B10: CFsp | D10: =O4*100 -> 117 | E10: % | N10: 15 | O10: 24 | P10: 0.124
B11: CFwp | D11: =P4*100 -> 98 | E11: % | N11: 25 | O11: 74 | P11: 0.188
N12: 75 | O12: None | P12: 0.215
B13: Compressed Air - Low Pressue Drop Filter
B14: Measure Code | D14: COM-CA-AC
B15: Market | D15: Commercial | G15: NOTE: For more information on this measure refer to the NH TRM.
B16: Program Type | D16: Lost Opportunity
B17: Category | D17: Compressed Air
B21: Table 1: Calculating Primary Energy Impact
C22: HP | D22: Save | E22: Annual | I22: Savings
C23: Compressor | D23: kW/HP | E23: Hours | I23: kW | J23: kWh
B24: 1 | C24: ='Compressed Air Inputs'!R39 -> 0 | D24: =IF(C24<15,0,OFFSET($O$10,MATCH(C24,$N$10:$N$12,1)-1,1)) -> 0 | E24: ='Compressed Air Inputs'!S39 -> 0 | I24: =C24*D24 -> 0 | J24: =I24*E24 -> 0
B25: 2 | C25: ='Compressed Air Inputs'!R40 -> 0 | D25: =IF(C25<15,0,OFFSET($O$10,MATCH(C25,$N$10:$N$12,1)-1,1)) -> 0 | E25: ='Compressed Air Inputs'!S40 -> 0 | I25: =C25*D25 -> 0 | J25: =I25*E25 -> 0
B26: 3 | C26: ='Compressed Air Inputs'!R41 -> 0 | D26: =IF(C26<15,0,OFFSET($O$10,MATCH(C26,$N$10:$N$12,1)-1,1)) -> 0 | E26: ='Compressed Air Inputs'!S41 -> 0 | I26: =C26*D26 -> 0 | J26: 0
H27: Totals: | I27: =SUM(I24:I26) -> 0 | J27: =SUM(J24:J26) -> 0

Sheet CompAir7-NewAirDryer (hidden)
B1: Measure: New Refrigerated Air Dryer
N2: Table 2: Coincidence Factors
N3: Program | O3: CFsp | P3: CFwp
B4: Measure Summary | G4: Measure Description | N4: LBES new, SBES new, Muni new | O4: 1.17 | P4: 0.98
D5: Value | E5: Unit | G5: The installation of cycling or variable frequency drive (VFD)-equipped refrigerated compressed air dryers. Refrigerated air dryers remove the moisture from a compressed air system to enhance overall system performance. An efficient refrigerated dryer cycles on and off or uses a variable speed drive as required by the demand for compressed air instead of running continuously. Only properly sized refrigerated air dryers used in a single-compressor system are eligible.
B6: Total Savings | D6: =I27 -> 0 | E6: kW
D7: =J27 -> 0 | E7: kWh
D8: 0 | E8: MMBtu
B9: Measure Life | D9: 15 | E9: Years
B10: CFsp | D10: =O4*100 -> 117 | E10: %
B11: CFwp | D11: =P4*100 -> 98 | E11: %
B13: Compressed Air - Low Pressue Drop Filter
B14: Measure Code | D14: COM-CA-RAD
B15: Market | D15: Commercial | G15: NOTE: For more information on this measure refer to the NH TRM.
B16: Program Type | D16: Lost Opportunity
B17: Category | D17: Compressed Air
B21: Table 1: Calculating Primary Energy Impact
C22: Dryer | D22: Save | E22: Annual | I22: Savings
C23: CFM | D23: kW/CFM | E23: Hours | I23: kW | J23: kWh
B24: 1 | C24: ='Compressed Air Inputs'!Q46 -> 0 | D24: =IF('Compressed Air Inputs'!S46="Yes",0.00554,0) -> 0 | E24: ='Compressed Air Inputs'!R46 -> 0 | I24: =C24*D24 -> 0 | J24: =I24*E24 -> 0
B25: 2 | C25: ='Compressed Air Inputs'!Q47 -> 0 | D25: =IF('Compressed Air Inputs'!S47="Yes",0.00554,0) -> 0 | E25: ='Compressed Air Inputs'!R47 -> 0 | I25: =C25*D25 -> 0 | J25: =I25*E25 -> 0
B26: 3 | C26: ='Compressed Air Inputs'!Q48 -> 0 | D26: =IF('Compressed Air Inputs'!S48="Yes",0.00554,0) -> 0 | E26: ='Compressed Air Inputs'!R48 -> 0 | I26: 0 | J26: 0
H27: Totals: | I27: =SUM(I24:I26) -> 0 | J27: =SUM(J24:J26) -> 0

Sheet Hot Water Inputs
B1: Hot Water Measures: Input Sheet
B3: Instructions | K3: Key
B4: Please fill out all ORANGE cells in this Input Sheet with the facility's hot water system information as it relates to the selected measures on the "Measure Summary" tab. Measures referenced by this sheet include showerheads, steam traps and water heaters. | L4: Input Cells
L5: Guidance/ Information Cells
L6: Calculation Cells
B9: Table 1: ECM Questions | P9: Table 2: Showerheads
P10: Quantity of thermostatic shut off valves to be installed | Q10: Quantity of low flow showerheads to be installed | R10: Quantity of low flow showerhead with integrated thermostatic valve to be installed | S10: Proposed low flow showerhead flow rate (gpm)
B11: Hot Water ECM1 - Showerheads
B12: Has Table 2 been completed?
B13: Inventory & location of shut off valve & showerhead locations submitted to NHSaves? | L13: =IF(K13="No","Please submit this","") -> 
B14: Cut sheets for installed equipment submitted to NHSaves? | L14: =IF(K14="No","Please submit this","") ->  | S14: =IF(S13>1.5,"Flow rate must be 1.5 GPM or less","") -> 
B15: Hot Water ECM2 - Steam Traps
B16: Table 3 has been completed? | P16: Table 3: Steam Traps
B17: Inventory & location of steam traps to be replaced/repaired provided to NHSaves? | L17: =IF(K17="No","Please submit this","") ->  | P17: Quantity of low pressure (≤ 10 psig) traps to be replaced/repaired | Q17: Quantity of high pressure (> 10 psig) traps to be replaced/repaired
B18: Hot Water ECM3 - Water Heaters
B19: Table 4 completed?
B20: Inventory of Water Heaters provided to NHSaves? | L20: =IF(K20="No","Please submit this","") -> 
B21: Cutsheet provided to NHSaves? | L21: =IF(K21="No","Please submit this","") -> 
P23: Table 4: Water Heaters
P24: Water Heater type | Q24: Quantity | R24: Capacity (MBtuh) | S24: Building hours

Sheet HW1-Showerheads (hidden)
B1: Measure: Showerheads | O1: Additional information
O2: Table 2: Savings Values
O3: Measure Name | P3: Fuel Type | Q3: ΔkWh | R3: ΔkW | S3: ΔMMBtu
B4: Measure Summary | G4: Measure Description | O4: Thermostatic Shut-Off Valve | P4: Gas | Q4: 0 | R4: 0 | S4: 0.33
D5: Value | E5: Unit | G5: This measure considers savings associated with showerheads. Definitions: Thermostatic Shut-Off Valve: Installation of a stand-alone thermostatic shut-off valve on standard flow showerhead. Low-Flow Showerhead, Electric, Gas, Oil, Propane: Installation of a low-flow showerhead with a flow rate of 1.5 GPM or less. | O5: Thermostatic Shut-Off Valve | P5: Electric | Q5: 69 | R5: 0.02 | S5: 0
B6: Total Savings | D6: =IF('Hot Water Inputs'!S13 > 1.5,0,I29) -> 0 | E6: kW | O6: Thermostatic Shut-Off Valve | P6: Fuel Oil | Q6: 0 | R6: 0 | S6: 0.33
D7: =IF('Hot Water Inputs'!S13>1.5,0,J29) -> 0 | E7: kWh | O7: Thermostatic Shut-Off Valve | P7: Propane | Q7: 0 | R7: 0 | S7: 0.33
D8: =IF('Hot Water Inputs'!S13>1.5,0,K29) -> 0 | E8: MMBtu | O8: Low Flow Showerhead | P8: Electric | Q8: 507 | R8: 0.09 | S8: 0
B9: Annual water savings | D9: =IFERROR(VLOOKUP(D26,$O$20:$P$22,2,FALSE)*C26,0)+IFERROR(VLOOKUP(D27,$O$20:$P$22,2,FALSE)*C27,0) + IFERROR(VLOOKUP(D28,$O$20:$P$22,2,FALSE)*C28,0) -> 0 | E9: gallons | O9: Low Flow Showerhead | P9: Gas | Q9: 0 | R9: 0 | S9: 2.65
B10: Measure Life | D10: =IFERROR(SUMPRODUCT(C26:C28,E26:E28)/SUM(C26:C28),12) -> 12 | E10: Years | O10: Low Flow Showerhead | P10: Fuel Oil | Q10: 0 | R10: 0 | S10: 2.65
B11: CFsp | D11: =IF($D$26=$O$29,VLOOKUP('Project Info'!$D$27,$P$29:$R$32,2,FALSE),IF($D$26=$O$33,VLOOKUP('Project Info'!$D$27,$P$33:$R$36,2,FALSE),IF($D26=$O$37,VLOOKUP('Project Info'!$D$27,$P$37:$R$38,2,FALSE),0)))*100 ->  | E11: % | O11: Low Flow Showerhead | P11: Propane | Q11: 0 | R11: 0 | S11: 2.65
B12: CFwp | D12: =IF($D$26=$O$29,VLOOKUP('Project Info'!$D$27,$P$29:$R$32,3,FALSE),IF($D$26=$O$33,VLOOKUP('Project Info'!$D$27,$P$33:$R$36,3,FALSE),IF($D26=O37,VLOOKUP('Project Info'!$D$27,$P$37:$R$38,3,FALSE),0)))*100 ->  | E12: % | O12: OMP Low-Flow Shower Head with Integrated Thermostatic Valve | P12: Gas | Q12: 0 | R12: 0 | S12: 1.41
O13: OMP Low-Flow Shower Head with Integrated Thermostatic Valve | P13: Electric | Q13: 183 | R13: 0.04 | S13: 0
B14: Hot Water - Showerheads
B15: Measure Code | D15: COM-HW-SH | G15: NOTE: For more information on this measure refer to the NH TRM.
B16: Market | D16: Commercial
B17: Program Type | D17: Retrofit
B18: Category | D18: Hot Water | O18: Table 3: Annual Water Savings
O19: Measure Name | P19: Gallons saved per unit
O20: Thermostatic Shut-Off Valve | P20: 558
O21: Low Flow Showerhead | P21: 7300
O22: OMP Low-Flow Shower Head with Integrated Thermostatic Valve | P22: 558
B23: Table 1: Calculating Primary Energy Impact
C24: Inputs | I24: Savings
C25: Quantity | D25: Measure Name | E25: Measure Life | I25: kW | J25: kWh | K25: MMBtu
B26: 1 | C26: ='Hot Water Inputs'!P13 -> 0 | D26: Thermostatic Shut-Off Valve | E26: 15 | I26: =IFERROR(IF($D26=$O$4,VLOOKUP('Project Info'!$D$27,$P$4:$S$7,3,FALSE),IF($D26=$O$8,VLOOKUP('Project Info'!$D$27,$P$8:$S$11,3,FALSE),IF($D26=$O$12,VLOOKUP('Project Info'!$D$27,$P$12:$S$13,3,FALSE),0)))*$C26,0) -> 0 | J26: =IFERROR(IF($D26=$O$4,VLOOKUP('Project Info'!$D$27,$P$4:$S$7,2,FALSE),IF($D26=$O$8,VLOOKUP('Project Info'!$D$27,$P$8:$S$11,2,FALSE),IF($D26=$O$12,VLOOKUP('Project Info'!$D$27,$P$12:$S$13,2,FALSE),0)))*$C26,0) -> 0 | K26: =IFERROR(IF($D26=$O$4,VLOOKUP('Project Info'!$D$27,$P$4:$S$7,4,FALSE),IF($D26=$O$8,VLOOKUP('Project Info'!$D$27,$P$8:$S$11,4,FALSE),IF($D26=O12,VLOOKUP('Project Info'!$D$27,$P$12:$S$13,4,FALSE),0)))*$C26,0) -> 0
B27: 2 | C27: ='Hot Water Inputs'!Q13 -> 0 | D27: Low Flow Showerhead | E27: 10 | I27: =IFERROR(IF($D27=$O$4,VLOOKUP('Project Info'!$D$27,$P$4:$S$7,3,FALSE),IF($D27=$O$8,VLOOKUP('Project Info'!$D$27,$P$8:$S$11,3,FALSE),IF($D27=$O$12,VLOOKUP('Project Info'!$D$27,$P$12:$S$13,3,FALSE),0)))*$C27,0) -> 0 | J27: =IFERROR(IF($D27=$O$4,VLOOKUP('Project Info'!$D$27,$P$4:$S$7,2,FALSE),IF($D27=$O$8,VLOOKUP('Project Info'!$D$27,$P$8:$S$11,2,FALSE),IF($D27=$O$12,VLOOKUP('Project Info'!$D$27,$P$12:$S$13,2,FALSE),0)))*$C27,0) -> 0 | K27: =IFERROR(IF($D27=$O$4,VLOOKUP('Project Info'!$D$27,$P$4:$S$7,4,FALSE),IF($D27=$O$8,VLOOKUP('Project Info'!$D$27,$P$8:$S$11,4,FALSE),IF($D27=O12,VLOOKUP('Project Info'!$D$27,$P$12:$S$13,4,FALSE),0)))*$C27,0) -> 0 | O27: Table 4: Coincidence Factors - Summer/Winter Peak
B28: 3 | C28: ='Hot Water Inputs'!R13 -> 0 | D28: OMP Low-Flow Shower Head with Integrated Thermostatic Valve | E28: 10 | I28: =IFERROR(IF($D28=$O$4,VLOOKUP('Project Info'!$D$27,$P$4:$S$7,3,FALSE),IF($D28=$O$8,VLOOKUP('Project Info'!$D$27,$P$8:$S$11,3,FALSE),IF($D28=$O$12,VLOOKUP('Project Info'!$D$27,$P$12:$S$13,3,FALSE),0)))*$C28,0) -> 0 | J28: =IFERROR(IF($D28=$O$4,VLOOKUP('Project Info'!$D$27,$P$4:$S$7,2,FALSE),IF($D28=$O$8,VLOOKUP('Project Info'!$D$27,$P$8:$S$11,2,FALSE),IF($D28=$O$12,VLOOKUP('Project Info'!$D$27,$P$12:$S$13,2,FALSE),0)))*$C28,0) -> 0 | O28: Measure Name | P28: Fuel Type | Q28: CFsp | R28: CFwp
H29: Totals: | I29: =SUM(I26:I27) -> 0 | J29: =SUM(J26:J27) -> 0 | K29: =SUM(K26:K27) -> 0 | O29: Thermostatic Shut-Off Valve | P29: Gas | Q29: 0 | R29: 0
O30: Thermostatic Shut-Off Valve | P30: Electric | Q30: 0.31 | R30: 0.81
O31: Thermostatic Shut-Off Valve | P31: Fuel Oil | Q31: 0 | R31: 0
O32: Thermostatic Shut-Off Valve | P32: Propane | Q32: 0 | R32: 0
O33: Low Flow Showerhead | P33: Electric | Q33: 0.31 | R33: 0.81
O34: Low Flow Showerhead | P34: Gas | Q34: 0 | R34: 0
O35: Low Flow Showerhead | P35: Fuel Oil | Q35: 0 | R35: 0
O36: Low Flow Showerhead | P36: Propane | Q36: 0 | R36: 0
O37: OMP Low-Flow Shower Head with Integrated Thermostatic Valve | P37: Gas | Q37: 0 | R37: 0
O38: OMP Low-Flow Shower Head with Integrated Thermostatic Valve | P38: Electric | Q38: 0.31 | R38: 0.81

Sheet HW2-SteamTraps (hidden)
B1: Measure: Steam Traps
O2: Table 2: Savings Values
O3: Fuel Type | P3: Pressure | Q3: ΔkWh | R3: ΔkW | S3: ΔMMBtu | T3: CFsp | U3: CFwp
B4: Measure Summary | G4: Measure Description | O4: Gas | P4: Low Pressure (≤= 10 psig) | Q4: 0 | R4: 0 | S4: 8.4 | T4: 0 | U4: 0
D5: Value | E5: Unit | G5: This measure considers the repair or replacement of malfunctioning steam traps. | O5: Gas | P5: High Pressure (> 10 psig) | Q5: 0 | R5: 0 | S5: 35.6 | T5: 0 | U5: 0
B6: Total Savings | D6: =I27 -> 0 | E6: kW | O6: Oil | P6: Low Pressure (≤= 10 psig) | Q6: 0 | R6: 0 | S6: 8.4 | T6: 0 | U6: 0
D7: =J27 -> 0 | E7: kWh | O7: Oil | P7: High Pressure (> 10 psig) | Q7: 0 | R7: 0 | S7: 35.6 | T7: 0 | U7: 0
D8: =K27 -> 0 | E8: MMBtu | O8: Propane | P8: Low Pressure (≤= 10 psig) | Q8: 0 | R8: 0 | S8: 8.4 | T8: 0 | U8: 0
B9: Measure Life | D9: 6 | E9: Years | O9: Propane | P9: High Pressure (> 10 psig) | Q9: 0 | R9: 0 | S9: 35.6 | T9: 0 | U9: 0
B10: CFsp | D10: 0 | E10: %
B11: CFwp | D11: 0 | E11: %
B13: Hot Water - Steam Traps
B14: Measure Code | D14: COM-HVAC-ST | G14: NOTE: For more information on this measure refer to the NH TRM.
B15: Market | D15: Commercial
B16: Program Type | D16: Retrofit
B17: Category | D17: HVAC
B22: Table 1: Calculating Primary Energy Impact
C23: Inputs | I23: Savings
C24: Quantity | D24: Steam Pressure | I24: kW | J24: kWh | K24: MMBtu
B25: 1 | C25: ='Hot Water Inputs'!P20 -> 0 | D25: Low Pressure (≤= 10 psig) | I25: 0 | J25: 0 | K25: =IFERROR(VLOOKUP(D25,$P$4:$S$5,4,FALSE),0)*C25 -> 0
B26: 2 | C26: ='Hot Water Inputs'!Q20 -> 0 | D26: High Pressure (> 10 psig) | I26: 0 | J26: 0 | K26: =IFERROR(VLOOKUP(D26,$P$4:$S$5,4,FALSE),0)*C26 -> 0
H27: Totals: | I27: =SUM(I25:I26) -> 0 | J27: =SUM(J25:J26) -> 0 | K27: =SUM(K25:K26) -> 0

Sheet HW3-WaterHeater (hidden)
B1: Measure: Water Heaters
M2: Table 2: Coincidence Factors
M3: Program | N3: CFsp | O3: CFwp
B4: Measure Summary | G4: Measure Description | M4: LBES, SBES, Muni | N4: 0.431 | O4: 0.747
D5: Value | E5: Unit | G5: Installation of a heat pump hot water heater, indirect water heater, on demand tankless water heater, volume water heater or condensing water heater through the midstream channel.
B6: Total Savings | D6: =IFERROR(I32/'Hot Water Inputs'!S25,0) -> 0 | E6: kW | M6: Table 3: Coincidence Factors
D7: =I32 -> 0 | E7: kWh | M7: Measure Name | N7: ΔkWh | O7: ΔMMBtu | P7: ΔMMBtu / Mbtuh
D8: =J32 -> 0 | E8: MMBtu | M8: Midstream Heat Pump Water Heater, 120 gallons | N8: 2082 | O8: 0 | P8: 0
B9: Measure Life: Heat Pump WH | D9: =IFERROR(SUMPRODUCT(H25:H31,C25:C31)/SUM(C25:C31),AVERAGE(H25:H31)) -> 14.85714286 | E9: Years
B10: CFsp | D10: =N4*100 -> 43.1 | E10: % | M10: Midstream Heat Pump Water Heater, 55-80 gallons | N10: 1171 | O10: 0 | P10: 0
B11: CFwp | D11: =O4*100 -> 74.7 | E11: %
M12: Midstream Heat Pump Water Heater, <55 gallons | N12: 4556 | O12: 0 | P12: 0
B13: HVAC - Boiler Reset Controls
B14: Measure Code | D14: COM-HW-WH | G14: NOTE: For more information on this measure refer to the NH TRM. | M14: Midstream Indirect Water Heater | N14: 0 | O14: 19 | P14: 0
B15: Markets | D15: Commercial
B16: Program Types | D16: Lost Opportunity | M16: Midstream on Demand Tankless Water Heater | N16: 0 | O16: 8.9 | P16: 0
B17: Categories | D17: Hot Water
M18: Midstream Volume Water Heater | N18: 0 | O18: 0 | P18: 0.6077
M20: Midstream Condensing Gas Water Heater | N20: 0 | O20: 0 | P20: 0.1441
B22: Table 1: Calculating Primary Energy Impact
I23: Savings
C24: Quantity | D24: Measure Name | H24: Measure Life | I24: kWh | J24: MMBtu
B25: 1 | C25: =IF('Hot Water Inputs'!$P$25=D25,'Hot Water Inputs'!$Q$25,0) -> 0 | D25: Midstream Heat Pump Water Heater, 120 gallons | H25: 13 | I25: =N8*C25 -> 0 | J25: =O8*C25 -> 0
B26: 2 | C26: =IF('Hot Water Inputs'!$P$25=D26,'Hot Water Inputs'!$Q$25,0) -> 0 | D26: Midstream Heat Pump Water Heater, 55-80 gallons | H26: 13 | I26: =N10*C26 -> 0 | J26: =O8*C26 -> 0
B27: 3 | C27: =IF('Hot Water Inputs'!$P$25=D27,'Hot Water Inputs'!$Q$25,0) -> 0 | D27: Midstream Heat Pump Water Heater, <55 gallons | H27: 13 | I27: =N12*C27 -> 0 | J27: =O12*C27 -> 0
B28: 4 | C28: =IF('Hot Water Inputs'!$P$25=D28,'Hot Water Inputs'!$Q$25,0) -> 0 | D28: Midstream Indirect Water Heater | H28: 15 | I28: =N14*C28 -> 0 | J28: =O14*C28 -> 0
B29: 5 | C29: =IF('Hot Water Inputs'!$P$25=D29,'Hot Water Inputs'!$Q$25,0) -> 0 | D29: Midstream on Demand Tankless Water Heater | H29: 20 | I29: =N16*C29 -> 0 | J29: =O16*C29 -> 0
B30: 6 | C30: =IF('Hot Water Inputs'!$P$25=D30,'Hot Water Inputs'!$Q$25,0) -> 0 | D30: Midstream Volume Water Heater | H30: 15 | I30: =N18*C30 -> 0 | J30: =IF('Hot Water Inputs'!$P$25=D30,P18*C30*'Hot Water Inputs'!$S$25,0) -> 0
B31: 7 | C31: =IF('Hot Water Inputs'!$P$25=D31,'Hot Water Inputs'!$Q$25,0) -> 0 | D31: Midstream Condensing Gas Water Heater | H31: 15 | I31: =N20*C31 -> 0 | J31: =IF('Hot Water Inputs'!$P$25=D31,P20*C31*'Hot Water Inputs'!$S$25,0) -> 0
H32: Totals: | I32: =SUM(I25:I31) -> 0 | J32: =SUM(J25:J31) -> 0

Sheet HVAC Inputs
B1: HVAC, Building & Equipment Control & Pipe Insulation Measures: Input Sheet
B4: Input Tables for HVAC, Control & Pipe Insulation Measures | H4: Key | K4: Instructions
B5: 1 | C5: Boiler Reset Controls | E5: 1 | F5: Wifi Thermostats | I5: Input Cells | K5: Please fill out all ORANGE cells on this Input Sheet with the facility's building and equipment control, duct insulation & sealing, and/or HVAC information relative to the customer measures selected on the "Measure Summary" tab. All aforementioned measures will reference this sheet for the calculations.
B6: 1 &2 | C6: Demand Control Ventilation | E6: 1 | F6: Programmable Thermostats | I6: Guidance/ Information Cells
B7: 1 & 2 | C7: Dual Enthalpy Economizer | E7: 3 | F7: Circulator Pumps | I7: Calculation Cells
B8: 1 & 5 | C8: Duct Insulation & Sealing | E8: 4 | F8: Heat Pumps
B9: 1 | C9: Hotel Occupancy Sensors | E9: 8 | F9: Unitary & Split AC
B10: 1 & 6 | C10: Pipe Insulation: Domestic Hot Water | E10: 9 | F10: Chillers
B11: 1 & 7 | C11: Pipe Insulation: Space Heating Steam & Hot Water | E11: 10 | F11: Packaged Terminal Heat Pumps
B13: Table 1: General ECM Questions | I13: Table 2: DCV and Dual Enthalpy Economizer Measures | O13: Table 4: Heat Pumps | AE13: Yes
B14: HVAC ECM1 - Boiler Reset Controls | I14: HVAC Unit | J14: Area | K14: Capacity | L14: Add | M14: Add Dual Enthalpy | O14: Operating Profile: | AE14: No
B15: Quantity of boilers (on which reset is to be implemented) | I15: ID | J15: Served | K15: (tons) | L15: DCV | M15: Economizer | O15: Unit Types for Install: | P15: 1 | Q15: 2 | R15: 3 | S15: 4 | T15: 5
B16: Cut sheet for proposed controller provided to NHSaves? | O16: Equipment Tag:
B17: Hot Water temperature set point prior to hot water reset: | O17: Model Numbers:
B18: Outdoor air temperature at which boiler will shut off: | O18: Quantity Units Installed:
B19: Sequence of operation for temp reset (new temp setpoints and correlating outside temperatures) provided to NHSaves? | O19: Equipment Type:
B20: HVAC ECM2 - Demand Control Ventilation (DCV)- Table 3 | O20: Suplemental Electric Resistance?:
B21: Table 2 has been completed? | O21: Cooling Capacity - TONS:
B22: Mechanical Schedule provided to NHSaves? | O22: If Air to Air Heat Pump < 5.4 tons, Split or Packaged?:
B23: New control sequence of operation provided to NHSaves? | O23: If VRF, Heat Recovery or No Heat Recovery?:
B24: HVAC ECM3 - Dual Enthalpy Economizer Controls - Table 3 | O24: Cooling Efficiency (EER2):
B25: Table 2 has been completed? | O25: Cooling Efficiency IEER (SEER2 if < 5.4 tons):
B26: Mechanical Schedule provided to NHSaves? | O26: Heating Efficiency COP (HSPF2 if < 5.4 tons):
B27: New control sequence of operation provided to NHSaves? | I27: Table 3: Circulator Pump
B28: HVAC ECM4 - Duct Insulation- Table 5 | I28: Quantity | J28: Pump | K28: Pump
B29: Table 5 has been completed? | I29: # | J29: Type | K29: hp
B30: Pictures of ductwork to be insulated provided to NHSaves? | O30: HVAC Measure 5: Duct Sealing
B31: Cut sheet(s) of insulation installed provided to NHSaves? | O31: Duct | P31: Insulated | Q31: Cool Cap | R31: Heat Cap
B32: HVAC ECM5 - Duct Sealing- Table 5 | O32: Location | P32: (Yes/No) | Q32: kBtu/hr | R32: kBtu/hr
B33: Table 5 completed?
B34: Pictures of ductwork to be sealed provided to NHSaves?
B35: Cut sheet(s) of air sealing product installed provided to NHSaves?
B36: HVAC ECM6 - Hotel Occupancy Sensors | L36: =IF(AND(L38="Qualifies",L39="Qualifies",L40="Qualifies",L41="Qualifies",L42="Qualifies"),"Measure qualifies for savings","Measure does not qualify for savings") -> Measure does not qualify for savings
B37: # of Rooms where occupancy sensors are being installed:
B38: Are the sensors controlled by a front desk system? | L38: =IF(K38="Yes", "Does not qualify; sensors controlled by a front desk system are not eligible", IF(K38="No","Qualifies","")) -> 
B39: Does the hotel operate 12 months/year? | L39: =IF(K39="Yes", "Qualifies", IF(K39="No","Does not qualify; hotel must operate all 12 months to be eligible","")) -> 
B40: Do the new controls include a) occupancy sensors? | L40: =IF(K40="Yes", "Qualifies", IF(K40="No","Does not qualify","")) -> 
B41: … b) window/door switches for rooms that have operable window or patio doors? | L41: =IF(K41="Yes", "Qualifies", IF(K41="No","Does not qualify","")) ->  | N41: Table 6: Domestic Hot Water Pipe Insulation
B42: … c) temperature set backs to 65F in the heating mode and 78F in the cooling mode when occupancy sensor is in unoccupied mode? | L42: =IF(K42="Yes", "Qualifies", IF(K42="No","Does not qualify; adjust set backs to be eligible for savings","")) ->  | N42: Pipe Location | O42: In Conditioned Space? | P42: Nominal Pipe Size (in) | Q42: Linear feet of pipe to be insulated | R42: Pipe Material | S42: Insulation | T42: Annual Operating Hours
B43: If temperature set backs are included but are not set to the above temperatures, list the unoccupied heating setpoint: (˚ F)
B44: If temperature set backs are included but are not set to the above temperatures, list the unoccupied cooling setpoint: (˚ F) | M44: 1 | U44: =IF(O44="Yes","No savings result from conditioned space","") -> 
B45: New temperature control sequence with setpoints provided to NHSaves? | M45: 2 | U45: =IF(O45="Yes","No savings result from conditioned space","") -> 
B46: HVAC ECM7 - Domestic Hot Water Pipe Insulation- Table 6 | M46: 3 | U46: =IF(O46="Yes","No savings result from conditioned space","") -> 
B47: Table 6 completed?
B48: Inventory of pipe to be insulated provided to NHSaves?
B49: Picture of existing un-insulated piping provided to NHSaves? | N49: Table 7: Space Heating Steam or Hot Water Pipe Insulation | V49: Table 8: Unitary and split measures
B50: Cut sheet of insulation to be installed provided to NHSaves? | N50: Pipe | O50: In Conditioned | P50: Linear Feet of Pipe | V50: Operating Profile:
B51: HVAC ECM8 - Space Heating Steam or Hot Water Pipe Insulation- Table 7 | N51: Location | O51: Space? | P51: to be insulated | V51: Unit Types for Install: | W51: 1 | X51: 2 | Y51: 3 | Z51: 4 | AA51: 5 | AB51: 6
B52: Table 7 completed? | M52: 1 | V52: Equipment Tag:
B53: Inventory of pipe to be insulated provided to NHSaves? | M53: 2 | V53: Model Numbers:
B54: Picture of existing un-insulated piping provided to NHSaves? | M54: 3 | V54: Quantity Units Installed:
B55: Cut sheet of insulation to be installed provided to NHSaves? | L55: =IF(G55="","",IF(G55="Yes","Qualifies","Does not qualify")) ->  | M55: 4 | V55: Condenser Type:
B56: HVAC ECM9 - Wifi Thermostat | M56: 5 | V56: Cooling Capacity - TONS:
B57: Quantity of thermostats to be installed | L57: =IF(L59="Qualifies","Measure qualifies for savings","Measure does not qualify for savings") -> Measure does not qualify for savings | M57: 6 | V57: If < 5.4 tons, Split or Packaged?:
B58: Thermostat cut sheet provided to NHSaves? | M58: 7 | V58: Unit Heat Source:
B59: Thermostat includes an outdoor air temperature algorithm in the control logic to operate heating and cooling system? | L59: =IF(K59="Yes", "Qualifies", IF(K59="No","Does not qualify; measure requires outdoor air temp algorithm","")) ->  | M59: 8 | V59: Cooling Efficiency (EER/EER2):
B60: HVAC ECM10 - Programmable Thermostat | V60: Cooling Efficiency (IEER/SEER2):
B61: Thermostat cut sheet provided to NHSaves?
B62: Quantity of Programmable Thermostats?
N63: Table 9: Chillers | U63: Table 10: Packaged Terminal Heat Pumps
N64: Operating Profile | U64: Quantity | V64: Capacity | W64: Proposed
N65: Unit ID-Opt. (1) | U65: # | V65: Btu/hr | W65: EER | X65: COP
N66: Model Numbers
N67: Quantity Units Installed (2)
N68: Chiller Type (3)
N69: Compressor Type (4)
N70: Cooling Capacity - TONS (5)
N71: Air Cooled New Efficiency - EER (6)
N72: Air Cooled New Efficiency - IPLV
N73: Water Cooled New Efficiency FL - kW/Ton (7)
N74: Water Cooled New Efficiency IPLV - kW/Ton
B84: Midstream Heat Pump Water Heater, 120 gallons
B85: Midstream Heat Pump Water Heater, 55-80 gallons
B86: Midstream Heat Pump Water Heater, <55 gallons
B87: Midstream Indirect Water Heater
B88: Midstream on Demand Tankless Water Heater
B89: Midstream Volume Water Heater
B90: Midstream Condensing Gas Water Heater
B94: TRM Appendix 2 - Cooling EFLH | J94: TRM Appendix 2 - Heating EFLH
B95: Building Type | C95: HVAC Type | D95: Bldg & HVAC | E95: Berlin | F95: Concord | G95: Manchester | J95: Building Type | K95: HVAC Type | L95: Bldg & HVAC | M95: Berlin | N95: Concord | O95: Manchester
B96: Community College | C96: CV Econ | D96: =CONCATENATE(B96,C96) -> Community CollegeCV Econ | E96: 412 | F96: 627 | G96: 581 | J96: Community College | K96: CV Econ | L96: =CONCATENATE(J96,K96) -> Community CollegeCV Econ | M96: 1103 | N96: 1098 | O96: 939 | Q96: Building Type | R96: ='Project Info'!$D$20 -> 0
B97: Community College | C97: CV nonecon | D97: =CONCATENATE(B97,C97) -> Community CollegeCV nonecon | E97: 612 | F97: 874 | G97: 789 | J97: Community College | K97: CV nonecon | L97: =CONCATENATE(J97,K97) -> Community CollegeCV nonecon | M97: 982 | N97: 1014 | O97: 863 | Q97: HVAC Type | R97: ='Project Info'!$D$22 -> 0
B98: Community College | C98: VAV | D98: =CONCATENATE(B98,C98) -> Community CollegeVAV | E98: 299 | F98: 489 | G98: 460 | J98: Community College | K98: VAV | L98: Community CollegeVAV | M98: 704 | N98: 462 | O98: 642 | Q98: Building Type & HVAC Type | R98: =_xlfn.CONCAT(R96,R97) -> 00
B99: Community College | C99: Unknown | D99: Community CollegeUnknown | E99: 365 | F99: 570 | G99: 530 | J99: Community College | K99: Unknown | L99: Community CollegeUnknown | M99: 809 | N99: 646 | O99: 723 | Q99: Location | R99: =IF('Project Info'!$D$21="Berlin","Berlin",IF(OR('Project Info'!$D$21="Concord",'Project Info'!$D$21="Lebanon",'Project Info'!$D$21="Keene",'Project Info'!$D$21="Laconia"),"Concord","Manchester")) -> Manchester
B100: High School | C100: CV Econ | D100: High SchoolCV Econ | E100: 252 | F100: 398 | G100: 330 | J100: High School | K100: CV Econ | L100: High SchoolCV Econ | M100: 806 | N100: 744 | O100: 724 | Q100: Cooling EFLH | R100: =IF(COUNTIF(B124:B138,$R$96)>0,OFFSET($B$123,MATCH($R$96,$B$124:$B$138),MATCH($R$99,$E$95:$G$95)+2),OFFSET($D$95,MATCH($R$98,$D$96:$D$123,0),MATCH($R$99,$E$95:$G$95))) -> 
B101: High School | C101: CV nonecon | D101: High SchoolCV nonecon | E101: 707 | F101: 837 | G101: 741 | J101: High School | K101: CV nonecon | L101: High SchoolCV nonecon | M101: 721 | N101: 699 | O101: 652 | Q101: Heating EFLH | R101: =IF(COUNTIF(J124:J138,$R$96)>0,OFFSET($J$123,MATCH($R$96,$J$124:$J$138),MATCH($R$99,$M$95:$O$95)+2),OFFSET($L$95,MATCH($R$98,$L$96:$L$123,0),MATCH($R$99,$M$95:$O$95))) -> 
B102: High School | C102: VAV | D102: High SchoolVAV | E102: 148 | F102: 255 | G102: 196 | J102: High School | K102: VAV | L102: High SchoolVAV | M102: 383 | N102: 289 | O102: 274
B103: High School | C103: Unknown | D103: High SchoolUnknown | E103: 251 | F103: 368 | G103: 301 | J103: High School | K103: Unknown | L103: High SchoolUnknown | M103: 501 | N103: 423 | O103: 402
B104: Hospital | C104: CV Econ | D104: HospitalCV Econ | E104: 1037 | F104: 1132 | G104: 1115 | J104: Hospital | K104: CV Econ | L104: HospitalCV Econ | M104: 1140 | N104: 1052 | O104: 703
B105: Hospital | C105: CV nonecon | D105: HospitalCV nonecon | E105: 2248 | F105: 2117 | G105: 1865 | J105: Hospital | K105: CV nonecon | L105: HospitalCV nonecon | M105: 1068 | N105: 971 | O105: 641
B106: Hospital | C106: VAV | D106: HospitalVAV | E106: 1014 | F106: 1089 | G106: 1079 | J106: Hospital | K106: VAV | L106: HospitalVAV | M106: 738 | N106: 781 | O106: 437
B107: Hospital | C107: Unknown | D107: HospitalUnknown | E107: 1115 | F107: 1175 | G107: 1145 | J107: Hospital | K107: Unknown | L107: HospitalUnknown | M107: 797 | N107: 818 | O107: 474
B108: Hotel | C108: CV Econ | D108: HotelCV Econ | E108: 2838 | F108: 3033 | G108: 2763 | J108: Hotel | K108: CV Econ | L108: HotelCV Econ | M108: 1111 | N108: 955 | O108: 909
B109: Hotel | C109: CV nonecon | D109: HotelCV nonecon | E109: 3035 | F109: 3219 | G109: 2983 | J109: Hotel | K109: CV nonecon | L109: HotelCV nonecon | M109: 917 | N109: 771 | O109: 671
B110: Hotel | C110: VAV | D110: HotelVAV | E110: 2811 | F110: 3014 | G110: 2726 | J110: Hotel | K110: VAV | L110: HotelVAV | M110: 571 | N110: 432 | O110: 350
B111: Hotel | C111: Unknown | D111: HotelUnknown | E111: 2937 | F111: 3126 | G111: 2873 | J111: Hotel | K111: Unknown | L111: HotelUnknown | M111: 1014 | N111: 863 | O111: 790
B112: Large Office | C112: CV Econ | D112: Large OfficeCV Econ | E112: 885 | F112: 1095 | G112: 1002 | J112: Large Office | K112: CV Econ | L112: Large OfficeCV Econ | M112: 2140 | N112: 2046 | O112: 1683
B113: Large Office | C113: CV nonecon | D113: Large OfficeCV nonecon | E113: 2500 | F113: 2541 | G113: 2276 | J113: Large Office | K113: CV nonecon | L113: Large OfficeCV nonecon | M113: 2046 | N113: 1985 | O113: 1620
B114: Large Office | C114: VAV | D114: Large OfficeVAV | E114: 584 | F114: 758 | G114: 675 | J114: Large Office | K114: VAV | L114: Large OfficeVAV | M114: 518 | N114: 428 | O114: 309
B115: Large Office | C115: Unknown | D115: Large OfficeUnknown | E115: 739 | F115: 906 | G115: 810 | J115: Large Office | K115: Unknown | L115: Large OfficeUnknown | M115: 739 | N115: 651 | O115: 497
B116: Large Retail | C116: CV Econ | D116: Large RetailCV Econ | E116: 701 | F116: 848 | G116: 832 | J116: Large Retail | K116: CV Econ | L116: Large RetailCV Econ | M116: 1878 | N116: 1827 | O116: 1735
B117: Large Retail | C117: CV nonecon | D117: Large RetailCV nonecon | E117: 1695 | F117: 1654 | G117: 1665 | J117: Large Retail | K117: CV nonecon | L117: Large RetailCV nonecon | M117: 1755 | N117: 1728 | O117: 1620
B118: Large Retail | C118: VAV | D118: Large RetailVAV | E118: 560 | F118: 662 | G118: 656 | J118: Large Retail | K118: VAV | L118: Large RetailVAV | M118: 775 | N118: 681 | O118: 549
B119: Large Retail | C119: Unknown | D119: Large RetailUnknown | E119: 662 | F119: 756 | G119: 750 | J119: Large Retail | K119: Unknown | L119: Large RetailUnknown | M119: 942 | N119: 856 | O119: 729
B120: University | C120: CV Econ | D120: UniversityCV Econ | E120: 566 | F120: 722 | G120: 760 | J120: University | K120: CV Econ | L120: UniversityCV Econ | M120: 1515 | N120: 1404 | O120: 1342
B121: University | C121: CV nonecon | D121: UniversityCV nonecon | E121: 1334 | F121: 1543 | G121: 1689 | J121: University | K121: CV nonecon | L121: UniversityCV nonecon | M121: 1279 | N121: 1195 | O121: 1135
B122: University | C122: VAV | D122: UniversityVAV | E122: 413 | F122: 592 | G122: 619 | J122: University | K122: VAV | L122: UniversityVAV | M122: 615 | N122: 852 | O122: 797
B123: University | C123: Unknown | D123: UniversityUnknown | E123: 579 | F123: 760 | G123: 807 | J123: University | K123: Unknown | L123: UniversityUnknown | M123: 858 | N123: 991 | O123: 933
B124: Assembly | E124: 448 | F124: 538 | G124: 492 | J124: Assembly | M124: 1234 | N124: 960 | O124: 908
B125: Auto Repair | E125: 186 | F125: 304 | G125: 341 | J125: Auto Repair | M125: 4173 | N125: 3370 | O125: 3379
B126: Big Box Retail | E126: 734 | F126: 841 | G126: 786 | J126: Big Box Retail | M126: 744 | N126: 602 | O126: 474
B127: Dormitory | E127: 638 | F127: 698 | G127: 705 | J127: Dormatory | M127: 686 | N127: 544 | O127: 452
B128: Fast Food Restaurant | E128: 427 | F128: 539 | G128: 521 | J128: Fast Food Restaurant | M128: 1837 | N128: 1400 | O128: 1249
B129: Full Service Restaurant | E129: 391 | F129: 512 | G129: 479 | J129: Full Service Restaurant | M129: 1886 | N129: 1303 | O129: 1275
B130: Grocery | E130: 2143 | F130: 2188 | G130: 2028 | J130: Grocery | M130: 951 | N130: 1064 | O130: 988
B131: Light Industrial | E131: 350 | F131: 435 | G131: 419 | J131: Light Industrial | M131: 1379 | N131: 1265 | O131: 949
B132: Motel | E132: 670 | F132: 900 | G132: 909 | J132: Motel | M132: 736 | N132: 626 | O132: 499
B133: Primary School | E133: 167 | F133: 304 | G133: 278 | J133: Primary School | M133: 1551 | N133: 1309 | O133: 1094
B134: Religious | E134: 171 | F134: 220 | G134: 261 | J134: Religious | M134: 1129 | N134: 1012 | O134: 928
B135: Small Office | E135: 563 | F135: 786 | G135: 758 | J135: Small Office | M135: 894 | N135: 760 | O135: 588
B136: Small Retail | E136: 575 | F136: 716 | G136: 685 | J136: Small Retail | M136: 1264 | N136: 1052 | O136: 795
B137: Warehouse | E137: 172 | F137: 249 | G137: 275 | J137: Warehouse | M137: 1172 | N137: 920 | O137: 829
B138: Other | E138: 545 | F138: 659 | G138: 638 | J138: Other | M138: 1403 | N138: 1156 | O138: 1029

Sheet HVAC1-BoilerReset (hidden)
B1: Measure: Boiler Reset Controls
M2: Table 2: Coincidence Factors
M3: Program | N3: CFsp | O3: CFwp
B4: Measure Summary | G4: Measure Description | M4: LBES, SBES, Muni | N4: 0 | O4: 0
D5: Value | E5: Unit | G5: This measure involves the installation of reset controls to automatically control boiler water temperature. Definitions: Boiler Reset Controls: devices that automatically control boiler water temperature based on outdoor or return water temperature using a software program.
B6: Total Savings | D6: 0 | E6: kW | M6: Table 3: MMBtu/unit savings
D7: 0 | E7: kWh | M7: Measure Name | N7: Fuel Type | O7: MMbtu/unit
D8: =I26 -> 0 | E8: MMBtu | M8: Boiler Reset Controls | N8: Gas | O8: 35.5
B9: Measure Life | D9: 15 | E9: Years | M9: Boiler Reset Controls | N9: Oil | O9: 35.5
B10: CFsp | D10: =N4 -> 0 | E10: % | M10: Boiler Reset Controls | N10: Propane | O10: 35.5
B11: CFwp | D11: =O4 -> 0 | E11: %
B13: HVAC - Boiler Reset Controls
B14: Measure Code | D14: COM-HVAC-BRC | G14: NOTE: For more information on this measure refer to the NH TRM.
B15: Market | D15: Commercial
B16: Program Type | D16: Retrofit
B17: Category | D17: HVAC
B22: Table 1: Calculating Primary Energy Impact
C23: Inputs | I23: Savings
C24: No. of units | I24: MMBtu
B25: 1 | C25: =+'HVAC Inputs'!G15 -> 0 | I25: =$O$8*C25 -> 0
H26: Totals: | I26: =SUM(I25:J25) -> 0

Sheet HVAC2-DCV (hidden)
B1: Measure: Demand Control Ventilation (DCV)
M2: Table 2: Coincidence Factors
M3: Program | N3: CFsp | O3: CFwp
B4: Measure Summary | G4: Measure Description | M4: LBES, SBES, Muni | N4: 0.82 | O4: 0.05
D5: Value | E5: Unit | G5: This measure controls the quantity of outside air to an air handling system based on detected space CO2 levels. The installed systems monitor the CO2 in the spaces or return air and reduce the outside air use when possible to save energy while meeting indoor air quality standards. Measure is applicable to situations where not required by the 2018 IECC Energy and Conservation Code section 403.7 Ventilation and Exhaust Systems. 1
B6: Total Savings | D6: =I35 -> 0 | E6: kW
D7: =J35 -> 0 | E7: kWh
D8: 0 | E8: MMBtu
B9: Measure Life | D9: 10 | E9: Years
B10: CFsp | D10: =N4*100 -> 82 | E10: %
B11: CFwp | D11: =O4*100 -> 5 | E11: %
B13: HVAC - Demand Control Ventilation
B14: Measure Code | D14: COM-HVAC-DCV | G14: NOTE: For more information on this measure refer to the NH TRM.
B15: Market | D15: Commercial
B16: Program Type | D16: Retrofit
B17: Category | D17: HVAC
B21: Table 1: Calculating Primary Energy Impact
C22: Inputs | I22: Savings
C23: AHU | D23: Cooling Cap | E23: SAVEkW | F23: SAVEkWh | I23: Demand | J23: Energy
C24: Tag | D24: kBtu/hr | E24: kW/ton | F24: kWh/ton | I24: kW | J24: kWh
B25: 1 | C25: =IF('HVAC Inputs'!L16="Yes",'HVAC Inputs'!I16,"") ->  | D25: =IF(C25="","",IFERROR(IF(OR(ISBLANK(C25)),"",'HVAC Inputs'!K16*12),"Error: fill in ID / Tag # and Input Sheet")) ->  | E25: =IF(OR(ISBLANK(C25),ISBLANK(D25)),"",0.15) -> 0.15 | F25: =IF(OR(ISBLANK(C25),ISBLANK(D25)),"",170) -> 170 | I25: =IFERROR(D25*1/12*E25,"") ->  | J25: =IFERROR(D25*1/12*F25, "") -> 
B26: 2 | C26: =IF('HVAC Inputs'!L17="Yes",'HVAC Inputs'!I17,"") ->  | D26: =IF(C26="","",IFERROR(IF(OR(ISBLANK(C26)),"",'HVAC Inputs'!K17*12),"Error: fill in ID / Tag # and Input Sheet")) ->  | E26: =IF(OR(ISBLANK(#REF!),ISBLANK(D26)),"",0.15) -> 0.15 | F26: =IF(OR(ISBLANK(#REF!),ISBLANK(D26)),"",170) -> 170
B27: 3 | C27: =IF('HVAC Inputs'!L18="Yes",'HVAC Inputs'!I18,"") ->  | D27: =IF(C27="","",IFERROR(IF(OR(ISBLANK(C27)),"",'HVAC Inputs'!K18*12),"Error: fill in ID / Tag # and Input Sheet")) ->  | E27: =IF(OR(ISBLANK(#REF!),ISBLANK(D27)),"",0.15) -> 0.15 | F27: =IF(OR(ISBLANK(#REF!),ISBLANK(D27)),"",170) -> 170
B28: 4 | C28: =IF('HVAC Inputs'!L19="Yes",'HVAC Inputs'!I19,"") ->  | D28: =IF(C28="","",IFERROR(IF(OR(ISBLANK(C28)),"",'HVAC Inputs'!K19*12),"Error: fill in ID / Tag # and Input Sheet")) ->  | E28: =IF(OR(ISBLANK(#REF!),ISBLANK(D28)),"",0.15) -> 0.15 | F28: =IF(OR(ISBLANK(#REF!),ISBLANK(D28)),"",170) -> 170
B29: 5 | C29: =IF('HVAC Inputs'!L20="Yes",'HVAC Inputs'!I20,"") ->  | D29: =IF(C29="","",IFERROR(IF(OR(ISBLANK(C29)),"",'HVAC Inputs'!K20*12),"Error: fill in ID / Tag # and Input Sheet")) ->  | E29: =IF(OR(ISBLANK(#REF!),ISBLANK(D29)),"",0.15) -> 0.15 | F29: =IF(OR(ISBLANK(#REF!),ISBLANK(D29)),"",170) -> 170
B30: 6 | C30: =IF('HVAC Inputs'!L21="Yes",'HVAC Inputs'!I21,"") ->  | D30: =IF(C30="","",IFERROR(IF(OR(ISBLANK(C30)),"",'HVAC Inputs'!K21*12),"Error: fill in ID / Tag # and Input Sheet")) ->  | E30: =IF(OR(ISBLANK(#REF!),ISBLANK(D30)),"",0.15) -> 0.15 | F30: =IF(OR(ISBLANK(#REF!),ISBLANK(D30)),"",170) -> 170
B31: 7 | C31: =IF('HVAC Inputs'!L22="Yes",'HVAC Inputs'!I22,"") ->  | D31: =IF(C31="","",IFERROR(IF(OR(ISBLANK(C31)),"",'HVAC Inputs'!K22*12),"Error: fill in ID / Tag # and Input Sheet")) ->  | E31: =IF(OR(ISBLANK(#REF!),ISBLANK(D31)),"",0.15) -> 0.15 | F31: =IF(OR(ISBLANK(#REF!),ISBLANK(D31)),"",170) -> 170
B32: 8 | C32: =IF('HVAC Inputs'!L23="Yes",'HVAC Inputs'!I23,"") ->  | D32: =IF(C32="","",IFERROR(IF(OR(ISBLANK(C32)),"",'HVAC Inputs'!K23*12),"Error: fill in ID / Tag # and Input Sheet")) ->  | E32: =IF(OR(ISBLANK(#REF!),ISBLANK(D32)),"",0.15) -> 0.15 | F32: =IF(OR(ISBLANK(#REF!),ISBLANK(D32)),"",170) -> 170
B33: 9 | C33: =IF('HVAC Inputs'!L24="Yes",'HVAC Inputs'!I24,"") ->  | D33: =IF(C33="","",IFERROR(IF(OR(ISBLANK(C33)),"",'HVAC Inputs'!K24*12),"Error: fill in ID / Tag # and Input Sheet")) ->  | E33: =IF(OR(ISBLANK(#REF!),ISBLANK(D33)),"",0.15) -> 0.15 | F33: =IF(OR(ISBLANK(#REF!),ISBLANK(D33)),"",170) -> 170
B34: 10 | C34: =IF('HVAC Inputs'!L25="Yes",'HVAC Inputs'!I25,"") ->  | D34: =IF(C34="","",IFERROR(IF(OR(ISBLANK(C34)),"",'HVAC Inputs'!K25*12),"Error: fill in ID / Tag # and Input Sheet")) ->  | E34: =IF(OR(ISBLANK(#REF!),ISBLANK(D34)),"",0.15) -> 0.15 | F34: =IF(OR(ISBLANK(#REF!),ISBLANK(D34)),"",170) -> 170
H35: Totals: | I35: =SUM(I25:I34) -> 0 | J35: =SUM(J25:J34) -> 0

Sheet HVAC3-Economizer (hidden)
B1: Measure: Dual Enthalpy Economizer Controls | M1: Table 2: Coincidence Factors
M2: Program | N2: CFsp | O2: CFwp
M3: LBES, SBES, Muni | N3: 0.342 | O3: 0
B4: Measure Summary | G4: Measure Description
D5: Value | E5: Unit | G5: This measure is to upgrade the outside-air dry-bulb economizer to a dual enthalpy economizer. The system will continuously monitor the enthalpy of both the outside air and return air. The system will control the system dampers adjust the outside quantity based on the two readings.
B6: Total Savings | D6: =I36 -> 0 | E6: kW
D7: =J36 -> 0 | E7: kWh
D8: 0 | E8: MMBtu
B9: Measure Life | D9: 10 | E9: Years
B10: CFsp | D10: =N3*100 -> 34.2 | E10: %
B11: CFwp | D11: =O3*100 -> 0 | E11: %
B13: HVAC - Dual Enthalpy Economizer Controls
B14: Measure Code | D14: COM-HVAC-DEEC | G14: NOTE: For more information on this measure refer to the NH TRM.
B15: Market | D15: Commercial
B16: Program Type | D16: Retrofit
B17: Category | D17: HVAC
B22: Table 1: Calculating Primary Energy Impact
C23: Inputs
C24: AHU | D24: Cooling Cap | E24: SAVEkW | F24: SAVEkWh | I24: Savings
C25: Tag | D25: kBtu/hr | E25: kW/ton | F25: kWh/ton | I25: kW | J25: kWh
B26: 1 | C26: =IF('HVAC Inputs'!M16="Yes",'HVAC Inputs'!I16,"") ->  | D26: =IF(C26="","",IFERROR(IF(OR(ISBLANK(C26)),"",'HVAC Inputs'!K16)*12,"Error: fill in all info")) ->  | E26: =IF(OR(ISBLANK(C26),ISBLANK(D26)),"",0.289) -> 0.289 | F26: =IF(OR(ISBLANK(C26),ISBLANK(D26)),"",289) -> 289 | I26: =IFERROR(D26*1/12*E26,"") ->  | J26: =IFERROR(D26*1/12*F26,"") -> 
B27: 2 | C27: =IF('HVAC Inputs'!M17="Yes",'HVAC Inputs'!I17,"") ->  | D27: =IF(C27="","",IFERROR(IF(OR(ISBLANK(C27)),"",'HVAC Inputs'!K17)*12,"Error: fill in all info")) ->  | E27: =IF(OR(ISBLANK(C27),ISBLANK(D27)),"",0.289) -> 0.289 | F27: =IF(OR(ISBLANK(C27),ISBLANK(D27)),"",289) -> 289 | I27: =IFERROR(D27*1/12*E27,"") ->  | J27: =IFERROR(D27*1/12*F27,"") -> 
B28: 3 | C28: =IF('HVAC Inputs'!M18="Yes",'HVAC Inputs'!I18,"") ->  | D28: =IF(C28="","",IFERROR(IF(OR(ISBLANK(C28)),"",'HVAC Inputs'!K18)*12,"Error: fill in all info")) ->  | E28: 0.289 | F28: 289
B29: 4 | C29: =IF('HVAC Inputs'!M19="Yes",'HVAC Inputs'!I19,"") ->  | D29: =IF(C29="","",IFERROR(IF(OR(ISBLANK(C29)),"",'HVAC Inputs'!K19)*12,"Error: fill in all info")) ->  | E29: 0.289 | F29: 289
B30: 5 | C30: =IF('HVAC Inputs'!M20="Yes",'HVAC Inputs'!I20,"") ->  | D30: =IF(C30="","",IFERROR(IF(OR(ISBLANK(C30)),"",'HVAC Inputs'!K20)*12,"Error: fill in all info")) ->  | E30: 0.289 | F30: 289
B31: 6 | C31: =IF('HVAC Inputs'!M21="Yes",'HVAC Inputs'!I21,"") ->  | D31: =IF(C31="","",IFERROR(IF(OR(ISBLANK(C31)),"",'HVAC Inputs'!K21)*12,"Error: fill in all info")) ->  | E31: 0.289 | F31: 289
B32: 7 | C32: =IF('HVAC Inputs'!M22="Yes",'HVAC Inputs'!I22,"") ->  | D32: =IF(C32="","",IFERROR(IF(OR(ISBLANK(C32)),"",'HVAC Inputs'!K22)*12,"Error: fill in all info")) ->  | E32: 0.289 | F32: 289
B33: 8 | C33: =IF('HVAC Inputs'!M23="Yes",'HVAC Inputs'!I23,"") ->  | D33: =IF(C33="","",IFERROR(IF(OR(ISBLANK(C33)),"",'HVAC Inputs'!K23)*12,"Error: fill in all info")) ->  | E33: 0.289 | F33: 289
B34: 9 | C34: =IF('HVAC Inputs'!M24="Yes",'HVAC Inputs'!I24,"") ->  | D34: =IF(C34="","",IFERROR(IF(OR(ISBLANK(C34)),"",'HVAC Inputs'!K24)*12,"Error: fill in all info")) ->  | E34: 0.289 | F34: 289
B35: 10 | C35: =IF('HVAC Inputs'!M25="Yes",'HVAC Inputs'!I25,"") ->  | D35: =IF(C35="","",IFERROR(IF(OR(ISBLANK(C35)),"",'HVAC Inputs'!K25)*12,"Error: fill in all info")) ->  | E35: 0.289 | F35: 289
H36: Totals: | I36: =SUM(I26:I35) -> 0 | J36: =SUM(J26:J35) -> 0

Sheet HVAC4-DuctInsulation (hidden)
B1: Measure: Duct Insulation
L2: Table 2: Coincidence Factors
L3: Fuel Type | M3: CFsp | N3: CFwp
B4: Measure Summary | G4: Measure Description | L4: Electric | M4: 0.35 | N4: 0
D5: Value | E5: Unit | G5: This measure is for existing ductwork in non-conditioned spaces, insulate ductwork. This could include replacing un-insulated flexible duct with rigid insulated ductwork and installing 1" to 2" of duct-wrap insulation. | L5: Gas | M5: 0 | N5: 0
B6: Total Savings | D6: 0 | E6: kW | L6: Oil | M6: 0 | N6: 0
D7: 0 | E7: kWh
D8: =I26 -> 0 | E8: MMBtu
B9: Measure Life | D9: 20 | E9: Years
B10: CFsp | D10: =IFERROR(VLOOKUP('Project Info'!$D$24,L4:N6,2,FALSE)*100,0) -> 0 | E10: %
B11: CFwp | D11: =IFERROR(VLOOKUP('Project Info'!$D$24,L4:N6,3,FALSE)*100,0) -> 0 | E11: %
B13: HVAC - Duct Insulation
B14: Measure Code | D14: COM-HVAC-DI | G14: NOTE: For more information on this measure refer to the NH TRM.
B15: Market | D15: Commercial
B16: Program Type | D16: Retrofit
B17: Category | D17: HVAC
B22: Table 1: Calculating Primary Energy Impact
C23: Inputs | I23: Savings
C24: Ductwork Area (ft2) | I24: MMBtu
B25: 1 | C25: =SUM(IF('HVAC Inputs'!$V$31="YES",'HVAC Inputs'!$U$31,0),IF('HVAC Inputs'!$V$32="YES",'HVAC Inputs'!$U$32,0),IF('HVAC Inputs'!$V$33="YES",'HVAC Inputs'!$U$33,0),IF('HVAC Inputs'!$V$34="YES",'HVAC Inputs'!$U$34,0),IF('HVAC Inputs'!$V$35="YES",'HVAC Inputs'!$U$35,0),IF('HVAC Inputs'!$V$36="YES",'HVAC Inputs'!$U$36,0),IF('HVAC Inputs'!$V$37="YES",'HVAC Inputs'!$U$37,0),IF('HVAC Inputs'!$V$38="YES",'HVAC Inputs'!$U$38,0)) -> 0 | I25: =0.035*C25 -> 0
H26: Total: | I26: =SUM(I25:I25) -> 0

Sheet HVAC5-DuctSealing (hidden)
B1: Measure: Duct Sealing
U2: Table 2: Coincidence Factors
U3: Fuel Type | V3: CFsp | W3: CFwp
B4: Measure Summary | G4: Measure Description | U4: Electric | V4: 0.35 | W4: 0
D5: Value | E5: Unit | G5: This measure is for sealing existing ductwork in non-conditioned spaces. This could include sealing ductwork with mastic or aerosol. | U5: Gas | V5: 0 | W5: 0
B6: Total Savings: | D6: =+S24 ->  | E6: kW | U6: Oil | V6: 0 | W6: 0
D7: =+P24+R24 -> 0 | E7: kWh
D8: =+Q24 ->  | E8: MMBtu
B9: Measure Life: | D9: 20 | E9: Years | U9: Heating distribution Efficiency | AB9: Thermal Regain Factors
B10: CFsp: | D10: =+V4 -> 0.35 | E10: % | U10: Duct total leakage (%) | V10: Assembly | W10: Fast food | X10: Full Service | Y10: Small Retail | Z10: Other | AB10: Duct Location | AC10: TRFcooling | AD10: TRFheating
B11: CFwp: | D11: =+W4 -> 0 | E11: % | U11: 8% Uninsulated | V11: 0.909 | W11: 0.809 | X11: 0.816 | Y11: 0.657 | Z11: 0.798 | AB11: Attic | AC11: 0.1 | AD11: 0.1
U12: 15% Uninsulated | V12: 0.879 | W12: 0.784 | X12: 0.789 | Y12: 0.624 | Z12: 0.769 | AB12: Garage | AC12: 0.1 | AD12: 0.1
B13: HVAC - Duct Sealing | U13: 20% uninsulated | V13: 0.858 | W13: 0.766 | X13: 0.77 | Y13: 0.602 | Z13: 0.749 | AB13: Crawl Space, unvented, uninsulated | AC13: 0.6 | AD13: 0.6
B14: Measure Code | D14: COM-HVAC-DS | G14: NOTE: For more information on this measure refer to the NH TRM. | U14: 25% Uninsulated | V14: 0.835 | W14: 0.75 | X14: 0.753 | Y14: 0.582 | Z14: 0.73 | AB14: Crawl Space, Unvented, Insulated Building Floor and Crawl Space Walls | AC14: 0.6 | AD14: 0.3
B15: Market | D15: Commercial | U15: 30% Uninsulated | V15: 0.816 | W15: 0.734 | X15: 0.736 | Y15: 0.563 | Z15: 0.712 | AB15: Crawl Space, Unvented, Insulated Floor Only | AC15: 0.3 | AD15: 0.3
B16: Program Type | D16: Retrofit | U16: 8% R-6 | V16: 0.951 | W16: 0.901 | X16: 0.904 | Y16: 0.792 | Z16: 0.887 | AB16: Crawl Space, Vented, Uninsulated | AC16: 0.6 | AD16: 0.55
B17: Category | D17: HVAC | U17: 15% R-6 | V17: 0.917 | W17: 0.862 | X17: 0.866 | Y17: 0.742 | Z17: 0.847 | AB17: Crawl Space, Insulated Building Floor and Crawl Space Walls | AC17: 0.63 | AD17: 0.6
U18: 20% R-6 | V18: 0.895 | W18: 0.836 | X18: 0.84 | Y18: 0.71 | Z18: 0.82 | AB18: Crawl Space, Vented, Insulated Floor Only | AC18: 0.3 | AD18: 0.3
U19: 25% R-6 | V19: 0.871 | W19: 0.813 | X19: 0.816 | Y19: 0.68 | Z19: 0.795 | AB19: Basement, Uninsulated | AC19: 0.5 | AD19: 0.5
B20: Table 1: Calculating Primary Energy Impact | U20: 30% R-6 | V20: 0.849 | W20: 0.791 | X20: 0.794 | Y20: 0.652 | Z20: 0.772 | AB20: Basement, uninsulated Walls | AC20: 0.6 | AD20: 0.6
B21: Inputs | P21: Savings | AB21: Under-slab | AC21: 0.2 | AD21: 0.2
B22: Building | C22: Insulated | D22: DE Heat | E22: DE Heat | F22: TRF | G22: Capheat | H22: Heating | I22: Boiler | J22: Heating | K22: DE Cool | L22: DE Cool | M22: TRF | N22: Capcool | O22: Cooling | P22: Heating | R22: Cooling
B23: Type | C23: Y/N | D23: Base | E23: Prop | F23: Heat | G23: MBH | H23: System | I23: Type | J23: COP | K23: Base | L23: Prop | M23: Cool | N23: MBH | O23: EER | P23: kWh | Q23: MMBtu | R23: kWh | S23: kW | U23: Cooling Distribution Efficiency
B24: =IF(ISERROR(MATCH('Project Info'!$D$20,$V$24:$Z$24,0)),"Other",'Project Info'!$D$20) -> Other | C24: ='HVAC Inputs'!P33 -> 0 | D24: =OFFSET($U$10,IF(C24="Yes",9,4),MATCH(B24,$V$10:$Z$10,0)) -> 0.73 | E24: =OFFSET($U$10,IF(C24="Yes",6,1),MATCH(B24,$V$10:$Z$10,0)) -> 0.798 | F24: =LOOKUP('HVAC Inputs'!O33,$AB$11:$AB$21,$AD$11:$AD$21) ->  | G24: ='HVAC Inputs'!R33 -> 0 | H24: =IF(C24="","",+'Project Info'!$D$25) -> 0 | I24: =IF(C24="","",+'Project Info'!$D$26) -> 0 | J24: =IF(C24="","",IF(H24=$U$38,$V$38,IF(H24=$U$41,$V$41,IF(H24=$U$42,$V$42,IF(I24=$U$39,$V$39,$V$40))))) -> 0.85 | K24: =OFFSET($U$24,IF(C24="Yes",9,4),MATCH(B24,$V$24:$Z$24,0)) -> 0.823 | L24: =OFFSET($U$24,IF(C24="Yes",6,1),MATCH(B24,$V$24:$Z$24,0)) -> 0.844 | M24: =LOOKUP('HVAC Inputs'!O33,$AB$11:$AB$21,$AC$11:$AC$21) ->  | N24: ='HVAC Inputs'!Q33 -> 0 | O24: ='HVAC11-Unitary&Split'!V9 -> 14.6 | P24: =IF('Project Info'!D24="electric",(E24-D24)/E24*(1-F24)*'HVAC Inputs'!R101*G24/J24/3.412,0) -> 0 | Q24: =IF('Project Info'!D24="Electric","",(E24-D24)/E24*'HVAC Inputs'!R101*G24/J24/1000) ->  | R24: =IF(C24=0,0,(L24-K24)/L24*(1-M24)*'HVAC Inputs'!$R$100*N24/O24) -> 0 | S24: =+R24/'HVAC Inputs'!$R$100 ->  | U24: Duct total leakage (%) | V24: Assembly | W24: Fast food Restaurant | X24: Full Service Restaurant | Y24: Small Retail | Z24: Other
U25: 8% Uninsulated | V25: 0.87 | W25: 0.853 | X25: 0.827 | Y25: 0.825 | Z25: 0.844
U26: 15% Uninsulated | V26: 0.859 | W26: 0.843 | X26: 0.825 | Y26: 0.818 | Z26: 0.836
U27: 20% uninsulated | V27: 0.85 | W27: 0.836 | X27: 0.821 | Y27: 0.812 | Z27: 0.83
U28: 25% Uninsulated | V28: 0.84 | W28: 0.827 | X28: 0.818 | Y28: 0.805 | Z28: 0.823
U29: 30% Uninsulated | V29: 0.829 | W29: 0.818 | X29: 0.813 | Y29: 0.798 | Z29: 0.815
U30: 8% R-6 | V30: 0.948 | W30: 0.95 | X30: 0.959 | Y30: 0.932 | Z30: 0.947
U31: 15% R-6 | V31: 0.932 | W31: 0.933 | X31: 0.955 | Y31: 0.921 | Z31: 0.935
U32: 20% R-6 | V32: 0.92 | W32: 0.921 | X32: 0.95 | Y32: 0.912 | Z32: 0.926
U33: 25% R-6 | V33: 0.906 | W33: 0.908 | X33: 0.943 | Y33: 0.903 | Z33: 0.915
U34: 30% R-6 | V34: 0.892 | W34: 0.895 | X34: 0.934 | Y34: 0.892 | Z34: 0.903
U36: Heating Efficiency
U37: Boiler Type | V37: Efficiency %
U38: Gas-fired | V38: 0.82
U39: Condensing | V39: 0.85
U40: Non-Condensing | V40: 0.85
U41: Electric Resistance | V41: 1
U42: Heat Pump | V42: 3
U43: See Table 28 and Figure 68of the 2024 Commercial Existing Building Baseline Study
U54: Manchester
U55: 908
E56: Small Commercial Cooling Full Load Hours | K56: Small Commercial Heating Full Load Hours | U56: 3379
U57: 474
E58: Building Type | F58: Berlin | G58: Concord | H58: Manchester | K58: Building Type | L58: Berlin | T58: Concord | U58: 452
E59: Assembly | F59: 448 | G59: 538 | H59: 492 | K59: Assembly | L59: 1234 | T59: 960 | U59: 1249
E60: Auto Repair | F60: 186 | G60: 304 | H60: 341 | K60: Auto Repair | L60: 4173 | T60: 3370 | U60: 1275
E61: Big Box Retail | F61: 734 | G61: 841 | H61: 786 | K61: Big Box Retail | L61: 744 | T61: 602 | U61: 988
E62: Dormitory | F62: 638 | G62: 698 | H62: 705 | K62: Dormitory | L62: 686 | T62: 544 | U62: 949
E63: Fast food | F63: 427 | G63: 539 | H63: 521 | K63: Fast food | L63: 1837 | T63: 1400 | U63: 499
E64: Full Service | F64: 391 | G64: 512 | H64: 479 | K64: Full Service | L64: 1886 | T64: 1303 | U64: 1094
E65: Grocery | F65: 2143 | G65: 2188 | H65: 2028 | K65: Grocery | L65: 951 | T65: 1064 | U65: 928
E66: Light Industrial | F66: 350 | G66: 435 | H66: 419 | K66: Light Industrial | L66: 1379 | T66: 1265 | U66: 588
E67: Motel | F67: 670 | G67: 900 | H67: 909 | K67: Motel | L67: 736 | T67: 626 | U67: 795
E68: Primary School | F68: 167 | G68: 304 | H68: 278 | K68: Primary School | L68: 1551 | T68: 1309 | U68: 829
E69: Religious | F69: 171 | G69: 220 | H69: 261 | K69: Religious | L69: 1129 | T69: 1012 | U69: 1029
E70: Small Office | F70: 563 | G70: 786 | H70: 758 | K70: Small Office | L70: 894 | T70: 760 | U70: 939
E71: Small Retail | F71: 575 | G71: 716 | H71: 685 | K71: Small Retail | L71: 1264 | T71: 1052 | U71: 863
E72: Warehouse | F72: 172 | G72: 249 | H72: 275 | K72: Warehouse | L72: 1172 | T72: 920 | U72: 642
E73: Other Small building | F73: 545 | G73: 659 | H73: 638 | K73: Other Small building | L73: 1403 | T73: 1156 | U73: 723
E74: Community College (CV econ HVAC) | F74: 412 | G74: 627 | H74: 581 | K74: Community College (CV econ HVAC) | L74: 1103 | T74: 1098 | U74: 724
E75: Community College (CV noecon HVAC) | F75: 612 | G75: 874 | H75: 789 | K75: Community College (CV noecon HVAC) | L75: 982 | T75: 1014 | U75: 652
E76: Community College (VAV HVAC) | F76: 299 | G76: 489 | H76: 460 | K76: Community College (VAV HVAC) | L76: 704 | T76: 462 | U76: 274
E77: Community College (Unknown HVAC) | F77: 365 | G77: 570 | H77: 530 | K77: Community College (Unknown HVAC) | L77: 809 | T77: 646 | U77: 402
E78: High School (CV econ HVAC) | F78: 252 | G78: 398 | H78: 330 | K78: High School (CV econ HVAC) | L78: 806 | T78: 744 | U78: 703
E79: High School (CV noecon HVAC) | F79: 707 | G79: 837 | H79: 741 | K79: High School (CV noecon HVAC) | L79: 721 | T79: 699 | U79: 641
E80: High School (VAV HVAC) | F80: 148 | G80: 255 | H80: 196 | K80: High School (VAV HVAC) | L80: 383 | T80: 289 | U80: 437
E81: High School (Unknown HVAC) | F81: 251 | G81: 368 | H81: 301 | K81: High School (Unknown HVAC) | L81: 501 | T81: 423 | U81: 474
E82: Hospital (CV econ HVAC) | F82: 1037 | G82: 1132 | H82: 1115 | K82: Hospital (CV econ HVAC) | L82: 1140 | T82: 1052 | U82: 909
E83: Hospital (CV noecon HVAC) | F83: 2248 | G83: 2117 | H83: 1865 | K83: Hospital (CV noecon HVAC) | L83: 1068 | T83: 971 | U83: 671
E84: Hospital (VAV HVAC) | F84: 1014 | G84: 1089 | H84: 1079 | K84: Hospital (VAV HVAC) | L84: 738 | T84: 781 | U84: 350
E85: Hospital (Unknown HVAC) | F85: 1115 | G85: 1175 | H85: 1145 | K85: Hospital (Unknown HVAC) | L85: 797 | T85: 818 | U85: 790
E86: Hotel (CV econ HVAC) | F86: 2838 | G86: 3033 | H86: 2763 | K86: Hotel (CV econ HVAC) | L86: 1111 | T86: 955 | U86: 1683
E87: Hotel (CV noecon HVAC) | F87: 3035 | G87: 3219 | H87: 2983 | K87: Hotel (CV noecon HVAC) | L87: 917 | T87: 771 | U87: 1620
E88: Hotel (VAV HVAC) | F88: 2811 | G88: 3014 | H88: 2726 | K88: Hotel (VAV HVAC) | L88: 571 | T88: 432 | U88: 309
E89: Hotel (Unknown HVAC) | F89: 2937 | G89: 3126 | H89: 2873 | K89: Hotel (Unknown HVAC) | L89: 1014 | T89: 863 | U89: 497
E90: Large Office (CV econ HVAC) | F90: 885 | G90: 1095 | H90: 1002 | K90: Large Office (CV econ HVAC) | L90: 2140 | T90: 2046 | U90: 1735
E91: Large Office (CV noecon HVAC) | F91: 2500 | G91: 2541 | H91: 2276 | K91: Large Office (CV noecon HVAC) | L91: 2046 | T91: 1985 | U91: 1620
E92: Large Office (VAV HVAC) | F92: 584 | G92: 758 | H92: 675 | K92: Large Office (VAV HVAC) | L92: 518 | T92: 428 | U92: 549
E93: Large Office (Unknown HVAC) | F93: 739 | G93: 906 | H93: 810 | K93: Large Office (Unknown HVAC) | L93: 739 | T93: 651 | U93: 729
E94: Large Retail (CV econ HVAC) | F94: 701 | G94: 848 | H94: 832 | K94: Large Retail (CV econ HVAC) | L94: 1878 | T94: 1827 | U94: 1342
E95: Large Retail (CV noecon HVAC) | F95: 1695 | G95: 1654 | H95: 1665 | K95: Large Retail (CV noecon HVAC) | L95: 1755 | T95: 1728 | U95: 1135
E96: Large Retail (VAV HVAC) | F96: 560 | G96: 662 | H96: 656 | K96: Large Retail (VAV HVAC) | L96: 775 | T96: 681 | U96: 797
E97: Large Retail (Unknown HVAC) | F97: 662 | G97: 756 | H97: 750 | K97: Large Retail (Unknown HVAC) | L97: 942 | T97: 856 | U97: 933
E98: University (CV econ HVAC) | F98: 566 | G98: 722 | H98: 760 | K98: University (CV econ HVAC) | L98: 1515 | T98: 1404
E99: University (CV noecon HVAC) | F99: 1334 | G99: 1543 | H99: 1689 | K99: University (CV noecon HVAC) | L99: 1279 | T99: 1195
E100: University (VAV HVAC) | F100: 413 | G100: 592 | H100: 619 | K100: University (VAV HVAC) | L100: 615 | T100: 852
E101: University (Unknown HVAC) | F101: 579 | G101: 760 | H101: 807 | K101: University (Unknown HVAC) | L101: 858 | T101: 991

Sheet HVAC6-HotelOccSensor (hidden)
B1: Measure: Hotel Occupancy Sensor
L2: Table 3: Coincidence Factors
L3: Fuel Type | M3: CFsp | N3: CFwp
B4: Measure Summary | G4: Measure Description | L4: LBES, SBES, Muni | M4: 0.82 | N4: 0.05
D5: Value | E5: Unit | G5: This measure includes the installation of hotel occupancy sensors (HOS) to control packaged terminal AC units (PTACs) with electric heat, heat pump units and/or fan coil units in hotels that operate all 12 months of the year.
B6: Total Savings | D6: =+H26 -> 0 | E6: kW
D7: =+I26 -> 0 | E7: kWh
D8: 0 | E8: MMBtu
B9: Measure Life | D9: 10 | E9: Years
B10: CFsp | D10: =M4*100 -> 82 | E10: %
B11: CFwp | D11: =N4*100 -> 5 | E11: %
B13: HVAC - Hotel Occupancy Sensor
B14: Measure Code | D14: COM-HVAC-HOS | G14: NOTE: For more information on this measure refer to the NH TRM.
B15: Market | D15: Commercial
B16: Program Type | D16: Retrofit
B17: Category | D17: HVAC
B22: Table 1: Calculating Primary Energy Impact
C23: Inputs | H23: Savings
C24: Quantity | H24: kW | I24: kWh
B25: 1 | C25: =IF('HVAC Inputs'!L36="Measure qualifies for savings",'HVAC Inputs'!K37,0) -> 0 | H25: =0.09*C25 -> 0 | I25: =438*C25 -> 0
G26: Totals: | H26: =SUM(H25:H25) -> 0 | I26: =SUM(I25:I25) -> 0

Sheet HVAC7-DHW_PipeInsulation (hidden)
B1: Measure: Pipe Wrap (Domestic Hot Water Pipe) | P1: Additional Information:
P2: Table 2: Coincidence Factors
P3: Fuel Type | Q3: Measure | R3: CFsp | S3: CFwp
B4: Measure Summary | H4: Measure Description | P4: Gas, Oil, Propane | Q4: All | R4: 0 | S4: 0
D5: Value | E5: Unit | H5: This measure includes both steam and hot water heating pipes. Definitions: Pipe Wrap – Heating: Install insulation on steam pipes located in non-conditioned spaces. Pipe Wrap – Hot Water: Install insulation on hot water located in non-conditioned spaces. | P5: Electric | Q5: Heating | R5: 0 | S5: 0.433
B6: Total Savings | D6: =J25 -> 0 | E6: kW | P6: Electric | Q6: Hot Water | R6: 0.312 | S6: 0.808
D7: =K25 -> 0 | E7: kWh
D8: =L28 -> 0 | E8: MMBtu | O8: Table 3: Savings Values | W8: Table 6: Heating pipes, Electric Calculations
B9: Measure Life | D9: 15 | E9: Years | O9: Helper Column | P9: Measure Name | Q9: Fuel Type | R9: Program | S9: kWh | T9: kW | U9: MMBtu/ft | W9: No. | X9: Measure | Y9: Fuel Type | Z9: UAbase | AA9: UAee | AB9: kWh | AC9: kW | AD9: MMBtu
B10: CFsp | D10: =IF(P6='Project Info'!D27,R6,R4)*100 -> 0 | E10: % | O10: =P10&Q10&R10 -> HeatingGasCommercial | P10: Heating | Q10: Gas | R10: Commercial | S10: 0 | T10: 0 | U10: 0.29 | W10: 1 | X10: Heating | Y10: Electric | Z10: =IFERROR(VLOOKUP(G25,$W$15:$Z$20,2,FALSE),0) -> 0 | AA10: =IFERROR(VLOOKUP(H25,$W$21:$Z$22,3,FALSE),0) -> 0 | AB10: =(Z10-AA10)/($X$27*3412)*C25*$X$26*I25 ->  | AC10: =AB10/8760 ->  | AD10: 0
B11: CFwp | D11: =IF(P6='Project Info'!D27,S6,S4)*100 -> 0 | E11: % | O11: =P11&Q11&R11 -> Hot WaterGasCommercial | P11: Hot Water | Q11: Gas | R11: Commercial | S11: 0 | T11: 0 | U11: 0.29
O12: =P12&Q12&R12 -> HeatingGasMunicipal | P12: Heating | Q12: Gas | R12: Municipal | S12: 0 | T12: 0 | U12: calculate
B13: HVAC - Pipe Wrap | O13: =P13&Q13&R13 -> Hot WaterGasMunicipal | P13: Hot Water | Q13: Gas | R13: Municipal | S13: 0 | T13: 0 | U13: calculate | W13: Table 4: Pipe types for UA/L (Heating, Electric Only)
B14: Measure Code | D14: COM-HVAC-PW | H14: NOTE: For more information on this measure refer to the NH TRM. | O14: =P14&Q14 -> HeatingOil | P14: Heating | Q14: Oil | R14: Municipal | S14: 0 | T14: 0 | U14: calculate | W14: Type of Pipe | X14: Diameter | Y14: (UA/L)base | Z14: (UA/L)EE
B15: Market | D15: Commercial | O15: Hot WaterOil | P15: Hot Water | Q15: Oil | R15: Municipal | S15: 0 | T15: 0 | U15: calculate | W15: Copper | X15: 1.5 | Y15: 0.97
B16: Program Type | D16: Retrofit | O16: HeatingPropane | P16: Heating | Q16: Propane | R16: Municipal | S16: 0 | T16: 0 | U16: calculate | W16: Copper | X16: 2 | Y16: 1.19
B17: Category | D17: HVAC | O17: Hot WaterPropane | P17: Hot Water | Q17: Propane | R17: Municipal | S17: 0 | T17: 0 | U17: calculate | W17: Copper | X17: 3 | Y17: 1.7
O18: HeatingElectric | P18: Heating | Q18: Electric | R18: Commercial | S18: =AB10 ->  | T18: =AC10 ->  | U18: 0 | W18: Steel | X18: 1.5 | Y18: 1.23
O19: Hot WaterElectric | P19: Hot Water | Q19: Electric | R19: Commercial | S19: calc from kW demand impact model | T19: demand impact model | U19: 0 | W19: Steel | X19: 2 | Y19: 1.51
W20: Steel | X20: 3 | Y20: 2.16
W21: Fiber glass | Y21: - | Z21: 0.12
B22: Table 1: Calculating Primary Energy Impact | W22: Rigid foam/cellular glass | Y22: - | Z22: 0.46
B23: Inputs | J23: Savings
C24: ft | D24: Pipe Material | E24: Diameter | F24: (UA/L)base | G24: Insulation | H24: (UA/L)EE | I24: Hours | J24: kW | K24: kWh | L24: MMBtu | W24: Table 5: Additional numbers (Heating, Electric only)
B25: 1 | C25: =IF('Measure Summary'!$E$27="Yes",'HVAC Inputs'!Q44,0) -> 0 | D25: =IF('HVAC Inputs'!R44="","",'HVAC Inputs'!R44) ->  | E25: =IF('HVAC Inputs'!P44="","",'HVAC Inputs'!P44) ->  | F25: =IF(D25=$W$15,LOOKUP(E25,$X$15:$X$17,$Y$15:$Y$17),LOOKUP(E25,$X$18:$X$20,$Y$18:$Y$20)) ->  | G25: =IF('HVAC Inputs'!S44="","",'HVAC Inputs'!S44) ->  | H25: =IF(G25="","",IF(G25=$W$21,$Z$21,$Z$22)) ->  | I25: =IF('HVAC Inputs'!T44="","",'HVAC Inputs'!T44) ->  | J25: =K25/8760 -> 0 | K25: =IFERROR(IF('HVAC Inputs'!O44="Yes",0,IF('Project Info'!$D$27="Electric",((F25-H25)/($X$27*3412))*C25*$X$26*I25,0)),0) -> 0 | L25: =IF('Project Info'!$D$27="Electric",0,IF('HVAC Inputs'!O44="Yes",0,C25*$U$10)) -> 0 | W25: Name | X25: Value | Y25: Units
B26: 2 | C26: =IF('Measure Summary'!$E$27="Yes",'HVAC Inputs'!Q45,0) -> 0 | D26: =IF('HVAC Inputs'!R45="","",'HVAC Inputs'!R45) ->  | E26: =IF('HVAC Inputs'!P45="","",'HVAC Inputs'!P45) ->  | G26: =IF('HVAC Inputs'!S45="","",'HVAC Inputs'!S45) ->  | H26: =IF(G26="","",IF(G26=$W$21,$Z$21,$Z$22)) ->  | I26: =IF('HVAC Inputs'!T45="","",'HVAC Inputs'!T45) ->  | J26: =K26/8760 -> 0 | K26: =IFERROR(IF('HVAC Inputs'!O45="Yes",0,IF('Project Info'!$D$27="Electric",((F26-H26)/($X$27*3412))*C26*$X$26*I26,0)),0) -> 0 | L26: =IF('Project Info'!$D$27="Electric",0,IF('HVAC Inputs'!O45="Yes",0,C26*$U$10)) -> 0 | W26: Temperature Delta (Fluid - Ambient) | X26: 45 | Y26: *F
B27: 3 | C27: =IF('Measure Summary'!$E$27="Yes",'HVAC Inputs'!Q46,0) -> 0 | D27: =IF('HVAC Inputs'!R46="","",'HVAC Inputs'!R46) ->  | E27: =IF('HVAC Inputs'!P46="","",'HVAC Inputs'!P46) ->  | G27: =IF('HVAC Inputs'!S46="","",'HVAC Inputs'!S46) ->  | I27: =IF('HVAC Inputs'!T46="","",'HVAC Inputs'!T46) ->  | J27: 0 | K27: =IFERROR(IF('HVAC Inputs'!O46="Yes",0,IF('Project Info'!$D$27="Electric",((F27-H27)/($X$27*3412))*C27*$X$26*I27,0)),0) -> 0 | L27: =IF('Project Info'!$D$27="Electric",0,IF('HVAC Inputs'!O46="Yes",0,C27*$U$10)) -> 0 | W27: Et (electric heater thermal eff) | X27: 0.98 | Y27: -
I28: Totals: | J28: 0 | K28: 0 | L28: =SUM(L25:L27) -> 0

Sheet HVAC8-SpaceHtgPipeInsulation (hidden)
B1: Measure: Pipe Wrap (Space Heating Steam or Hot Water Pipe - Non-electric heating only) | P1: Additional Information:
P2: Table 2: Coincidence Factors
P3: Fuel Type | Q3: Measure | R3: CFsp | S3: CFwp
B4: Measure Summary | H4: Measure Description | P4: Gas, Oil, Propane | Q4: All | R4: 0 | S4: 0
D5: Value | E5: Unit | H5: This measure includes both steam and hot water heating pipes. Definitions: Heating: Install insulation on steam pipes located in non-conditioned spaces. Hot Water: Install insulation on hot water heating pipes located in unconditioned spaces. | P5: Electric | Q5: Heating | R5: 0 | S5: 0.433
B6: Total Savings | D6: 0 | E6: kW | P6: Electric | Q6: Hot Water | R6: 0.312 | S6: 0.808
D7: 0 | E7: kWh
D8: =L33 -> 0 | E8: MMBtu
B9: Measure Life | D9: 15 | E9: Years
B10: CFsp | D10: =R4*100 -> 0 | E10: %
B11: CFwp | D11: =S4*100 -> 0 | E11: %
B13: HVAC - Pipe Wrap
B14: Measure Code | D14: TBD | H14: Calculations assume that heating source is fossil fuel. TRM provides 0.29 MMBtu/ft for gas heating. Same factor is used for oil and propane heating.
B15: Market | D15: Commercial
B16: Program Type | D16: Retrofit
B17: Category | D17: HVAC
B22: Table 1: Calculating Primary Energy Impact
C23: Inputs | D23: Pipe | E23: Pipe | J23: Savings
C24: ft | D24: Material | E24: Diameter | J24: kW | K24: kWh | L24: MMBtu
B25: 1 | C25: =IF('Measure Summary'!$E$28="Yes",'HVAC Inputs'!P52,0) -> 0 | D25: =IF('Measure Summary'!$E$28="Yes",'HVAC Inputs'!Q52) -> FALSE | E25: =IF('Measure Summary'!$E$28="Yes",'HVAC Inputs'!R52) -> FALSE | J25: 0 | K25: 0 | L25: =IF('HVAC Inputs'!O52="Yes",0,C25*0.29) -> 0
B26: 2 | C26: =IF('Measure Summary'!$E$28="Yes",'HVAC Inputs'!P53,0) -> 0 | D26: =IF('Measure Summary'!$E$28="Yes",'HVAC Inputs'!Q53) -> FALSE | E26: =IF('Measure Summary'!$E$28="Yes",'HVAC Inputs'!R53) -> FALSE | J26: 0 | K26: 0 | L26: =IF('HVAC Inputs'!O53="Yes",0,C26*0.29) -> 0
B27: 3 | C27: =IF('Measure Summary'!$E$28="Yes",'HVAC Inputs'!P54,0) -> 0 | D27: =IF('Measure Summary'!$E$28="Yes",'HVAC Inputs'!Q54) -> FALSE | E27: =IF('Measure Summary'!$E$28="Yes",'HVAC Inputs'!R54) -> FALSE | J27: 0 | K27: 0 | L27: =IF('HVAC Inputs'!O54="Yes",0,C27*0.29) -> 0
B28: 4 | C28: =IF('Measure Summary'!$E$28="Yes",'HVAC Inputs'!P55,0) -> 0 | D28: =IF('Measure Summary'!$E$28="Yes",'HVAC Inputs'!Q55) -> FALSE | E28: =IF('Measure Summary'!$E$28="Yes",'HVAC Inputs'!R55) -> FALSE | J28: 0 | K28: 0 | L28: =IF('HVAC Inputs'!O55="Yes",0,C28*0.29) -> 0
B29: 5 | C29: =IF('Measure Summary'!$E$28="Yes",'HVAC Inputs'!P56,0) -> 0 | D29: =IF('Measure Summary'!$E$28="Yes",'HVAC Inputs'!Q56) -> FALSE | E29: =IF('Measure Summary'!$E$28="Yes",'HVAC Inputs'!R56) -> FALSE | J29: 0 | K29: 0 | L29: =IF('HVAC Inputs'!O56="Yes",0,C29*0.29) -> 0
B30: 6 | C30: =IF('Measure Summary'!$E$28="Yes",'HVAC Inputs'!P57,0) -> 0 | D30: =IF('Measure Summary'!$E$28="Yes",'HVAC Inputs'!Q57) -> FALSE | E30: =IF('Measure Summary'!$E$28="Yes",'HVAC Inputs'!R57) -> FALSE | J30: 0 | K30: 0 | L30: =IF('HVAC Inputs'!O57="Yes",0,C30*0.29) -> 0
B31: 7 | C31: =IF('Measure Summary'!$E$28="Yes",'HVAC Inputs'!P58,0) -> 0 | D31: =IF('Measure Summary'!$E$28="Yes",'HVAC Inputs'!Q58) -> FALSE | E31: =IF('Measure Summary'!$E$28="Yes",'HVAC Inputs'!R58) -> FALSE | J31: 0 | K31: 0 | L31: =IF('HVAC Inputs'!O58="Yes",0,C31*0.29) -> 0
B32: 8 | C32: =IF('Measure Summary'!$E$28="Yes",'HVAC Inputs'!P59,0) -> 0 | D32: =IF('Measure Summary'!$E$28="Yes",'HVAC Inputs'!Q59) -> FALSE | E32: =IF('Measure Summary'!$E$28="Yes",'HVAC Inputs'!R59) -> FALSE | J32: 0 | K32: 0 | L32: =IF('HVAC Inputs'!O59="Yes",0,C32*0.29) -> 0
I33: Totals: | J33: 0 | K33: 0 | L33: =SUM(L25:L32) -> 0

Sheet HVAC9-WifiTstat (hidden)
B1: Measure: Thermostat - Wifi Communicating
M2: Table 2: Coincidence Factors
M3: Fuel Type | N3: CFsp | O3: CFwp
B4: Measure Summary | G4: Measure Description | M4: Electric | N4: 0.346 | O4: 0
D5: Value | E5: Unit | G5: This measure is for a Wi-Fi enabled communicating thermostat which allows remote set point adjustment and control via remote application. System requires an outdoor air temperature algorithm in the control logic to operate heating and cooling system. | M5: Gas | N5: 0 | O5: 0
B6: Total Savings | D6: =H26 -> 0 | E6: kW | M6: Oil | N6: 0 | O6: 0
D7: =I26 -> 0 | E7: kWh | M7: Propane | N7: 0 | O7: 0
D8: =J26 -> 0 | E8: MMBtu
B9: Measure Life | D9: 15 | E9: Years | M9: Table 3: Savings Values
B10: CFsp | D10: =IFERROR(VLOOKUP('Project Info'!$D$24,$M$4:$O$7,2,FALSE),0)*100 -> 0 | E10: % | M10: Fuel Type | N10: kWh | O10: kW | P10: MMBtu
B11: CFwp | D11: =IFERROR(VLOOKUP('Project Info'!$D$24,$M$4:$O$7,3,FALSE),0)*100 -> 0 | E11: % | M11: Electric | N11: 160.9 | O11: 0.256 | P11: 0
M12: Gas | N12: 0 | O12: 0 | P12: 3.11
B13: HVAC - Thermostat - Wifi Communicating | M13: Oil | N13: 0 | O13: 0 | P13: 3.11
B14: Measure Code | D14: COM-HVAC-WIFI | G14: NOTE: For more information on this measure refer to the NH TRM. | M14: Propane | N14: 0 | O14: 0 | P14: 3.11
B15: Market | D15: Commercial | M15: OMP Gas | N15: 0 | O15: 0 | P15: 3.11
B16: Program Type | D16: Retrofit
B17: Category | D17: HVAC
B22: Table 1: Calculating Primary Energy Impact
C23: Inputs | H23: Savings
C24: Quantity | H24: kW | I24: kWh | J24: MMBtu
B25: 1 | C25: =+'HVAC Inputs'!K57 -> 0 | D25: =IF('Project Info'!D24="","Select Space Heating Fuel on 'Project Info' tab","") -> Select Space Heating Fuel on 'Project Info' tab | H25: =IFERROR(VLOOKUP('Project Info'!$D$24,$M$11:$P$14,3,FALSE),0)*C25 -> 0 | I25: =IFERROR(VLOOKUP('Project Info'!$D$24,$M$11:$P$14,2,FALSE),0)*C25 -> 0 | J25: =IFERROR(VLOOKUP('Project Info'!$D$24,$M$11:$P$14,4,FALSE),0)*C25 -> 0
G26: Totals: | H26: =SUM(H25:H25) -> 0 | I26: =SUM(I25:I25) -> 0 | J26: =SUM(J25:J25) -> 0

Sheet HVAC10-HeatPumps (hidden)
F1: HVAC Prescriptive Rebate
A2: Measure Summary | F2: Air & Water Source Heat Pumps (Including VRF) | N2: HVAC Lookup Tables: From NH TRM 2026
C3: Value | D3: Unit
A4: Total Savings | C4: =K43*(C8/100) -> 0 | D4: Summer kW | E4: Operating Profile | F4: ='HVAC Inputs'!P14 -> 0 | N4: Air to Air Heat Pumps | U4: Air to Air Heat Pumps | AE4: Heat Pump Categories
C5: =K44*(C9/100) -> 0 | D5: Winter kW | N5: Capacity Range | Q5: NH TRM 2026 | U5: Capacity Range | X5: NH TRM 2026 | AE5: Air to Air Heat Pump
C6: =K42 -> 0 | D6: kWh | N6: Min | O6: Max | P6: Elec | Q6: Cooling | R6: Cooling | S6: Heating | U6: Min | V6: Max | W6: Elec | X6: Cooling | Y6: Cooling | Z6: Heating | AE6: Water Source Heat Pump
A7: Measure Life | C7: =IFERROR(SUMPRODUCT(F42:J42,F20:J20)/SUM(F42:J42),12) -> 12 | D7: Years | E7: Equipment Tag | F7: =IF(+'HVAC Inputs'!P16="","",'HVAC Inputs'!P16) ->  | G7: =IF(+'HVAC Inputs'!Q16="","",'HVAC Inputs'!Q16) ->  | H7: =IF(+'HVAC Inputs'!R16="","",'HVAC Inputs'!R16) ->  | I7: =IF(+'HVAC Inputs'!S16="","",'HVAC Inputs'!S16) ->  | J7: =IF(+'HVAC Inputs'!T16="","",'HVAC Inputs'!T16) ->  | K7: Totals: | N7: tons | O7: tons | P7: Resistance | Q7: EER2 | R7: IEER/SEER2 | S7: COP/HSPF2 | U7: tons | V7: tons | W7: Resistance | X7: EER2 | Y7: IEER/SEER2 | Z7: COP/HSPF2 | AE7: Open Loop Ground Water Heat Pump
A8: CFsp | C8: =IFERROR(34.2, "") -> 34.2 | D8: % | E8: Model Numbers | F8: =IF(+'HVAC Inputs'!P17="","",'HVAC Inputs'!P17) ->  | G8: =IF(+'HVAC Inputs'!Q17="","",'HVAC Inputs'!Q17) ->  | H8: =IF(+'HVAC Inputs'!R17="","",'HVAC Inputs'!R17) ->  | I8: =IF(+'HVAC Inputs'!S17="","",'HVAC Inputs'!S17) ->  | J8: =IF(+'HVAC Inputs'!T17="","",'HVAC Inputs'!T17) ->  | K8: - | M8: Ductless Split | N8: None | O8: 5.4 | P8: No | Q8: 11.9 | R8: 14.3 | S8: 7.5 | U8: 5.4 | V8: 11.24 | W8: Yes | X8: 10.3 | Y8: 14.1 | Z8: 3.4 | AE8: Closed Loop Ground Water Heat Pump
A9: CFwp | C9: =IFERROR(IF(OR(F10 = "Air to Air Heat Pump", F10 = "Air Cooled VRF Heat Pump"), 0, 34.2), "") -> 34.2 | D9: % | E9: Quantity Units Installed | F9: =IF(+'HVAC Inputs'!P18="","",'HVAC Inputs'!P18) ->  | G9: =IF(+'HVAC Inputs'!Q18="","",'HVAC Inputs'!Q18) ->  | H9: =IF(+'HVAC Inputs'!R18="","",'HVAC Inputs'!R18) ->  | I9: =IF(+'HVAC Inputs'!S18="","",'HVAC Inputs'!S18) ->  | J9: =IF(+'HVAC Inputs'!T18="","",'HVAC Inputs'!T18) ->  | K9: =SUM(F9:J9) -> 0 | M9: Split | N9: None | O9: 5.4 | P9: No | Q9: 11.9 | R9: 14.3 | S9: 7.5 | U9: 11.25 | V9: 19.9 | W9: Yes | X9: 9.88 | Y9: 13.5 | Z9: 3.3 | AE9: Air Cooled VRF Heat Pump
E10: Equipment Type | F10: =IF(+'HVAC Inputs'!P19="","",'HVAC Inputs'!P19) ->  | G10: =IF(+'HVAC Inputs'!Q19="","",'HVAC Inputs'!Q19) ->  | H10: =IF(+'HVAC Inputs'!R19="","",'HVAC Inputs'!R19) ->  | I10: =IF(+'HVAC Inputs'!S19="","",'HVAC Inputs'!S19) ->  | J10: =IF(+'HVAC Inputs'!T19="","",'HVAC Inputs'!T19) ->  | K10: - | M10: Packaged | N10: None | O10: 5.4 | P10: No | Q10: 11.4 | R10: 13.4 | S10: 6.7 | U10: 20 | V10: 63.33 | W10: Yes | X10: 8.8 | Y10: 12.5 | Z10: 3.2 | AE10: Water Cooled VRF Heat Pump
E11: Supplemental Electric Resistance? | F11: =IF(+'HVAC Inputs'!P20="","",'HVAC Inputs'!P20) ->  | N11: 5.4 | O11: 11.24 | P11: No | Q11: 10.3 | R11: 13.9 | S11: 3.4
E12: Cooling Capacity - TONS | F12: =IF(+'HVAC Inputs'!P21="","",'HVAC Inputs'!P21) ->  | G12: =IF(+'HVAC Inputs'!Q21="","",'HVAC Inputs'!Q21) ->  | H12: =IF(+'HVAC Inputs'!R21="","",'HVAC Inputs'!R21) ->  | I12: =IF(+'HVAC Inputs'!S21="","",'HVAC Inputs'!S21) ->  | J12: =IF(+'HVAC Inputs'!T21="","",'HVAC Inputs'!T21) ->  | K12: =SUM(F12:J12) -> 0 | N12: 11.25 | O12: 19.9 | P12: No | Q12: 9.88 | R12: 13.3 | S12: 3.3
E13: Air to Air HP < 5.4 tons, Split or Packaged? | F13: =IF(+'HVAC Inputs'!P22="","",'HVAC Inputs'!P22) ->  | G13: =IF(+'HVAC Inputs'!Q22="","",'HVAC Inputs'!Q22) ->  | H13: =IF(+'HVAC Inputs'!R22="","",'HVAC Inputs'!R22) ->  | I13: =IF(+'HVAC Inputs'!S22="","",'HVAC Inputs'!S22) ->  | J13: =IF(+'HVAC Inputs'!T22="","",'HVAC Inputs'!T22) ->  | K13: - | N13: 20 | O13: 63.33 | P13: No | Q13: 8.8 | R13: 12.3 | S13: 3.2 | U13: Air Cooled VRF Heat Pump (No Heat Recovery) | AA13: Air Cooled VRF Heat Pump (Heat Recovery)
E14: VRF Heat Recovery or No Heat Recovery? | F14: =IF(+'HVAC Inputs'!P23="","",'HVAC Inputs'!P23) ->  | G14: =IF(+'HVAC Inputs'!Q23="","",'HVAC Inputs'!Q23) ->  | H14: =IF(+'HVAC Inputs'!R23="","",'HVAC Inputs'!R23) ->  | I14: =IF(+'HVAC Inputs'!S23="","",'HVAC Inputs'!S23) ->  | J14: =IF(+'HVAC Inputs'!T23="","",'HVAC Inputs'!T23) ->  | K14: - | N14: Table C403.3.2(2) | U14: Min | V14: Max | W14: NH TRM 2026 | AA14: Min | AB14: Max | AC14: NH TRM 2026
E15: Cooling Efficiency EER2 | F15: =IF(+'HVAC Inputs'!P24="","",'HVAC Inputs'!P24) ->  | G15: =IF(+'HVAC Inputs'!Q24="","",'HVAC Inputs'!Q24) ->  | H15: =IF(+'HVAC Inputs'!R24="","",'HVAC Inputs'!R24) ->  | I15: =IF(+'HVAC Inputs'!S24="","",'HVAC Inputs'!S24) ->  | J15: =IF(+'HVAC Inputs'!T24="","",'HVAC Inputs'!T24) ->  | K15: - | N15: Heat pump ratings for units under 5.4 tons are based on SEER and HSPF | U15: Capacity | V15: Capacity | W15: Cooling | X15: Cooling | Y15: Heating | AA15: Capacity | AB15: Capacity | AC15: Cooling | AD15: Cooling | AE15: Heating
E16: Cooling Efficiency IEER (SEER2 if < 5.4 tons) | F16: =IF(+'HVAC Inputs'!P25="","",'HVAC Inputs'!P25) ->  | G16: =IF(+'HVAC Inputs'!Q25="","",'HVAC Inputs'!Q25) ->  | H16: =IF(+'HVAC Inputs'!R25="","",'HVAC Inputs'!R25) ->  | I16: =IF(+'HVAC Inputs'!S25="","",'HVAC Inputs'!S25) ->  | J16: =IF(+'HVAC Inputs'!T25="","",'HVAC Inputs'!T25) ->  | K16: - | U16: Tons | V16: Tons | W16: EER2 | X16: IEER/SEER2 | Y16: COP/HSPF2 | AA16: Tons | AB16: Tons | AC16: EER2 | AD16: IEER/SEER2 | AE16: COP
E17: Heating Efficiency COP (HSPF2 if < 5.4 tons) | F17: =IF(+'HVAC Inputs'!P26="","",'HVAC Inputs'!P26) ->  | G17: =IF(+'HVAC Inputs'!Q26="","",'HVAC Inputs'!Q26) ->  | H17: =IF(+'HVAC Inputs'!R26="","",'HVAC Inputs'!R26) ->  | I17: =IF(+'HVAC Inputs'!S26="","",'HVAC Inputs'!S26) ->  | J17: =IF(+'HVAC Inputs'!T26="","",'HVAC Inputs'!T26) ->  | K17: - | N17: Water Source Heat Pumps | U17: 0 | V17: =65/12 -> 5.416666667 | W17: 11.9 | X17: 14.3 | Y17: 7.5 | AA17: 0 | AB17: =65/12 -> 5.416666667 | AC17: 11.9 | AD17: 14.3 | AE17: 7.5
E18: Equivalent Full Load Cooling Hours | F18: =IF(F9="","",'HVAC Inputs'!$R$100) ->  | G18: =IF(G9="","",'HVAC Inputs'!$R$100) ->  | H18: =IF(H9="","",'HVAC Inputs'!$R$100) ->  | I18: =IF(I9="","",'HVAC Inputs'!$R$100) ->  | J18: =IF(J9="","",'HVAC Inputs'!$R$100) ->  | K18: - | O18: Min | P18: Max | Q18: NH TRM 2026 | U18: =V17 -> 5.416666667 | V18: =135/12 -> 11.25 | W18: 11 | X18: 14.6 | Y18: 3.3 | AA18: =AB17 -> 5.416666667 | AB18: =135/12 -> 11.25 | AC18: 10.8 | AD18: 14.4 | AE18: 3.3
E19: Equivalent Full Load Heating Hours | F19: =IF(F9="","",'HVAC Inputs'!$R$101) ->  | G19: =IF(G9="","",'HVAC Inputs'!$R$101) ->  | H19: =IF(H9="","",'HVAC Inputs'!$R$101) ->  | I19: =IF(I9="","",'HVAC Inputs'!$R$101) ->  | J19: =IF(J9="","",'HVAC Inputs'!$R$101) ->  | K19: - | N19: Equipment | O19: Capacity | P19: Capacity | Q19: Cooling | R19: Heating | U19: =V18 -> 11.25 | V19: =240/12 -> 20 | W19: 10.6 | X19: 13.9 | Y19: 3.2 | AA19: =AB18 -> 11.25 | AB19: =240/12 -> 20 | AC19: 10.4 | AD19: 13.7 | AE19: 3.2
E20: Measure Life | F20: =IF(F10="","",IF(OR(F$10=$AE$7,F$10=$AE$8),25,IF(F$10=$AE$6,12,IF(F$10=0,0,20)))) ->  | G20: =IF(G10="","",IF(OR(G$10=$AE$7,G$10=$AE$8),25,IF(G$10=$AE$6,12,IF(G$10=0,0,20)))) ->  | H20: =IF(H10="","",IF(OR(H$10=$AE$7,H$10=$AE$8),25,IF(H$10=$AE$6,12,IF(H$10=0,0,20)))) ->  | I20: =IF(I10="","",IF(OR(I$10=$AE$7,I$10=$AE$8),25,IF(I$10=$AE$6,12,IF(I$10=0,0,20)))) ->  | J20: =IF(J10="","",IF(OR(J$10=$AE$7,J$10=$AE$8),25,IF(J$10=$AE$6,12,IF(J$10=0,0,20)))) ->  | K20: - | N20: Type | O20: Tons | P20: Tons | Q20: EER2 | R20: COP | U20: =V19 -> 20 | V20: 63.33 | W20: 9.5 | X20: 12.7 | Y20: 3.2 | AA20: =AB19 -> 20 | AB20: 63.33 | AC20: 9.3 | AD20: 12.5 | AE20: 3.2
N21: Water Source Heat Pump | O21: 0 | P21: =O22 -> 1.416666667 | Q21: 11.6 | R21: 4.3
F22: Below Sections for Baseline Performance Calculate Automatically Based on Inputs | O22: =17/12 -> 1.416666667 | P22: =135/12 -> 11.25 | Q22: 12.4 | R22: 4.3 | U22: Water Cooled VRF Heat Pump (No Heat Recovery) | AA22: Water Cooled VRF Heat Pump (Heat Recovery)
E23: Base Cooling EER2 | F23: =IF(F10="","",IF(F10=$AE$5, IF(F11="Yes", IF(F12<V8, X8, IF(F12<V9, X9, X10)), IF(F12<$O$8,IF(F13="Split",$Q$8,IF(F13="Packaged",$Q$10,"SPLIT OR PACKAGED?")),OFFSET($N$7,MATCH(F12,$N$8:$N$13,1),3))),IF(F10=$AE$6,IF(F12>$P$22,"CUSTOM",OFFSET($O$20,MATCH(F12,$O$21:$O$22,1),2)),IF(F10=$AE$7,IF(F12>$P$23,"CUSTOM",$Q$23),IF(F10=$AE$8,IF(F12>$P$24,"CUSTOM",$Q$24),IF(F10=$AE$9,IF(F14="Heat Recovery",OFFSET($AA$16,MATCH(F12,$AA$17:$AA$20,1),2),OFFSET($U$16,MATCH(F12,$U$17:$U$20,1),2)),IF(F10=$AE$10,IF(F14="Heat Recovery",OFFSET($AA$25,MATCH(F12,$AA$26:$AA$29,1),2),OFFSET($U$25,MATCH(F12,$U$26:$U$29,1),2))))))))) ->  | G23: =IF(G10="","",IF(G10=$AE$5,IF(G12<$O$8,IF(G13="Split",$Q$8,IF(G13="Packaged",$Q$10,"SPLIT OR PACKAGED?")),OFFSET($N$7,MATCH(G12,$N$8:$N$13,1),3)),IF(G10=$AE$6,IF(G12>$P$22,"CUSTOM",OFFSET($O$20,MATCH(G12,$O$21:$O$22,1),2)),IF(G10=$AE$7,IF(G12>$P$23,"CUSTOM",$Q$23),IF(G10=$AE$8,IF(G12>$P$24,"CUSTOM",$Q$24),IF(G10=$AE$9,IF(G14="Heat Recovery",OFFSET($AA$16,MATCH(G12,$AA$17:$AA$20,1),2),OFFSET($U$16,MATCH(G12,$U$17:$U$20,1),2)),IF(G10=$AE$10,IF(G14="Heat Recovery",OFFSET($AA$25,MATCH(G12,$AA$26:$AA$28,1),2),OFFSET($U$25,MATCH(G12,$U$26:$U$28,1),2))))))))) ->  | H23: =IF(H10="","",IF(H10=$AE$5,IF(H12<$O$8,IF(H13="Split",$Q$8,IF(H13="Packaged",$Q$10,"SPLIT OR PACKAGED?")),OFFSET($N$7,MATCH(H12,$N$8:$N$13,1),3)),IF(H10=$AE$6,IF(H12>$P$22,"CUSTOM",OFFSET($O$20,MATCH(H12,$O$21:$O$22,1),2)),IF(H10=$AE$7,IF(H12>$P$23,"CUSTOM",$Q$23),IF(H10=$AE$8,IF(H12>$P$24,"CUSTOM",$Q$24),IF(H10=$AE$9,IF(H14="Heat Recovery",OFFSET($AA$16,MATCH(H12,$AA$17:$AA$20,1),2),OFFSET($U$16,MATCH(H12,$U$17:$U$20,1),2)),IF(H10=$AE$10,IF(H14="Heat Recovery",OFFSET($AA$25,MATCH(H12,$AA$26:$AA$28,1),2),OFFSET($U$25,MATCH(H12,$U$26:$U$28,1),2))))))))) ->  | I23: =IF(I10="","",IF(I10=$AE$5,IF(I12<$O$8,IF(I13="Split",$Q$8,IF(I13="Packaged",$Q$10,"SPLIT OR PACKAGED?")),OFFSET($N$7,MATCH(I12,$N$8:$N$13,1),3)),IF(I10=$AE$6,IF(I12>$P$22,"CUSTOM",OFFSET($O$20,MATCH(I12,$O$21:$O$22,1),2)),IF(I10=$AE$7,IF(I12>$P$23,"CUSTOM",$Q$23),IF(I10=$AE$8,IF(I12>$P$24,"CUSTOM",$Q$24),IF(I10=$AE$9,IF(I14="Heat Recovery",OFFSET($AA$16,MATCH(I12,$AA$17:$AA$20,1),2),OFFSET($U$16,MATCH(I12,$U$17:$U$20,1),2)),IF(I10=$AE$10,IF(I14="Heat Recovery",OFFSET($AA$25,MATCH(I12,$AA$26:$AA$28,1),2),OFFSET($U$25,MATCH(I12,$U$26:$U$28,1),2))))))))) ->  | J23: =IF(J10="","",IF(J10=$AE$5,IF(J12<$O$8,IF(J13="Split",$Q$8,IF(J13="Packaged",$Q$10,"SPLIT OR PACKAGED?")),OFFSET($N$7,MATCH(J12,$N$8:$N$13,1),3)),IF(J10=$AE$6,IF(J12>$P$22,"CUSTOM",OFFSET($O$20,MATCH(J12,$O$21:$O$22,1),2)),IF(J10=$AE$7,IF(J12>$P$23,"CUSTOM",$Q$23),IF(J10=$AE$8,IF(J12>$P$24,"CUSTOM",$Q$24),IF(J10=$AE$9,IF(J14="Heat Recovery",OFFSET($AA$16,MATCH(J12,$AA$17:$AA$20,1),2),OFFSET($U$16,MATCH(J12,$U$17:$U$20,1),2)),IF(J10=$AE$10,IF(J14="Heat Recovery",OFFSET($AA$25,MATCH(J12,$AA$26:$AA$28,1),2),OFFSET($U$25,MATCH(J12,$U$26:$U$28,1),2))))))))) ->  | K23: - | N23: Open Loop Ground Water Heat Pump | O23: 0 | P23: =135/12 -> 11.25 | Q23: 17.1 | R23: 3.7 | U23: Min | V23: Max | W23: NH TRM 2026 | AA23: Min | AB23: Max | AC23: NH TRM 2026
E24: Base Cooling IEER (SEER2 if < 5.4 tons) | F24: =IF(F10="","",IF(F10=$AE$5, IF(F11="Yes", IF(F12<V8, Y8, IF(F12<V9, Y9, Y10)), IF(F12<$O$8,IF(F13="Packaged",$R$10,IF(F13="Split",$R$9,"SPLIT OR PACKAGED?")),OFFSET($N$7,MATCH(F12,$N$8:$N$13,1),4))),IF(OR(F10=$AE$6,F10=$AE$7,F10=$AE$8),"n/a",IF(F10=$AE$9,IF(F14="Heat Recovery",OFFSET($AA$16,MATCH(F12,$AA$17:$AA$20,1),3),OFFSET($U$16,MATCH(F12,$U$17:$U$20,1),3)),IF(F10=$AE$10,IF(F14="Heat Recovery",OFFSET($AA$25,MATCH(F12,$AA$26:$AA$29,1),3),OFFSET($U$25,MATCH(F12,$U$26:$U$29,1),3))))))) ->  | G24: =IF(G10="","",IF(G10=$AE$5,IF(G12<$O$8,IF(G13="Packaged",$R$10,IF(G13="Split",$R$9,"SPLIT OR PACKAGED?")),OFFSET($N$7,MATCH(G12,$N$8:$N$13,1),4)),IF(OR(G10=$AE$6,G10=$AE$7,G10=$AE$8),"n/a",IF(G10=$AE$9,IF(G14="Heat Recovery",OFFSET($AA$16,MATCH(G12,$AA$17:$AA$20,1),3),OFFSET($U$16,MATCH(G12,$U$17:$U$20,1),3)),IF(G10=$AE$10,IF(G14="Heat Recovery",OFFSET($AA$25,MATCH(G12,$AA$26:$AA$29,1),3),OFFSET($U$25,MATCH(G12,$U$26:$U$29,1),3))))))) ->  | H24: =IF(H10="","",IF(H10=$AE$5,IF(H12<$O$8,IF(H13="Packaged",$R$10,IF(H13="Split",$R$9,"SPLIT OR PACKAGED?")),OFFSET($N$7,MATCH(H12,$N$8:$N$13,1),4)),IF(OR(H10=$AE$6,H10=$AE$7,H10=$AE$8),"n/a",IF(H10=$AE$9,IF(H14="Heat Recovery",OFFSET($AA$16,MATCH(H12,$AA$17:$AA$20,1),3),OFFSET($U$16,MATCH(H12,$U$17:$U$20,1),3)),IF(H10=$AE$10,IF(H14="Heat Recovery",OFFSET($AA$25,MATCH(H12,$AA$26:$AA$29,1),3),OFFSET($U$25,MATCH(H12,$U$26:$U$29,1),3))))))) ->  | I24: =IF(I10="","",IF(I10=$AE$5,IF(I12<$O$8,IF(I13="Packaged",$R$10,IF(I13="Split",$R$9,"SPLIT OR PACKAGED?")),OFFSET($N$7,MATCH(I12,$N$8:$N$13,1),4)),IF(OR(I10=$AE$6,I10=$AE$7,I10=$AE$8),"n/a",IF(I10=$AE$9,IF(I14="Heat Recovery",OFFSET($AA$16,MATCH(I12,$AA$17:$AA$20,1),3),OFFSET($U$16,MATCH(I12,$U$17:$U$20,1),3)),IF(I10=$AE$10,IF(I14="Heat Recovery",OFFSET($AA$25,MATCH(I12,$AA$26:$AA$29,1),3),OFFSET($U$25,MATCH(I12,$U$26:$U$29,1),3))))))) ->  | J24: =IF(J10="","",IF(J10=$AE$5,IF(J12<$O$8,IF(J13="Packaged",$R$10,IF(J13="Split",$R$9,"SPLIT OR PACKAGED?")),OFFSET($N$7,MATCH(J12,$N$8:$N$13,1),4)),IF(OR(J10=$AE$6,J10=$AE$7,J10=$AE$8),"n/a",IF(J10=$AE$9,IF(J14="Heat Recovery",OFFSET($AA$16,MATCH(J12,$AA$17:$AA$20,1),3),OFFSET($U$16,MATCH(J12,$U$17:$U$20,1),3)),IF(J10=$AE$10,IF(J14="Heat Recovery",OFFSET($AA$25,MATCH(J12,$AA$26:$AA$29,1),3),OFFSET($U$25,MATCH(J12,$U$26:$U$29,1),3))))))) ->  | K24: - | N24: Closed Loop Ground Water Heat Pump | O24: 0 | P24: =135/12 -> 11.25 | Q24: 13.4 | R24: 3.2 | U24: Capacity | V24: Capacity | W24: Cooling | X24: Cooling | Y24: Heating | AA24: Capacity | AB24: Capacity | AC24: Cooling | AD24: Cooling | AE24: Heating
E25: Base Heating COP (HSFP2 if < 5.4 tons) | F25: =IF(F10="","",IF(F10=$AE$5, IF(F11="Yes", IF(F12<V8, Z8, IF(F12<V9, Z9, Z10)), IF(F12<$O$8,(IF(F13="SPLIT",$S$9,IF(F13="PACKAGED",$S$10,"SPLIT OR PACKAGED?"))),OFFSET($N$7,MATCH(F12,$N$8:$N$13,1),5))),IF(F10=$AE$6,IF(F12>$P$22,"CUSTOM",OFFSET($O$20,MATCH(F12,$O$21:$O$22,1),3)),IF(F10=$AE$7,IF(F12>$P$23,"CUSTOM",$R$23),IF(F10=$AE$8,IF(F12>$P$24,"CUSTOM",$R$24),IF(F10=$AE$9,IF(F14="Heat Recovery",OFFSET($AA$16,MATCH(F12,$AA$17:$AA$20,1),4),OFFSET($U$16,MATCH(F12,$U$17:$U$20,1),4)),IF(F10=$AE$10,IF(F14="Heat Recovery",OFFSET($AA$25,MATCH(F12,$AA$26:$AA$29,1),4),OFFSET($U$25,MATCH(F12,$U$26:$U$29,1),4))))))))) ->  | G25: =IF(G10="","",IF(G10=$AE$5,IF(G12<$O$8,(IF(G13="SPLIT",$S$9,IF(G13="PACKAGED",$S$10,"SPLIT OR PACKAGED?"))),OFFSET($N$7,MATCH(G12,$N$8:$N$13,1),5)),IF(G10=$AE$6,IF(G12>$P$22,"CUSTOM",OFFSET($O$20,MATCH(G12,$O$21:$O$22,1),3)),IF(G10=$AE$7,IF(G12>$P$23,"CUSTOM",$R$23),IF(G10=$AE$8,IF(G12>$P$24,"CUSTOM",$R$24),IF(G10=$AE$9,IF(G14="Heat Recovery",OFFSET($AA$16,MATCH(G12,$AA$17:$AA$20,1),4),OFFSET($U$16,MATCH(G12,$U$17:$U$20,1),4)),IF(G10=$AE$10,IF(G14="Heat Recovery",OFFSET($AA$25,MATCH(G12,$AA$26:$AA$29,1),4),OFFSET($U$25,MATCH(G12,$U$26:$U$29,1),4))))))))) ->  | H25: =IF(H10="","",IF(H10=$AE$5,IF(H12<$O$8,(IF(H13="SPLIT",$S$9,IF(H13="PACKAGED",$S$10,"SPLIT OR PACKAGED?"))),OFFSET($N$7,MATCH(H12,$N$8:$N$13,1),5)),IF(H10=$AE$6,IF(H12>$P$22,"CUSTOM",OFFSET($O$20,MATCH(H12,$O$21:$O$22,1),3)),IF(H10=$AE$7,IF(H12>$P$23,"CUSTOM",$R$23),IF(H10=$AE$8,IF(H12>$P$24,"CUSTOM",$R$24),IF(H10=$AE$9,IF(H14="Heat Recovery",OFFSET($AA$16,MATCH(H12,$AA$17:$AA$20,1),4),OFFSET($U$16,MATCH(H12,$U$17:$U$20,1),4)),IF(H10=$AE$10,IF(H14="Heat Recovery",OFFSET($AA$25,MATCH(H12,$AA$26:$AA$29,1),4),OFFSET($U$25,MATCH(H12,$U$26:$U$29,1),4))))))))) ->  | I25: =IF(I10="","",IF(I10=$AE$5,IF(I12<$O$8,(IF(I13="SPLIT",$S$9,IF(I13="PACKAGED",$S$10,"SPLIT OR PACKAGED?"))),OFFSET($N$7,MATCH(I12,$N$8:$N$13,1),5)),IF(I10=$AE$6,IF(I12>$P$22,"CUSTOM",OFFSET($O$20,MATCH(I12,$O$21:$O$22,1),3)),IF(I10=$AE$7,IF(I12>$P$23,"CUSTOM",$R$23),IF(I10=$AE$8,IF(I12>$P$24,"CUSTOM",$R$24),IF(I10=$AE$9,IF(I14="Heat Recovery",OFFSET($AA$16,MATCH(I12,$AA$17:$AA$20,1),4),OFFSET($U$16,MATCH(I12,$U$17:$U$20,1),4)),IF(I10=$AE$10,IF(I14="Heat Recovery",OFFSET($AA$25,MATCH(I12,$AA$26:$AA$29,1),4),OFFSET($U$25,MATCH(I12,$U$26:$U$29,1),4))))))))) ->  | J25: =IF(J10="","",IF(J10=$AE$5,IF(J12<$O$8,(IF(J13="SPLIT",$S$9,IF(J13="PACKAGED",$S$10,"SPLIT OR PACKAGED?"))),OFFSET($N$7,MATCH(J12,$N$8:$N$13,1),5)),IF(J10=$AE$6,IF(J12>$P$22,"CUSTOM",OFFSET($O$20,MATCH(J12,$O$21:$O$22,1),3)),IF(J10=$AE$7,IF(J12>$P$23,"CUSTOM",$R$23),IF(J10=$AE$8,IF(J12>$P$24,"CUSTOM",$R$24),IF(J10=$AE$9,IF(J14="Heat Recovery",OFFSET($AA$16,MATCH(J12,$AA$17:$AA$20,1),4),OFFSET($U$16,MATCH(J12,$U$17:$U$20,1),4)),IF(J10=$AE$10,IF(J14="Heat Recovery",OFFSET($AA$25,MATCH(J12,$AA$26:$AA$29,1),4),OFFSET($U$25,MATCH(J12,$U$26:$U$29,1),4))))))))) ->  | K25: - | N25: Table C403.3.2(2) | U25: Tons | V25: Tons | W25: EER2 | X25: IEER | Y25: COP | AA25: Tons | AB25: Tons | AC25: EER2 | AD25: IEER | AE25: COP
F26: =IF(ISERROR((12/F$9-12/F$12)*F$10*F$15/12),"",(12/F$9-12/F$12)*F$10*F$15/12) ->  | G26: =IF(ISERROR((12/G$9-12/G$12)*G$10*G$15/12),"",(12/G$9-12/G$12)*G$10*G$15/12) ->  | H26: =IF(ISERROR((12/H$9-12/H$12)*H$10*H$15/12),"",(12/H$9-12/H$12)*H$10*H$15/12) ->  | I26: =IF(ISERROR((12/I$9-12/I$12)*I$10*I$15/12),"",(12/I$9-12/I$12)*I$10*I$15/12) ->  | J26: =IF(ISERROR((12/J$9-12/J$12)*J$10*J$15/12),"",(12/J$9-12/J$12)*J$10*J$15/12) ->  | U26: 0 | V26: =65/12 -> 5.416666667 | W26: 12 | X26: 16 | Y26: 4.3 | AA26: 0 | AB26: =65/12 -> 5.416666667 | AC26: 11.8 | AD26: 15.8 | AE26: 4.3
F27: Below Sections for Energy Savings Calculate Automatically Based on Inputs | U27: =V26 -> 5.416666667 | V27: =135/12 -> 11.25 | W27: 12 | X27: 16 | Y27: 4.3 | AA27: =AB26 -> 5.416666667 | AB27: =135/12 -> 11.25 | AC27: 11.8 | AD27: 15.8 | AE27: 4.3
F28: Cooling Energy Savings Summary - Based on EER2 | U28: =V27 -> 11.25 | V28: =240/12 -> 20 | W28: 10 | X28: 14 | Y28: 4 | AA28: =AB27 -> 11.25 | AB28: =240/12 -> 20 | AC28: 9.8 | AD28: 13.8 | AE28: 4
E29: Annual Cooling kWh Savings based on EER2 | F29: =IF(F15<F23, 0, IFERROR(F9*F12*F18*(12/F23-12/F15),"")) ->  | G29: =IFERROR(G9*G12*G18*(12/G23-12/G15),"") ->  | H29: =IFERROR(H9*H12*H18*(12/H23-12/H15),"") ->  | I29: =IFERROR(I9*I12*I18*(12/I23-12/I15),"") ->  | J29: =IFERROR(J9*J12*J18*(12/J23-12/J15),"") ->  | K29: - | U29: =V28 -> 20 | V29: 63.33 | W29: 10 | X29: 12 | Y29: 3.9 | AA29: =AB28 -> 20 | AB29: 63.33 | AC29: 9.8 | AD29: 11.8 | AE29: 3.9
E30: Avg. Summer kW Savings Based on EER2 | F30: =IFERROR(F29/F18,"") ->  | G30: =IFERROR(G29/G18,"") ->  | H30: =IFERROR(H29/H18,"") ->  | I30: =IFERROR(I29/I18,"") ->  | J30: =IFERROR(J29/J18,"") ->  | K30: -
F31: =IF(ISERROR((12/F$9-12/F$12)*F$10*F$15/12),"",(12/F$9-12/F$12)*F$10*F$15/12) ->  | G31: =IF(ISERROR((12/G$9-12/G$12)*G$10*G$15/12),"",(12/G$9-12/G$12)*G$10*G$15/12) ->  | H31: =IF(ISERROR((12/H$9-12/H$12)*H$10*H$15/12),"",(12/H$9-12/H$12)*H$10*H$15/12) ->  | I31: =IF(ISERROR((12/I$9-12/I$12)*I$10*I$15/12),"",(12/I$9-12/I$12)*I$10*I$15/12) ->  | J31: =IF(ISERROR((12/J$9-12/J$12)*J$10*J$15/12),"",(12/J$9-12/J$12)*J$10*J$15/12) ->  | P31: On Peak
F32: Cooling Energy Savings Summary - Based on IEER/SEER2 | O32: Schools | P32: 0.85
E33: Annual Cooling kWh Savings based on IEER/SEER2 | F33: =IF(F16<F24, 0, IFERROR(F9*F12*F18*(12/F24-12/F16),"")) ->  | G33: =IFERROR(G9*G12*G18*(12/G24-12/G16),"") ->  | H33: =IFERROR(H9*H12*H18*(12/H24-12/H16),"") ->  | I33: =IFERROR(I9*I12*I18*(12/I24-12/I16),"") ->  | J33: =IFERROR(J9*J12*J18*(12/J24-12/J16),"") ->  | K33: - | O33: 1 Shift | P33: 0.85
E34: Avg. Summer kW Savings Based on IEER/SEER2 | F34: =IFERROR(F33/F18,"") ->  | G34: =IFERROR(G33/G18,"") ->  | H34: =IFERROR(H33/H18,"") ->  | I34: =IFERROR(I33/I18,"") ->  | J34: =IFERROR(J33/J18,"") ->  | K34: - | O34: 2 Shift | P34: 0.65
O35: 3 Shift | P35: 0.35
F36: Heating Energy Savings
E37: Annual Heating Savings, kWh | F37: =IF(F17<F25, 0, IFERROR((1/F$25-1/F$17)*(F9*F$12*12000/3412)*F$19,"")) ->  | G37: =IFERROR((1/G$25-1/G$17)*(G9*G$12*12000/3412)*G$19,"") ->  | H37: =IFERROR((1/H$25-1/H$17)*(H9*H$12*12000/3412)*H$19,"") ->  | I37: =IFERROR((1/I$25-1/I$17)*(I9*I$12*12000/3412)*I$19,"") ->  | J37: =IFERROR((1/J$25-1/J$17)*(J9*J$12*12000/3412)*J$19,"") ->  | K37: -
E38: Average Winter kW Demand Savings | F38: =IFERROR(F37/F19,"") ->  | G38: =IFERROR(G37/G19,"") ->  | H38: =IFERROR(H37/H19,"") ->  | I38: =IFERROR(I37/I19,"") ->  | J38: =IFERROR(J37/J19,"") ->  | K38: -
N39: Equipment Type | O39: CF sp | P39: CF wp
F40: Total Energy Savings (Heating + Cooling) | N40: Air to Air | O40: 0.342 | P40: 0
E41: Qualifies? | F41: =IFERROR(IF(OR(F10=N21,F10=N22,F10=N23),IF(OR(F15<F23,F17<F25),"DNQ","Yes"),IF(OR(F15<F23, F16<F24, F17<F25), "DNQ", "Yes")), "") -> Yes | G41: =IFERROR(IF(OR(G10=O21,G10=O22,G10=O23),IF(OR(G15<G23,G17<G25),"DNQ","Yes"),IF(OR(G15<G23, G16<G24, G17<G25), "DNQ", "Yes")), "") -> Yes | H41: Yes | I41: Yes | J41: Yes | N41: Water Source | O41: 0.342 | P41: 0.342
E42: Annual Savings (kWh) | F42: =(IFERROR(IF(F41="Yes",IF(OR(F10=N21,F10=N22,F10=N23),F29+F37,F33+F37),""), 0)) -> 0 | G42: =(IFERROR(IF(G41="Yes",IF(OR(G10=O21,G10=O22,G10=O23),G29+G37,G33+G37),""), 0)) -> 0 | H42: 0 | I42: 0 | J42: 0 | K42: =SUM(F42:J42) -> 0
E43: Average Summer kW Demand Savings | F43: =F30 ->  | G43: =G30 ->  | K43: =SUM(F43:J43) -> 0
E44: Average Winter kW Demand Savings | F44: =F38 ->  | G44: =G38 ->  | K44: =SUM(F44:J44) -> 0
E45: On Peak Energy Savings, kWh | F45: =IFERROR(F42*VLOOKUP($F$4,O32:P35,2),"") ->  | G45: =IFERROR(G42*VLOOKUP($F$4,O122:P125,2),"") ->  | H45: =IFERROR(H42*VLOOKUP($F$4,O122:P125,2),"") ->  | I45: =IFERROR(I42*VLOOKUP($F$4,O122:P125,2),"") ->  | J45: =IFERROR(J42*VLOOKUP($F$4,O122:P125,2),"") ->  | K45: =SUM(F45:J45) -> 0

Sheet HVAC11-Unitary&Split (hidden)
G1: HVAC Prescriptive Rebate | R1: HVAC Lookup Tables: From NH TRM 2026
B2: Measure Summary | G2: Unitary & Split Systems
D3: Value | E3: Unit | R3: Unitary AC and Split Systems
B4: Total Savings | D4: =M40*(D8/100) -> 0 | E4: Summer kW | R4: Capacity Range | U4: NH TRM 2026
D5: =M41*(D9/100) -> 0 | E5: Winter kW | F5: Operating Profile | G5: =IF('HVAC Inputs'!W50="","",'HVAC Inputs'!W50) ->  | R5: Min | S5: Max | T5: Electric | U5: Full Load | V5: Part Load
D6: =+M38 -> 0 | E6: kWh | R6: tons | S6: tons | T6: Resistance? | U6: EER/EER2 | V6: IEER/SEER2
B7: Measure Life | D7: 20 | E7: Years | G7: Equipment Description | M7: Totals: | R7: Split | S7: 5.4 | U7: 11.4 | V7: 13.4
B8: CFsp | D8: =IFERROR(34.2,0) -> 34.2 | E8: % | F8: Equipment Tag | G8: =IF('HVAC Inputs'!W52="","",'HVAC Inputs'!W52) ->  | H8: =IF('HVAC Inputs'!X52="","",'HVAC Inputs'!X52) ->  | I8: =IF('HVAC Inputs'!Y52="","",'HVAC Inputs'!Y52) ->  | J8: =IF('HVAC Inputs'!Z52="","",'HVAC Inputs'!Z52) ->  | K8: =IF('HVAC Inputs'!AA52="","",'HVAC Inputs'!AA52) ->  | L8: =IF('HVAC Inputs'!AB52="","",'HVAC Inputs'!AB52) ->  | M8: - | R8: Packaged | S8: 5.4 | U8: 11.4 | V8: 13.4
B9: CFwp | D9: =IFERROR(IF(G11 = "Water Cooled", 34.2, 0), "") -> 0 | E9: % | F9: Model Numbers | G9: =IF('HVAC Inputs'!W53="","",'HVAC Inputs'!W53) ->  | H9: =IF('HVAC Inputs'!X53="","",'HVAC Inputs'!X53) ->  | I9: =IF('HVAC Inputs'!Y53="","",'HVAC Inputs'!Y53) ->  | J9: =IF('HVAC Inputs'!Z53="","",'HVAC Inputs'!Z53) ->  | K9: =IF('HVAC Inputs'!AA53="","",'HVAC Inputs'!AA53) ->  | L9: =IF('HVAC Inputs'!AB53="","",'HVAC Inputs'!AB53) ->  | M9: - | R9: 5.4 | S9: 11.24 | T9: No | U9: 11 | V9: 14.6
F10: Quantity Units Installed | G10: =IF('HVAC Inputs'!W54="","",'HVAC Inputs'!W54) ->  | H10: =IF('HVAC Inputs'!X54="","",'HVAC Inputs'!X54) ->  | I10: =IF('HVAC Inputs'!Y54="","",'HVAC Inputs'!Y54) ->  | J10: =IF('HVAC Inputs'!Z54="","",'HVAC Inputs'!Z54) ->  | K10: =IF('HVAC Inputs'!AA54="","",'HVAC Inputs'!AA54) ->  | L10: =IF('HVAC Inputs'!AB54="","",'HVAC Inputs'!AB54) ->  | M10: =SUM(G10:L10) -> 0 | R10: 11.25 | S10: 19.9 | T10: No | U10: 10.8 | V10: 14
F11: Condenser Type | G11: =IF('HVAC Inputs'!W55="","",'HVAC Inputs'!W55) ->  | H11: =IF('HVAC Inputs'!X55="","",'HVAC Inputs'!X55) ->  | I11: =IF('HVAC Inputs'!Y55="","",'HVAC Inputs'!Y55) ->  | J11: =IF('HVAC Inputs'!Z55="","",'HVAC Inputs'!Z55) ->  | K11: =IF('HVAC Inputs'!AA55="","",'HVAC Inputs'!AA55) ->  | L11: =IF('HVAC Inputs'!AB55="","",'HVAC Inputs'!AB55) ->  | M11: - | R11: 20 | S11: None | T11: No | U11: 10 | V11: 13
F12: Cooling Capacity - TONS | G12: =IF('HVAC Inputs'!W56="","",'HVAC Inputs'!W56) ->  | H12: =IF('HVAC Inputs'!X56="","",'HVAC Inputs'!X56) ->  | I12: =IF('HVAC Inputs'!Y56="","",'HVAC Inputs'!Y56) ->  | J12: =IF('HVAC Inputs'!Z56="","",'HVAC Inputs'!Z56) ->  | K12: =IF('HVAC Inputs'!AA56="","",'HVAC Inputs'!AA56) ->  | L12: =IF('HVAC Inputs'!AB56="","",'HVAC Inputs'!AB56) ->  | M12: =SUM(G12:L12) -> 0
F13: If < 5.4 tons, Split or Packaged? | G13: =IF('HVAC Inputs'!W57="","",'HVAC Inputs'!W57) ->  | H13: =IF('HVAC Inputs'!X57="","",'HVAC Inputs'!X57) ->  | I13: =IF('HVAC Inputs'!Y57="","",'HVAC Inputs'!Y57) ->  | J13: =IF('HVAC Inputs'!Z57="","",'HVAC Inputs'!Z57) ->  | K13: =IF('HVAC Inputs'!AA57="","",'HVAC Inputs'!AA57) ->  | L13: =IF('HVAC Inputs'!AB57="","",'HVAC Inputs'!AB57) -> 
F14: Unit Heat Source | G14: =IF('HVAC Inputs'!W58="","",'HVAC Inputs'!W58) ->  | H14: =IF('HVAC Inputs'!X58="","",'HVAC Inputs'!X58) ->  | I14: =IF('HVAC Inputs'!Y58="","",'HVAC Inputs'!Y58) ->  | J14: =IF('HVAC Inputs'!Z58="","",'HVAC Inputs'!Z58) ->  | K14: =IF('HVAC Inputs'!AA58="","",'HVAC Inputs'!AA58) ->  | L14: =IF('HVAC Inputs'!AB58="","",'HVAC Inputs'!AB58) ->  | M14: -
F15: Cooling Efficiency : EER/EER2 | G15: =IF('HVAC Inputs'!W59="","",'HVAC Inputs'!W59) ->  | H15: =IF('HVAC Inputs'!X59="","",'HVAC Inputs'!X59) ->  | I15: =IF('HVAC Inputs'!Y59="","",'HVAC Inputs'!Y59) ->  | J15: =IF('HVAC Inputs'!Z59="","",'HVAC Inputs'!Z59) ->  | K15: =IF('HVAC Inputs'!AA59="","",'HVAC Inputs'!AA59) ->  | L15: =IF('HVAC Inputs'!AB59="","",'HVAC Inputs'!AB59) ->  | M15: -
F16: Cooling Efficiency : IEER/SEER2 | G16: =IF('HVAC Inputs'!W60="","",'HVAC Inputs'!W60) ->  | H16: =IF('HVAC Inputs'!X60="","",'HVAC Inputs'!X60) ->  | I16: =IF('HVAC Inputs'!Y60="","",'HVAC Inputs'!Y60) ->  | J16: =IF('HVAC Inputs'!Z60="","",'HVAC Inputs'!Z60) ->  | K16: =IF('HVAC Inputs'!AA60="","",'HVAC Inputs'!AA60) ->  | L16: =IF('HVAC Inputs'!AB60="","",'HVAC Inputs'!AB60) ->  | M16: - | R16: Unitary AC and Split Systems
F17: Equivalent Full Load Cooling Hours | G17: =IF(G10="","",'HVAC Inputs'!$R$100) ->  | H17: =IF(H10="","",'HVAC Inputs'!$R$100) ->  | I17: =IF(I10="","",'HVAC Inputs'!$R$100) ->  | J17: =IF(J10="","",'HVAC Inputs'!$R$100) ->  | K17: =IF(K10="","",'HVAC Inputs'!$R$100) ->  | L17: =IF(L10="","",'HVAC Inputs'!$R$100) ->  | M17: - | R17: Capacity Range | U17: NH TRM 2026
R18: Min | S18: Max | T18: Electric | U18: Full Load | V18: Part Load
G19: Below Sections for Baseline Performance Calculate Automatically Based on Inputs | R19: tons | S19: tons | T19: Resistance? | U19: EER | V19: IEER
F20: Baseline Cooling Efficiency: EER/EER2 | G20: =IF(G12<$S$7,IF(G13="Split",$U$7,IF(G13="Packaged",$U$8,"Select Split or Packaged")),IF(G14="Other",OFFSET($R$6,MATCH(G12,$R$7:$R$11,1),3),OFFSET($R$19,MATCH(G12,$R$20:$R$22,1),3))) ->  | H20: =IF(H12<$S$7,IF(H13="Split",$U$7,IF(H13="Packaged",$U$8,"Select Split or Packaged")),IF(H14="Other",OFFSET($R$6,MATCH(H12,$R$7:$R$11,1),3),OFFSET($R$19,MATCH(H12,$R$20:$R$22,1),3))) ->  | L20: =IF(L12<$S$7,IF(L13="Split",$U$7,IF(L13="Packaged",$U$8,"Select Split or Packaged")),IF(L14="Other",OFFSET($R$6,MATCH(L12,$R$7:$R$11,1),3),OFFSET($R$19,MATCH(L12,$R$20:$R$22,1),3))) ->  | M20: - | R20: 5.4 | S20: 11.24 | T20: Yes | U20: 11 | V20: 14.8
F21: Baseline Cooling Efficiency: IEER/SEER2 | G21: =IF(G12<$S$7,IF(G13="Split",$V$7,IF(G13="Packaged",$V$8,"Select Split or Packaged")),IF(G14="Other",OFFSET($R$6,MATCH(G12,$R$7:$R$11,1),4),OFFSET($R$19,MATCH(G12,$R$20:$R$22,1),4))) ->  | M21: - | R21: 11.25 | S21: 19.9 | T21: Yes | U21: 10.8 | V21: 14.2
R22: 20 | S22: None | T22: Yes | U22: 10 | V22: 13.2
G23: Below Sections for Energy Savings Calculate Automatically Based on Inputs
G24: Energy Savings Summary - Based on EER/EER2
F25: Annual kWh Savings based on EER/EER2 | G25: =IF(G15<G20,0,IFERROR((12/G$20-12/G$15)*G10*G$12*G$17,"")) ->  | H25: =IFERROR((12/H$20-12/H$15)*H10*H$12*H$17,"") ->  | M25: =SUM(G25:L25) -> 
F26: Avg. Summer kW Savings Based on EER/EER2 | G26: =IFERROR(G25/G17,"") ->  | M26: =SUM(G26:L26) -> 0
